Workbook

Sheet Instructions

Sheet Summary
B1: RMS Errors in Solutons of Ax = b
B2: Excel minverse routine | C2: VBA Gaussian Elimination Routines
C3: Type Double | E3: Type Single
C4: Pivoting | D4: No Pivoting | E4: Pivoting | F4: No Pivoting
B5: =TRANSPOSE('Excel b'!N104:AB104) -> 6.976984271e-12 | C5: =TRANSPOSE(DP!N104:Y104) -> 2.508541598e-12 | D5: =TRANSPOSE(DNP!N104:Y104) -> 3.069921166e-11 | E5: =TRANSPOSE(SP!N104:Y104) -> 0.002449912858 | F5: =TRANSPOSE(SNP!P104:AA104) -> 0.01217962861
B6: 5.804646798e-12 | C6: 2.250365112e-12 | D6: 2.496325818e-11 | E6: 0.001280708196 | F6: 0.01448359241
B7: 6.183342487e-12 | C7: 2.61421387e-12 | D7: 2.472970263e-11 | E7: 0.002469842849 | F7: 0.008669544597
B8: 6.765511881e-12 | C8: 5.495166022e-12 | D8: 1.860653915e-11 | E8: 0.002097970444 | F8: 0.01767901217
B9: 5.75464323e-12 | C9: 4.766561844e-12 | D9: 9.78310734e-12 | E9: 0.001556229727 | F9: 0.01095256233
B10: 6.775459295e-12 | C10: 2.628311338e-12 | D10: 1.47369956e-11 | E10: 0.001188005127 | F10: 0.01284830812
B11: 5.882223832e-12 | C11: 2.913252353e-12 | D11: 3.83992431e-11 | E11: 0.001221386963 | F11: 0.00738646823
B12: 6.386795789e-12 | C12: 7.116570907e-12 | D12: 2.768915892e-11 | E12: 0.001748666089 | F12: 0.01693491115
B13: 6.611081241e-12 | C13: 4.786458385e-12 | D13: 3.093901068e-11 | E13: 0.002702236643 | F13: 0.01401358779
B14: 7.31931109e-12 | C14: 2.431091431e-12 | D14: 3.348431531e-11 | E14: 0.003411622345 | F14: 0.01303222592
A16: Maximum | B16: =MAX(B5:B14) -> 7.31931109e-12 | C16: =MAX(C5:C14) -> 7.116570907e-12 | D16: 3.83992431e-11 | E16: 0.003411622345 | F16: 0.01767901217
A17: Minimum | B17: =MIN(B5:B14) -> 5.75464323e-12 | C17: =MIN(C5:C14) -> 2.250365112e-12 | D17: 9.78310734e-12 | E17: 0.001188005127 | F17: 0.00738646823
A18: RMS RMS | B18: =SQRT(SUMPRODUCT(B5:B14,B5:B14)/10) -> 6.465843366e-12 | C18: =SQRT(SUMPRODUCT(C5:C14,C5:C14)/10) -> 4.073929679e-12 | D18: 2.675045555e-11 | E18: 0.00213232189 | F18: 0.013184971
C20: Determinant Results
D21: MATLAB result | E21: 7.588546098e+249
D22: Excel mdeterm | E22: =MDETERM(A) -> 7.588546098e+249
D23: VBA Code | E23: =detrmnt(A) -> 7.588546098e+249
C24: The difference is in the 14th significant figure

Sheet A
A1: 60.9 | B1: -63.2 | C1: -86.4 | D1: 86.2 | E1: 17.1 | F1: 36.6 | G1: 98.6 | H1: 15.2 | I1: 28.4 | J1: 82.7 | K1: 67.9 | L1: 93.9 | M1: 85.8 | N1: 47.2 | O1: 92 | P1: 55.6 | Q1: 8.3 | R1: 48.2 | S1: 31.4 | T1: 2.6 | U1: -3.8 | V1: 27.4 | W1: -69.2 | X1: 99.5 | Y1: 16.9 | Z1: 52.6 | AA1: -51.8 | AB1: 99.5 | AC1: 28.8 | AD1: 30.7 | AE1: 31.7 | AF1: 80.8 | AG1: -27.7 | AH1: -46 | AI1: 79.1 | AJ1: -51.4 | AK1: 56.6 | AL1: 35.8 | AM1: 75.1 | AN1: -30.5 | AO1: 65.7 | AP1: 8.7 | AQ1: 27.3 | AR1: 92 | AS1: 7.9 | AT1: -69.2 | AU1: -30.5 | AV1: 94.3 | AW1: 97.6 | AX1: -33.1 | AY1: 32.4 | AZ1: -38.5 | BA1: -73.6 | BB1: 1.1 | BC1: -78.6 | BD1: 25.1 | BE1: 95 | BF1: 65.8 | BG1: 18.6 | BH1: 12.8 | BI1: 75.3 | BJ1: 46.7 | BK1: -63.6 | BL1: 18.7 | BM1: 35.9 | BN1: -35.1 | BO1: -70.5 | BP1: 78.3 | BQ1: 59.3 | BR1: 55 | BS1: 97.5 | BT1: 11.1 | BU1: 47.2 | BV1: 38.8 | BW1: 81.2 | BX1: 54 | BY1: 42.3 | BZ1: 60.8 | CA1: 12.4 | CB1: 81.5 | CC1: 26.1 | CD1: 97.3 | CE1: 58 | CF1: -57.8 | CG1: -5.8 | CH1: 91.5 | CI1: 30.7 | CJ1: -5.8 | CK1: 58.3 | CL1: 54.5 | CM1: -19.4 | CN1: -11.3 | CO1: 26 | CP1: 85.6 | CQ1: 21.3 | CR1: -73.5 | CS1: 85.9 | CT1: -23.7 | CU1: 68.7 | CV1: -65.3
A2: 16.8 | B2: 98.5 | C2: -79.9 | D2: 56.6 | E2: 57.2 | F2: 99.3 | G2: 37 | H2: -56.4 | I2: -17.4 | J2: 68.8 | K2: 35 | L2: 90.6 | M2: 29 | N2: 58.5 | O2: 79.1 | P2: 29.5 | Q2: 14.8 | R2: 10.5 | S2: 78.7 | T2: 93 | U2: 7.9 | V2: -67.3 | W2: 68.7 | X2: -92.7 | Y2: 50.1 | Z2: 17.8 | AA2: 13.2 | AB2: 62.7 | AC2: -33.1 | AD2: 68.4 | AE2: 42.6 | AF2: -4 | AG2: 97.3 | AH2: 77.7 | AI2: 68.7 | AJ2: 0.5 | AK2: -49.9 | AL2: 67.5 | AM2: 47.5 | AN2: 49.6 | AO2: 89.9 | AP2: -72.9 | AQ2: 70.2 | AR2: 13.9 | AS2: 70.3 | AT2: 59 | AU2: -67.2 | AV2: 69.9 | AW2: 97.1 | AX2: 54.5 | AY2: 39.3 | AZ2: 27.9 | BA2: 33.9 | BB2: -24.6 | BC2: -27.6 | BD2: -37.1 | BE2: 73.7 | BF2: 20.8 | BG2: -18.3 | BH2: -40.9 | BI2: -60.6 | BJ2: -37.1 | BK2: 92.1 | BL2: 98.5 | BM2: 10.9 | BN2: 93.2 | BO2: 48.5 | BP2: 44.3 | BQ2: 36.9 | BR2: 85.8 | BS2: 13.2 | BT2: -44 | BU2: 62.8 | BV2: 64.9 | BW2: 28.2 | BX2: 36.4 | BY2: -94.7 | BZ2: 27.5 | CA2: 41.2 | CB2: 80.9 | CC2: 47.1 | CD2: -49.9 | CE2: 34.6 | CF2: -60.2 | CG2: 86.2 | CH2: 50.3 | CI2: 2.5 | CJ2: 98.1 | CK2: 84.3 | CL2: -55.7 | CM2: -7.4 | CN2: 81.3 | CO2: 55.3 | CP2: 92.9 | CQ2: 85.7 | CR2: 37.9 | CS2: -51.8 | CT2: -9 | CU2: 68.6 | CV2: -96.7
A3: 27 | B3: 74.8 | C3: 84.3 | D3: 32.7 | E3: 5.6 | F3: 38 | G3: 0.5 | H3: -80.4 | I3: 10.4 | J3: -63.6 | K3: 2.6 | L3: 96 | M3: 27.5 | N3: 40.7 | O3: 94 | P3: 70.2 | Q3: 46.8 | R3: 20.1 | S3: 36.4 | T3: 82.7 | U3: 18.9 | V3: 44.3 | W3: -77.5 | X3: 28.9 | Y3: 6.9 | Z3: 18 | AA3: 77.2 | AB3: 60.9 | AC3: -48 | AD3: 39.2 | AE3: 1.2 | AF3: -45.9 | AG3: 99.9 | AH3: 54.3 | AI3: 31.9 | AJ3: 58 | AK3: 66.1 | AL3: 56.2 | AM3: 47.1 | AN3: -8.1 | AO3: 67.7 | AP3: 89.8 | AQ3: 43.5 | AR3: 13.8 | AS3: 3.3 | AT3: -9.4 | AU3: 94.3 | AV3: 90.9 | AW3: 44.2 | AX3: 47.3 | AY3: 50.3 | AZ3: 58 | BA3: 86.5 | BB3: 80.3 | BC3: 38.3 | BD3: 19.8 | BE3: 57.2 | BF3: 64.6 | BG3: 98.9 | BH3: 20.5 | BI3: 34.3 | BJ3: 35.7 | BK3: 47.1 | BL3: 70.4 | BM3: -32.1 | BN3: -55.4 | BO3: 67.6 | BP3: 14.6 | BQ3: 91 | BR3: 1.7 | BS3: 97.3 | BT3: -25.7 | BU3: -6 | BV3: -49.9 | BW3: 62.8 | BX3: -32.5 | BY3: 55.2 | BZ3: 25.1 | CA3: 24.2 | CB3: 99.4 | CC3: 74 | CD3: 38.8 | CE3: 19.7 | CF3: 3.2 | CG3: 51 | CH3: 23.9 | CI3: -42.9 | CJ3: 90.3 | CK3: 73.7 | CL3: -9.4 | CM3: 39.7 | CN3: 10.4 | CO3: 99.2 | CP3: -43.9 | CQ3: 10 | CR3: 72.2 | CS3: -98.8 | CT3: 22.9 | CU3: -70.5 | CV3: 14.7
A4: 8.3 | B4: 17.7 | C4: 92 | D4: 12.7 | E4: 50 | F4: 66.1 | G4: -20.7 | H4: 92.2 | I4: -76.6 | J4: -83.4 | K4: 32.4 | L4: 30.8 | M4: 15.2 | N4: 34.7 | O4: 95 | P4: -48 | Q4: -20.6 | R4: 34.8 | S4: 80.9 | T4: -29.6 | U4: 33.2 | V4: 82.3 | W4: 98.6 | X4: 24.8 | Y4: 64.6 | Z4: 59 | AA4: -78.5 | AB4: 72.2 | AC4: 35.2 | AD4: -81 | AE4: 68.6 | AF4: 72.1 | AG4: -37.5 | AH4: 70.1 | AI4: 90.5 | AJ4: 47.8 | AK4: 77.2 | AL4: 91.3 | AM4: 29.4 | AN4: 61 | AO4: -43 | AP4: 37.7 | AQ4: -60.6 | AR4: -52.7 | AS4: 28.8 | AT4: 22.5 | AU4: -90.7 | AV4: 84.3 | AW4: -51.8 | AX4: -77.9 | AY4: 99.9 | AZ4: -60.6 | BA4: 72.7 | BB4: 61.5 | BC4: 38.7 | BD4: 92.9 | BE4: 19.7 | BF4: 73.4 | BG4: 71.2 | BH4: -56.4 | BI4: 58.9 | BJ4: 48.7 | BK4: -39.1 | BL4: 65.4 | BM4: 66.7 | BN4: 50 | BO4: 67.8 | BP4: -43 | BQ4: 25.5 | BR4: -21.6 | BS4: 22.9 | BT4: 54.3 | BU4: 4.5 | BV4: 41.5 | BW4: 13.4 | BX4: -23.6 | BY4: 12.2 | BZ4: -58.8 | CA4: 98.5 | CB4: 50.9 | CC4: 64.4 | CD4: -33.5 | CE4: -3.8 | CF4: 53.2 | CG4: 34.6 | CH4: -80.1 | CI4: -31.1 | CJ4: 95.2 | CK4: 97.9 | CL4: 81.8 | CM4: 55.1 | CN4: 5.7 | CO4: 22.9 | CP4: -20.6 | CQ4: 36.9 | CR4: 56.6 | CS4: 27.3 | CT4: 79.8 | CU4: 41.6 | CV4: 38.2
A5: 55 | B5: 57 | C5: -53.8 | D5: -82.4 | E5: 97.1 | F5: -47 | G5: 92.5 | H5: 49.7 | I5: 11 | J5: -81.4 | K5: 79.7 | L5: 6.5 | M5: -37.1 | N5: -63.6 | O5: 90.5 | P5: 12.4 | Q5: 34.4 | R5: 70.8 | S5: 82.9 | T5: 68.4 | U5: -72.5 | V5: -75.6 | W5: 33.6 | X5: -63.2 | Y5: 40.3 | Z5: 86.7 | AA5: 72 | AB5: 60.9 | AC5: -75.9 | AD5: 73.8 | AE5: 22.1 | AF5: 93.6 | AG5: 41.8 | AH5: -56.4 | AI5: -35.5 | AJ5: -25.6 | AK5: 40.4 | AL5: 53.6 | AM5: 84.6 | AN5: -17.4 | AO5: 21.4 | AP5: 36.9 | AQ5: -36.1 | AR5: -77.6 | AS5: 92.5 | AT5: 51.5 | AU5: 41.6 | AV5: -37.5 | AW5: -59.7 | AX5: 16.6 | AY5: 62.8 | AZ5: 75.7 | BA5: 91.5 | BB5: 24.3 | BC5: -90.8 | BD5: -58.7 | BE5: -87.1 | BF5: 68.9 | BG5: 68.4 | BH5: 49.2 | BI5: -64.3 | BJ5: 19.2 | BK5: 65 | BL5: 82.9 | BM5: 10.9 | BN5: 96 | BO5: 90.9 | BP5: 88.2 | BQ5: 17.5 | BR5: 45.5 | BS5: 34 | BT5: 15.1 | BU5: -27.6 | BV5: 53.3 | BW5: 17.6 | BX5: 6.5 | BY5: -71.9 | BZ5: 49.2 | CA5: -8.8 | CB5: -85.4 | CC5: -74.5 | CD5: 67 | CE5: -85 | CF5: 48.2 | CG5: 27.9 | CH5: 91.1 | CI5: 72 | CJ5: 74.1 | CK5: 40.4 | CL5: -91.8 | CM5: -59.4 | CN5: 57.6 | CO5: 10.9 | CP5: 38.7 | CQ5: 17 | CR5: 18.1 | CS5: 42.1 | CT5: 48.5 | CU5: 86.9 | CV5: 45.6
A6: -15.3 | B6: 42.5 | C6: 10.6 | D6: 70.8 | E6: -42 | F6: 42.1 | G6: -78.9 | H6: 40.5 | I6: 11.2 | J6: -73.6 | K6: -69.3 | L6: -11.3 | M6: 14.4 | N6: 47.6 | O6: 21.8 | P6: 74 | Q6: 88.5 | R6: 48.4 | S6: 16.7 | T6: 86.7 | U6: 18.9 | V6: 36.4 | W6: 4.6 | X6: 54.5 | Y6: -85.4 | Z6: 11.1 | AA6: -87.1 | AB6: -56.4 | AC6: 28 | AD6: -93.7 | AE6: -5.1 | AF6: -3.8 | AG6: -81 | AH6: 73.3 | AI6: 57.6 | AJ6: 80.9 | AK6: 16.2 | AL6: 63.7 | AM6: 83.6 | AN6: 37.7 | AO6: 36.7 | AP6: 46.6 | AQ6: 88.3 | AR6: 93.4 | AS6: 61.4 | AT6: -48 | AU6: 47.7 | AV6: 62.1 | AW6: 76 | AX6: 42.7 | AY6: -81.4 | AZ6: 67.6 | BA6: 24.1 | BB6: 48.7 | BC6: 7.7 | BD6: -48 | BE6: -0.8 | BF6: 38.2 | BG6: 26.5 | BH6: 95.3 | BI6: 17.9 | BJ6: 18.8 | BK6: 40.4 | BL6: 31 | BM6: 25.9 | BN6: 17.1 | BO6: -51.8 | BP6: 10 | BQ6: -73.6 | BR6: 71.8 | BS6: 68.4 | BT6: 98.5 | BU6: 66.7 | BV6: -39.5 | BW6: 15.2 | BX6: 77.8 | BY6: -77.6 | BZ6: 9.2 | CA6: 85.2 | CB6: 98.9 | CC6: 55.6 | CD6: -5.4 | CE6: 46.7 | CF6: 57.2 | CG6: 57.2 | CH6: -22.6 | CI6: 34.7 | CJ6: -10.3 | CK6: 72.2 | CL6: 49.1 | CM6: -83.4 | CN6: 13.4 | CO6: 53.1 | CP6: -36.1 | CQ6: 45.8 | CR6: -4.8 | CS6: 88.6 | CT6: 50.6 | CU6: 75.4 | CV6: 95.5
A7: -76.9 | B7: 42.2 | C7: -2.4 | D7: 10.4 | E7: 16.8 | F7: 91.9 | G7: -83 | H7: 45.8 | I7: 64 | J7: 37.9 | K7: 97.1 | L7: -16.4 | M7: 14.5 | N7: -72.9 | O7: 30 | P7: 50.9 | Q7: 24.1 | R7: 93 | S7: 94.4 | T7: 34.2 | U7: 12 | V7: 11.1 | W7: 54.9 | X7: 54.6 | Y7: -71.5 | Z7: 9.3 | AA7: 2.5 | AB7: 24 | AC7: -55.4 | AD7: 69.1 | AE7: 52.2 | AF7: -75.5 | AG7: 30.6 | AH7: -2.4 | AI7: -30.1 | AJ7: -2 | AK7: 67.7 | AL7: 86.6 | AM7: -58.8 | AN7: 47.7 | AO7: 79.8 | AP7: 29.8 | AQ7: 29.4 | AR7: 75.3 | AS7: -82 | AT7: 79.4 | AU7: 69.8 | AV7: 10.8 | AW7: 62.4 | AX7: 9.5 | AY7: -90.8 | AZ7: 49.8 | BA7: 25.1 | BB7: 59.5 | BC7: 30.9 | BD7: 62.4 | BE7: 17.5 | BF7: 41.4 | BG7: 32.7 | BH7: 57.9 | BI7: 76.1 | BJ7: 76 | BK7: 9.5 | BL7: 93 | BM7: 36.8 | BN7: 28.3 | BO7: -95.7 | BP7: 51.9 | BQ7: 74 | BR7: 38 | BS7: 47.2 | BT7: 78.2 | BU7: 85.2 | BV7: 9.5 | BW7: 12.4 | BX7: -83.4 | BY7: 32.9 | BZ7: -90.8 | CA7: -35.1 | CB7: 81.7 | CC7: 43.2 | CD7: -72.5 | CE7: 53.9 | CF7: -82.4 | CG7: 76.1 | CH7: -34.1 | CI7: 35.9 | CJ7: 36.2 | CK7: 95.4 | CL7: 66.5 | CM7: 44.3 | CN7: 51.3 | CO7: -23.7 | CP7: 71.8 | CQ7: 69.6 | CR7: 21.4 | CS7: 97.1 | CT7: 73.3 | CU7: 50.2 | CV7: -7.1
A8: -63.2 | B8: 3.2 | C8: 84.2 | D8: 33.2 | E8: -9.8 | F8: 54.1 | G8: -28.7 | H8: 14.5 | I8: 53.6 | J8: -78.6 | K8: 27.5 | L8: 89.9 | M8: -84.4 | N8: 63.4 | O8: -31.5 | P8: 35 | Q8: 81.7 | R8: 32.9 | S8: 85.9 | T8: -33.1 | U8: 22 | V8: 27.5 | W8: 99.6 | X8: 25.9 | Y8: 12.6 | Z8: 25.1 | AA8: 12.9 | AB8: -84 | AC8: 77.7 | AD8: -50.8 | AE8: 21.5 | AF8: -23.6 | AG8: 58.1 | AH8: 42.4 | AI8: 14.1 | AJ8: -59.7 | AK8: -20.6 | AL8: -71.6 | AM8: 8.3 | AN8: -15.3 | AO8: 31.6 | AP8: 33.2 | AQ8: 31.6 | AR8: 44.4 | AS8: -71.5 | AT8: -78.5 | AU8: 97.2 | AV8: 41.5 | AW8: 51.2 | AX8: 81.2 | AY8: 32 | AZ8: 59 | BA8: -4.1 | BB8: 98.9 | BC8: -4.4 | BD8: 28.9 | BE8: -22.6 | BF8: 52.5 | BG8: 65.9 | BH8: 55.3 | BI8: 29 | BJ8: 81.9 | BK8: 40.2 | BL8: 86.2 | BM8: -1.4 | BN8: 18.9 | BO8: 89.3 | BP8: -62.6 | BQ8: 37.9 | BR8: 53.3 | BS8: 23.4 | BT8: 46.2 | BU8: -1 | BV8: 56.2 | BW8: 14.5 | BX8: 39 | BY8: 82.7 | BZ8: 7.3 | CA8: -65.3 | CB8: 11.9 | CC8: -58.4 | CD8: 21.4 | CE8: 15.6 | CF8: 90.2 | CG8: 46.6 | CH8: 32.8 | CI8: 63.5 | CJ8: 7.9 | CK8: 85.8 | CL8: 9.7 | CM8: 36.8 | CN8: 13.1 | CO8: 77.2 | CP8: -61.3 | CQ8: 72.1 | CR8: 3.5 | CS8: -78.5 | CT8: 94.4 | CU8: -5.1 | CV8: 32
A9: -87.4 | B9: 45.1 | C9: -58.7 | D9: 23.4 | E9: 99.4 | F9: 59.6 | G9: 47.6 | H9: -67.3 | I9: 43.2 | J9: 70 | K9: 50.6 | L9: 45.4 | M9: 65.7 | N9: 73.2 | O9: 44.8 | P9: 65.7 | Q9: 26.8 | R9: 70.4 | S9: 22.1 | T9: 97.2 | U9: 16.1 | V9: 88.5 | W9: 54.5 | X9: 55.6 | Y9: 3.5 | Z9: -17.3 | AA9: -60.6 | AB9: 22.2 | AC9: 81.7 | AD9: 31.7 | AE9: 70.7 | AF9: -19.3 | AG9: 53 | AH9: 9.9 | AI9: 78.7 | AJ9: 59.1 | AK9: 76.8 | AL9: 33.4 | AM9: 58.5 | AN9: 64.4 | AO9: 77.8 | AP9: 69.4 | AQ9: 4.5 | AR9: 88.2 | AS9: 96.1 | AT9: 19 | AU9: 62.5 | AV9: 5.7 | AW9: 10 | AX9: 68.9 | AY9: 27.8 | AZ9: 59.5 | BA9: -40.9 | BB9: 54 | BC9: 38.8 | BD9: 9.2 | BE9: -70.9 | BF9: 33.9 | BG9: 1.6 | BH9: 70.2 | BI9: 27.1 | BJ9: -47.9 | BK9: 93.1 | BL9: -7.8 | BM9: -72.5 | BN9: 88.3 | BO9: -75.9 | BP9: -73.9 | BQ9: 11.1 | BR9: -19.4 | BS9: 66.7 | BT9: 64.8 | BU9: -1 | BV9: -32.1 | BW9: 71 | BX9: -4.8 | BY9: 19.5 | BZ9: -64.3 | CA9: 12 | CB9: 99.2 | CC9: -1.8 | CD9: 68.5 | CE9: 83.9 | CF9: -78.5 | CG9: 28.8 | CH9: 83.2 | CI9: 64.6 | CJ9: -86.4 | CK9: 19 | CL9: 59.2 | CM9: 98.9 | CN9: -42 | CO9: 23.3 | CP9: 7.5 | CQ9: 73.8 | CR9: 7.3 | CS9: 26.8 | CT9: 94.9 | CU9: 50.2 | CV9: -41
A10: 61.4 | B10: -34.5 | C10: 59.1 | D10: 36.3 | E10: 50.9 | F10: -77.9 | G10: 10.2 | H10: -31.2 | I10: 56.2 | J10: 75.8 | K10: 19.5 | L10: 84.7 | M10: -32.1 | N10: 44.5 | O10: -58.8 | P10: 96.5 | Q10: 56 | R10: 84.8 | S10: 70.7 | T10: 93.6 | U10: 12.9 | V10: -75.9 | W10: 10.7 | X10: 17.2 | Y10: 17.8 | Z10: -79.6 | AA10: 33 | AB10: 19.7 | AC10: 39.6 | AD10: 42.8 | AE10: -83.4 | AF10: -1.8 | AG10: 95.6 | AH10: 61.8 | AI10: -78.6 | AJ10: -5.8 | AK10: -59.4 | AL10: 76.3 | AM10: 40.2 | AN10: 20.1 | AO10: 44.6 | AP10: -22.7 | AQ10: 10 | AR10: 79.2 | AS10: 84.9 | AT10: 28.1 | AU10: 55.1 | AV10: 80.8 | AW10: -86.1 | AX10: -87 | AY10: 8.3 | AZ10: -84 | BA10: 92.9 | BB10: 76.4 | BC10: 38.8 | BD10: 83.6 | BE10: 1.3 | BF10: 15.5 | BG10: 56.6 | BH10: 56.6 | BI10: 62.1 | BJ10: 29.1 | BK10: 66 | BL10: 11.5 | BM10: -57.4 | BN10: 83.3 | BO10: 81.6 | BP10: -71.9 | BQ10: 16.6 | BR10: 45.2 | BS10: 88.6 | BT10: 93.3 | BU10: 43.3 | BV10: 37.9 | BW10: 87.2 | BX10: 28.5 | BY10: 5.5 | BZ10: 64.9 | CA10: -67.2 | CB10: -98.7 | CC10: 55.3 | CD10: 81.8 | CE10: -56.8 | CF10: 17.7 | CG10: 66.9 | CH10: 10.7 | CI10: 66.9 | CJ10: -79.6 | CK10: 99.6 | CL10: 87.3 | CM10: 50.1 | CN10: 37.7 | CO10: 29.8 | CP10: -30.2 | CQ10: 80.5 | CR10: 72.2 | CS10: 14.4 | CT10: 70.1 | CU10: 7.7 | CV10: -6.8
A11: -30.2 | B11: -52.7 | C11: 51.3 | D11: -32.5 | E11: 57.6 | F11: -53.8 | G11: 72.4 | H11: -42 | I11: 96.6 | J11: 31.4 | K11: 34.3 | L11: 82.3 | M11: 42.5 | N11: 14.4 | O11: 38 | P11: 80.9 | Q11: 13.5 | R11: 96.1 | S11: 9.3 | T11: 93.1 | U11: 9.9 | V11: 13.8 | W11: -7.8 | X11: 92.2 | Y11: -75.6 | Z11: -30.2 | AA11: 13 | AB11: 34.8 | AC11: 69.7 | AD11: 62 | AE11: 68.6 | AF11: 73.7 | AG11: 33.3 | AH11: 4.7 | AI11: 63.1 | AJ11: -86.1 | AK11: 62.4 | AL11: 36.4 | AM11: -60.2 | AN11: 65.4 | AO11: 46.2 | AP11: -97.7 | AQ11: 21.5 | AR11: 1.9 | AS11: 12.9 | AT11: -69.2 | AU11: 92.4 | AV11: 0.5 | AW11: 26.1 | AX11: 47.2 | AY11: 0.6 | AZ11: 87.7 | BA11: 67.7 | BB11: 96.3 | BC11: 56.9 | BD11: -47.9 | BE11: 13.2 | BF11: 25.9 | BG11: 15.7 | BH11: 55.9 | BI11: -71.5 | BJ11: -4.1 | BK11: 53.3 | BL11: 81.9 | BM11: 43.5 | BN11: 71.8 | BO11: 87.3 | BP11: 38.6 | BQ11: 47.6 | BR11: 80.3 | BS11: 45.5 | BT11: 87.2 | BU11: 46.4 | BV11: 46.2 | BW11: -55.4 | BX11: 56.1 | BY11: 89.8 | BZ11: 16.5 | CA11: 86.6 | CB11: 89.5 | CC11: 26.3 | CD11: 61.9 | CE11: -86.1 | CF11: 51.3 | CG11: 91.4 | CH11: -65.3 | CI11: 35.6 | CJ11: 81.5 | CK11: 52.9 | CL11: 76.3 | CM11: 26.9 | CN11: -17.3 | CO11: 22.1 | CP11: 9.5 | CQ11: 59.5 | CR11: 76.7 | CS11: 27.4 | CT11: -47.9 | CU11: -1 | CV11: 4.2
A12: 64.8 | B12: -69.2 | C12: 54.2 | D12: 94 | E12: -38.5 | F12: 28.4 | G12: 53.1 | H12: 23.8 | I12: 13.4 | J12: 92.4 | K12: 21.1 | L12: 12.2 | M12: 21.8 | N12: 37.9 | O12: 66.6 | P12: 64.7 | Q12: 40.5 | R12: 86.3 | S12: 57.9 | T12: -6 | U12: -38.1 | V12: 73.3 | W12: -44 | X12: 12.4 | Y12: 84.7 | Z12: 86.3 | AA12: 48.8 | AB12: 53.5 | AC12: 34.3 | AD12: 37.9 | AE12: 91.3 | AF12: 35.4 | AG12: 15.5 | AH12: 78.8 | AI12: -39.5 | AJ12: 48.8 | AK12: 40.7 | AL12: -28.6 | AM12: 55.3 | AN12: -54.7 | AO12: 11.8 | AP12: 50.1 | AQ12: -32.5 | AR12: 57.5 | AS12: 21.3 | AT12: 34.2 | AU12: 72.1 | AV12: 90.2 | AW12: 36.7 | AX12: 5.9 | AY12: 52.1 | AZ12: 6.9 | BA12: 22.2 | BB12: -9.4 | BC12: 24.3 | BD12: 23.2 | BE12: 55.3 | BF12: 62.1 | BG12: -5 | BH12: 35 | BI12: -30.1 | BJ12: 38.3 | BK12: -34.5 | BL12: 99 | BM12: 89.7 | BN12: 71.3 | BO12: 46.4 | BP12: 1.1 | BQ12: 86.7 | BR12: -79.6 | BS12: 26.1 | BT12: 80.3 | BU12: 33.6 | BV12: 75 | BW12: 57.1 | BX12: -83.1 | BY12: 42.2 | BZ12: 44.1 | CA12: 52.6 | CB12: 59.1 | CC12: -89 | CD12: -41 | CE12: 48.2 | CF12: 47.6 | CG12: 17.8 | CH12: 9.9 | CI12: 44.3 | CJ12: 82.2 | CK12: 77.4 | CL12: 81.5 | CM12: 48.2 | CN12: 51.2 | CO12: 14.7 | CP12: 13.8 | CQ12: 10.4 | CR12: -14.3 | CS12: 19 | CT12: 17.1 | CU12: -78.6 | CV12: 44.6
A13: -81.1 | B13: 32.7 | C13: 47.1 | D13: 21.9 | E13: 70.1 | F13: 37.7 | G13: 29.9 | H13: 71.1 | I13: 44.3 | J13: 79 | K13: 47.8 | L13: 63.9 | M13: 10.4 | N13: -32.5 | O13: 15.5 | P13: -9.8 | Q13: 36.4 | R13: 19.8 | S13: 89.5 | T13: 36.7 | U13: 4.6 | V13: 9.6 | W13: 67.5 | X13: 55.5 | Y13: 87.5 | Z13: 20.2 | AA13: 28.8 | AB13: 51.5 | AC13: 99.6 | AD13: 80.9 | AE13: 92.5 | AF13: 47.5 | AG13: 64.6 | AH13: 12.7 | AI13: -71.9 | AJ13: -50.8 | AK13: 90 | AL13: 67 | AM13: 98.3 | AN13: 1.3 | AO13: 67.9 | AP13: -75.5 | AQ13: 56.1 | AR13: -38.5 | AS13: 71.2 | AT13: 95 | AU13: -76.5 | AV13: 51.5 | AW13: 76.3 | AX13: -54.4 | AY13: 25 | AZ13: 10.9 | BA13: 2.2 | BB13: 84.8 | BC13: 86.7 | BD13: 57 | BE13: -71.6 | BF13: 63.7 | BG13: 27.3 | BH13: -59.7 | BI13: -71.5 | BJ13: -31.1 | BK13: 94.2 | BL13: 48.5 | BM13: 46.6 | BN13: 34.3 | BO13: -7.1 | BP13: 66.8 | BQ13: 40.6 | BR13: -29.7 | BS13: -33.5 | BT13: 11.2 | BU13: 30.7 | BV13: -69.2 | BW13: 5.2 | BX13: 64.4 | BY13: 40.8 | BZ13: -3.4 | CA13: 0.1 | CB13: 3.5 | CC13: 34.9 | CD13: 45.4 | CE13: -6.1 | CF13: 74 | CG13: -3.8 | CH13: 0.5 | CI13: -14.3 | CJ13: 81.5 | CK13: -72.6 | CL13: 86.6 | CM13: 27 | CN13: 92.1 | CO13: -73.5 | CP13: 57.3 | CQ13: 18.5 | CR13: 25 | CS13: 18.5 | CT13: 62.9 | CU13: 88.6 | CV13: -35.1
A14: 95.1 | B14: 65.9 | C14: -88.4 | D14: -27.7 | E14: 99.2 | F14: 24.4 | G14: 93.5 | H14: 62.4 | I14: 30.6 | J14: 92.9 | K14: 5.2 | L14: -8.4 | M14: 29 | N14: 80.3 | O14: 32.4 | P14: 4.9 | Q14: -74.6 | R14: 76.8 | S14: 32.3 | T14: 77.7 | U14: 88.3 | V14: -32.5 | W14: -6.8 | X14: 66.7 | Y14: -54.7 | Z14: 83.8 | AA14: 90.4 | AB14: -7.8 | AC14: 53 | AD14: 96.5 | AE14: 32.7 | AF14: 42.8 | AG14: -52.8 | AH14: -30.2 | AI14: 27.3 | AJ14: 74.8 | AK14: -9.8 | AL14: 86.8 | AM14: 28 | AN14: 26.1 | AO14: 6.2 | AP14: 18.5 | AQ14: 31.9 | AR14: 54 | AS14: -2.8 | AT14: 90.4 | AU14: 59.9 | AV14: 77.3 | AW14: 71.8 | AX14: 85.3 | AY14: 76.4 | AZ14: -61.2 | BA14: 64.5 | BB14: 35.2 | BC14: -53.8 | BD14: 51.6 | BE14: 35.6 | BF14: 47.8 | BG14: 3.5 | BH14: 65.6 | BI14: 61.1 | BJ14: 95.1 | BK14: 31 | BL14: 78.4 | BM14: 56.1 | BN14: 21.5 | BO14: 11.9 | BP14: 32.6 | BQ14: 81.8 | BR14: 39.7 | BS14: 0.7 | BT14: 33.3 | BU14: 9.6 | BV14: -86.1 | BW14: 64.6 | BX14: 63.5 | BY14: 32.9 | BZ14: 34.9 | CA14: 83.9 | CB14: 34.3 | CC14: 14.8 | CD14: -86.1 | CE14: -85.1 | CF14: 26.2 | CG14: 21.9 | CH14: -60.6 | CI14: 4.7 | CJ14: 21 | CK14: 41.1 | CL14: -49 | CM14: 14.8 | CN14: 90.4 | CO14: 10.9 | CP14: 47.4 | CQ14: 29.5 | CR14: -80.4 | CS14: -95.7 | CT14: 48.1 | CU14: 63.1 | CV14: 34.6
A15: -85.4 | B15: 40.4 | C15: -97.8 | D15: 34.2 | E15: 3.1 | F15: 74.4 | G15: 59.3 | H15: 65.8 | I15: 67.6 | J15: -58.4 | K15: 69.6 | L15: 94 | M15: 38.3 | N15: 46.7 | O15: 12.2 | P15: 49.6 | Q15: 23.8 | R15: 98.4 | S15: -0.4 | T15: 64.4 | U15: 96.5 | V15: 90.5 | W15: 17.7 | X15: 83.8 | Y15: 68.7 | Z15: -79.9 | AA15: 60.1 | AB15: 35.7 | AC15: 2.1 | AD15: -63.3 | AE15: 13.1 | AF15: 64.7 | AG15: 71.8 | AH15: 10.2 | AI15: 94.5 | AJ15: 10.2 | AK15: 30 | AL15: 7.7 | AM15: 34.2 | AN15: 37.3 | AO15: -48.9 | AP15: 91 | AQ15: 23 | AR15: 82.6 | AS15: 63.7 | AT15: 91.6 | AU15: 11.4 | AV15: -50.4 | AW15: -41.9 | AX15: 76.3 | AY15: -86.4 | AZ15: 71.4 | BA15: 74.1 | BB15: 40.4 | BC15: 69 | BD15: -34.1 | BE15: 98.5 | BF15: 59.1 | BG15: 59.3 | BH15: 50.2 | BI15: 2.5 | BJ15: 42.4 | BK15: 79.8 | BL15: 61.8 | BM15: 93.6 | BN15: 72.7 | BO15: -80 | BP15: 84.3 | BQ15: 63.4 | BR15: 25.4 | BS15: 10.2 | BT15: 51.9 | BU15: 19.9 | BV15: 53.3 | BW15: 45.8 | BX15: -34.5 | BY15: -6.1 | BZ15: -85.1 | CA15: 95.1 | CB15: 69.6 | CC15: 20.5 | CD15: 67.7 | CE15: 14.5 | CF15: 63.4 | CG15: 69.7 | CH15: 24.3 | CI15: 36.8 | CJ15: 34.6 | CK15: -35.1 | CL15: 48.6 | CM15: 41.8 | CN15: 98.4 | CO15: 24.1 | CP15: 36.3 | CQ15: -15.3 | CR15: 93 | CS15: 78.2 | CT15: 22.9 | CU15: 67.8 | CV15: -23.7
A16: 67.7 | B16: 6.7 | C16: -52.4 | D16: 0.9 | E16: -89 | F16: 6.2 | G16: 25.4 | H16: 5.3 | I16: 48.2 | J16: 43.1 | K16: 25.3 | L16: 69.8 | M16: 86.8 | N16: 57.1 | O16: 55.6 | P16: 35.6 | Q16: 28.4 | R16: -99.7 | S16: 52 | T16: 9.7 | U16: 5.7 | V16: -93.8 | W16: 72.2 | X16: 57.2 | Y16: 88.6 | Z16: 79.7 | AA16: 49.8 | AB16: -55.4 | AC16: -80 | AD16: 38.3 | AE16: 94.9 | AF16: 96.6 | AG16: 59.2 | AH16: 53.5 | AI16: 73.1 | AJ16: -94.8 | AK16: 81.2 | AL16: 34.8 | AM16: 81.5 | AN16: 64.4 | AO16: -79.5 | AP16: -65.2 | AQ16: 83.3 | AR16: 31.3 | AS16: 15.6 | AT16: -91.8 | AU16: 70 | AV16: 95.9 | AW16: 99.4 | AX16: -37.1 | AY16: 49.4 | AZ16: 38.2 | BA16: 48.2 | BB16: -8.8 | BC16: 92.5 | BD16: -8.1 | BE16: 26.4 | BF16: 71.7 | BG16: 42.4 | BH16: 70.3 | BI16: -62.2 | BJ16: 12.5 | BK16: 56.5 | BL16: 24.9 | BM16: -4 | BN16: 83.3 | BO16: 41.5 | BP16: -79.5 | BQ16: -53.8 | BR16: 29.4 | BS16: 97.6 | BT16: 77.3 | BU16: 10.8 | BV16: 84.6 | BW16: 36.2 | BX16: -58.7 | BY16: 97.9 | BZ16: 51.3 | CA16: 62.9 | CB16: -14.3 | CC16: 80.8 | CD16: 90.6 | CE16: 48.6 | CF16: 82.3 | CG16: 34.2 | CH16: 19.7 | CI16: 18.8 | CJ16: 7.7 | CK16: 12.7 | CL16: -31.2 | CM16: 91.5 | CN16: 0.1 | CO16: 25.3 | CP16: 40.3 | CQ16: -25.7 | CR16: 10.7 | CS16: -23.6 | CT16: 30.8 | CU16: 87.3 | CV16: 38.2
A17: 64.6 | B17: 48.7 | C17: 16.5 | D17: -31.1 | E17: 12.2 | F17: 8.6 | G17: 11.9 | H17: 0.6 | I17: 40.7 | J17: 72 | K17: 11.2 | L17: 13.1 | M17: 64.6 | N17: 66.8 | O17: 94.2 | P17: -56.7 | Q17: 90.5 | R17: 88.6 | S17: 47.8 | T17: 58.1 | U17: -53.7 | V17: 37.4 | W17: 15.6 | X17: -61.3 | Y17: -70.5 | Z17: 93.1 | AA17: 17.6 | AB17: -87.4 | AC17: 91.4 | AD17: 82.7 | AE17: 95.1 | AF17: 27.3 | AG17: 74.1 | AH17: 5.9 | AI17: 50.3 | AJ17: 88.6 | AK17: -6.1 | AL17: 23 | AM17: 46.8 | AN17: 77.7 | AO17: 59.6 | AP17: -85.4 | AQ17: -79.9 | AR17: -83.4 | AS17: 16.9 | AT17: 58 | AU17: 95.6 | AV17: 31.6 | AW17: 5.5 | AX17: -50.8 | AY17: 6.3 | AZ17: 19 | BA17: 88.8 | BB17: 7.2 | BC17: 90.2 | BD17: 77.2 | BE17: -37.1 | BF17: 96.5 | BG17: -79.5 | BH17: 92.5 | BI17: 77.8 | BJ17: 92.6 | BK17: 19.8 | BL17: -71.9 | BM17: -82.4 | BN17: 74.1 | BO17: -20.7 | BP17: 19.9 | BQ17: 27.5 | BR17: 10.7 | BS17: 74.1 | BT17: 86.5 | BU17: -54.7 | BV17: 30 | BW17: 94.3 | BX17: 66.8 | BY17: 35.2 | BZ17: -6.8 | CA17: 54 | CB17: 52.3 | CC17: 9.6 | CD17: 34.3 | CE17: -65.3 | CF17: -78.9 | CG17: 87.6 | CH17: 23.5 | CI17: 80.3 | CJ17: 56 | CK17: 13 | CL17: 37.2 | CM17: -19.4 | CN17: 98.1 | CO17: -78.9 | CP17: 6.6 | CQ17: 8.6 | CR17: 67 | CS17: 85.5 | CT17: -56.4 | CU17: 93.6 | CV17: -8
A18: 15.5 | B18: 87.6 | C18: 4.9 | D18: 77.1 | E18: 65.9 | F18: 81.2 | G18: -82 | H18: 96 | I18: 16.1 | J18: -47 | K18: 39.2 | L18: 79.3 | M18: -7 | N18: 25 | O18: 84.5 | P18: 46.7 | Q18: -6.1 | R18: 85.7 | S18: 38.4 | T18: 95.5 | U18: 55 | V18: 56.6 | W18: 37.3 | X18: -53.4 | Y18: 2.2 | Z18: 5.7 | AA18: 8.2 | AB18: 21.1 | AC18: 18 | AD18: -80.4 | AE18: -51.8 | AF18: 99.9 | AG18: 64.5 | AH18: -77.6 | AI18: 93.6 | AJ18: 4.6 | AK18: -56.4 | AL18: -67.3 | AM18: 41.6 | AN18: 65.7 | AO18: 38.6 | AP18: 86.2 | AQ18: -25.7 | AR18: 13.4 | AS18: 33.7 | AT18: 95.6 | AU18: 97.4 | AV18: 44.8 | AW18: 31.4 | AX18: 62.1 | AY18: 31.6 | AZ18: -4 | BA18: 60.8 | BB18: 64.7 | BC18: -87.4 | BD18: 30.7 | BE18: 9.3 | BF18: 10.8 | BG18: 39.6 | BH18: 99.1 | BI18: 17.5 | BJ18: 31.7 | BK18: 61.9 | BL18: 14.7 | BM18: -1 | BN18: 55.2 | BO18: 65.5 | BP18: 93.9 | BQ18: 35.4 | BR18: 83.3 | BS18: 75.8 | BT18: -0.4 | BU18: 43.8 | BV18: 50.6 | BW18: 92.5 | BX18: 61.9 | BY18: 53.3 | BZ18: 13.4 | CA18: 39.2 | CB18: 60.9 | CC18: 11.2 | CD18: 19.6 | CE18: 25.8 | CF18: -71.6 | CG18: -57.7 | CH18: 54.5 | CI18: 55.5 | CJ18: 1.1 | CK18: 87.2 | CL18: 82.2 | CM18: -65.3 | CN18: -74.6 | CO18: 90.4 | CP18: 82.9 | CQ18: 8.2 | CR18: 42.2 | CS18: 86.5 | CT18: 97 | CU18: -81.4 | CV18: 14.4
A19: 97.2 | B19: 79.4 | C19: 88.5 | D19: 82.3 | E19: 53.3 | F19: 79.7 | G19: -87 | H19: 37.3 | I19: 70.8 | J19: 6.9 | K19: 79.7 | L19: 79.1 | M19: 18.8 | N19: -0.4 | O19: -38.5 | P19: 23.3 | Q19: 41.4 | R19: 65.1 | S19: -64.3 | T19: 95.3 | U19: 81.5 | V19: 83.2 | W19: -44 | X19: -67.3 | Y19: 62 | Z19: 55.3 | AA19: 33.2 | AB19: -91.7 | AC19: 20 | AD19: 2.2 | AE19: 99.6 | AF19: -16.4 | AG19: 78.2 | AH19: 41.5 | AI19: 52.9 | AJ19: 78.3 | AK19: 96.5 | AL19: 74.2 | AM19: -80.1 | AN19: 70.2 | AO19: -38.5 | AP19: 26.4 | AQ19: 24.4 | AR19: 63.9 | AS19: 76.8 | AT19: 61.5 | AU19: 34.8 | AV19: 11.6 | AW19: 42.6 | AX19: 1.6 | AY19: -57.8 | AZ19: 74.4 | BA19: 14.7 | BB19: -7 | BC19: 58.1 | BD19: 92.2 | BE19: 70 | BF19: -44.9 | BG19: 3.7 | BH19: 2.3 | BI19: 61.5 | BJ19: 89.9 | BK19: 54.2 | BL19: 63.7 | BM19: 88.2 | BN19: 30.4 | BO19: 62.8 | BP19: 92 | BQ19: -76.6 | BR19: -71.9 | BS19: -77.5 | BT19: 97 | BU19: 0.3 | BV19: 81.3 | BW19: -87.4 | BX19: -2.4 | BY19: 95.2 | BZ19: 87.7 | CA19: 93.9 | CB19: 87.3 | CC19: 94 | CD19: -85.1 | CE19: 51.5 | CF19: 78.7 | CG19: 99.6 | CH19: 73 | CI19: 63.8 | CJ19: 9.2 | CK19: 70.7 | CL19: 16.7 | CM19: -34.1 | CN19: 30.9 | CO19: 0.7 | CP19: 65.6 | CQ19: 40.8 | CR19: 53.5 | CS19: 24.2 | CT19: 80.8 | CU19: -22.7 | CV19: -30.1
A20: 31.3 | B20: 25.1 | C20: 59.6 | D20: 23.9 | E20: 1.3 | F20: 81.9 | G20: 49.2 | H20: 2.2 | I20: -15.3 | J20: 23.8 | K20: 40.7 | L20: 27.8 | M20: 57.3 | N20: -56.4 | O20: 58.6 | P20: 86.8 | Q20: -30.5 | R20: 77.2 | S20: 72.3 | T20: 28.2 | U20: 36.3 | V20: 67.1 | W20: -60.2 | X20: 24.8 | Y20: 15.6 | Z20: 92.2 | AA20: 25.5 | AB20: 46.7 | AC20: 13.5 | AD20: 83.5 | AE20: -72.6 | AF20: 41.8 | AG20: 32.2 | AH20: -88.1 | AI20: 62.4 | AJ20: 39.8 | AK20: 9.7 | AL20: 90 | AM20: 5.7 | AN20: -25.7 | AO20: 0.1 | AP20: -76.5 | AQ20: -9.4 | AR20: 40.1 | AS20: 72 | AT20: 92.2 | AU20: -72.5 | AV20: 17.8 | AW20: 20.3 | AX20: 31.3 | AY20: 59.5 | AZ20: -99.8 | BA20: -85.1 | BB20: 84.6 | BC20: 56.5 | BD20: -44 | BE20: -29.6 | BF20: -45 | BG20: -48.9 | BH20: 69.7 | BI20: 53.9 | BJ20: -3.8 | BK20: 67.9 | BL20: 24.8 | BM20: -5.1 | BN20: 11.6 | BO20: -27.6 | BP20: 11.4 | BQ20: 38 | BR20: 48.7 | BS20: 39.2 | BT20: 41.7 | BU20: 90.6 | BV20: 91.2 | BW20: 58.6 | BX20: 28 | BY20: 64.8 | BZ20: 68.5 | CA20: 37.6 | CB20: 39.8 | CC20: 3.5 | CD20: 9.3 | CE20: -79.9 | CF20: 8.9 | CG20: 63.7 | CH20: 86.9 | CI20: 30 | CJ20: -75.5 | CK20: -43.9 | CL20: 97.4 | CM20: -3.8 | CN20: 30.3 | CO20: -35.1 | CP20: 37 | CQ20: -57.4 | CR20: 91.6 | CS20: 61.1 | CT20: 44.5 | CU20: 8.5 | CV20: -64.2
A21: 85.7 | B21: 85.6 | C21: 25.4 | D21: -67.3 | E21: 69.4 | F21: 51.2 | G21: 33.8 | H21: 43.1 | I21: 6.5 | J21: 96.1 | K21: -36.5 | L21: -78.5 | M21: 27.8 | N21: 51.3 | O21: 95.4 | P21: 2.3 | Q21: -60.6 | R21: 47.8 | S21: 91.9 | T21: 94.3 | U21: 12.1 | V21: 77.8 | W21: 90.6 | X21: -24.6 | Y21: 43.1 | Z21: 45.5 | AA21: 48.6 | AB21: -86.4 | AC21: -39.5 | AD21: -87.4 | AE21: 67.8 | AF21: 55.5 | AG21: 8.3 | AH21: 98.3 | AI21: 37.7 | AJ21: -90.7 | AK21: 50 | AL21: 59.3 | AM21: 52.5 | AN21: 0.3 | AO21: 96.3 | AP21: 18.5 | AQ21: 83.7 | AR21: 59 | AS21: -76.5 | AT21: -4 | AU21: 49.5 | AV21: 65.6 | AW21: -52.8 | AX21: 80.6 | AY21: 33.8 | AZ21: 70.1 | BA21: 92.6 | BB21: 40.8 | BC21: 89.3 | BD21: 82.6 | BE21: 48.5 | BF21: 79.3 | BG21: 28.2 | BH21: 93.3 | BI21: -42 | BJ21: -19.3 | BK21: -84.4 | BL21: 26.4 | BM21: 67.7 | BN21: -57.7 | BO21: -36.1 | BP21: 46.2 | BQ21: 78.3 | BR21: -49.9 | BS21: 87.9 | BT21: 21.2 | BU21: 22.5 | BV21: 65.8 | BW21: 49.8 | BX21: 6.7 | BY21: -78.6 | BZ21: 20.3 | CA21: -50.4 | CB21: 49.6 | CC21: -44 | CD21: 4.9 | CE21: 31 | CF21: 88.6 | CG21: 34.6 | CH21: 49.5 | CI21: 17.8 | CJ21: 11.5 | CK21: 27.3 | CL21: 29.8 | CM21: -87.1 | CN21: 83.8 | CO21: 14.4 | CP21: 80.9 | CQ21: 66 | CR21: -38.5 | CS21: 43.5 | CT21: 67.9 | CU21: 32.6 | CV21: 45.7
A22: 27.9 | B22: -15.3 | C22: -8.4 | D22: -33.5 | E22: 19.6 | F22: -62.2 | G22: 92.5 | H22: -75.6 | I22: 2.9 | J22: 19 | K22: -37.1 | L22: 23.4 | M22: -72.9 | N22: 88.5 | O22: 83.9 | P22: 94.9 | Q22: 36.6 | R22: 32.7 | S22: 90.5 | T22: 17.5 | U22: 10.8 | V22: 60.8 | W22: -71.9 | X22: 1.5 | Y22: 81.3 | Z22: 92 | AA22: 68.5 | AB22: 93.6 | AC22: -51.8 | AD22: 64.7 | AE22: -84.4 | AF22: 43.8 | AG22: 22.8 | AH22: -70.9 | AI22: -17.4 | AJ22: 59.1 | AK22: 38.8 | AL22: 41.5 | AM22: 8.7 | AN22: 68.5 | AO22: -69.2 | AP22: -9 | AQ22: -30.5 | AR22: -1 | AS22: 20.3 | AT22: 17.8 | AU22: -61.2 | AV22: 68.1 | AW22: 40.5 | AX22: 77.7 | AY22: 28.2 | AZ22: 1.3 | BA22: 86.9 | BB22: 17.2 | BC22: 32.6 | BD22: 94.3 | BE22: 14.2 | BF22: 90.4 | BG22: 45.2 | BH22: -62.6 | BI22: 37.4 | BJ22: -40.9 | BK22: 89.3 | BL22: 7.5 | BM22: -66.2 | BN22: 83.8 | BO22: 1.3 | BP22: 98.6 | BQ22: 93.5 | BR22: 24.4 | BS22: 19.6 | BT22: 78.7 | BU22: 93.1 | BV22: 3.2 | BW22: 58.2 | BX22: 82.6 | BY22: 41.1 | BZ22: 2.5 | CA22: -41.9 | CB22: -71.9 | CC22: 85.2 | CD22: -98.8 | CE22: 94.9 | CF22: 59 | CG22: 50.6 | CH22: 21.2 | CI22: 76.4 | CJ22: 27.5 | CK22: 62.8 | CL22: -73.6 | CM22: 6.5 | CN22: 46.6 | CO22: 61.5 | CP22: 31.9 | CQ22: 84.7 | CR22: -31.2 | CS22: -75.5 | CT22: 3.3 | CU22: 20.2 | CV22: 97.4
A23: -56.7 | B23: 25 | C23: 60.9 | D23: 10.2 | E23: 33.3 | F23: 41.6 | G23: 32.3 | H23: 62 | I23: -91.8 | J23: 68.6 | K23: -1.8 | L23: 30.7 | M23: 72.2 | N23: 29.5 | O23: 20.3 | P23: -88.4 | Q23: 16.8 | R23: -25.7 | S23: 30.7 | T23: 96.3 | U23: 57.2 | V23: 82.7 | W23: 70.1 | X23: 58.3 | Y23: 66.7 | Z23: 13 | AA23: 36.6 | AB23: 46.1 | AC23: -73.9 | AD23: 71.4 | AE23: 96.1 | AF23: 92.9 | AG23: -91.8 | AH23: -55.4 | AI23: -2.4 | AJ23: -61.2 | AK23: 13.9 | AL23: 13.5 | AM23: 1.7 | AN23: 0 | AO23: 19.8 | AP23: 30.8 | AQ23: 95 | AR23: 13 | AS23: 92 | AT23: 8.5 | AU23: -58.8 | AV23: 29.2 | AW23: 23.5 | AX23: 54.3 | AY23: 19 | AZ23: 55.2 | BA23: 38.6 | BB23: 39.9 | BC23: 93 | BD23: 79.3 | BE23: 69.8 | BF23: -86.4 | BG23: 45.5 | BH23: 30 | BI23: 30.7 | BJ23: -11.3 | BK23: 54.9 | BL23: -33.5 | BM23: 35.7 | BN23: -85.4 | BO23: 79.7 | BP23: 81.7 | BQ23: 97.2 | BR23: 8.9 | BS23: -67.3 | BT23: 30.4 | BU23: -97.8 | BV23: -87.1 | BW23: 16.6 | BX23: 34.7 | BY23: 27.3 | BZ23: 92.5 | CA23: 25.3 | CB23: -82.1 | CC23: -25.6 | CD23: 13.1 | CE23: 21.2 | CF23: 54.6 | CG23: 5.5 | CH23: 91.6 | CI23: 47.2 | CJ23: 88.6 | CK23: 43.3 | CL23: -50.8 | CM23: 3.5 | CN23: 13.6 | CO23: 27.5 | CP23: -62.3 | CQ23: 16 | CR23: 3.1 | CS23: 93.6 | CT23: 34.4 | CU23: 48.1 | CV23: -7.1
A24: 90.2 | B24: 97.4 | C24: 33.8 | D24: 0.1 | E24: 16.6 | F24: 16.9 | G24: 88.7 | H24: 78.4 | I24: 8.5 | J24: 12 | K24: 96.6 | L24: -88.4 | M24: -22.7 | N24: -69.3 | O24: 34.6 | P24: 84.8 | Q24: 12.5 | R24: 22.1 | S24: -41 | T24: 43.8 | U24: 11.6 | V24: 61.9 | W24: -70.9 | X24: 76.1 | Y24: 41.7 | Z24: -24.7 | AA24: -76.6 | AB24: 72.4 | AC24: 87.5 | AD24: 32.9 | AE24: 37.3 | AF24: 60.9 | AG24: 87.7 | AH24: 24.3 | AI24: 34.9 | AJ24: 3.5 | AK24: 51.3 | AL24: -14.3 | AM24: 30 | AN24: 99.4 | AO24: 86.2 | AP24: 52.1 | AQ24: -27.7 | AR24: 81.7 | AS24: -96.8 | AT24: -31.1 | AU24: 69.8 | AV24: 67.8 | AW24: 8.3 | AX24: 68.5 | AY24: 74.2 | AZ24: 74.4 | BA24: 26.4 | BB24: -6 | BC24: 67.9 | BD24: 79.1 | BE24: 85.8 | BF24: -60.6 | BG24: 92.3 | BH24: 99.4 | BI24: -5.1 | BJ24: 1.9 | BK24: 65.5 | BL24: 22.3 | BM24: -53.4 | BN24: 1.2 | BO24: 52.5 | BP24: 48.4 | BQ24: 70.1 | BR24: 95.9 | BS24: 67.4 | BT24: 14.9 | BU24: 84.8 | BV24: 39.9 | BW24: 44.7 | BX24: 30.6 | BY24: -4.4 | BZ24: 19.7 | CA24: 56.3 | CB24: 9.9 | CC24: 28.9 | CD24: 82.8 | CE24: -86.4 | CF24: -0.8 | CG24: -5.4 | CH24: 72.1 | CI24: -72.6 | CJ24: 54 | CK24: -71.6 | CL24: 74 | CM24: 29 | CN24: 10.8 | CO24: 36.8 | CP24: 75.4 | CQ24: 8.7 | CR24: 78.3 | CS24: 60.7 | CT24: -9.4 | CU24: -28.7 | CV24: 73.3
A25: 71.1 | B25: 65 | C25: -70.5 | D25: -19.4 | E25: 90 | F25: 96.2 | G25: 4.9 | H25: 46.4 | I25: 64.5 | J25: 91.3 | K25: -83 | L25: -87.1 | M25: 67 | N25: 47.8 | O25: -58.7 | P25: -0.4 | Q25: 3.5 | R25: 75.4 | S25: 95.4 | T25: 99.9 | U25: -95.7 | V25: 54.5 | W25: 2.6 | X25: 14.9 | Y25: -48 | Z25: 46.8 | AA25: 60.1 | AB25: 94.3 | AC25: 83.6 | AD25: 21.3 | AE25: -73.9 | AF25: 69.6 | AG25: -90.7 | AH25: 92.5 | AI25: 68.8 | AJ25: 19 | AK25: 28.8 | AL25: -93.7 | AM25: 33.8 | AN25: -71.9 | AO25: 59.6 | AP25: 77.4 | AQ25: 53.3 | AR25: 70.8 | AS25: 11.6 | AT25: 56 | AU25: -26.6 | AV25: -91.7 | AW25: 19.1 | AX25: 98.2 | AY25: 60.5 | AZ25: 9.7 | BA25: 40.3 | BB25: 1.3 | BC25: 3.7 | BD25: 85.6 | BE25: -71.9 | BF25: -42 | BG25: 59.5 | BH25: 56.6 | BI25: 12.8 | BJ25: 51.5 | BK25: 20.4 | BL25: -27.7 | BM25: 48.2 | BN25: 40.4 | BO25: 8.3 | BP25: 50.3 | BQ25: 94 | BR25: 31.4 | BS25: 84.9 | BT25: 73.3 | BU25: -18.3 | BV25: -96.7 | BW25: -73.5 | BX25: 93.9 | BY25: 92.5 | BZ25: 2.3 | CA25: 90.6 | CB25: 22.4 | CC25: 77.1 | CD25: -41 | CE25: 42.2 | CF25: -41.9 | CG25: 55.9 | CH25: 3.9 | CI25: 11.6 | CJ25: -21.7 | CK25: 79.8 | CL25: -99.7 | CM25: -86.1 | CN25: 53.1 | CO25: 40.1 | CP25: -29.6 | CQ25: 22.5 | CR25: -8.8 | CS25: -52.4 | CT25: 96.2 | CU25: 62.8 | CV25: 93.2
A26: -55.4 | B26: 92.5 | C26: -36.5 | D26: 31.3 | E26: 20.9 | F26: 58.3 | G26: 13.5 | H26: 51 | I26: 65.1 | J26: 64.1 | K26: 35.7 | L26: -65.2 | M26: 28 | N26: 39.6 | O26: 97.5 | P26: 6.7 | Q26: 54.3 | R26: 16.6 | S26: 65.1 | T26: 84.2 | U26: 26.9 | V26: 28.3 | W26: -37.1 | X26: 90.6 | Y26: 20.8 | Z26: 82.5 | AA26: -44.9 | AB26: -36.5 | AC26: 67.9 | AD26: 61.4 | AE26: 38.6 | AF26: 52.5 | AG26: 28.3 | AH26: -53.7 | AI26: 10.7 | AJ26: 43.7 | AK26: 60.5 | AL26: 86.5 | AM26: 36.3 | AN26: -27.6 | AO26: -91.8 | AP26: 59.9 | AQ26: 95 | AR26: -42.9 | AS26: -0.4 | AT26: 22.5 | AU26: -42 | AV26: 97.1 | AW26: 48.2 | AX26: 31.8 | AY26: 91.9 | AZ26: 21.5 | BA26: 2.3 | BB26: 96.3 | BC26: -23.7 | BD26: 1.9 | BE26: 22.5 | BF26: 22.2 | BG26: 76 | BH26: 9.6 | BI26: 55.9 | BJ26: -5 | BK26: 96.1 | BL26: 26.3 | BM26: -67.3 | BN26: 69.5 | BO26: 99.6 | BP26: 36.8 | BQ26: 32.2 | BR26: 86.3 | BS26: 15.1 | BT26: 89.8 | BU26: -97.8 | BV26: 46.5 | BW26: 65 | BX26: 13.4 | BY26: 58.1 | BZ26: -19.4 | CA26: 54.1 | CB26: 38.8 | CC26: 19 | CD26: 47.4 | CE26: 50.3 | CF26: 66.9 | CG26: 59.3 | CH26: 93 | CI26: 93.1 | CJ26: 54.9 | CK26: 33.4 | CL26: 62.7 | CM26: 54 | CN26: -76.9 | CO26: 66.7 | CP26: 2.2 | CQ26: 91.2 | CR26: 51.3 | CS26: -56.4 | CT26: 97.9 | CU26: 14.8 | CV26: -7.1
A27: 48.1 | B27: 90.2 | C27: 46.6 | D27: 48.5 | E27: -30.1 | F27: 53.6 | G27: 98.2 | H27: -79.9 | I27: 81.2 | J27: -19.4 | K27: 88.2 | L27: 36.7 | M27: 91.5 | N27: 93.3 | O27: 11.4 | P27: 76.1 | Q27: 95.1 | R27: -31.1 | S27: -18.3 | T27: 80.9 | U27: 40.5 | V27: 91.6 | W27: 30.6 | X27: 65.8 | Y27: -68.3 | Z27: 95.6 | AA27: 87.6 | AB27: 24.5 | AC27: -91.7 | AD27: 38.8 | AE27: 76.1 | AF27: 5.6 | AG27: 41.1 | AH27: 31.7 | AI27: -84.4 | AJ27: 93 | AK27: 13.7 | AL27: 29.5 | AM27: 83.8 | AN27: 89.8 | AO27: 87.2 | AP27: -3.8 | AQ27: 50 | AR27: 77.4 | AS27: 62.5 | AT27: 50.3 | AU27: 30 | AV27: 87.8 | AW27: 37.7 | AX27: 16.5 | AY27: -88 | AZ27: 28.3 | BA27: 51.5 | BB27: -66.2 | BC27: 27.2 | BD27: 57.2 | BE27: 32.9 | BF27: 98 | BG27: 35.2 | BH27: 84.8 | BI27: -6.1 | BJ27: -74.5 | BK27: -70.9 | BL27: 20.3 | BM27: -28.6 | BN27: 79.1 | BO27: 38 | BP27: 78.4 | BQ27: 13.9 | BR27: 6.7 | BS27: -46.9 | BT27: 53.6 | BU27: 23.3 | BV27: 9.7 | BW27: -99.7 | BX27: -25.7 | BY27: 84.9 | BZ27: 70.2 | CA27: -7.8 | CB27: 65.1 | CC27: 92.3 | CD27: 99 | CE27: 5.5 | CF27: 34.7 | CG27: 2.7 | CH27: 95.2 | CI27: -88.4 | CJ27: -11.3 | CK27: 38.6 | CL27: 96.2 | CM27: -4 | CN27: 24.9 | CO27: 32.3 | CP27: 31 | CQ27: 27.3 | CR27: 6.5 | CS27: 68.7 | CT27: 81.5 | CU27: 29.5 | CV27: 80.8
A28: -63.6 | B28: 26.4 | C28: 83.7 | D28: 17.6 | E28: 90.3 | F28: -73.9 | G28: -75.9 | H28: 63.1 | I28: 71.4 | J28: 57.5 | K28: 30.3 | L28: 27.8 | M28: 86.8 | N28: -9.8 | O28: 3.2 | P28: 47.2 | Q28: 86.6 | R28: -31.2 | S28: 42.6 | T28: 21.9 | U28: -82 | V28: 26.4 | W28: 34 | X28: -59.4 | Y28: 37.9 | Z28: -55.8 | AA28: -68.2 | AB28: 37.9 | AC28: 72.4 | AD28: -9.1 | AE28: -18.4 | AF28: 37.7 | AG28: 99.4 | AH28: 32.7 | AI28: 94.4 | AJ28: 14.6 | AK28: 25.2 | AL28: -48 | AM28: 34 | AN28: 87.2 | AO28: 15.5 | AP28: 10.9 | AQ28: 28 | AR28: 60.9 | AS28: 1.6 | AT28: 14 | AU28: 2.7 | AV28: -52.7 | AW28: 36.8 | AX28: 0.2 | AY28: 98 | AZ28: 61.4 | BA28: 32.6 | BB28: 26.2 | BC28: 60.8 | BD28: 19.9 | BE28: 5.2 | BF28: -53.4 | BG28: -73.9 | BH28: 78.2 | BI28: 64.8 | BJ28: 69.5 | BK28: 58.9 | BL28: -7 | BM28: -97.8 | BN28: -27.7 | BO28: 0.5 | BP28: -93.7 | BQ28: 98.1 | BR28: -61.3 | BS28: 50.6 | BT28: 31 | BU28: -59.7 | BV28: 72 | BW28: -19.4 | BX28: -74.5 | BY28: 15.5 | BZ28: 57.1 | CA28: 18.1 | CB28: 89.2 | CC28: 55.6 | CD28: 49.1 | CE28: 74 | CF28: 36.6 | CG28: 27.4 | CH28: 24.5 | CI28: 32.6 | CJ28: 4.7 | CK28: 36.8 | CL28: 15.9 | CM28: 52.2 | CN28: 50.3 | CO28: 72.2 | CP28: 2.1 | CQ28: 19.2 | CR28: 94 | CS28: 84.8 | CT28: 58.2 | CU28: -57.8 | CV28: 41.6
A29: 72.3 | B29: -68.2 | C29: 63.4 | D29: -4.1 | E29: -61.3 | F29: 19.8 | G29: 75.4 | H29: 72.3 | I29: -30.1 | J29: 8.5 | K29: 65.4 | L29: 95.5 | M29: -72.5 | N29: 45.8 | O29: 39.3 | P29: 27.8 | Q29: 93.4 | R29: 69 | S29: 13.9 | T29: 66.9 | U29: -32.1 | V29: 23.8 | W29: 57.3 | X29: 18.5 | Y29: 87.5 | Z29: 73.3 | AA29: 59.9 | AB29: 30.9 | AC29: 33.4 | AD29: 6.5 | AE29: 85.2 | AF29: 86.8 | AG29: -65.2 | AH29: -54.7 | AI29: 99.3 | AJ29: 59 | AK29: 71 | AL29: 50 | AM29: 49.8 | AN29: -71.6 | AO29: -16.4 | AP29: -57.8 | AQ29: 26.4 | AR29: 34.8 | AS29: -4.1 | AT29: -91.8 | AU29: 88.2 | AV29: -22.7 | AW29: 78 | AX29: 60.7 | AY29: 84.5 | AZ29: 74.3 | BA29: 64.8 | BB29: -72.5 | BC29: -53.7 | BD29: 9.7 | BE29: -77.5 | BF29: -59.7 | BG29: 49.2 | BH29: 72.2 | BI29: 2.7 | BJ29: 85.2 | BK29: 43.7 | BL29: -97.8 | BM29: -61.2 | BN29: 77.1 | BO29: 26.9 | BP29: -38.5 | BQ29: 78.2 | BR29: 56.2 | BS29: 23.2 | BT29: 40.4 | BU29: 71.1 | BV29: 80.9 | BW29: 61.7 | BX29: -76.6 | BY29: -23.7 | BZ29: 27 | CA29: -97.7 | CB29: 74.8 | CC29: -40 | CD29: 44.3 | CE29: 32.8 | CF29: 9.6 | CG29: -58.4 | CH29: 21.2 | CI29: 36.7 | CJ29: -70.5 | CK29: -75.9 | CL29: 3.6 | CM29: 49.8 | CN29: 52.5 | CO29: -98.8 | CP29: 98.4 | CQ29: -61.2 | CR29: 18.7 | CS29: -69.2 | CT29: 61.1 | CU29: 92.9 | CV29: 53.3
A30: 74.8 | B30: -38.1 | C30: 55.3 | D30: 24 | E30: -78.5 | F30: 3.1 | G30: 67.7 | H30: 18 | I30: 84.5 | J30: 63.7 | K30: -25.6 | L30: 73.3 | M30: -85 | N30: -67.3 | O30: 75 | P30: 80.5 | Q30: -3.8 | R30: 24.1 | S30: -98.7 | T30: 17.5 | U30: 71.7 | V30: 16.6 | W30: -24.6 | X30: -78.9 | Y30: -17.4 | Z30: 94.2 | AA30: 25.3 | AB30: 97.4 | AC30: 30 | AD30: 40.8 | AE30: 81.7 | AF30: 53.9 | AG30: 0.7 | AH30: 30 | AI30: -67.3 | AJ30: 91.6 | AK30: 84.5 | AL30: 80.7 | AM30: -47.9 | AN30: 30.7 | AO30: 61.4 | AP30: 46.7 | AQ30: -31.5 | AR30: 34.7 | AS30: -59.8 | AT30: 47.5 | AU30: 50.6 | AV30: 43.5 | AW30: 54.5 | AX30: 47.4 | AY30: 38 | AZ30: 45.7 | BA30: 58.6 | BB30: -83.1 | BC30: -81.1 | BD30: -30.1 | BE30: -77.5 | BF30: 13.7 | BG30: 45.1 | BH30: 26.3 | BI30: 47.7 | BJ30: 80.2 | BK30: 17.5 | BL30: 8.3 | BM30: -31.1 | BN30: -47 | BO30: 43.5 | BP30: 15 | BQ30: 69.4 | BR30: -71.5 | BS30: 18.9 | BT30: 83.2 | BU30: 10.1 | BV30: -83.1 | BW30: 76 | BX30: 74.4 | BY30: 91.2 | BZ30: -2.4 | CA30: 68.8 | CB30: 58.6 | CC30: 8.7 | CD30: 72 | CE30: 53.6 | CF30: 43.1 | CG30: 9.9 | CH30: 85.6 | CI30: -87 | CJ30: 27.3 | CK30: 97 | CL30: 88.9 | CM30: 29.3 | CN30: 56.6 | CO30: -63.2 | CP30: -59.4 | CQ30: 18.2 | CR30: 88.8 | CS30: 68.1 | CT30: 24.9 | CU30: 85.5 | CV30: 48.6
A31: -7 | B31: 91.3 | C31: -27.7 | D31: -15.3 | E31: 73.2 | F31: -85.1 | G31: -2.8 | H31: 97.5 | I31: 43.6 | J31: 63.5 | K31: -23.7 | L31: 64.8 | M31: 43.4 | N31: 78.7 | O31: 41.5 | P31: 69.6 | Q31: -81.1 | R31: 5.3 | S31: 66.6 | T31: 46.1 | U31: -29.6 | V31: 20.3 | W31: 6.3 | X31: 76.2 | Y31: 92.2 | Z31: 19.5 | AA31: 80.5 | AB31: -59.4 | AC31: 67 | AD31: 67.4 | AE31: 37.9 | AF31: 22 | AG31: 78.3 | AH31: -75.6 | AI31: 16.8 | AJ31: 59.6 | AK31: 83.3 | AL31: -92.7 | AM31: -89 | AN31: 61.8 | AO31: 67.8 | AP31: -78.6 | AQ31: 84.7 | AR31: 34.9 | AS31: 46.2 | AT31: 23.2 | AU31: 22.3 | AV31: 13 | AW31: 63.7 | AX31: 11.6 | AY31: 17.5 | AZ31: -37.1 | BA31: 91.6 | BB31: 81.8 | BC31: 29.1 | BD31: 75.2 | BE31: 98.6 | BF31: -10.3 | BG31: 85.2 | BH31: 75.3 | BI31: 53.5 | BJ31: 23.4 | BK31: 48.6 | BL31: 66 | BM31: -18.4 | BN31: 26 | BO31: -31.2 | BP31: -5.8 | BQ31: 80.9 | BR31: 98 | BS31: 59.6 | BT31: 2.9 | BU31: 8.2 | BV31: 22.8 | BW31: 33.2 | BX31: 78.1 | BY31: 82.8 | BZ31: 28.3 | CA31: -40 | CB31: 27.5 | CC31: 35.8 | CD31: 8.3 | CE31: 14.6 | CF31: -38.1 | CG31: -99.8 | CH31: -7.4 | CI31: -86.1 | CJ31: 49.1 | CK31: 75.2 | CL31: -8.1 | CM31: 41.2 | CN31: 92.5 | CO31: 16 | CP31: 33.2 | CQ31: 0.9 | CR31: 25.5 | CS31: 52.6 | CT31: 66.7 | CU31: -52.4 | CV31: 61.4
A32: 29 | B32: 42.2 | C32: 21.2 | D32: 65.5 | E32: 16.9 | F32: 1.2 | G32: 52 | H32: 9.7 | I32: 68.9 | J32: -96.7 | K32: 79.2 | L32: -28.7 | M32: 83.8 | N32: 59.1 | O32: 31.7 | P32: 43.3 | Q32: 49.2 | R32: 47.5 | S32: -42 | T32: 96.4 | U32: 96.2 | V32: 82.7 | W32: -8.1 | X32: -4 | Y32: 75.7 | Z32: -4.8 | AA32: 89.3 | AB32: 75.7 | AC32: 91.3 | AD32: 56.5 | AE32: -77.6 | AF32: 24.9 | AG32: -88 | AH32: 92.4 | AI32: -66.3 | AJ32: 32.6 | AK32: 20.3 | AL32: -28.6 | AM32: -81 | AN32: 81.3 | AO32: 22.9 | AP32: 2.2 | AQ32: 80.7 | AR32: 79.4 | AS32: 30.4 | AT32: 76.4 | AU32: 56.9 | AV32: -7.1 | AW32: -49 | AX32: -41.9 | AY32: 34 | AZ32: 69.9 | BA32: 62.9 | BB32: 58.3 | BC32: 72.2 | BD32: 52.6 | BE32: 23.9 | BF32: 31.9 | BG32: 56.6 | BH32: 55.5 | BI32: 51.6 | BJ32: 76.3 | BK32: 4.6 | BL32: 31.7 | BM32: -91.8 | BN32: 64.7 | BO32: 64.6 | BP32: 47.7 | BQ32: 65 | BR32: 20.2 | BS32: 85.7 | BT32: 62.4 | BU32: -31.2 | BV32: 16.5 | BW32: 91.3 | BX32: 61.1 | BY32: 98 | BZ32: -89.1 | CA32: -8 | CB32: 0.7 | CC32: -3.4 | CD32: -91.7 | CE32: 30.6 | CF32: -80 | CG32: 58.1 | CH32: 38.3 | CI32: 84.5 | CJ32: -54.8 | CK32: 2.2 | CL32: 69.6 | CM32: 87.6 | CN32: 21.2 | CO32: 10 | CP32: 62.1 | CQ32: 68.4 | CR32: -3.4 | CS32: 97 | CT32: 69 | CU32: 20.4 | CV32: -70.6
A33: 85.6 | B33: 20.8 | C33: -55.8 | D33: 67 | E33: -58.4 | F33: 0.5 | G33: 47.2 | H33: 87.2 | I33: 41.1 | J33: 37.6 | K33: 36.6 | L33: 23.2 | M33: -39.5 | N33: 87.8 | O33: 38.9 | P33: 82.6 | Q33: 64.9 | R33: 77.8 | S33: 18.7 | T33: 39.8 | U33: -74.9 | V33: 42.7 | W33: -53.7 | X33: 48.5 | Y33: 44.3 | Z33: 5.2 | AA33: 51.2 | AB33: 94.9 | AC33: -1.8 | AD33: 51.6 | AE33: 72.4 | AF33: 33.6 | AG33: 15.4 | AH33: 12.8 | AI33: 26.2 | AJ33: 24.9 | AK33: 30.3 | AL33: 8.7 | AM33: -92.7 | AN33: 78.2 | AO33: 98.2 | AP33: -62.2 | AQ33: -71.6 | AR33: 20.9 | AS33: 52.1 | AT33: -56.7 | AU33: 70 | AV33: 10.6 | AW33: 97.5 | AX33: 2.7 | AY33: -75.9 | AZ33: -28.7 | BA33: 39.4 | BB33: -68.3 | BC33: 36.6 | BD33: 44.5 | BE33: 19.2 | BF33: 97.4 | BG33: 29.2 | BH33: 7.5 | BI33: 15.7 | BJ33: 0.9 | BK33: 84.6 | BL33: 4.2 | BM33: 58.1 | BN33: 99.2 | BO33: 42.6 | BP33: 19.5 | BQ33: 57.3 | BR33: -64.2 | BS33: 72.7 | BT33: 29.3 | BU33: -71.5 | BV33: -59.7 | BW33: 78 | BX33: -8.8 | BY33: -68.3 | BZ33: -55.7 | CA33: -23.6 | CB33: -86.1 | CC33: 48.3 | CD33: -68.2 | CE33: 73.3 | CF33: 50.5 | CG33: 39.4 | CH33: 99.5 | CI33: 65.9 | CJ33: 68.5 | CK33: 57.6 | CL33: -91.7 | CM33: 53.2 | CN33: 66.4 | CO33: 71.1 | CP33: -80.4 | CQ33: 64.6 | CR33: -88 | CS33: 46.1 | CT33: 8.3 | CU33: -5.1 | CV33: 40.1
A34: 86.3 | B34: 41.7 | C34: 9.2 | D34: 19.1 | E34: -3 | F34: 45.3 | G34: 57.1 | H34: 40.4 | I34: 90 | J34: 88.8 | K34: 16.6 | L34: 34.8 | M34: 27 | N34: 56.1 | O34: -59.8 | P34: 40.8 | Q34: 42.3 | R34: -87.1 | S34: 5.6 | T34: 13.4 | U34: -99.8 | V34: 24.9 | W34: 88.7 | X34: 37.3 | Y34: 41.6 | Z34: -95.8 | AA34: 54.9 | AB34: 39 | AC34: -79.9 | AD34: -53.7 | AE34: 94.1 | AF34: -27.7 | AG34: 92.5 | AH34: -44.9 | AI34: 18.2 | AJ34: 23.1 | AK34: -31.5 | AL34: 40.8 | AM34: 56.9 | AN34: 60 | AO34: 74.7 | AP34: 14.7 | AQ34: 86.8 | AR34: 69 | AS34: -78.9 | AT34: 70.7 | AU34: 10.9 | AV34: 45.6 | AW34: 38.6 | AX34: 2.7 | AY34: 32.6 | AZ34: 67.6 | BA34: 6.9 | BB34: 65 | BC34: 76 | BD34: -49 | BE34: 90.6 | BF34: -76.5 | BG34: 20.3 | BH34: 42.6 | BI34: 28 | BJ34: 64.6 | BK34: 26.1 | BL34: 65.1 | BM34: 37.3 | BN34: -68.3 | BO34: -25.6 | BP34: 98.3 | BQ34: 45.7 | BR34: 59 | BS34: -31.5 | BT34: 83.2 | BU34: -65.3 | BV34: 9.2 | BW34: 74.1 | BX34: -85.4 | BY34: 81.5 | BZ34: 73.1 | CA34: 85.7 | CB34: 9.3 | CC34: -47 | CD34: 66.5 | CE34: 89.5 | CF34: -80 | CG34: 91.1 | CH34: 20.3 | CI34: -26.6 | CJ34: 69 | CK34: 77.8 | CL34: 60 | CM34: 95.2 | CN34: -93.7 | CO34: -67.2 | CP34: 35.3 | CQ34: 64.5 | CR34: -72.9 | CS34: 38.6 | CT34: -78.9 | CU34: 24 | CV34: 48.1
A35: -66.2 | B35: 98.9 | C35: 49.2 | D35: 85.2 | E35: 58.2 | F35: 89.2 | G35: 20.1 | H35: 41.2 | I35: 62 | J35: 18.7 | K35: -84.4 | L35: 45.8 | M35: 98.6 | N35: 85.6 | O35: -71.9 | P35: 98.5 | Q35: -54.4 | R35: 67.6 | S35: 58.3 | T35: 45.7 | U35: 21.8 | V35: 36.3 | W35: 11.7 | X35: 82.7 | Y35: 74.4 | Z35: -55.8 | AA35: 25.2 | AB35: 87.2 | AC35: 28.5 | AD35: 80.2 | AE35: 71.4 | AF35: 2.3 | AG35: 77.2 | AH35: -99.7 | AI35: 67.9 | AJ35: 15.6 | AK35: 79.8 | AL35: -96.8 | AM35: 48.4 | AN35: 31.3 | AO35: 82.7 | AP35: 58.3 | AQ35: -84.4 | AR35: 65.9 | AS35: 88.9 | AT35: -24.6 | AU35: 0.6 | AV35: -2 | AW35: 54.1 | AX35: 86.5 | AY35: 93.1 | AZ35: 91.2 | BA35: 65.8 | BB35: 72 | BC35: 86.2 | BD35: 36.8 | BE35: -46.9 | BF35: 7.9 | BG35: 43.5 | BH35: -0.8 | BI35: -63.3 | BJ35: 64.8 | BK35: -41 | BL35: 60.8 | BM35: 73 | BN35: 36.6 | BO35: -83 | BP35: 59.2 | BQ35: -80.4 | BR35: -84.1 | BS35: 25.3 | BT35: 20.4 | BU35: 78.1 | BV35: 97.1 | BW35: 98.4 | BX35: -83.4 | BY35: 34.8 | BZ35: 60.7 | CA35: -82.4 | CB35: 3.1 | CC35: 45.7 | CD35: 58.6 | CE35: 73 | CF35: 20 | CG35: 14 | CH35: 98 | CI35: -63.3 | CJ35: 74.3 | CK35: 82.7 | CL35: 84.9 | CM35: 46.4 | CN35: 39.8 | CO35: -93.8 | CP35: 46.1 | CQ35: 65.6 | CR35: 22.1 | CS35: 73.1 | CT35: 23.8 | CU35: 18.6 | CV35: 81.8
A36: 29.9 | B36: 96.3 | C36: 52.6 | D36: 39.3 | E36: -38.1 | F36: -85 | G36: -95.8 | H36: 40.8 | I36: 55.3 | J36: 74.4 | K36: 57.5 | L36: 86.6 | M36: -37.5 | N36: 71.8 | O36: 10.8 | P36: -7.1 | Q36: 63.1 | R36: 52.3 | S36: 73 | T36: 70 | U36: 91.5 | V36: 68 | W36: -16.4 | X36: 4.3 | Y36: 69.9 | Z36: 90.2 | AA36: -1.4 | AB36: 22.2 | AC36: 19.1 | AD36: 2.9 | AE36: 3.1 | AF36: 24.4 | AG36: 0.1 | AH36: 50.1 | AI36: -48.9 | AJ36: -34.1 | AK36: -96.7 | AL36: -5.1 | AM36: 64.7 | AN36: 41.2 | AO36: -44.9 | AP36: 32.2 | AQ36: 80.7 | AR36: 58 | AS36: 12.6 | AT36: -9 | AU36: 12.7 | AV36: 90.2 | AW36: -50.7 | AX36: 62.8 | AY36: 52.2 | AZ36: 88.2 | BA36: 94.9 | BB36: 89.2 | BC36: 10.2 | BD36: -12.3 | BE36: 37.9 | BF36: 12.6 | BG36: 10 | BH36: 24.3 | BI36: -98.8 | BJ36: 31.4 | BK36: 95.6 | BL36: 14.6 | BM36: 51.9 | BN36: 17 | BO36: 12 | BP36: 39.8 | BQ36: 37.8 | BR36: 93.3 | BS36: 5.7 | BT36: 69.1 | BU36: 8.6 | BV36: 90.3 | BW36: 35.7 | BX36: 5.7 | BY36: 21.5 | BZ36: 73 | CA36: 0.1 | CB36: -85 | CC36: 49.8 | CD36: 57.3 | CE36: -71.5 | CF36: 99 | CG36: 79.8 | CH36: 50.6 | CI36: 11.5 | CJ36: -6 | CK36: 2.2 | CL36: 79.2 | CM36: 79.1 | CN36: 52.5 | CO36: 47.2 | CP36: -5.8 | CQ36: 18 | CR36: 55.3 | CS36: -79.6 | CT36: 2.1 | CU36: -94.8 | CV36: -60.3
A37: 69.5 | B37: -8 | C37: 72.8 | D37: 48.4 | E37: 28.1 | F37: -75.5 | G37: 49.2 | H37: 91 | I37: 42.3 | J37: -55.4 | K37: 15.5 | L37: 96.3 | M37: 80.6 | N37: 51.6 | O37: 38.8 | P37: 53.2 | Q37: 58.2 | R37: 76.7 | S37: 96.1 | T37: 56.5 | U37: 31.4 | V37: 29.8 | W37: -75.6 | X37: 41.1 | Y37: 41.7 | Z37: 34.3 | AA37: 40.6 | AB37: 50.2 | AC37: 86.2 | AD37: 63.9 | AE37: 12.2 | AF37: 7.5 | AG37: 97.1 | AH37: 91.9 | AI37: 9.9 | AJ37: 62.8 | AK37: 68.6 | AL37: -6.8 | AM37: 42.7 | AN37: 35.6 | AO37: 26 | AP37: -32.5 | AQ37: 68.4 | AR37: 27.4 | AS37: -8.8 | AT37: 63 | AU37: 33 | AV37: 16.2 | AW37: 78 | AX37: 96.2 | AY37: -82 | AZ37: -35.1 | BA37: 11.8 | BB37: 75.1 | BC37: 23.3 | BD37: -91.8 | BE37: 54.5 | BF37: -67.3 | BG37: 48.5 | BH37: 70.1 | BI37: 36.2 | BJ37: -89.1 | BK37: 24.8 | BL37: 31.7 | BM37: -7 | BN37: 96.1 | BO37: 45.6 | BP37: 21.1 | BQ37: -91.7 | BR37: 89.8 | BS37: -19.4 | BT37: 70.2 | BU37: -69.3 | BV37: -53.7 | BW37: -93.8 | BX37: 15.9 | BY37: 81.3 | BZ37: 55.5 | CA37: -65.2 | CB37: 7.7 | CC37: 65 | CD37: 24.3 | CE37: 7.9 | CF37: 76.4 | CG37: 16.9 | CH37: -89.1 | CI37: 47.7 | CJ37: -28.7 | CK37: 68.7 | CL37: -88.4 | CM37: -24.7 | CN37: -25.7 | CO37: 79.4 | CP37: -80.4 | CQ37: 3.9 | CR37: 77.7 | CS37: -82.4 | CT37: -57.8 | CU37: -67.2 | CV37: 53.3
A38: -91.7 | B38: 59.5 | C38: 43.1 | D38: -78.6 | E38: 2.1 | F38: 13.9 | G38: 50.2 | H38: -75.6 | I38: 27.9 | J38: -33.5 | K38: 67.5 | L38: 71.2 | M38: 4.5 | N38: 27.4 | O38: 42.8 | P38: 15.6 | Q38: -38.5 | R38: 47.5 | S38: -30.1 | T38: 7.6 | U38: 41.8 | V38: 12.8 | W38: 50.2 | X38: 9.2 | Y38: 38.7 | Z38: 50.1 | AA38: 27.4 | AB38: -80 | AC38: -74.5 | AD38: 75.8 | AE38: -84.1 | AF38: 13 | AG38: -38.1 | AH38: 34.9 | AI38: 23 | AJ38: 15.7 | AK38: 38.2 | AL38: -24.6 | AM38: -68.3 | AN38: -17.4 | AO38: -25.6 | AP38: -21.6 | AQ38: -8 | AR38: 94.2 | AS38: 58.1 | AT38: 51.1 | AU38: -7.1 | AV38: 40.5 | AW38: 43.7 | AX38: -41.9 | AY38: 50.5 | AZ38: 3.3 | BA38: 0 | BB38: 67.1 | BC38: 68.4 | BD38: 15.7 | BE38: 58.2 | BF38: 97.2 | BG38: -25.7 | BH38: 6.7 | BI38: -47.9 | BJ38: -96.7 | BK38: 98.6 | BL38: 72.8 | BM38: -64.3 | BN38: 51 | BO38: 50.3 | BP38: -47 | BQ38: -63.6 | BR38: 97.1 | BS38: 46.8 | BT38: 62.4 | BU38: 16.1 | BV38: 26.8 | BW38: 68.4 | BX38: 59.6 | BY38: -52.8 | BZ38: 86.9 | CA38: 36.8 | CB38: -64.2 | CC38: 93.3 | CD38: 63.1 | CE38: 95 | CF38: 13.4 | CG38: -24.6 | CH38: 5.5 | CI38: -38.1 | CJ38: 94.4 | CK38: 92.5 | CL38: 94.4 | CM38: 47.1 | CN38: -5 | CO38: 40.6 | CP38: -60.3 | CQ38: 64.5 | CR38: 30.6 | CS38: 30.4 | CT38: 74.4 | CU38: 17.5 | CV38: 32.2
A39: 53.3 | B39: 29.2 | C39: -81.1 | D39: -79.9 | E39: 72.3 | F39: -23.6 | G39: -81.1 | H39: -34.1 | I39: -71.6 | J39: 62 | K39: 36.3 | L39: 38.8 | M39: -28.7 | N39: 51.1 | O39: 32.6 | P39: -85.4 | Q39: -56.7 | R39: 78.4 | S39: 42.5 | T39: 25.4 | U39: 85.9 | V39: 72.2 | W39: 71.8 | X39: 31.6 | Y39: 71.4 | Z39: 22 | AA39: 35 | AB39: 45.6 | AC39: 23 | AD39: 27.4 | AE39: 82.9 | AF39: 17.5 | AG39: 42.1 | AH39: 51.3 | AI39: 18.8 | AJ39: -81.4 | AK39: 39.4 | AL39: 13.2 | AM39: -24.7 | AN39: 14.2 | AO39: 38.9 | AP39: -26.6 | AQ39: 8.7 | AR39: 67.9 | AS39: 56.5 | AT39: 51.2 | AU39: 77.4 | AV39: 17.9 | AW39: 49.7 | AX39: 80.8 | AY39: -86 | AZ39: 22.1 | BA39: -52.7 | BB39: 75.2 | BC39: -66.3 | BD39: 70.3 | BE39: 65.7 | BF39: 21.9 | BG39: 82.3 | BH39: 79.8 | BI39: -32.5 | BJ39: 42.8 | BK39: 91.9 | BL39: 95.5 | BM39: 5.3 | BN39: -94.8 | BO39: 45.1 | BP39: 48.4 | BQ39: 28.2 | BR39: 51.9 | BS39: -66.2 | BT39: 47.3 | BU39: 45.1 | BV39: 40.1 | BW39: -32.5 | BX39: 76.7 | BY39: -19.3 | BZ39: 19.8 | CA39: 51 | CB39: -79.5 | CC39: 56.1 | CD39: 33 | CE39: 66 | CF39: 53.5 | CG39: 47.4 | CH39: 15.1 | CI39: 33.4 | CJ39: -74.6 | CK39: -98.7 | CL39: 20.8 | CM39: 66.4 | CN39: 99.1 | CO39: 17.8 | CP39: 97 | CQ39: 42.8 | CR39: 23.9 | CS39: 38.3 | CT39: -35.1 | CU39: 47.7 | CV39: 23
A40: 92.2 | B40: 9.6 | C40: 60 | D40: -49.9 | E40: 35.3 | F40: 82.8 | G40: 47.3 | H40: -26.7 | I40: 61.7 | J40: -31.1 | K40: -67.3 | L40: 99.4 | M40: 81.5 | N40: 15.9 | O40: -77.6 | P40: 78.8 | Q40: 70.4 | R40: 40.6 | S40: 22.4 | T40: 9.6 | U40: -26.7 | V40: 97.2 | W40: 69 | X40: 88.5 | Y40: 78.8 | Z40: 31.7 | AA40: 65.4 | AB40: 32.2 | AC40: 93.9 | AD40: -7.1 | AE40: -75.9 | AF40: 11.4 | AG40: 24.8 | AH40: 30.4 | AI40: 44.4 | AJ40: 79.8 | AK40: 9.6 | AL40: 86.6 | AM40: -37.5 | AN40: 57.3 | AO40: 65.7 | AP40: -27.6 | AQ40: 16.8 | AR40: 88.6 | AS40: 7.2 | AT40: 50.1 | AU40: 98.9 | AV40: 22.1 | AW40: 98.3 | AX40: 11.5 | AY40: 34.8 | AZ40: -86.1 | BA40: -2.8 | BB40: 96.6 | BC40: 76.7 | BD40: 4.7 | BE40: 82.7 | BF40: 12.9 | BG40: 18.2 | BH40: 69 | BI40: 24.2 | BJ40: -54.7 | BK40: 10.8 | BL40: -77.9 | BM40: 29.1 | BN40: 90.1 | BO40: 41.6 | BP40: 63.8 | BQ40: 65.4 | BR40: 98.1 | BS40: -92.7 | BT40: -36.1 | BU40: 68 | BV40: 45.6 | BW40: 26.8 | BX40: 62.4 | BY40: 55.3 | BZ40: 67.4 | CA40: -10.3 | CB40: 7.7 | CC40: -83 | CD40: 38.2 | CE40: 41.3 | CF40: -60.2 | CG40: -48 | CH40: 89.9 | CI40: -64.2 | CJ40: 73 | CK40: 82.9 | CL40: 85.7 | CM40: 66.6 | CN40: -7.4 | CO40: 4.3 | CP40: 87.7 | CQ40: 1.6 | CR40: 52.1 | CS40: -8.8 | CT40: -79.6 | CU40: -10.3 | CV40: -51.4
A41: 79.2 | B41: 45.3 | C41: -83.4 | D41: 13.7 | E41: 33.3 | F41: 8.2 | G41: -98.7 | H41: 15.4 | I41: 53.6 | J41: 57.3 | K41: -65.3 | L41: 51.6 | M41: 33.6 | N41: 50.6 | O41: 84.9 | P41: 86.3 | Q41: -4.8 | R41: 23.4 | S41: 93.2 | T41: -56.4 | U41: 45.5 | V41: 41.8 | W41: -52.7 | X41: 95 | Y41: 1.7 | Z41: 4.3 | AA41: 95.6 | AB41: 91.9 | AC41: -35.1 | AD41: 92.6 | AE41: 33.8 | AF41: 86.5 | AG41: 60.4 | AH41: 6.6 | AI41: 92.3 | AJ41: 77.1 | AK41: 6.6 | AL41: -66.3 | AM41: 40.1 | AN41: -8 | AO41: 34.6 | AP41: 74.3 | AQ41: 90.4 | AR41: -54.4 | AS41: -13.3 | AT41: -86 | AU41: 16.1 | AV41: 28.1 | AW41: 18.1 | AX41: 48.2 | AY41: -77.6 | AZ41: 51.9 | BA41: -19.4 | BB41: 45.4 | BC41: -34.5 | BD41: -75.9 | BE41: -45.9 | BF41: -43.9 | BG41: 91.9 | BH41: -93.8 | BI41: -6.4 | BJ41: 16.9 | BK41: -42 | BL41: 25.9 | BM41: -80.1 | BN41: 23.3 | BO41: -62.6 | BP41: 0.9 | BQ41: 72.3 | BR41: 21.5 | BS41: 97.4 | BT41: 14.5 | BU41: -5.1 | BV41: 89.3 | BW41: 14.6 | BX41: 80.6 | BY41: 46.5 | BZ41: 44.7 | CA41: 99 | CB41: 25.1 | CC41: 10.5 | CD41: 29 | CE41: 48.7 | CF41: 94.4 | CG41: -51.8 | CH41: 50.9 | CI41: -6.4 | CJ41: 8.9 | CK41: 85.7 | CL41: 96.3 | CM41: -32.5 | CN41: 90.2 | CO41: 64.9 | CP41: 15 | CQ41: 14.6 | CR41: -3 | CS41: 34.2 | CT41: 14.6 | CU41: 23 | CV41: 41.4
A42: 71.4 | B42: -53.7 | C42: 18.8 | D42: 42.4 | E42: 70.3 | F42: 23.1 | G42: 32.8 | H42: -64.2 | I42: 80.8 | J42: 46.5 | K42: -9.1 | L42: -17.3 | M42: 84.8 | N42: 79.2 | O42: 83.3 | P42: 1.1 | Q42: 48.3 | R42: 48.5 | S42: 72.2 | T42: 42.8 | U42: 6.5 | V42: 50 | W42: 0.9 | X42: 70 | Y42: 79 | Z42: -60.2 | AA42: 53.3 | AB42: 3.3 | AC42: 48.8 | AD42: 9.6 | AE42: 79.8 | AF42: 71.7 | AG42: 77.2 | AH42: -51.4 | AI42: 37.2 | AJ42: -45 | AK42: 5.5 | AL42: 66.8 | AM42: 80.9 | AN42: 65.8 | AO42: 21.5 | AP42: 68.8 | AQ42: 93.4 | AR42: 35.2 | AS42: 84.6 | AT42: 6.6 | AU42: 32.9 | AV42: 97.1 | AW42: 24.8 | AX42: 29.8 | AY42: -89.1 | AZ42: 17.1 | BA42: -11.3 | BB42: 43.1 | BC42: 4.7 | BD42: 32.6 | BE42: 97.5 | BF42: 25.4 | BG42: 12.9 | BH42: 1.1 | BI42: 89.3 | BJ42: 22 | BK42: -78.9 | BL42: 91.6 | BM42: 78.2 | BN42: -8.4 | BO42: 89.5 | BP42: 17.6 | BQ42: 13.2 | BR42: 34.3 | BS42: 51.1 | BT42: -62.6 | BU42: 25.8 | BV42: -89.1 | BW42: -93.7 | BX42: 11.2 | BY42: 94.3 | BZ42: -11.3 | CA42: 85.2 | CB42: 82.2 | CC42: 35.6 | CD42: 19.7 | CE42: 66.7 | CF42: -37.1 | CG42: -23.6 | CH42: 35.2 | CI42: 33.9 | CJ42: 64.1 | CK42: -60.3 | CL42: 51.9 | CM42: 69.1 | CN42: -71.6 | CO42: 64.8 | CP42: -82.1 | CQ42: 46.2 | CR42: 27.2 | CS42: 48.4 | CT42: 5.3 | CU42: 97.2 | CV42: 82.2
A43: 80.5 | B43: 36.4 | C43: 18.7 | D43: 81.6 | E43: 83.3 | F43: 22.3 | G43: 18.1 | H43: -3.8 | I43: 67 | J43: 2.9 | K43: 98 | L43: 21.1 | M43: 12.2 | N43: 67.9 | O43: 62.9 | P43: -25.6 | Q43: 29.8 | R43: -26.7 | S43: -69.3 | T43: 86.2 | U43: 29.2 | V43: -89.1 | W43: 33.2 | X43: -52.7 | Y43: 96 | Z43: 18 | AA43: 47.8 | AB43: 59.6 | AC43: 48.4 | AD43: -52.4 | AE43: 95.1 | AF43: 81.9 | AG43: -33.1 | AH43: 38.8 | AI43: 15.5 | AJ43: 19.2 | AK43: 33.4 | AL43: 44.5 | AM43: 84.7 | AN43: -94.7 | AO43: 73.3 | AP43: 18.6 | AQ43: 8.3 | AR43: 11.4 | AS43: 62.7 | AT43: 35.3 | AU43: 4.6 | AV43: 26.4 | AW43: -10.3 | AX43: 8.2 | AY43: 66.4 | AZ43: 95 | BA43: 89.9 | BB43: -86.4 | BC43: 3.3 | BD43: 41.5 | BE43: 52.1 | BF43: -89 | BG43: 17.6 | BH43: 61.4 | BI43: 16.6 | BJ43: 96.6 | BK43: 19.2 | BL43: 85.9 | BM43: 65 | BN43: -50.4 | BO43: 67.8 | BP43: 47.3 | BQ43: 24.2 | BR43: -36.5 | BS43: 90.9 | BT43: 10.5 | BU43: 87.8 | BV43: 51.5 | BW43: 89.6 | BX43: -6.4 | BY43: 38 | BZ43: -99.7 | CA43: -34.1 | CB43: 96.6 | CC43: 52.1 | CD43: 96 | CE43: -66.3 | CF43: 3.9 | CG43: 89.2 | CH43: -78.6 | CI43: 67.1 | CJ43: 18 | CK43: 17.7 | CL43: -68.2 | CM43: -51.8 | CN43: 86.2 | CO43: 97.9 | CP43: -82.4 | CQ43: -1.8 | CR43: 27.4 | CS43: 47.8 | CT43: 96.9 | CU43: 41.5 | CV43: 45.2
A44: 2.1 | B44: 31.3 | C44: 95.4 | D44: 60 | E44: 99.9 | F44: 4.7 | G44: 76.4 | H44: 69.8 | I44: -82.4 | J44: -85.1 | K44: 21.8 | L44: 49.4 | M44: 3.5 | N44: 53.3 | O44: 90.5 | P44: 53.2 | Q44: -64.2 | R44: 8.3 | S44: 29.4 | T44: 45.5 | U44: -72.5 | V44: 16.7 | W44: 27.9 | X44: -42 | Y44: 80.3 | Z44: 35.6 | AA44: -65.3 | AB44: 33.2 | AC44: -55.7 | AD44: 65 | AE44: 60.1 | AF44: 98.2 | AG44: 95.2 | AH44: 70.1 | AI44: -58.4 | AJ44: 74.8 | AK44: 95.6 | AL44: -89.1 | AM44: 80.5 | AN44: -7.4 | AO44: 97.2 | AP44: 58 | AQ44: 97.9 | AR44: 12.1 | AS44: 51.6 | AT44: 25.4 | AU44: 12.7 | AV44: 64.1 | AW44: -86 | AX44: 13.2 | AY44: 36.3 | AZ44: 68.7 | BA44: 78.2 | BB44: 15 | BC44: -98.7 | BD44: 50.5 | BE44: -26.6 | BF44: 16.5 | BG44: -46.9 | BH44: 96.9 | BI44: 17.2 | BJ44: 81.7 | BK44: 64.4 | BL44: 23.2 | BM44: 7.9 | BN44: 60.4 | BO44: 80.5 | BP44: -74.9 | BQ44: 82.8 | BR44: -3.4 | BS44: 15.6 | BT44: 51.5 | BU44: -74.9 | BV44: 91.9 | BW44: -2.8 | BX44: 68.1 | BY44: 48.4 | BZ44: 26.1 | CA44: 93.5 | CB44: 84.2 | CC44: 77.8 | CD44: 58.1 | CE44: 17.2 | CF44: 19.9 | CG44: 49.2 | CH44: 79.1 | CI44: 17 | CJ44: 52.6 | CK44: -8.8 | CL44: 74.4 | CM44: -15.3 | CN44: -57.4 | CO44: 90.5 | CP44: -4 | CQ44: 27 | CR44: 49.7 | CS44: 23.5 | CT44: 94 | CU44: 60 | CV44: 14
A45: 43.7 | B45: 90.9 | C45: -59.8 | D45: 8.6 | E45: 71.3 | F45: -52.7 | G45: 66.6 | H45: -85 | I45: 31.6 | J45: 27.1 | K45: -91.8 | L45: 15.7 | M45: -21.6 | N45: 59.5 | O45: 57.1 | P45: 96.4 | Q45: -61.3 | R45: 34.3 | S45: 80.5 | T45: 63.8 | U45: -78.5 | V45: 65.4 | W45: 95.9 | X45: -55.4 | Y45: 84.3 | Z45: 14.5 | AA45: 28.5 | AB45: 48.6 | AC45: 13 | AD45: 16.8 | AE45: 23.3 | AF45: 35.9 | AG45: -22.6 | AH45: 45.4 | AI45: 54.9 | AJ45: 80.8 | AK45: 17.1 | AL45: 74 | AM45: -98.7 | AN45: 68.8 | AO45: -22.6 | AP45: 98.2 | AQ45: 34.2 | AR45: 58.3 | AS45: 36.3 | AT45: -35.5 | AU45: 97.4 | AV45: 25.4 | AW45: 16.6 | AX45: 92.5 | AY45: -2.8 | AZ45: 10.2 | BA45: 59.1 | BB45: 20 | BC45: 16.8 | BD45: -40 | BE45: 95.5 | BF45: -58.4 | BG45: 42.4 | BH45: 74 | BI45: -25.6 | BJ45: 33.8 | BK45: 43.5 | BL45: 42.2 | BM45: 53.2 | BN45: 31.4 | BO45: -39.1 | BP45: -6 | BQ45: 29.3 | BR45: 95.9 | BS45: -19.3 | BT45: 34.4 | BU45: 86.3 | BV45: 99.9 | BW45: 32 | BX45: 52.2 | BY45: -58.4 | BZ45: 68.1 | CA45: 48.1 | CB45: 26.8 | CC45: 85.5 | CD45: 67.4 | CE45: -55.4 | CF45: 88.2 | CG45: -69.3 | CH45: 69.1 | CI45: 47.2 | CJ45: 89.6 | CK45: 35.7 | CL45: 97 | CM45: 58.6 | CN45: 54.5 | CO45: -26.6 | CP45: -53.4 | CQ45: 94.4 | CR45: 13.5 | CS45: 20.1 | CT45: 1.9 | CU45: 50.2 | CV45: 57.6
A46: 13 | B46: -82.1 | C46: -16.4 | D46: 77 | E46: 57.1 | F46: 65.9 | G46: 97.3 | H46: 11.9 | I46: 14 | J46: 31.3 | K46: 67.1 | L46: 86.7 | M46: 28.4 | N46: 18.2 | O46: 60.7 | P46: 16.9 | Q46: 42.5 | R46: 33 | S46: 1.3 | T46: -69.2 | U46: 17.2 | V46: 69.1 | W46: 34.3 | X46: -0.8 | Y46: 40.7 | Z46: 74.8 | AA46: -32.1 | AB46: -69.2 | AC46: -93.8 | AD46: 55.1 | AE46: 45.5 | AF46: -74.6 | AG46: 26.8 | AH46: -89.4 | AI46: 64.9 | AJ46: 34 | AK46: 9.9 | AL46: 58.6 | AM46: 16.9 | AN46: 91.1 | AO46: 85.2 | AP46: -18.4 | AQ46: -21.6 | AR46: 16.2 | AS46: 62.8 | AT46: -15.3 | AU46: 43.5 | AV46: 81.5 | AW46: 42.5 | AX46: 26.4 | AY46: 40.7 | AZ46: 89.5 | BA46: -70.6 | BB46: 23.1 | BC46: 98.5 | BD46: 97.4 | BE46: 35.9 | BF46: 57.6 | BG46: 79 | BH46: 65.6 | BI46: -20.7 | BJ46: -83.1 | BK46: 27.5 | BL46: 18.5 | BM46: -34.5 | BN46: 19.6 | BO46: 85.7 | BP46: 28.1 | BQ46: 49.7 | BR46: 81.7 | BS46: -68.3 | BT46: 28.9 | BU46: 66 | BV46: -54.8 | BW46: 28.2 | BX46: 19.2 | BY46: 27.5 | BZ46: 28.9 | CA46: 13.1 | CB46: 1.7 | CC46: -72.5 | CD46: 21.3 | CE46: -72.5 | CF46: -62.2 | CG46: 23.8 | CH46: 61.9 | CI46: 39.6 | CJ46: 51.1 | CK46: 16.1 | CL46: -85.1 | CM46: 58.6 | CN46: -20.6 | CO46: 7.9 | CP46: 44.6 | CQ46: -9.8 | CR46: 35.6 | CS46: 28.2 | CT46: 40.1 | CU46: 35.7 | CV46: -51.4
A47: -63.2 | B47: 87.5 | C47: -17.3 | D47: 40.3 | E47: 97.1 | F47: 28.8 | G47: 89.9 | H47: 31.9 | I47: 74.4 | J47: -28.6 | K47: 54.6 | L47: 90.5 | M47: 50.6 | N47: 29.8 | O47: 68.1 | P47: 9.5 | Q47: 3.3 | R47: 67.7 | S47: 84.9 | T47: 75.8 | U47: 31.8 | V47: -60.2 | W47: -5.8 | X47: 19.7 | Y47: 32.9 | Z47: 79.8 | AA47: 98.4 | AB47: 4.9 | AC47: -30.1 | AD47: -37.1 | AE47: 55 | AF47: 69.8 | AG47: 16.6 | AH47: 22.8 | AI47: 32.6 | AJ47: 35.9 | AK47: -49 | AL47: 32.2 | AM47: -73.9 | AN47: 85.6 | AO47: -0.4 | AP47: 20.2 | AQ47: 65.1 | AR47: 52 | AS47: 76.3 | AT47: -23.7 | AU47: 37.7 | AV47: 75.4 | AW47: 45.6 | AX47: 29.4 | AY47: 90.1 | AZ47: 41.7 | BA47: 95 | BB47: 8.2 | BC47: -6.8 | BD47: -52.7 | BE47: 29.8 | BF47: 14.9 | BG47: -3 | BH47: -77.6 | BI47: 28.5 | BJ47: -21.6 | BK47: 36.6 | BL47: 81.5 | BM47: -80 | BN47: 83.6 | BO47: 80.8 | BP47: 33.8 | BQ47: 25.4 | BR47: -79.6 | BS47: 35.4 | BT47: 54.1 | BU47: -80.4 | BV47: 55.6 | BW47: 37 | BX47: -26.6 | BY47: -97.8 | BZ47: -82 | CA47: 18.1 | CB47: -79.5 | CC47: 34 | CD47: -9.1 | CE47: -1 | CF47: 66.8 | CG47: 32.8 | CH47: 83.8 | CI47: -60.6 | CJ47: -31.1 | CK47: -9.4 | CL47: 86.9 | CM47: 14.1 | CN47: -42 | CO47: 13.9 | CP47: 0.7 | CQ47: 58.5 | CR47: -82.1 | CS47: 82.5 | CT47: -49 | CU47: 85.9 | CV47: 49.1
A48: 88.5 | B48: 38 | C48: 69.1 | D48: 28.2 | E48: 72.7 | F48: 21.4 | G48: 37.3 | H48: 18.2 | I48: 41.2 | J48: 41.4 | K48: 10.6 | L48: -9 | M48: 13.7 | N48: 17.8 | O48: -54.7 | P48: 24.2 | Q48: 34 | R48: -70.6 | S48: 64.1 | T48: -79.9 | U48: -37.1 | V48: -28.7 | W48: 66.5 | X48: 40.3 | Y48: 87.7 | Z48: -72.9 | AA48: -77.5 | AB48: -58.8 | AC48: 22 | AD48: 11.6 | AE48: -1.4 | AF48: -72.9 | AG48: 34.6 | AH48: 37.9 | AI48: 76.4 | AJ48: -37.1 | AK48: 75.1 | AL48: 5.9 | AM48: 92 | AN48: 36 | AO48: -79.5 | AP48: -9.8 | AQ48: -30.5 | AR48: -97.7 | AS48: 61 | AT48: 25.5 | AU48: 95 | AV48: 57.1 | AW48: -7.1 | AX48: 46.1 | AY48: -78.6 | AZ48: 28.1 | BA48: -22.7 | BB48: 46.3 | BC48: 34.4 | BD48: -87 | BE48: 94.3 | BF48: -7.1 | BG48: 28.9 | BH48: 76.3 | BI48: 54.9 | BJ48: -9.1 | BK48: 66 | BL48: 93.9 | BM48: 18.5 | BN48: 22.9 | BO48: 73.7 | BP48: -52.8 | BQ48: -49.9 | BR48: 88.5 | BS48: 87.2 | BT48: 25.1 | BU48: -42.9 | BV48: 62.9 | BW48: 29.9 | BX48: 13.7 | BY48: 53.5 | BZ48: 32.7 | CA48: -36.1 | CB48: -7.8 | CC48: 18 | CD48: 58.5 | CE48: 93.4 | CF48: -77.6 | CG48: 96 | CH48: -35.5 | CI48: 27.5 | CJ48: -2 | CK48: 4.5 | CL48: 5.6 | CM48: 87.6 | CN48: 21 | CO48: 22.3 | CP48: 39.8 | CQ48: -64.2 | CR48: 63.9 | CS48: 51.6 | CT48: 66.5 | CU48: -97.8 | CV48: 13.7
A49: 9.7 | B49: 64.9 | C49: 94.3 | D49: -23.6 | E49: -48.9 | F49: -18.3 | G49: 96.9 | H49: 90 | I49: 27.5 | J49: -7.8 | K49: 19.1 | L49: 96.2 | M49: 60.8 | N49: -62.3 | O49: 41.6 | P49: 93.2 | Q49: 70.1 | R49: 64.9 | S49: -95.7 | T49: 68.9 | U49: 24.4 | V49: 50.2 | W49: 65.7 | X49: 75.2 | Y49: -57.8 | Z49: 43.2 | AA49: 44.7 | AB49: 71.2 | AC49: 70.4 | AD49: 71 | AE49: 91.1 | AF49: -72.6 | AG49: 9.3 | AH49: 86.7 | AI49: 59.5 | AJ49: 17.9 | AK49: 87.2 | AL49: -52.7 | AM49: 32.7 | AN49: -99.8 | AO49: -27.6 | AP49: 62.4 | AQ49: 43.3 | AR49: 46.3 | AS49: 11.6 | AT49: 27.1 | AU49: 35.4 | AV49: 81.5 | AW49: 20.5 | AX49: 71.4 | AY49: 19.9 | AZ49: 21.2 | BA49: 95 | BB49: 0 | BC49: -28.6 | BD49: 2.3 | BE49: 19.6 | BF49: 83.5 | BG49: -30.2 | BH49: 5.9 | BI49: 83.5 | BJ49: -9.1 | BK49: 95.2 | BL49: 40.6 | BM49: 15.7 | BN49: -75.6 | BO49: -61.2 | BP49: 12.2 | BQ49: -6 | BR49: 58.3 | BS49: 16.9 | BT49: 13.7 | BU49: 99.9 | BV49: 22.4 | BW49: -59.7 | BX49: 31.4 | BY49: -31.2 | BZ49: 5.3 | CA49: 38.8 | CB49: 67 | CC49: 33.3 | CD49: 16.8 | CE49: -24.7 | CF49: 39.7 | CG49: 6.3 | CH49: 34.2 | CI49: 5.5 | CJ49: 41.4 | CK49: -12.3 | CL49: 90.1 | CM49: 41.3 | CN49: 76.3 | CO49: -85 | CP49: -99.8 | CQ49: -79.5 | CR49: -57.4 | CS49: 14.4 | CT49: 21.9 | CU49: 97 | CV49: 43.1
A50: 23.1 | B50: 26.4 | C50: -51.4 | D50: -91.8 | E50: -55.8 | F50: 95.2 | G50: 23.8 | H50: 22.2 | I50: 0.3 | J50: 40.8 | K50: -1.8 | L50: 16 | M50: 93.2 | N50: 34.6 | O50: 15.5 | P50: 49.4 | Q50: 49.4 | R50: 52.1 | S50: 95 | T50: 27.5 | U50: 40.1 | V50: 27.8 | W50: 68.4 | X50: -74.9 | Y50: 93.1 | Z50: 15.1 | AA50: 90.9 | AB50: 66.7 | AC50: -56.8 | AD50: -36.5 | AE50: 50 | AF50: 50.2 | AG50: 88.6 | AH50: 58.3 | AI50: 64.1 | AJ50: 50.6 | AK50: 6.7 | AL50: 54.1 | AM50: -69.3 | AN50: 31.9 | AO50: -2.4 | AP50: 69.8 | AQ50: -27.7 | AR50: 70.8 | AS50: 0.6 | AT50: 96.3 | AU50: 91.6 | AV50: 57.1 | AW50: -60.2 | AX50: 85.2 | AY50: 76.3 | AZ50: 84.3 | BA50: 23.8 | BB50: 26.5 | BC50: 14.2 | BD50: -5 | BE50: 50.9 | BF50: -76.6 | BG50: 99.2 | BH50: 97.4 | BI50: 14.5 | BJ50: 84.9 | BK50: 84.7 | BL50: 73 | BM50: 18.5 | BN50: 47.2 | BO50: 28.8 | BP50: 37 | BQ50: 17.9 | BR50: 12.1 | BS50: 51.3 | BT50: 5.5 | BU50: 20.4 | BV50: 0.1 | BW50: -74.6 | BX50: 15.5 | BY50: -20.7 | BZ50: 87.3 | CA50: 15.8 | CB50: -17.3 | CC50: 81.6 | CD50: 88.8 | CE50: -88.1 | CF50: -71.9 | CG50: 4.7 | CH50: -50.4 | CI50: 99.9 | CJ50: 78.4 | CK50: 66.8 | CL50: -54.4 | CM50: 21.9 | CN50: 74.3 | CO50: 62.7 | CP50: -25.6 | CQ50: 33.9 | CR50: 37.7 | CS50: 36.3 | CT50: 56.5 | CU50: 95.4 | CV50: 90.9
A51: 0.7 | B51: 77.2 | C51: -4.4 | D51: 37 | E51: 40.2 | F51: 7.6 | G51: 2.1 | H51: 12.9 | I51: 7.2 | J51: 28.8 | K51: 3.9 | L51: 40.2 | M51: 23.2 | N51: -63.3 | O51: 65.5 | P51: 11.5 | Q51: -74.6 | R51: 52 | S51: 71.4 | T51: -8.4 | U51: 74.3 | V51: 97.5 | W51: 33.6 | X51: -68.3 | Y51: 21.4 | Z51: 20.3 | AA51: -81.1 | AB51: 61.8 | AC51: 59.5 | AD51: 17.7 | AE51: -1 | AF51: 71.4 | AG51: 2.7 | AH51: 85.5 | AI51: 14.1 | AJ51: 95.4 | AK51: 2.6 | AL51: 43.1 | AM51: 99.4 | AN51: 13.8 | AO51: 99 | AP51: 36 | AQ51: 49.8 | AR51: 91.9 | AS51: 40.4 | AT51: -30.1 | AU51: 22.5 | AV51: 54.2 | AW51: -71.5 | AX51: 87.3 | AY51: 44.3 | AZ51: 5.3 | BA51: 17.8 | BB51: 37.7 | BC51: 86.7 | BD51: 85.7 | BE51: 18.8 | BF51: 0.1 | BG51: 81.3 | BH51: 18 | BI51: 6.7 | BJ51: 63.8 | BK51: -23.6 | BL51: -54.7 | BM51: -54.7 | BN51: 58.9 | BO51: 60 | BP51: 70.1 | BQ51: 65.1 | BR51: -15.3 | BS51: 25.5 | BT51: 30.4 | BU51: -83.1 | BV51: 5.6 | BW51: 76.4 | BX51: -40.9 | BY51: 93.2 | BZ51: 2.2 | CA51: 60.4 | CB51: -6 | CC51: 99.5 | CD51: 16.9 | CE51: 32.7 | CF51: 70.1 | CG51: -76.9 | CH51: -73.6 | CI51: 60.1 | CJ51: 34.3 | CK51: -86 | CL51: -10.3 | CM51: 49.7 | CN51: 1.9 | CO51: 48.4 | CP51: 95.4 | CQ51: 32.2 | CR51: 96.3 | CS51: 41.3 | CT51: 39.6 | CU51: -57.4 | CV51: -20.6
A52: -46.9 | B52: 90.9 | C52: 64.4 | D52: -76.5 | E52: 7.6 | F52: 6.3 | G52: -6.1 | H52: 65.1 | I52: 25.1 | J52: -79.6 | K52: 22 | L52: -56.4 | M52: -91.7 | N52: 36.6 | O52: 35.4 | P52: 67.9 | Q52: 15.1 | R52: 43.1 | S52: -47 | T52: 20.3 | U52: -5.8 | V52: 18.7 | W52: 66.8 | X52: 0.5 | Y52: 8.6 | Z52: 35.2 | AA52: -63.2 | AB52: 95 | AC52: 2.3 | AD52: 2.2 | AE52: 42.4 | AF52: 25.3 | AG52: 68.4 | AH52: 13.5 | AI52: -53.8 | AJ52: 49.8 | AK52: 40.4 | AL52: 28.2 | AM52: 14 | AN52: 58.9 | AO52: 37.2 | AP52: -71.6 | AQ52: -96.7 | AR52: 30 | AS52: -86.1 | AT52: 96.4 | AU52: 63.7 | AV52: -44.9 | AW52: 95.5 | AX52: 57.6 | AY52: 41.2 | AZ52: 65.9 | BA52: 90.5 | BB52: 93.5 | BC52: 13.1 | BD52: 32.8 | BE52: 56.3 | BF52: 12.9 | BG52: 13.4 | BH52: 74.1 | BI52: -12.3 | BJ52: 95.2 | BK52: 96.4 | BL52: 14.7 | BM52: 81.2 | BN52: 19.6 | BO52: 62 | BP52: 28.4 | BQ52: -65.3 | BR52: 19 | BS52: 44.5 | BT52: 69.5 | BU52: 49.4 | BV52: 49.7 | BW52: -23.6 | BX52: -39.5 | BY52: 76.7 | BZ52: 26.9 | CA52: -44 | CB52: 91.2 | CC52: 57.9 | CD52: -8.1 | CE52: 39 | CF52: -21.6 | CG52: -76.6 | CH52: 54.3 | CI52: 55.2 | CJ52: 8.2 | CK52: -21.6 | CL52: 68.1 | CM52: 82.6 | CN52: 57.1 | CO52: 94.9 | CP52: -80.1 | CQ52: 64 | CR52: -22.6 | CS52: -14.3 | CT52: -7 | CU52: 47.1 | CV52: -70.5
A53: 43.2 | B53: 44.1 | C53: 17.2 | D53: -16.4 | E53: 97.6 | F53: 78.4 | G53: 8.6 | H53: -59.4 | I53: 6.5 | J53: 99.4 | K53: 31.9 | L53: -78.6 | M53: 13.5 | N53: 22.1 | O53: 16.7 | P53: 2.2 | Q53: 20.3 | R53: 83.5 | S53: 77 | T53: 51.2 | U53: -51.8 | V53: 93.4 | W53: 25 | X53: 21.9 | Y53: 89.7 | Z53: 91.2 | AA53: 6.5 | AB53: 22.8 | AC53: 19.1 | AD53: -17.4 | AE53: 34.3 | AF53: 58.6 | AG53: -47.9 | AH53: 88.2 | AI53: 91.4 | AJ53: 29.1 | AK53: 93.5 | AL53: 58.9 | AM53: 25.5 | AN53: 14.5 | AO53: 39.3 | AP53: 68.1 | AQ53: -50.8 | AR53: 51.3 | AS53: 18.2 | AT53: -92.7 | AU53: 33.4 | AV53: -13.3 | AW53: 23.8 | AX53: -4 | AY53: 12.8 | AZ53: 45.3 | BA53: 46.8 | BB53: 89.3 | BC53: 60.7 | BD53: 73.3 | BE53: 64.9 | BF53: -66.3 | BG53: 2.1 | BH53: 37.8 | BI53: 71.8 | BJ53: 44.8 | BK53: 96.2 | BL53: 66 | BM53: 73.3 | BN53: 37.3 | BO53: 15.4 | BP53: 66.8 | BQ53: 27 | BR53: 13.6 | BS53: 13 | BT53: 2.1 | BU53: 99.9 | BV53: 30.9 | BW53: 32.9 | BX53: -38.1 | BY53: 31.3 | BZ53: 41.6 | CA53: 58.1 | CB53: 3.1 | CC53: 54.3 | CD53: 82.2 | CE53: 23.2 | CF53: -25.7 | CG53: 3.6 | CH53: 39.6 | CI53: -25.7 | CJ53: 63 | CK53: 60.1 | CL53: -8.8 | CM53: 71.1 | CN53: 65.9 | CO53: 11.2 | CP53: -89.4 | CQ53: 26.8 | CR53: -5.8 | CS53: 97.6 | CT53: -2.4 | CU53: 3.3 | CV53: 58.5
A54: -90.7 | B54: -40.9 | C54: 50.6 | D54: 96.3 | E54: 2.3 | F54: -92.7 | G54: -52.8 | H54: 50.5 | I54: 2.2 | J54: 86.7 | K54: -16.3 | L54: -77.5 | M54: -13.3 | N54: 68.5 | O54: 76.2 | P54: -28.7 | Q54: -6.1 | R54: 47.4 | S54: 52.9 | T54: 37.7 | U54: -88.4 | V54: 76.1 | W54: 97.3 | X54: 73.3 | Y54: -32.1 | Z54: 45.2 | AA54: 68.8 | AB54: 87.8 | AC54: -98.8 | AD54: -21.7 | AE54: 91.3 | AF54: -95.8 | AG54: 13.8 | AH54: -32.5 | AI54: 11.7 | AJ54: 88.2 | AK54: 21.1 | AL54: 53.3 | AM54: 49.1 | AN54: 25.9 | AO54: 27.4 | AP54: 11.4 | AQ54: -83.1 | AR54: 21.8 | AS54: 41.7 | AT54: 72.3 | AU54: 85.7 | AV54: 92.1 | AW54: 50.1 | AX54: 44.8 | AY54: 18.9 | AZ54: 5.3 | BA54: -11.3 | BB54: 33.6 | BC54: 15.7 | BD54: 64.1 | BE54: 35.8 | BF54: 21.2 | BG54: 69.5 | BH54: 58.1 | BI54: 57.6 | BJ54: 82.6 | BK54: 25.1 | BL54: 46.1 | BM54: 37.8 | BN54: 83.7 | BO54: 14.2 | BP54: -46.9 | BQ54: 58.3 | BR54: -44.9 | BS54: -55.8 | BT54: 40.6 | BU54: -13.3 | BV54: 14.9 | BW54: -88 | BX54: 54.5 | BY54: 15 | BZ54: 44.2 | CA54: 57.3 | CB54: -24.6 | CC54: -62.2 | CD54: 69.9 | CE54: -59.8 | CF54: 12.2 | CG54: 22.4 | CH54: 5.5 | CI54: 35.4 | CJ54: 67.1 | CK54: 1.3 | CL54: -18.3 | CM54: 99.6 | CN54: 81.6 | CO54: 53.6 | CP54: 17.2 | CQ54: -61.6 | CR54: 17.6 | CS54: -4 | CT54: 65.6 | CU54: 80.6 | CV54: 14.2
A55: 23.1 | B55: -57.7 | C55: 79.4 | D55: 86.7 | E55: -65.2 | F55: 64.6 | G55: 99.4 | H55: 1.3 | I55: 99.1 | J55: 94.1 | K55: 93.9 | L55: -97.7 | M55: 44.7 | N55: -7.8 | O55: 90.9 | P55: 27.4 | Q55: -98.7 | R55: 30.9 | S55: -32.5 | T55: -78.5 | U55: 85.9 | V55: 76.8 | W55: 29.4 | X55: 92.6 | Y55: 91.5 | Z55: 59.1 | AA55: 3.6 | AB55: 0.1 | AC55: 28.5 | AD55: 66.5 | AE55: 45.3 | AF55: 98.3 | AG55: 39.8 | AH55: -89 | AI55: -80.4 | AJ55: 67.8 | AK55: -8.4 | AL55: 22.9 | AM55: -74.6 | AN55: 0.2 | AO55: -77.6 | AP55: 68.8 | AQ55: 91.1 | AR55: 18 | AS55: 12.7 | AT55: 71.2 | AU55: -19.4 | AV55: 65.4 | AW55: 15.8 | AX55: 40.2 | AY55: -59.8 | AZ55: -57.4 | BA55: -96.8 | BB55: 94.5 | BC55: 74.4 | BD55: 35.3 | BE55: 44.4 | BF55: -31.5 | BG55: 70.8 | BH55: 2.2 | BI55: 56.6 | BJ55: 28.8 | BK55: 84.2 | BL55: 19.8 | BM55: 20.4 | BN55: 25.1 | BO55: 64.4 | BP55: 51.3 | BQ55: 21.5 | BR55: 41.5 | BS55: 72.1 | BT55: 45.3 | BU55: -1.4 | BV55: 73 | BW55: -54.8 | BX55: 69.9 | BY55: 12.8 | BZ55: -31.1 | CA55: 62.4 | CB55: 95 | CC55: -57.4 | CD55: -68.2 | CE55: 79 | CF55: -82 | CG55: 92.3 | CH55: 93.4 | CI55: 60.7 | CJ55: 97.4 | CK55: -5 | CL55: -76.9 | CM55: -64.3 | CN55: -9 | CO55: 28.9 | CP55: 35.7 | CQ55: 84.3 | CR55: 69.8 | CS55: 50.1 | CT55: 46.2 | CU55: -74.9 | CV55: 25.4
A56: 7.9 | B56: 25.5 | C56: -90.7 | D56: 98.1 | E56: 67.6 | F56: 11.1 | G56: 78.2 | H56: -61.3 | I56: 81.9 | J56: 77.8 | K56: 54.9 | L56: 62.5 | M56: 12.4 | N56: 48.4 | O56: 84.2 | P56: 88.3 | Q56: 81.5 | R56: 5.7 | S56: 64.5 | T56: 81.7 | U56: 21.3 | V56: 77.4 | W56: 67 | X56: 82.9 | Y56: 13.8 | Z56: 11.2 | AA56: 0.3 | AB56: 56.1 | AC56: 47.7 | AD56: 66.9 | AE56: 74.3 | AF56: 31.7 | AG56: -22.7 | AH56: 31.3 | AI56: 30.6 | AJ56: -47 | AK56: 33.4 | AL56: 99.5 | AM56: 37.9 | AN56: 23.4 | AO56: 19.7 | AP56: 29.4 | AQ56: 22.8 | AR56: 86.9 | AS56: 80.3 | AT56: 22.9 | AU56: 89.3 | AV56: 0.9 | AW56: -3.4 | AX56: 24.2 | AY56: 2.5 | AZ56: -83.4 | BA56: 25.4 | BB56: 7.3 | BC56: 66.8 | BD56: -23.7 | BE56: 18.8 | BF56: 68.1 | BG56: 73.2 | BH56: 15.2 | BI56: -91.7 | BJ56: 78 | BK56: -57.7 | BL56: 42.3 | BM56: 78.8 | BN56: -9.8 | BO56: 78.3 | BP56: 71.4 | BQ56: 76 | BR56: 31.3 | BS56: 52.6 | BT56: -34.5 | BU56: 81.9 | BV56: -67.2 | BW56: -95.8 | BX56: 92 | BY56: 61.7 | BZ56: 12 | CA56: 3.5 | CB56: 98 | CC56: 79 | CD56: 34.3 | CE56: 48.2 | CF56: -62.3 | CG56: 41.3 | CH56: -11.3 | CI56: -85.4 | CJ56: 34.4 | CK56: 39.2 | CL56: 69.6 | CM56: -79.5 | CN56: 31.8 | CO56: 53.6 | CP56: 21.5 | CQ56: -82.1 | CR56: 12.2 | CS56: 51 | CT56: -66.3 | CU56: -58.4 | CV56: 11
A57: -69.2 | B57: 31 | C57: 50.6 | D57: 10.1 | E57: -4.4 | F57: 1.3 | G57: 53.1 | H57: 62.7 | I57: 65.6 | J57: 96 | K57: -7.4 | L57: 96.5 | M57: 17.1 | N57: 74 | O57: 11.5 | P57: 16.8 | Q57: -5 | R57: -9 | S57: 78 | T57: -21.7 | U57: 43.3 | V57: 10.1 | W57: 90 | X57: 27.2 | Y57: 48.3 | Z57: 49.7 | AA57: 99.2 | AB57: -83 | AC57: 3.7 | AD57: 44.8 | AE57: 21.5 | AF57: 81.3 | AG57: -51.4 | AH57: 81.6 | AI57: 32 | AJ57: -6 | AK57: 48.1 | AL57: -80.1 | AM57: 76 | AN57: 46.1 | AO57: 48.8 | AP57: 6.7 | AQ57: 99.1 | AR57: 31.3 | AS57: 50.5 | AT57: -35.1 | AU57: 97.2 | AV57: -1.4 | AW57: -71.5 | AX57: 94.2 | AY57: 10.5 | AZ57: -8.4 | BA57: -87.4 | BB57: 86.2 | BC57: -90.8 | BD57: -26.7 | BE57: 66.8 | BF57: 16.1 | BG57: 37.9 | BH57: 58.6 | BI57: -87 | BJ57: 13.4 | BK57: 64.9 | BL57: -1.4 | BM57: -70.6 | BN57: 79 | BO57: 74 | BP57: -4.8 | BQ57: -83 | BR57: 11.5 | BS57: 8.5 | BT57: 64.1 | BU57: 98.9 | BV57: 11.1 | BW57: -54.8 | BX57: 19.7 | BY57: 67 | BZ57: 93.6 | CA57: -8.8 | CB57: -31.5 | CC57: 57.2 | CD57: 42.7 | CE57: 40.3 | CF57: 51.6 | CG57: 47.8 | CH57: -9 | CI57: 32.7 | CJ57: 9.9 | CK57: -80.4 | CL57: -49 | CM57: 38.4 | CN57: -58.7 | CO57: 75 | CP57: 52.1 | CQ57: 14.5 | CR57: -80.4 | CS57: 12.4 | CT57: 36.8 | CU57: 21.1 | CV57: 26.4
A58: -44 | B58: 18 | C58: -2.8 | D58: 68.4 | E58: 55.5 | F58: -98.8 | G58: 89.6 | H58: 47.4 | I58: 93.2 | J58: 81.3 | K58: 8.5 | L58: 27.4 | M58: -49.9 | N58: 96.1 | O58: 23.3 | P58: 25.8 | Q58: 85.5 | R58: 87.6 | S58: 85.3 | T58: 54 | U58: 55.5 | V58: 29.5 | W58: 25.1 | X58: 89.3 | Y58: 98.5 | Z58: 47.2 | AA58: 90.2 | AB58: 17.7 | AC58: 42.5 | AD58: 74 | AE58: 41.2 | AF58: 78 | AG58: 45.5 | AH58: 98.1 | AI58: 42.6 | AJ58: 15.6 | AK58: 12.4 | AL58: -81 | AM58: 44.3 | AN58: 41.6 | AO58: 79.7 | AP58: 60.1 | AQ58: 21.4 | AR58: 34.4 | AS58: 16.6 | AT58: 52.1 | AU58: 19.8 | AV58: 90.3 | AW58: -82.1 | AX58: 48.6 | AY58: 1.3 | AZ58: 61.1 | BA58: 36 | BB58: 16 | BC58: 72.3 | BD58: 88.9 | BE58: -91.8 | BF58: 63.1 | BG58: 77 | BH58: 11.1 | BI58: 17.2 | BJ58: 3.1 | BK58: 27 | BL58: 26.4 | BM58: -85.4 | BN58: 45.6 | BO58: 81.2 | BP58: 51 | BQ58: 40.7 | BR58: 56.6 | BS58: 85.2 | BT58: 71.3 | BU58: 45.1 | BV58: 45.6 | BW58: -85.4 | BX58: 70.8 | BY58: -52.8 | BZ58: 94.3 | CA58: -51.8 | CB58: -55.4 | CC58: 23.3 | CD58: 82.8 | CE58: 76.2 | CF58: 53.5 | CG58: -17.4 | CH58: 5.5 | CI58: 8.9 | CJ58: 51.2 | CK58: 66.8 | CL58: 25.2 | CM58: 26.1 | CN58: 55 | CO58: -92.8 | CP58: 46.7 | CQ58: 99.5 | CR58: 25.1 | CS58: 66.4 | CT58: -80.4 | CU58: 41.3 | CV58: -33.5
A59: -81.4 | B59: -42 | C59: 74.3 | D59: 47.4 | E59: -90.8 | F59: 19.2 | G59: 31.8 | H59: 91.9 | I59: -24.7 | J59: 19.2 | K59: -25.6 | L59: 43.7 | M59: -30.1 | N59: 40.4 | O59: 45.7 | P59: 15.7 | Q59: 35.4 | R59: 81.2 | S59: 86.3 | T59: 88.9 | U59: 59.6 | V59: -29.7 | W59: 46.2 | X59: 40.3 | Y59: 10.7 | Z59: -81.4 | AA59: 44.1 | AB59: 4.5 | AC59: 46.5 | AD59: 63.5 | AE59: 72.3 | AF59: 46.5 | AG59: 56.5 | AH59: -88 | AI59: -80.4 | AJ59: 4.7 | AK59: 39.9 | AL59: 47.4 | AM59: 78.3 | AN59: -42 | AO59: 71.8 | AP59: -6.8 | AQ59: 73.8 | AR59: 6.3 | AS59: 90.5 | AT59: 13.1 | AU59: 93.4 | AV59: 38.4 | AW59: 11.2 | AX59: -76.6 | AY59: 25.5 | AZ59: 59.5 | BA59: 72.2 | BB59: -16.4 | BC59: 93.5 | BD59: 43.6 | BE59: -99.7 | BF59: 39.7 | BG59: 80.7 | BH59: -74.9 | BI59: -57.4 | BJ59: 0.1 | BK59: 23.4 | BL59: 25 | BM59: 57.1 | BN59: 92.6 | BO59: -0.8 | BP59: 64.7 | BQ59: 84.9 | BR59: 89.2 | BS59: -73.6 | BT59: -62.6 | BU59: 84.7 | BV59: 60 | BW59: 43.8 | BX59: 37.6 | BY59: 8.5 | BZ59: -57.8 | CA59: -84.4 | CB59: 65.1 | CC59: -2.4 | CD59: -98.7 | CE59: 86.3 | CF59: 93.4 | CG59: 35.9 | CH59: 82.3 | CI59: 41.7 | CJ59: 84.8 | CK59: 74.4 | CL59: -29.7 | CM59: 61.5 | CN59: 99.4 | CO59: 38.7 | CP59: -70.5 | CQ59: -74.9 | CR59: 53 | CS59: 98 | CT59: 20.2 | CU59: 18.5 | CV59: 26.9
A60: 10.4 | B60: 17.5 | C60: 8.3 | D60: 25.8 | E60: 47.4 | F60: 27.3 | G60: -4 | H60: 53.3 | I60: 58.5 | J60: -82.1 | K60: 12.1 | L60: 43.5 | M60: -57.4 | N60: 45.5 | O60: -66.3 | P60: 41.4 | Q60: 18.8 | R60: -29.6 | S60: 75.2 | T60: 16.7 | U60: 51.1 | V60: 79.4 | W60: 65.7 | X60: -84.1 | Y60: 86.7 | Z60: 59.9 | AA60: 3.7 | AB60: 42.7 | AC60: 58.2 | AD60: 88.7 | AE60: -82.4 | AF60: 34.7 | AG60: 99 | AH60: 76.1 | AI60: 89.6 | AJ60: 55.1 | AK60: 30.4 | AL60: 29.4 | AM60: -96.8 | AN60: -7 | AO60: -91.8 | AP60: -66.2 | AQ60: 25.3 | AR60: 67.6 | AS60: 85.7 | AT60: -9 | AU60: 37.2 | AV60: 3.2 | AW60: 82.9 | AX60: -9.8 | AY60: -57.8 | AZ60: 1.6 | BA60: 66.9 | BB60: 27.4 | BC60: 64.6 | BD60: 70.3 | BE60: -86 | BF60: 98.6 | BG60: 23.5 | BH60: 60 | BI60: 36.6 | BJ60: -73.5 | BK60: -0.4 | BL60: -79.5 | BM60: 94.3 | BN60: 53.1 | BO60: -74.5 | BP60: 19.2 | BQ60: 77.2 | BR60: 51.3 | BS60: 58.5 | BT60: 89.7 | BU60: 65.1 | BV60: -4 | BW60: 21.4 | BX60: -7 | BY60: 21.9 | BZ60: 66 | CA60: -26.7 | CB60: 45.5 | CC60: 67.9 | CD60: 20.4 | CE60: 18 | CF60: 8.6 | CG60: 83.7 | CH60: -0.8 | CI60: -43.9 | CJ60: 6.6 | CK60: 80.8 | CL60: -7.8 | CM60: -80 | CN60: -87.4 | CO60: 54.1 | CP60: -78.9 | CQ60: 84.8 | CR60: -20.6 | CS60: 92.9 | CT60: -27.7 | CU60: 4.3 | CV60: 98.2
A61: -19.3 | B61: 64.6 | C61: 65.9 | D61: 2.3 | E61: -63.3 | F61: 90.1 | G61: -1.4 | H61: 55.9 | I61: -2.8 | J61: 59.9 | K61: 64.4 | L61: 62.8 | M61: 77.3 | N61: 92.1 | O61: -52.8 | P61: 83.2 | Q61: 54.9 | R61: -53.4 | S61: 23.5 | T61: 98.2 | U61: 15.7 | V61: 12.6 | W61: 40.4 | X61: 22.4 | Y61: 21.3 | Z61: 24.1 | AA61: -85.4 | AB61: 22.4 | AC61: -40.9 | AD61: 59.1 | AE61: 29.1 | AF61: 8.5 | AG61: -22.6 | AH61: 1.1 | AI61: -75.6 | AJ61: 10.2 | AK61: 87.6 | AL61: 23.2 | AM61: -93.7 | AN61: 47.1 | AO61: 79 | AP61: -49.9 | AQ61: 48.6 | AR61: 94 | AS61: -87.4 | AT61: 17.6 | AU61: 7.2 | AV61: -74.5 | AW61: 64.6 | AX61: 5.3 | AY61: 58.6 | AZ61: 42.8 | BA61: -15.3 | BB61: -55.8 | BC61: 44.1 | BD61: 9.3 | BE61: 97 | BF61: 94.5 | BG61: -58.4 | BH61: -86.4 | BI61: 64.7 | BJ61: 6.5 | BK61: -0.8 | BL61: 28 | BM61: 85.5 | BN61: -59.4 | BO61: 3.3 | BP61: 67.1 | BQ61: 11.4 | BR61: 95.2 | BS61: 94.6 | BT61: 25 | BU61: 79.3 | BV61: -86 | BW61: -70.9 | BX61: -41 | BY61: 73.2 | BZ61: 25.5 | CA61: -79.6 | CB61: 94.6 | CC61: 8.5 | CD61: 37 | CE61: 53.9 | CF61: -65.2 | CG61: 33.8 | CH61: 81.5 | CI61: 58.1 | CJ61: 44.8 | CK61: 79.4 | CL61: 48.5 | CM61: 26.5 | CN61: 9.2 | CO61: -62.3 | CP61: 54.2 | CQ61: -61.2 | CR61: 78.2 | CS61: 54.3 | CT61: 34.7 | CU61: 80.2 | CV61: 25.5
A62: 97.6 | B62: -26.7 | C62: -7.1 | D62: 91 | E62: 52.1 | F62: 27.8 | G62: -5.8 | H62: 75 | I62: 28.4 | J62: 80.7 | K62: 22.4 | L62: -8 | M62: -1.4 | N62: -1.8 | O62: 82.8 | P62: -67.3 | Q62: 72.3 | R62: 64.9 | S62: -32.1 | T62: 0.7 | U62: -67.3 | V62: 76.8 | W62: -5.4 | X62: 31.4 | Y62: 0.3 | Z62: 57.5 | AA62: 19.2 | AB62: -7.8 | AC62: 94.6 | AD62: 45.2 | AE62: -32.5 | AF62: 38.8 | AG62: 1.7 | AH62: 28.8 | AI62: -33.1 | AJ62: 30.4 | AK62: 44.7 | AL62: -5.1 | AM62: 54.1 | AN62: 89.5 | AO62: -73.9 | AP62: 75 | AQ62: 89.8 | AR62: 69.8 | AS62: -89.4 | AT62: 26.8 | AU62: -70.6 | AV62: 97.4 | AW62: 87.3 | AX62: -8.4 | AY62: 27.1 | AZ62: -31.1 | BA62: 33.4 | BB62: -84.4 | BC62: -51.4 | BD62: 74.3 | BE62: 7.3 | BF62: -84.1 | BG62: 23.8 | BH62: 3.3 | BI62: 25.2 | BJ62: 42.2 | BK62: 44.1 | BL62: 20 | BM62: 97.9 | BN62: -62.3 | BO62: 43.5 | BP62: 32.8 | BQ62: -34.5 | BR62: 88.7 | BS62: -83.1 | BT62: 22.5 | BU62: 37.8 | BV62: -7 | BW62: -42 | BX62: 68.8 | BY62: 42.3 | BZ62: 60.5 | CA62: 72.7 | CB62: 89.6 | CC62: 12.2 | CD62: 59 | CE62: 18 | CF62: -48.9 | CG62: 74.8 | CH62: 1.9 | CI62: -41 | CJ62: -99.7 | CK62: -66.2 | CL62: 48.4 | CM62: 59.5 | CN62: 45.5 | CO62: -67.3 | CP62: 9.5 | CQ62: 97.1 | CR62: 63.9 | CS62: 26.3 | CT62: -13.3 | CU62: 47.2 | CV62: 33.4
A63: -94.7 | B63: 88.6 | C63: 95.1 | D63: 94.1 | E63: -37.5 | F63: 10 | G63: 15 | H63: 63 | I63: 29.5 | J63: 39.3 | K63: -41.9 | L63: -69.2 | M63: 95.6 | N63: 73.3 | O63: -39.1 | P63: 72 | Q63: 28.9 | R63: -77.9 | S63: 61.1 | T63: 33.8 | U63: 12.2 | V63: 65.6 | W63: 30 | X63: -86.1 | Y63: 66.5 | Z63: 32.4 | AA63: -18.4 | AB63: 55.9 | AC63: -84 | AD63: 3.7 | AE63: 64.9 | AF63: -19.4 | AG63: 17.6 | AH63: -51.7 | AI63: 11.2 | AJ63: 52.6 | AK63: 51 | AL63: 14.6 | AM63: 53.9 | AN63: -23.6 | AO63: 31.6 | AP63: -29.7 | AQ63: 47.5 | AR63: 79.8 | AS63: 79.2 | AT63: 17.1 | AU63: 91.5 | AV63: 81.9 | AW63: 76.7 | AX63: 11.6 | AY63: 30 | AZ63: -73.6 | BA63: 2.9 | BB63: 97.5 | BC63: 65.7 | BD63: 52.1 | BE63: 46.6 | BF63: 16.7 | BG63: 46.8 | BH63: 57.1 | BI63: 64 | BJ63: 6.9 | BK63: 73.1 | BL63: 36 | BM63: 69.9 | BN63: -88 | BO63: 66 | BP63: 88.6 | BQ63: 23.8 | BR63: 90.4 | BS63: -56.7 | BT63: 26.2 | BU63: 6.7 | BV63: -85.4 | BW63: 78.3 | BX63: 16 | BY63: 97 | BZ63: 65.8 | CA63: -36.5 | CB63: 92.1 | CC63: 74.3 | CD63: -24.7 | CE63: -98.7 | CF63: 5.6 | CG63: -94.7 | CH63: 24.9 | CI63: 3.7 | CJ63: 40.7 | CK63: -82 | CL63: -58.8 | CM63: 51.9 | CN63: 54.1 | CO63: -80.1 | CP63: 48.3 | CQ63: -72.9 | CR63: 49.5 | CS63: 62.7 | CT63: 49.6 | CU63: 75 | CV63: 27.9
A64: 25 | B64: 69.8 | C64: -81 | D64: 13.7 | E64: 85.9 | F64: -7 | G64: -9.4 | H64: 51.1 | I64: 99.4 | J64: 95.5 | K64: 93.5 | L64: 40.5 | M64: 89.3 | N64: 7.2 | O64: 27.1 | P64: 26.1 | Q64: 95 | R64: 52.9 | S64: 96.1 | T64: 96 | U64: 17.9 | V64: 99 | W64: 71.8 | X64: -25.7 | Y64: 15.8 | Z64: 32.6 | AA64: 50.2 | AB64: -94.7 | AC64: 36.2 | AD64: 20.3 | AE64: 27.9 | AF64: 26.1 | AG64: 40.2 | AH64: -83.1 | AI64: 70.1 | AJ64: -84 | AK64: 0.1 | AL64: -89.4 | AM64: 59 | AN64: 27.5 | AO64: 31.8 | AP64: 93.9 | AQ64: 48.7 | AR64: 32.6 | AS64: -66.2 | AT64: -34.5 | AU64: -72.9 | AV64: 33.6 | AW64: -75.6 | AX64: 74 | AY64: 25 | AZ64: 2.7 | BA64: 44.4 | BB64: 2.9 | BC64: 92 | BD64: -32.5 | BE64: 53.2 | BF64: 48.4 | BG64: 66.8 | BH64: 64 | BI64: 5.5 | BJ64: 13 | BK64: 37.2 | BL64: 2.2 | BM64: 21.9 | BN64: 63.7 | BO64: 73.2 | BP64: 11 | BQ64: -8 | BR64: 29.4 | BS64: 44.3 | BT64: 96 | BU64: 27.1 | BV64: 85.3 | BW64: 6.6 | BX64: -58.7 | BY64: -27.6 | BZ64: 24.2 | CA64: 37.9 | CB64: -62.3 | CC64: 73 | CD64: 37 | CE64: 44.7 | CF64: -52.4 | CG64: 72.2 | CH64: 33.8 | CI64: -2.8 | CJ64: -52.8 | CK64: 34.6 | CL64: 15.9 | CM64: 91.6 | CN64: 86.5 | CO64: 2.6 | CP64: 69.4 | CQ64: 60.4 | CR64: 9.3 | CS64: -95.7 | CT64: -86.1 | CU64: -42 | CV64: 68.4
A65: 40.7 | B65: 38 | C65: 45.2 | D65: -17.4 | E65: -28.7 | F65: -17.4 | G65: -75.9 | H65: 35.2 | I65: 78.4 | J65: 14 | K65: 96.3 | L65: 30.4 | M65: 86.5 | N65: -70.9 | O65: 98.5 | P65: -7.4 | Q65: -0.8 | R65: 61.8 | S65: 59.9 | T65: -86.4 | U65: 27.4 | V65: 20.8 | W65: 44.5 | X65: 75.1 | Y65: 84.7 | Z65: 28.5 | AA65: 5.7 | AB65: 37.6 | AC65: 92.1 | AD65: 70.2 | AE65: 38.9 | AF65: 76.1 | AG65: 84.9 | AH65: -34.1 | AI65: 87.8 | AJ65: 20.8 | AK65: 52 | AL65: 24.1 | AM65: 78.8 | AN65: -5.1 | AO65: 33.2 | AP65: -40.9 | AQ65: 91.1 | AR65: 1.6 | AS65: 31 | AT65: 11.9 | AU65: 54.6 | AV65: -82.1 | AW65: 63.5 | AX65: -24.6 | AY65: 62.1 | AZ65: 79.4 | BA65: 76.4 | BB65: 35.6 | BC65: 12.8 | BD65: -85.4 | BE65: 55.3 | BF65: 99 | BG65: 14.9 | BH65: 99.2 | BI65: 47.3 | BJ65: 72.1 | BK65: 54.1 | BL65: 82.7 | BM65: -83.1 | BN65: 7.5 | BO65: -6.1 | BP65: -27.6 | BQ65: -50.7 | BR65: 44.5 | BS65: 17.8 | BT65: 57.2 | BU65: 95.2 | BV65: -1 | BW65: 28 | BX65: 4.5 | BY65: 34.8 | BZ65: 1.6 | CA65: 5.5 | CB65: 52.3 | CC65: 4.7 | CD65: 19.6 | CE65: 34.4 | CF65: 5.2 | CG65: 86.3 | CH65: 90.1 | CI65: 64.6 | CJ65: 67 | CK65: 42.2 | CL65: -54.8 | CM65: 65.9 | CN65: -45.9 | CO65: 47.5 | CP65: 78.2 | CQ65: -67.2 | CR65: -65.3 | CS65: 95.9 | CT65: 43.4 | CU65: 95.2 | CV65: 19.5
A66: 84.3 | B66: -40 | C66: -95.8 | D66: 88.9 | E66: 44.3 | F66: 59.1 | G66: 15.4 | H66: 22.4 | I66: 62 | J66: 50 | K66: -35.1 | L66: 17.6 | M66: -45.9 | N66: 72.1 | O66: 71.4 | P66: -18.3 | Q66: 75 | R66: 47.7 | S66: 34.7 | T66: 37.4 | U66: 20.5 | V66: -8.8 | W66: 40.1 | X66: 44.3 | Y66: -6 | Z66: 3.1 | AA66: 5.5 | AB66: 71.7 | AC66: 53.5 | AD66: 85.8 | AE66: -55.7 | AF66: 37.2 | AG66: 67.9 | AH66: 0.1 | AI66: 20.8 | AJ66: 57.2 | AK66: 81.6 | AL66: 84.6 | AM66: 22.2 | AN66: 54.6 | AO66: 52.1 | AP66: 44.3 | AQ66: -31.1 | AR66: 72.7 | AS66: -37.1 | AT66: 5.3 | AU66: 30.6 | AV66: 73 | AW66: 61.7 | AX66: 2.2 | AY66: 54.1 | AZ66: 32.3 | BA66: 31.3 | BB66: 9.2 | BC66: -71.5 | BD66: 44.5 | BE66: 39.6 | BF66: 60.9 | BG66: 15.9 | BH66: -60.3 | BI66: -69.3 | BJ66: 27.3 | BK66: -5.4 | BL66: 60.5 | BM66: 1.1 | BN66: -72.5 | BO66: -18.4 | BP66: 41.3 | BQ66: -43 | BR66: 85.5 | BS66: 52.3 | BT66: -44 | BU66: 40.6 | BV66: -5 | BW66: 67.6 | BX66: 12.1 | BY66: 2.9 | BZ66: 47.4 | CA66: 75 | CB66: 60 | CC66: -1.8 | CD66: -87.1 | CE66: 87.2 | CF66: 68.7 | CG66: 15.5 | CH66: -20.6 | CI66: -5.4 | CJ66: 36.4 | CK66: -90.8 | CL66: 29 | CM66: -54.7 | CN66: 21.8 | CO66: 67 | CP66: -29.7 | CQ66: 72.4 | CR66: -63.6 | CS66: 28.5 | CT66: -78.5 | CU66: 26.2 | CV66: 32.6
A67: 56.5 | B67: 17.9 | C67: 61.4 | D67: 96.1 | E67: 97 | F67: 81.7 | G67: 54 | H67: 27.4 | I67: 29.3 | J67: -55.8 | K67: 69 | L67: 5.9 | M67: -49.9 | N67: 53.5 | O67: -96.7 | P67: -50.8 | Q67: -8.4 | R67: 30.9 | S67: 92.6 | T67: 97 | U67: 98.5 | V67: 71.2 | W67: -75.5 | X67: -5.1 | Y67: 24.1 | Z67: 82.7 | AA67: 73.2 | AB67: -7.8 | AC67: 11.1 | AD67: -50.8 | AE67: 88.7 | AF67: 80.3 | AG67: 78.4 | AH67: 4.2 | AI67: -42.9 | AJ67: -47.9 | AK67: 4.2 | AL67: -19.3 | AM67: 96.3 | AN67: 48.4 | AO67: 95.6 | AP67: 1.1 | AQ67: 35.7 | AR67: 34.6 | AS67: 16.8 | AT67: 30 | AU67: 0.3 | AV67: -80.1 | AW67: 87.2 | AX67: 51.6 | AY67: 72.7 | AZ67: 44.4 | BA67: 24.4 | BB67: -21.6 | BC67: 79.3 | BD67: 84.2 | BE67: 67.5 | BF67: 75.7 | BG67: -77.9 | BH67: -85.4 | BI67: 81.8 | BJ67: 33.9 | BK67: 36.7 | BL67: -46 | BM67: -29.7 | BN67: 63.1 | BO67: -38.1 | BP67: 16.9 | BQ67: -4 | BR67: 13.2 | BS67: 71.8 | BT67: 95.5 | BU67: -10.3 | BV67: -53.8 | BW67: 32.9 | BX67: -89.4 | BY67: 15.4 | BZ67: -60.2 | CA67: -23.6 | CB67: 17.6 | CC67: 24.3 | CD67: -39.5 | CE67: -83 | CF67: 47.7 | CG67: 45.4 | CH67: 81.9 | CI67: 88.2 | CJ67: 20.1 | CK67: 90.2 | CL67: 32.6 | CM67: 40.8 | CN67: 46.2 | CO67: 35.9 | CP67: -22.7 | CQ67: 92.4 | CR67: 49.7 | CS67: 93.2 | CT67: 10.4 | CU67: 90.4 | CV67: -7.4
A68: 90.4 | B68: 85.6 | C68: 39 | D68: 67.1 | E68: 32.6 | F68: 55.9 | G68: 49.3 | H68: 24.1 | I68: 21.8 | J68: 30.7 | K68: -87.4 | L68: 19.7 | M68: 60.4 | N68: 50.2 | O68: 52.3 | P68: 97.9 | Q68: -53.7 | R68: 84.6 | S68: 37.3 | T68: -40.9 | U68: 26 | V68: 94.5 | W68: 15.1 | X68: 75.8 | Y68: 31.8 | Z68: 27.9 | AA68: -74.9 | AB68: -82.4 | AC68: 78.3 | AD68: 59 | AE68: -58.8 | AF68: 86.9 | AG68: 7.6 | AH68: 72.8 | AI68: -74.5 | AJ68: -84 | AK68: 8.9 | AL68: 68.9 | AM68: 89.7 | AN68: 21.9 | AO68: 45.5 | AP68: 21.2 | AQ68: -20.7 | AR68: -15.3 | AS68: 28.1 | AT68: 61.9 | AU68: -8.4 | AV68: 37 | AW68: 38.8 | AX68: -99.8 | AY68: -73.6 | AZ68: 20.9 | BA68: 95 | BB68: 47.7 | BC68: -24.7 | BD68: -27.6 | BE68: -31.2 | BF68: 87.8 | BG68: 43.5 | BH68: 66.6 | BI68: 37.8 | BJ68: 1.3 | BK68: -19.4 | BL68: 87.6 | BM68: 94.9 | BN68: 13.4 | BO68: -26.7 | BP68: 3.9 | BQ68: 55 | BR68: -0.4 | BS68: 63.8 | BT68: 56.1 | BU68: -62.6 | BV68: -71.5 | BW68: -78.6 | BX68: 15.2 | BY68: -62.2 | BZ68: 21.8 | CA68: 23.8 | CB68: 43.4 | CC68: -10.3 | CD68: 48.1 | CE68: 43.1 | CF68: 24.5 | CG68: 22.1 | CH68: -57.7 | CI68: 84.6 | CJ68: 98 | CK68: 46.2 | CL68: 1.5 | CM68: 42.3 | CN68: 91.9 | CO68: 62.8 | CP68: 34.6 | CQ68: 14.6 | CR68: -92.8 | CS68: -88 | CT68: 5.5 | CU68: -92.7 | CV68: -50.8
A69: -90.7 | B69: -20.6 | C69: -5.4 | D69: -88.1 | E69: 73.2 | F69: 60 | G69: -3 | H69: 27.9 | I69: 73.4 | J69: 72.2 | K69: 80.2 | L69: 68.1 | M69: 85.6 | N69: -81.4 | O69: 54.9 | P69: 7.7 | Q69: 32 | R69: 14 | S69: 29.3 | T69: 28.3 | U69: 83.8 | V69: 1.3 | W69: 28.8 | X69: 52.9 | Y69: -25.6 | Z69: 38.3 | AA69: 45.5 | AB69: 1.2 | AC69: 93.4 | AD69: 88.6 | AE69: -19.3 | AF69: 14.6 | AG69: 43.5 | AH69: 95.9 | AI69: 90 | AJ69: 32.8 | AK69: -9.1 | AL69: 94.5 | AM69: 13.5 | AN69: 94.2 | AO69: 19.7 | AP69: 38.7 | AQ69: 94.3 | AR69: -13.3 | AS69: -67.3 | AT69: 5.6 | AU69: 98.9 | AV69: 80.6 | AW69: 43.6 | AX69: 5.6 | AY69: 71.8 | AZ69: 92.4 | BA69: 81.2 | BB69: 59.3 | BC69: 65 | BD69: 22.3 | BE69: 4.2 | BF69: -80.4 | BG69: 12.9 | BH69: 62 | BI69: 12.6 | BJ69: -16.3 | BK69: -99.7 | BL69: 93.2 | BM69: -55.4 | BN69: 72.8 | BO69: 13.9 | BP69: 93.2 | BQ69: -99.8 | BR69: 80.6 | BS69: 68.4 | BT69: -14.3 | BU69: -68.2 | BV69: 8.2 | BW69: 25.9 | BX69: -94.7 | BY69: 59.5 | BZ69: 45.1 | CA69: 39.4 | CB69: 75 | CC69: 12.1 | CD69: 34 | CE69: 72.8 | CF69: -78.5 | CG69: -30.1 | CH69: -98.8 | CI69: 63.4 | CJ69: -4.8 | CK69: 11.7 | CL69: 64.1 | CM69: 13.4 | CN69: 42.1 | CO69: 75.3 | CP69: 67 | CQ69: 91.4 | CR69: -4.1 | CS69: 68.7 | CT69: -57.7 | CU69: 67.5 | CV69: -38.5
A70: 91.3 | B70: 85.3 | C70: 1.9 | D70: 57.2 | E70: 62.5 | F70: -38.1 | G70: 88.7 | H70: 35.8 | I70: -49.9 | J70: 18.8 | K70: 97 | L70: 74 | M70: -59.8 | N70: -0.4 | O70: 10.2 | P70: -81 | Q70: 56.3 | R70: 32.8 | S70: -18.3 | T70: 16.7 | U70: 10.6 | V70: 69.7 | W70: 19.6 | X70: -1 | Y70: 16.2 | Z70: 31.7 | AA70: 46.4 | AB70: 52.1 | AC70: -0.8 | AD70: -66.2 | AE70: -90.7 | AF70: 69.6 | AG70: -90.7 | AH70: 70.3 | AI70: 8.2 | AJ70: 78.3 | AK70: 99.2 | AL70: -6 | AM70: 45.6 | AN70: 84.8 | AO70: -5 | AP70: 79.8 | AQ70: 76.1 | AR70: 70.8 | AS70: 25.4 | AT70: -70.5 | AU70: -8 | AV70: 54.6 | AW70: 70.8 | AX70: -25.6 | AY70: -86.4 | AZ70: 4.5 | BA70: 58.2 | BB70: -74.5 | BC70: 37.7 | BD70: 85.6 | BE70: 64.4 | BF70: -7 | BG70: 47.4 | BH70: 44.6 | BI70: -77.6 | BJ70: 69.8 | BK70: 87.8 | BL70: 14 | BM70: 81.5 | BN70: -30.1 | BO70: 3.5 | BP70: 29.2 | BQ70: 60.9 | BR70: -40.9 | BS70: 85.5 | BT70: -8.8 | BU70: 48.3 | BV70: 27.4 | BW70: -7 | BX70: 50.3 | BY70: 70.4 | BZ70: 64.8 | CA70: -66.2 | CB70: 0.3 | CC70: 27.2 | CD70: 60.8 | CE70: 21.5 | CF70: 11.5 | CG70: 84.5 | CH70: 7.7 | CI70: 83.7 | CJ70: 22.2 | CK70: 79.8 | CL70: 65 | CM70: -81 | CN70: 93.6 | CO70: 36.7 | CP70: -4.4 | CQ70: 29 | CR70: 33.9 | CS70: 2.9 | CT70: 8.7 | CU70: 12.1 | CV70: 80.9
A71: -7.4 | B71: 83.3 | C71: 28.1 | D71: 80.3 | E71: 12.4 | F71: 72.7 | G71: -57.4 | H71: 82.9 | I71: 51.5 | J71: 52.2 | K71: -12.3 | L71: 61.9 | M71: -76.5 | N71: -79.6 | O71: -48 | P71: 30.4 | Q71: 34.9 | R71: 34.9 | S71: 59.2 | T71: -62.2 | U71: 17.7 | V71: -7.4 | W71: 29.8 | X71: -27.7 | Y71: 2.3 | Z71: 25.2 | AA71: -6.4 | AB71: 47.1 | AC71: 96.6 | AD71: -12.3 | AE71: 53.9 | AF71: 71.7 | AG71: 44.6 | AH71: 92.3 | AI71: 9.5 | AJ71: 31.6 | AK71: 77 | AL71: -42.9 | AM71: 96.4 | AN71: -61.2 | AO71: 11.1 | AP71: 36.9 | AQ71: -59.8 | AR71: -44.9 | AS71: 96.3 | AT71: 28.4 | AU71: 52.3 | AV71: -27.6 | AW71: 75.8 | AX71: 12.1 | AY71: 41.6 | AZ71: -59.4 | BA71: 55.6 | BB71: 10.5 | BC71: 62.9 | BD71: 96.1 | BE71: 84.3 | BF71: 88.5 | BG71: 10.2 | BH71: 41.2 | BI71: 46.3 | BJ71: -52.7 | BK71: 38.2 | BL71: 67.1 | BM71: 30.4 | BN71: 28.2 | BO71: 87.2 | BP71: 68.5 | BQ71: 82.2 | BR71: -94.8 | BS71: 8.2 | BT71: 39 | BU71: 60 | BV71: -39.5 | BW71: 81.8 | BX71: 36.7 | BY71: 88.5 | BZ71: -70.5 | CA71: 25.4 | CB71: 74.8 | CC71: 28.2 | CD71: 97.2 | CE71: 20.4 | CF71: 40.2 | CG71: 61.1 | CH71: 52.9 | CI71: 98.4 | CJ71: 29.3 | CK71: 76.8 | CL71: 45.3 | CM71: 24.3 | CN71: -15.3 | CO71: -86.1 | CP71: -50.4 | CQ71: -77.5 | CR71: -72.6 | CS71: -61.3 | CT71: 49.1 | CU71: 29.9 | CV71: 2.6
A72: 5.6 | B72: 31.6 | C72: 2.9 | D72: -70.5 | E72: 51.2 | F72: -82.4 | G72: -47.9 | H72: 64.6 | I72: -41.9 | J72: 38.3 | K72: 44.7 | L72: 74.1 | M72: 41.1 | N72: 35 | O72: -80.4 | P72: -81.1 | Q72: 23.9 | R72: -85.4 | S72: 17.1 | T72: 84.9 | U72: 86.7 | V72: 41.4 | W72: 65.8 | X72: 40.8 | Y72: 22.3 | Z72: -30.2 | AA72: -41 | AB72: -96.8 | AC72: 62.4 | AD72: 56.3 | AE72: 91.9 | AF72: 42.5 | AG72: 31.7 | AH72: 28 | AI72: 36.9 | AJ72: 89.8 | AK72: -9 | AL72: 49.6 | AM72: -32.5 | AN72: 37.4 | AO72: 56.5 | AP72: -57.4 | AQ72: 83.3 | AR72: 10.4 | AS72: -94.8 | AT72: 9.2 | AU72: 46.1 | AV72: 33.7 | AW72: 30.4 | AX72: 94.9 | AY72: 30.6 | AZ72: 84.3 | BA72: 40.4 | BB72: -57.4 | BC72: 55.6 | BD72: 100 | BE72: 79.4 | BF72: 0.3 | BG72: -31.5 | BH72: -3.4 | BI72: 51.2 | BJ72: 90.4 | BK72: 31 | BL72: 50.6 | BM72: 29.2 | BN72: -33.1 | BO72: 21.4 | BP72: -75.5 | BQ72: 70.7 | BR72: 14.8 | BS72: 87.7 | BT72: 12.7 | BU72: 95.6 | BV72: 36.7 | BW72: 41.1 | BX72: 78.2 | BY72: 11.4 | BZ72: 99.2 | CA72: 23.8 | CB72: -69.3 | CC72: -75.9 | CD72: 2.6 | CE72: 74.3 | CF72: -55.8 | CG72: 23.5 | CH72: -30.2 | CI72: -89.4 | CJ72: -87 | CK72: 6.9 | CL72: 92.9 | CM72: 23.8 | CN72: 40.5 | CO72: 64.7 | CP72: -88.4 | CQ72: -69.2 | CR72: 46.7 | CS72: -1.4 | CT72: 38.6 | CU72: 85.8 | CV72: 98.2
A73: 80.3 | B73: -68.2 | C73: 9.6 | D73: 52 | E73: 8.3 | F73: 58.1 | G73: 70.3 | H73: 87.9 | I73: 66.6 | J73: 43.8 | K73: 65.9 | L73: 77.7 | M73: 86.8 | N73: -94.7 | O73: 34.4 | P73: 98.1 | Q73: -92.7 | R73: 91.3 | S73: 70.1 | T73: 3.9 | U73: 89.6 | V73: -2 | W73: 52.3 | X73: 41.8 | Y73: -30.2 | Z73: 57.3 | AA73: 19.8 | AB73: 95.1 | AC73: -78.5 | AD73: 78.2 | AE73: -16.3 | AF73: -82.4 | AG73: 67.8 | AH73: 37 | AI73: 75.8 | AJ73: -2.4 | AK73: -20.6 | AL73: 53 | AM73: 95.6 | AN73: 49.2 | AO73: 14.5 | AP73: -60.3 | AQ73: -70.9 | AR73: 43.1 | AS73: 88.5 | AT73: 79.8 | AU73: -65.2 | AV73: -60.6 | AW73: 28.2 | AX73: 29.4 | AY73: 60.4 | AZ73: -44.9 | BA73: 17 | BB73: 59.2 | BC73: 76.4 | BD73: -50.4 | BE73: 48.2 | BF73: 71.3 | BG73: 69.5 | BH73: 99.1 | BI73: 99 | BJ73: 29.1 | BK73: 18 | BL73: 24.9 | BM73: 26.3 | BN73: 91.4 | BO73: 11.6 | BP73: 60.7 | BQ73: 99.5 | BR73: 64 | BS73: 5.9 | BT73: 99.1 | BU73: 2.3 | BV73: -6.4 | BW73: 26.1 | BX73: 79.2 | BY73: -32.5 | BZ73: 33.9 | CA73: 13.2 | CB73: -68.2 | CC73: 11 | CD73: 29.1 | CE73: -51.8 | CF73: 23.1 | CG73: -36.1 | CH73: -60.2 | CI73: 85.2 | CJ73: 24.9 | CK73: -3.8 | CL73: -6.4 | CM73: 92.2 | CN73: 43.1 | CO73: 73.1 | CP73: 11.9 | CQ73: -92.7 | CR73: 7.9 | CS73: -53.4 | CT73: 96.9 | CU73: 37.6 | CV73: -22.6
A74: 78.2 | B74: 94.2 | C74: -62.6 | D74: -30.2 | E74: 90.1 | F74: -73.5 | G74: -40.9 | H74: 45.4 | I74: -33.1 | J74: -75.6 | K74: 63.5 | L74: 30.3 | M74: 12.9 | N74: 66.6 | O74: 51 | P74: 6.6 | Q74: 37 | R74: -63.2 | S74: 63.1 | T74: 73.7 | U74: 60.1 | V74: 30.4 | W74: 21.2 | X74: -12.3 | Y74: 51.5 | Z74: 77.3 | AA74: 84.8 | AB74: 28.4 | AC74: 95.1 | AD74: -59.4 | AE74: 34.8 | AF74: 29.4 | AG74: 1.6 | AH74: 16.8 | AI74: -33.1 | AJ74: -86.1 | AK74: 38.8 | AL74: 14.1 | AM74: 37.9 | AN74: -89.4 | AO74: 14.7 | AP74: 32.9 | AQ74: 13.9 | AR74: 50.5 | AS74: 47.2 | AT74: -2.8 | AU74: 22 | AV74: -42.9 | AW74: 70.8 | AX74: -46.9 | AY74: 96 | AZ74: -22.6 | BA74: 66.6 | BB74: 37.9 | BC74: 75.4 | BD74: 3.3 | BE74: 42.5 | BF74: -48 | BG74: -8.1 | BH74: 71.4 | BI74: 20.8 | BJ74: 28.5 | BK74: 36.8 | BL74: 96.1 | BM74: 24.4 | BN74: -77.9 | BO74: 44.3 | BP74: 39.7 | BQ74: 74.8 | BR74: 33.8 | BS74: 80.7 | BT74: -39.1 | BU74: 70.7 | BV74: 53.5 | BW74: 83.8 | BX74: -64.2 | BY74: -99.7 | BZ74: 75.4 | CA74: -30.2 | CB74: -78.9 | CC74: 78 | CD74: 85.2 | CE74: 59.6 | CF74: 9.7 | CG74: -59.4 | CH74: 15 | CI74: -84.1 | CJ74: 80.7 | CK74: 76.4 | CL74: -44.9 | CM74: 35.3 | CN74: 55.2 | CO74: 69.1 | CP74: 63.9 | CQ74: 23.2 | CR74: 15.6 | CS74: 66.7 | CT74: 95.6 | CU74: 66.8 | CV74: 62.5
A75: 92.1 | B75: 74.7 | C75: 28.1 | D75: -68.2 | E75: 46.8 | F75: 94.4 | G75: 3.7 | H75: 62.9 | I75: 97.9 | J75: 13.4 | K75: 51.9 | L75: 69.1 | M75: 86.8 | N75: -30.1 | O75: -18.3 | P75: 15.2 | Q75: 91 | R75: 26.5 | S75: 34.2 | T75: 23.2 | U75: -29.6 | V75: 11.6 | W75: -63.2 | X75: -95.8 | Y75: 27.8 | Z75: 49.2 | AA75: 2.7 | AB75: 58.9 | AC75: -61.2 | AD75: 93.9 | AE75: 95.1 | AF75: 47.4 | AG75: -92.8 | AH75: 63.4 | AI75: -94.8 | AJ75: 37.9 | AK75: 37.2 | AL75: -99.7 | AM75: -8.4 | AN75: 81.7 | AO75: 35.4 | AP75: 18.8 | AQ75: -38.5 | AR75: 33.2 | AS75: 29.9 | AT75: 45.8 | AU75: -99.8 | AV75: 54.1 | AW75: -67.2 | AX75: 30.7 | AY75: 40.2 | AZ75: 80.8 | BA75: -21.6 | BB75: 36.9 | BC75: 17.8 | BD75: -86.1 | BE75: -81 | BF75: 86.6 | BG75: 62.9 | BH75: 93.6 | BI75: -13.3 | BJ75: 33.2 | BK75: 87.5 | BL75: 3.1 | BM75: 83.5 | BN75: 96 | BO75: 10.7 | BP75: 41.4 | BQ75: 42.6 | BR75: 21.8 | BS75: 45.4 | BT75: -77.6 | BU75: 81.7 | BV75: -53.4 | BW75: 14.5 | BX75: 98.1 | BY75: 90.9 | BZ75: 19.7 | CA75: 48.8 | CB75: 93.5 | CC75: 33.2 | CD75: -49 | CE75: 45.3 | CF75: 98.4 | CG75: -78.5 | CH75: 62 | CI75: 37.3 | CJ75: -16.4 | CK75: 99.9 | CL75: 14 | CM75: 33.3 | CN75: 12.9 | CO75: 68.4 | CP75: 98.1 | CQ75: 93.9 | CR75: -80.1 | CS75: 7.5 | CT75: 68.4 | CU75: -2.8 | CV75: 57.1
A76: 15.2 | B76: 36.4 | C76: 50.9 | D76: 41.5 | E76: 19.2 | F76: 79.1 | G76: 9.5 | H76: 93.3 | I76: 21.4 | J76: 64.1 | K76: -30.2 | L76: -39.1 | M76: 8.7 | N76: 84.6 | O76: 58.1 | P76: -34.5 | Q76: -20.6 | R76: 4.6 | S76: -31.1 | T76: 10.5 | U76: 64.6 | V76: -54.4 | W76: 24 | X76: 66.7 | Y76: 40.5 | Z76: 34.8 | AA76: 10 | AB76: 9.9 | AC76: 80.5 | AD76: 80.8 | AE76: -94.7 | AF76: 16.2 | AG76: -10.3 | AH76: -44.9 | AI76: -51.8 | AJ76: 53 | AK76: 46.6 | AL76: -29.6 | AM76: 51.5 | AN76: -17.4 | AO76: 19 | AP76: 38.2 | AQ76: -59.8 | AR76: 56.5 | AS76: 23.3 | AT76: -43.9 | AU76: 47.1 | AV76: -64.2 | AW76: 44.2 | AX76: -88 | AY76: 70.2 | AZ76: 19.9 | BA76: -4.8 | BB76: -62.3 | BC76: 63 | BD76: 30.4 | BE76: 96.4 | BF76: 78 | BG76: 16.7 | BH76: 33.7 | BI76: 91.9 | BJ76: 39.9 | BK76: 97 | BL76: 73.8 | BM76: 35.8 | BN76: 49.8 | BO76: 92.6 | BP76: 59.1 | BQ76: 65.7 | BR76: 97 | BS76: 35.4 | BT76: 8.7 | BU76: -80.1 | BV76: 56.3 | BW76: 9.6 | BX76: 7.5 | BY76: 12.5 | BZ76: 34.2 | CA76: 28.9 | CB76: 33.8 | CC76: 79 | CD76: 26.4 | CE76: 89.6 | CF76: 12.4 | CG76: 93.5 | CH76: 47.3 | CI76: 92 | CJ76: 68.5 | CK76: 76.3 | CL76: 94.6 | CM76: -22.7 | CN76: 33.8 | CO76: 71.8 | CP76: 43.2 | CQ76: 76 | CR76: 35.4 | CS76: 78.1 | CT76: 73.1 | CU76: 68.7 | CV76: -73.6
A77: 60.7 | B77: 82.8 | C77: 26.3 | D77: 7.2 | E77: -51.4 | F77: 78.4 | G77: 88.3 | H77: 59.6 | I77: 39.3 | J77: 1.1 | K77: 50 | L77: 10.5 | M77: 55.3 | N77: 57.3 | O77: 11.7 | P77: 87.6 | Q77: 21.5 | R77: 41.8 | S77: 4.2 | T77: 49.4 | U77: -8.4 | V77: 85.8 | W77: -87.1 | X77: 34.4 | Y77: 42.1 | Z77: 40.1 | AA77: 36.7 | AB77: 41.3 | AC77: -95.7 | AD77: 84.2 | AE77: 32.9 | AF77: 9.9 | AG77: 74.7 | AH77: 22 | AI77: 63.7 | AJ77: -19.3 | AK77: 50.9 | AL77: 78.3 | AM77: -93.7 | AN77: 95.9 | AO77: 22.1 | AP77: 33.4 | AQ77: 32.4 | AR77: 92.3 | AS77: 69.8 | AT77: 11.8 | AU77: 65.6 | AV77: 25.4 | AW77: 87.9 | AX77: 96.4 | AY77: 52.1 | AZ77: 7.3 | BA77: 31.3 | BB77: 52.6 | BC77: 9.5 | BD77: 19.2 | BE77: 78.7 | BF77: -74.6 | BG77: 65.4 | BH77: -44 | BI77: -21.6 | BJ77: 81.3 | BK77: -0.8 | BL77: 2.5 | BM77: 71.2 | BN77: 81.2 | BO77: 60.7 | BP77: -65.3 | BQ77: 57 | BR77: 2.9 | BS77: 61.1 | BT77: 97.6 | BU77: -24.7 | BV77: 42.7 | BW77: 49.3 | BX77: 16.5 | BY77: 53.2 | BZ77: 6.2 | CA77: 64.9 | CB77: 59 | CC77: 18.1 | CD77: 30.6 | CE77: 94.6 | CF77: 45.1 | CG77: 57.2 | CH77: 17.2 | CI77: 14.4 | CJ77: -30.5 | CK77: 11.6 | CL77: 24.4 | CM77: 28.8 | CN77: 48.7 | CO77: 81.7 | CP77: 37.3 | CQ77: 40.1 | CR77: -30.2 | CS77: 29.9 | CT77: 92.9 | CU77: 78.3 | CV77: -59.4
A78: 49.4 | B78: 47.3 | C78: 65.6 | D78: 56.3 | E78: 64 | F78: -59.7 | G78: 86.9 | H78: 52.3 | I78: -53.7 | J78: 60.9 | K78: 60.4 | L78: 89.9 | M78: 8.6 | N78: 57.5 | O78: 39 | P78: 17.8 | Q78: -29.7 | R78: 87.7 | S78: -5.1 | T78: -7.4 | U78: -69.2 | V78: 92.4 | W78: 19.5 | X78: 60.5 | Y78: 51.5 | Z78: -18.4 | AA78: 59.1 | AB78: -80.1 | AC78: 88.6 | AD78: 81.6 | AE78: -92.8 | AF78: 12.8 | AG78: -81.1 | AH78: 44.4 | AI78: 23.5 | AJ78: 89.9 | AK78: -65.2 | AL78: -59.4 | AM78: 12.8 | AN78: -73.6 | AO78: 77.8 | AP78: 17 | AQ78: 67.7 | AR78: 27.9 | AS78: 98.9 | AT78: -70.6 | AU78: 50.9 | AV78: 50.5 | AW78: 15.9 | AX78: -93.8 | AY78: 18.5 | AZ78: 74.1 | BA78: 49.5 | BB78: 2.7 | BC78: 2.9 | BD78: 66.5 | BE78: -7 | BF78: 85.6 | BG78: 15.1 | BH78: -54.7 | BI78: -8 | BJ78: 13.4 | BK78: 93.6 | BL78: -2 | BM78: -57.7 | BN78: 41.1 | BO78: -67.3 | BP78: 36.6 | BQ78: 59.2 | BR78: 50 | BS78: 70.2 | BT78: 30.3 | BU78: 29 | BV78: -88.1 | BW78: 78.3 | BX78: 40.2 | BY78: 89.7 | BZ78: 77.8 | CA78: 24.5 | CB78: -65.3 | CC78: 47.6 | CD78: -7.8 | CE78: 31.6 | CF78: 61.1 | CG78: 51.6 | CH78: -30.5 | CI78: 41.3 | CJ78: 68 | CK78: 96.1 | CL78: 80.7 | CM78: 88.9 | CN78: -38.5 | CO78: 77.1 | CP78: 63.1 | CQ78: 64.4 | CR78: 83.6 | CS78: 24 | CT78: 59.2 | CU78: 88.9 | CV78: 34.6
A79: 48.1 | B79: 85.5 | C79: 88.7 | D79: 56.2 | E79: 21.2 | F79: 6.6 | G79: 30.4 | H79: 46.8 | I79: 60.5 | J79: 96.3 | K79: -31.2 | L79: 10.9 | M79: 26.2 | N79: 8.7 | O79: 73.3 | P79: 20 | Q79: 90.3 | R79: 4.5 | S79: 68.9 | T79: -3.8 | U79: 84.9 | V79: 74.4 | W79: 18.2 | X79: 24.8 | Y79: 50.1 | Z79: 22.9 | AA79: 10.6 | AB79: 2.5 | AC79: 77.1 | AD79: 49.3 | AE79: 62 | AF79: 24.3 | AG79: 22.4 | AH79: 99.6 | AI79: -48.9 | AJ79: 11.2 | AK79: 15.2 | AL79: -96.7 | AM79: 96.4 | AN79: 54 | AO79: 82.6 | AP79: -3 | AQ79: 94.5 | AR79: 68.4 | AS79: 14.1 | AT79: 37.7 | AU79: 3.5 | AV79: -88 | AW79: -25.7 | AX79: 15.9 | AY79: 72.2 | AZ79: 83.5 | BA79: 99.1 | BB79: -3 | BC79: 42.2 | BD79: 3.2 | BE79: 82.9 | BF79: 29.5 | BG79: 61.8 | BH79: 78 | BI79: 0.3 | BJ79: -43.9 | BK79: 96.3 | BL79: 43.3 | BM79: 87.9 | BN79: 61.4 | BO79: 73 | BP79: 10.7 | BQ79: 70.7 | BR79: 54.9 | BS79: 63.9 | BT79: -6 | BU79: 40.1 | BV79: 25.4 | BW79: -74.9 | BX79: 0.2 | BY79: 77.3 | BZ79: 59.2 | CA79: 99.3 | CB79: -78.9 | CC79: 97 | CD79: -4.1 | CE79: -30.1 | CF79: 54.9 | CG79: -54.8 | CH79: 23.1 | CI79: 23.8 | CJ79: -37.5 | CK79: 69 | CL79: 63.4 | CM79: -85.1 | CN79: 65.4 | CO79: 17.8 | CP79: 28 | CQ79: 50.3 | CR79: 41.8 | CS79: 48.2 | CT79: 96.3 | CU79: 93.2 | CV79: 35.4
A80: -55.7 | B80: 37.6 | C80: 38.9 | D80: -40 | E80: -61.6 | F80: 40.1 | G80: -59.4 | H80: 25.3 | I80: 7.2 | J80: 5.9 | K80: 4.3 | L80: 3.1 | M80: 3.3 | N80: 61.5 | O80: 56.6 | P80: 64.8 | Q80: 23.4 | R80: 48.1 | S80: 29.2 | T80: 82.6 | U80: 22.4 | V80: 23.5 | W80: 55.1 | X80: 1.3 | Y80: 9.6 | Z80: -28.7 | AA80: 42.6 | AB80: 7.6 | AC80: -81 | AD80: 45.7 | AE80: 67.6 | AF80: 99 | AG80: 40.2 | AH80: -83.1 | AI80: -31.2 | AJ80: -7.4 | AK80: -85.4 | AL80: 46.5 | AM80: 86.6 | AN80: 46.7 | AO80: 21 | AP80: 41.2 | AQ80: 67.9 | AR80: 55.1 | AS80: -4.4 | AT80: 97 | AU80: -41.9 | AV80: 3.3 | AW80: 48.7 | AX80: -76.5 | AY80: -65.2 | AZ80: 59.3 | BA80: 14.8 | BB80: 38 | BC80: 55.3 | BD80: 86.3 | BE80: 47.3 | BF80: -14.3 | BG80: -22.6 | BH80: 28.4 | BI80: 35.3 | BJ80: 23.3 | BK80: 81.9 | BL80: 74.4 | BM80: 37.2 | BN80: 23.4 | BO80: -27.7 | BP80: 83.2 | BQ80: -56.4 | BR80: 76.8 | BS80: 12.1 | BT80: 85.8 | BU80: -40.9 | BV80: 79 | BW80: -23.7 | BX80: 35.8 | BY80: -53.4 | BZ80: 96.4 | CA80: 86.2 | CB80: 44.1 | CC80: 12.6 | CD80: 90.5 | CE80: 25.4 | CF80: -21.7 | CG80: 92.9 | CH80: 43.7 | CI80: -55.7 | CJ80: 74.8 | CK80: 31 | CL80: -32.5 | CM80: 98.5 | CN80: 57.6 | CO80: -16.4 | CP80: 90.3 | CQ80: -60.2 | CR80: -30.5 | CS80: -45.9 | CT80: 1.2 | CU80: 72.8 | CV80: 77.7
A81: -79.9 | B81: 87.8 | C81: 31.8 | D81: 87.9 | E81: 69.7 | F81: 12.8 | G81: 34.4 | H81: 54.2 | I81: 7.2 | J81: 47.8 | K81: -62.3 | L81: 92.4 | M81: 24.3 | N81: -74.6 | O81: 10.1 | P81: 88.2 | Q81: 17.8 | R81: 6.5 | S81: 8.7 | T81: 20.1 | U81: 33.6 | V81: 49.6 | W81: 47.1 | X81: -15.3 | Y81: 88.9 | Z81: 43.8 | AA81: 73 | AB81: -53.4 | AC81: 7.9 | AD81: 42.7 | AE81: 93.5 | AF81: 1.9 | AG81: -5.4 | AH81: 17 | AI81: -36.5 | AJ81: -29.7 | AK81: 44.3 | AL81: -45.9 | AM81: -93.7 | AN81: -71.6 | AO81: 2.6 | AP81: 79.8 | AQ81: -71.9 | AR81: 66.5 | AS81: 31 | AT81: 35.3 | AU81: 82.8 | AV81: 23.4 | AW81: 81.6 | AX81: -65.2 | AY81: 59.5 | AZ81: -95.8 | BA81: 87.8 | BB81: 81.7 | BC81: 82.7 | BD81: 61.4 | BE81: 77 | BF81: 11.8 | BG81: 11.8 | BH81: 6.6 | BI81: 1.2 | BJ81: 85.6 | BK81: 78.7 | BL81: 87.2 | BM81: 15.8 | BN81: 95.3 | BO81: 10.8 | BP81: 60 | BQ81: -54.4 | BR81: -30.2 | BS81: 10.5 | BT81: 38.6 | BU81: 7.2 | BV81: 40.4 | BW81: -33.1 | BX81: 92.2 | BY81: 12 | BZ81: -82.1 | CA81: 86.8 | CB81: -58.8 | CC81: 45.6 | CD81: 4.9 | CE81: 17.7 | CF81: -86.1 | CG81: 20.1 | CH81: 21 | CI81: 30 | CJ81: -50.8 | CK81: 28.1 | CL81: 43.3 | CM81: 67.9 | CN81: 33.9 | CO81: -3.4 | CP81: -35.1 | CQ81: 64.7 | CR81: 53.5 | CS81: 44.1 | CT81: 84.6 | CU81: -21.7 | CV81: -64.3
A82: 61 | B82: 81.9 | C82: -98.8 | D82: -28.6 | E82: 39.3 | F82: 66.9 | G82: 62.8 | H82: 39.4 | I82: 90.4 | J82: 40.6 | K82: 4.3 | L82: 39.6 | M82: -17.3 | N82: 57.3 | O82: 59.2 | P82: 11.2 | Q82: 27.2 | R82: 13.6 | S82: 97.9 | T82: -44.9 | U82: 66.9 | V82: 92.1 | W82: 16.7 | X82: 46.7 | Y82: 93.4 | Z82: 93.3 | AA82: -64.2 | AB82: 98.1 | AC82: 76.3 | AD82: 27.9 | AE82: 21.4 | AF82: 84.2 | AG82: -64.3 | AH82: 79.7 | AI82: -56.4 | AJ82: 49.2 | AK82: -88 | AL82: 2.9 | AM82: 46.4 | AN82: -51.7 | AO82: -69.3 | AP82: -63.3 | AQ82: 51 | AR82: 68.7 | AS82: -82.4 | AT82: 79.2 | AU82: 91.5 | AV82: 36.6 | AW82: -96.7 | AX82: 37.2 | AY82: -75.9 | AZ82: 51.3 | BA82: 76.8 | BB82: 39.3 | BC82: 40.7 | BD82: 34 | BE82: -77.9 | BF82: 88.2 | BG82: 53.3 | BH82: -46.9 | BI82: 56.1 | BJ82: 97.9 | BK82: 84.6 | BL82: 87.2 | BM82: -79.6 | BN82: 50 | BO82: 40.7 | BP82: 29.2 | BQ82: 20.4 | BR82: 73 | BS82: 73.2 | BT82: -49.9 | BU82: 34.3 | BV82: 30.8 | BW82: 68.4 | BX82: -6.1 | BY82: 32.7 | BZ82: -46 | CA82: 39.9 | CB82: 57 | CC82: -25.7 | CD82: 54.1 | CE82: -28.6 | CF82: -61.6 | CG82: 80.6 | CH82: 94.5 | CI82: 46.8 | CJ82: 84.7 | CK82: 76.3 | CL82: 33.7 | CM82: 93.1 | CN82: 51.2 | CO82: -7 | CP82: 41.3 | CQ82: 88.3 | CR82: 23.4 | CS82: 26.3 | CT82: 77 | CU82: 59.9 | CV82: 76
A83: 27.2 | B83: 61.9 | C83: 52.3 | D83: 2.3 | E83: 52.1 | F83: 9.6 | G83: 3.5 | H83: 77 | I83: 49.7 | J83: 24.3 | K83: 48.7 | L83: 28.2 | M83: 37.4 | N83: 73 | O83: 8.6 | P83: 63 | Q83: 95.2 | R83: 60.7 | S83: 30 | T83: 43.8 | U83: 92.5 | V83: -40 | W83: 3.2 | X83: 80.7 | Y83: 13.1 | Z83: 49.8 | AA83: 38.7 | AB83: -9.4 | AC83: 18.2 | AD83: 41.2 | AE83: 15.4 | AF83: 91.4 | AG83: 41.6 | AH83: 89.3 | AI83: 55.6 | AJ83: 52.1 | AK83: 12.1 | AL83: -28.6 | AM83: 39.3 | AN83: -65.3 | AO83: -12.3 | AP83: 69.8 | AQ83: 93.2 | AR83: 74.3 | AS83: 92.2 | AT83: 11 | AU83: 23.5 | AV83: 11.1 | AW83: 36 | AX83: 22.8 | AY83: 52.6 | AZ83: 60.9 | BA83: 84.5 | BB83: 13.7 | BC83: 73.2 | BD83: 29.3 | BE83: 49.2 | BF83: 98.2 | BG83: 94.3 | BH83: 55.3 | BI83: 90.3 | BJ83: 78.1 | BK83: -53.8 | BL83: 21 | BM83: 64 | BN83: 59.1 | BO83: 85.6 | BP83: -43 | BQ83: 70.3 | BR83: 9.7 | BS83: -78.9 | BT83: 44.8 | BU83: 47.2 | BV83: 68.6 | BW83: 90.9 | BX83: -28.7 | BY83: 5.2 | BZ83: -85.1 | CA83: 67.5 | CB83: -86.1 | CC83: 5.6 | CD83: -87 | CE83: -37.1 | CF83: 58.3 | CG83: -50.7 | CH83: -83.4 | CI83: 92.4 | CJ83: 50.5 | CK83: 57.3 | CL83: -55.4 | CM83: 6.3 | CN83: 86.2 | CO83: 57.6 | CP83: -48.9 | CQ83: 12.7 | CR83: 68.9 | CS83: -19.4 | CT83: 51 | CU83: 78.2 | CV83: 50.3
A84: 5.9 | B84: -61.2 | C84: 48.5 | D84: 19.2 | E84: 93 | F84: 90.2 | G84: 10.6 | H84: 92.1 | I84: -2.4 | J84: -82 | K84: 64.7 | L84: -32.1 | M84: 0.6 | N84: 25.9 | O84: 88.5 | P84: 5.2 | Q84: 92.4 | R84: -38.1 | S84: 82.8 | T84: 24.3 | U84: -52.4 | V84: 65.9 | W84: 56.6 | X84: 31 | Y84: -18.3 | Z84: -62.6 | AA84: 93 | AB84: 16.9 | AC84: 40.3 | AD84: 89.8 | AE84: 17.6 | AF84: 35.2 | AG84: -7.8 | AH84: 79.8 | AI84: -50.7 | AJ84: 85.6 | AK84: 95.5 | AL84: 67 | AM84: 5.5 | AN84: -7.1 | AO84: -26.6 | AP84: 17.6 | AQ84: -72.5 | AR84: 20.2 | AS84: -81.1 | AT84: 21.8 | AU84: 67.1 | AV84: 25.5 | AW84: 28.5 | AX84: 19.9 | AY84: 28.1 | AZ84: -37.5 | BA84: 31.3 | BB84: 15.8 | BC84: -41 | BD84: 14.4 | BE84: 50.1 | BF84: 62.1 | BG84: 96.6 | BH84: 53.2 | BI84: -3.4 | BJ84: 13.9 | BK84: 51 | BL84: 67.7 | BM84: 20 | BN84: -9.4 | BO84: 52.2 | BP84: -56.7 | BQ84: 92 | BR84: 27.8 | BS84: 22.8 | BT84: -44.9 | BU84: 95.5 | BV84: 65.1 | BW84: 17.1 | BX84: -21.6 | BY84: 22.2 | BZ84: 3.2 | CA84: 42.6 | CB84: 65.1 | CC84: 45.2 | CD84: -1.8 | CE84: 89.7 | CF84: 78.7 | CG84: 90.1 | CH84: 19.5 | CI84: -55.4 | CJ84: 24.5 | CK84: 18 | CL84: 63.1 | CM84: 49.6 | CN84: 89.6 | CO84: 48.7 | CP84: 70.1 | CQ84: 25.2 | CR84: -6.8 | CS84: 64.7 | CT84: 82.2 | CU84: 10.5 | CV84: 43.3
A85: 87.6 | B85: 41.3 | C85: 95 | D85: 16.1 | E85: 91 | F85: 27.3 | G85: -49.9 | H85: 23.5 | I85: -26.7 | J85: 67.6 | K85: 18.1 | L85: 11.6 | M85: 66.5 | N85: 6.9 | O85: 44.7 | P85: 62.5 | Q85: 23.3 | R85: 59.1 | S85: 11.8 | T85: 52 | U85: -2.4 | V85: 29.4 | W85: 7.6 | X85: -55.8 | Y85: 13.2 | Z85: 79.4 | AA85: -68.2 | AB85: -83.1 | AC85: 0.6 | AD85: 62 | AE85: 6.9 | AF85: -96.8 | AG85: -70.5 | AH85: 64.4 | AI85: 86.9 | AJ85: 60.9 | AK85: 49.5 | AL85: 47.6 | AM85: 37.3 | AN85: 78.4 | AO85: 62 | AP85: 22.9 | AQ85: 31 | AR85: 26.3 | AS85: -72.6 | AT85: 59.5 | AU85: 23.4 | AV85: 69 | AW85: -75.6 | AX85: 97.6 | AY85: 57.1 | AZ85: 23.5 | BA85: -40 | BB85: 41.4 | BC85: 95.6 | BD85: 32.9 | BE85: -60.2 | BF85: 43.5 | BG85: -99.7 | BH85: 23.1 | BI85: 31 | BJ85: 66.1 | BK85: 41.3 | BL85: 70.3 | BM85: 8.6 | BN85: 39.7 | BO85: 80.7 | BP85: 99.2 | BQ85: 63.9 | BR85: 16.8 | BS85: 91 | BT85: 64.5 | BU85: 48.6 | BV85: 28.8 | BW85: -86.1 | BX85: 74.2 | BY85: -38.5 | BZ85: 28.3 | CA85: 38.3 | CB85: 61.9 | CC85: 26.1 | CD85: 71.7 | CE85: 95 | CF85: -15.3 | CG85: -7.1 | CH85: -41 | CI85: 21.9 | CJ85: 40.3 | CK85: 10.5 | CL85: -81.4 | CM85: 13.9 | CN85: 44.7 | CO85: -25.7 | CP85: 91.9 | CQ85: -47.9 | CR85: 56.1 | CS85: -4.8 | CT85: 31.3 | CU85: -18.3 | CV85: 18.6
A86: 86.5 | B86: -90.7 | C86: 70.3 | D86: 59.1 | E86: 60.1 | F86: 46.8 | G86: -74.9 | H86: 38.8 | I86: 27.4 | J86: -7 | K86: -68.2 | L86: 91.4 | M86: 95.5 | N86: 75 | O86: -48 | P86: 80.6 | Q86: 1.2 | R86: 64.6 | S86: -66.3 | T86: 18.1 | U86: 29.3 | V86: -5.4 | W86: 97 | X86: 31.4 | Y86: 96.6 | Z86: 81.5 | AA86: -10.3 | AB86: 18.6 | AC86: 14.9 | AD86: 2.1 | AE86: 99.4 | AF86: -5.4 | AG86: 95.1 | AH86: 3.5 | AI86: 66.7 | AJ86: 26.5 | AK86: -7.4 | AL86: 42.3 | AM86: 55.9 | AN86: -73.5 | AO86: 72.8 | AP86: 95.5 | AQ86: -98.8 | AR86: 58 | AS86: -9.1 | AT86: 73.8 | AU86: 48.1 | AV86: 55.6 | AW86: 83.5 | AX86: -76.6 | AY86: 56 | AZ86: 83.5 | BA86: -60.3 | BB86: 39.4 | BC86: 7.5 | BD86: 46.8 | BE86: 35.8 | BF86: 19.6 | BG86: -1.4 | BH86: 11 | BI86: 73.7 | BJ86: -79.9 | BK86: 82.3 | BL86: 20.9 | BM86: 82.8 | BN86: -74.6 | BO86: -25.7 | BP86: -43 | BQ86: -61.3 | BR86: 17.1 | BS86: 13.6 | BT86: 80.7 | BU86: 97.3 | BV86: 9.3 | BW86: -66.2 | BX86: 82.8 | BY86: 91.4 | BZ86: 17.7 | CA86: 60 | CB86: 20.3 | CC86: -89 | CD86: 98.4 | CE86: 72.1 | CF86: 44.5 | CG86: 44.8 | CH86: 8.6 | CI86: 83.9 | CJ86: 51 | CK86: 36.2 | CL86: 63.8 | CM86: 18.5 | CN86: -45 | CO86: 45.6 | CP86: 48.5 | CQ86: -2.8 | CR86: 80.9 | CS86: 24.9 | CT86: 21.1 | CU86: 97.2 | CV86: 36
A87: 38.3 | B87: 33.7 | C87: 36.7 | D87: 26 | E87: -1.4 | F87: 22.5 | G87: 56.2 | H87: -50.8 | I87: 3.5 | J87: 37.4 | K87: 73 | L87: -77.6 | M87: 38.9 | N87: 37.8 | O87: 54 | P87: 92 | Q87: 83.9 | R87: 60.9 | S87: 64.9 | T87: -79.9 | U87: -75.9 | V87: 80.3 | W87: 6.9 | X87: 1.9 | Y87: -5.8 | Z87: 25.9 | AA87: -64.2 | AB87: 35.9 | AC87: -70.5 | AD87: 57 | AE87: 67.5 | AF87: 45.8 | AG87: 21.3 | AH87: 50.3 | AI87: 91.3 | AJ87: 10.8 | AK87: 75.3 | AL87: 65.4 | AM87: 43.1 | AN87: 45.8 | AO87: -6.4 | AP87: -19.3 | AQ87: -65.2 | AR87: 13.6 | AS87: -34.1 | AT87: 69.7 | AU87: -3 | AV87: 71.7 | AW87: 29.4 | AX87: -3.8 | AY87: -43.9 | AZ87: -38.1 | BA87: -55.7 | BB87: 92.4 | BC87: 69.1 | BD87: -49.9 | BE87: 81.8 | BF87: -84 | BG87: 80.8 | BH87: 6.9 | BI87: -99.8 | BJ87: -98.7 | BK87: 24.8 | BL87: 89.7 | BM87: 52.2 | BN87: 18.7 | BO87: 61 | BP87: 15.5 | BQ87: 60.8 | BR87: 95 | BS87: 96.2 | BT87: -85 | BU87: 48.3 | BV87: 74.3 | BW87: 44.5 | BX87: 48.5 | BY87: 17.5 | BZ87: -98.8 | CA87: 56.5 | CB87: -32.5 | CC87: 38.2 | CD87: 30.4 | CE87: -32.5 | CF87: 63.8 | CG87: 61.9 | CH87: 64.5 | CI87: 2.6 | CJ87: 68 | CK87: 10.2 | CL87: 18.7 | CM87: 57.9 | CN87: 66.6 | CO87: 62.4 | CP87: 58.3 | CQ87: 35.7 | CR87: 11.8 | CS87: 75.4 | CT87: 49.4 | CU87: -35.1 | CV87: 59.9
A88: 63.1 | B88: 73.7 | C88: 95.4 | D88: -88.4 | E88: 94.5 | F88: 89.7 | G88: -5.8 | H88: 57.6 | I88: 2.6 | J88: 40.5 | K88: 31.8 | L88: 34.6 | M88: -66.3 | N88: -33.1 | O88: 79.1 | P88: -99.7 | Q88: 19.6 | R88: 99.1 | S88: 40.2 | T88: 93.2 | U88: 34.3 | V88: 43.7 | W88: -96.8 | X88: 78.2 | Y88: 83.9 | Z88: 10.9 | AA88: 48.4 | AB88: 43.7 | AC88: 38.3 | AD88: -3.8 | AE88: 65.4 | AF88: -24.6 | AG88: 18.5 | AH88: -93.7 | AI88: 85.5 | AJ88: 99.3 | AK88: 4.5 | AL88: -9.8 | AM88: 72.8 | AN88: -46 | AO88: 48.2 | AP88: -38.1 | AQ88: 0.9 | AR88: -85.4 | AS88: 2.9 | AT88: 22.5 | AU88: 8.3 | AV88: 82.6 | AW88: 85.9 | AX88: 10.4 | AY88: 49.4 | AZ88: -70.5 | BA88: 43.5 | BB88: 53.6 | BC88: 97 | BD88: 41.7 | BE88: 24.5 | BF88: 20.4 | BG88: 42.4 | BH88: 60.4 | BI88: -84.4 | BJ88: 44.8 | BK88: 73.8 | BL88: 96.4 | BM88: -26.6 | BN88: 76.1 | BO88: 33.3 | BP88: 79.7 | BQ88: -2.8 | BR88: 96.9 | BS88: 14.2 | BT88: 9.5 | BU88: 16 | BV88: 59.3 | BW88: 91.3 | BX88: 86.2 | BY88: -68.2 | BZ88: 78.7 | CA88: 86.5 | CB88: 96.5 | CC88: -40 | CD88: 32.6 | CE88: -59.8 | CF88: 55.3 | CG88: 39.7 | CH88: 14.4 | CI88: 47.2 | CJ88: -56.4 | CK88: 55.3 | CL88: 87.6 | CM88: 17 | CN88: 90 | CO88: 39.3 | CP88: -78.5 | CQ88: 44.5 | CR88: 39.9 | CS88: 66 | CT88: 27.5 | CU88: 29.8 | CV88: 47.3
A89: 16.1 | B89: -43 | C89: 86.9 | D89: 56.1 | E89: 43.8 | F89: 88.2 | G89: 67.1 | H89: 61.1 | I89: 78.8 | J89: 37 | K89: 81.8 | L89: 50.3 | M89: 98.5 | N89: -60.6 | O89: 27 | P89: 9.9 | Q89: 0 | R89: 29 | S89: 71.8 | T89: 39.6 | U89: 64.9 | V89: 77.8 | W89: -43.9 | X89: -9.8 | Y89: 25.9 | Z89: 59 | AA89: 10 | AB89: 91.6 | AC89: 71.2 | AD89: -51.8 | AE89: 42.8 | AF89: -57.8 | AG89: 7.5 | AH89: 66 | AI89: 29.9 | AJ89: 13.4 | AK89: 17.2 | AL89: 36.8 | AM89: 69.8 | AN89: 82.2 | AO89: 38.9 | AP89: 83.8 | AQ89: -52.8 | AR89: -41.9 | AS89: -98.7 | AT89: 97 | AU89: 48.1 | AV89: 10.4 | AW89: 89.6 | AX89: 89.3 | AY89: -24.7 | AZ89: 34.8 | BA89: 71.1 | BB89: 52.6 | BC89: -81 | BD89: 67.9 | BE89: 83.5 | BF89: 72.8 | BG89: 44.6 | BH89: -77.5 | BI89: 36.8 | BJ89: 25.8 | BK89: 6.7 | BL89: 14.2 | BM89: 57.5 | BN89: 41.6 | BO89: -65.2 | BP89: 28 | BQ89: 13.2 | BR89: 8.2 | BS89: 37.6 | BT89: 49.8 | BU89: 52.9 | BV89: -96.8 | BW89: 19.1 | BX89: 97.5 | BY89: 6.3 | BZ89: 77.1 | CA89: 71.8 | CB89: 27.8 | CC89: 80.8 | CD89: 12.1 | CE89: 85.6 | CF89: -31.1 | CG89: -13.3 | CH89: 53.5 | CI89: 39.9 | CJ89: 28.4 | CK89: 33 | CL89: 58.6 | CM89: 62 | CN89: 11.9 | CO89: -67.2 | CP89: 26.9 | CQ89: -66.3 | CR89: -70.9 | CS89: -83.1 | CT89: -29.7 | CU89: -59.8 | CV89: 4.3
A90: 62.5 | B90: -67.2 | C90: -72.9 | D90: 0.5 | E90: 37.9 | F90: -56.7 | G90: -84.4 | H90: 50 | I90: -89 | J90: 60.1 | K90: 18 | L90: 15.5 | M90: -6.4 | N90: 91.3 | O90: 18.8 | P90: 80.6 | Q90: -3.4 | R90: 32.8 | S90: -60.3 | T90: -0.8 | U90: 86.2 | V90: 47.7 | W90: 74.7 | X90: 49.7 | Y90: 41.5 | Z90: 76.1 | AA90: 47.1 | AB90: 28.3 | AC90: 90.1 | AD90: 13.7 | AE90: -81 | AF90: 0.3 | AG90: 71.1 | AH90: -20.6 | AI90: 56.1 | AJ90: 65.5 | AK90: 82.8 | AL90: 67 | AM90: 96.9 | AN90: 1.1 | AO90: 89.8 | AP90: 51 | AQ90: 83.8 | AR90: 58.5 | AS90: 80.9 | AT90: 77.1 | AU90: 14.8 | AV90: -31.1 | AW90: 18.9 | AX90: 58.3 | AY90: 47.2 | AZ90: -17.3 | BA90: 61.4 | BB90: 4.5 | BC90: 3.5 | BD90: -84 | BE90: 72 | BF90: 70.3 | BG90: 26.4 | BH90: 80.2 | BI90: 98.1 | BJ90: -83.1 | BK90: 97.9 | BL90: -74.9 | BM90: 16.6 | BN90: 38.3 | BO90: 36.6 | BP90: -81.4 | BQ90: -64.3 | BR90: 94.4 | BS90: -62.6 | BT90: 68.9 | BU90: 15.4 | BV90: 80.2 | BW90: 6.6 | BX90: -58.8 | BY90: 50.2 | BZ90: 90.1 | CA90: -84.1 | CB90: -2.8 | CC90: 29.4 | CD90: 87.9 | CE90: 9.3 | CF90: -72.6 | CG90: 10.5 | CH90: -51.4 | CI90: -81.4 | CJ90: 73.1 | CK90: 78.8 | CL90: 69.1 | CM90: 87.7 | CN90: 18.5 | CO90: 35.7 | CP90: 78 | CQ90: -14.3 | CR90: 33.2 | CS90: 52.1 | CT90: -73.5 | CU90: 57.1 | CV90: 10.6
A91: 13.2 | B91: 30.7 | C91: 18.9 | D91: 63.9 | E91: 39 | F91: -52.8 | G91: 60.4 | H91: 53.5 | I91: 82.8 | J91: 92.9 | K91: 20 | L91: 35.6 | M91: -65.3 | N91: 91.3 | O91: 17.9 | P91: 57.2 | Q91: 76 | R91: 76.8 | S91: -85.4 | T91: 28.4 | U91: -45 | V91: 11.8 | W91: 7.5 | X91: 17 | Y91: 44.7 | Z91: 66.7 | AA91: 12.7 | AB91: 79.1 | AC91: 21.4 | AD91: -61.3 | AE91: 7.2 | AF91: 46.1 | AG91: 82.5 | AH91: 40.5 | AI91: -2.8 | AJ91: 8.6 | AK91: 8.3 | AL91: 79.3 | AM91: 65.4 | AN91: 65.8 | AO91: 45.2 | AP91: 71.7 | AQ91: 98.6 | AR91: 17 | AS91: -12.3 | AT91: 3.5 | AU91: 3.3 | AV91: 39.8 | AW91: -73.9 | AX91: 46.8 | AY91: 50 | AZ91: 20 | BA91: -95.7 | BB91: 8.9 | BC91: 34.8 | BD91: 96.6 | BE91: -54.7 | BF91: -71.5 | BG91: -47.9 | BH91: -97.8 | BI91: -59.4 | BJ91: -61.6 | BK91: 3.3 | BL91: 14.9 | BM91: 9.9 | BN91: 63 | BO91: 9.7 | BP91: 45.3 | BQ91: 8.9 | BR91: 44.3 | BS91: 8.5 | BT91: 74.3 | BU91: 64.1 | BV91: 40.3 | BW91: 46.5 | BX91: 0.3 | BY91: 67.5 | BZ91: 90.9 | CA91: -51.4 | CB91: 97.6 | CC91: -48.9 | CD91: 67.6 | CE91: 92.5 | CF91: 37.6 | CG91: 15.5 | CH91: -6.8 | CI91: 58.1 | CJ91: -24.6 | CK91: 45.6 | CL91: 92.6 | CM91: 96.1 | CN91: -89.1 | CO91: 46.5 | CP91: 83.8 | CQ91: 95.9 | CR91: 70.7 | CS91: 26.2 | CT91: 29 | CU91: -59.8 | CV91: 19.8
A92: 17.5 | B92: -53.7 | C92: 45.4 | D92: 46.7 | E92: 55.9 | F92: 2.9 | G92: 75 | H92: 72.8 | I92: 22.2 | J92: -21.6 | K92: 54.2 | L92: 46.3 | M92: -51.4 | N92: 8.5 | O92: 39.9 | P92: 91.1 | Q92: 46.6 | R92: 92.5 | S92: 80.2 | T92: 76.3 | U92: 23.3 | V92: 93.9 | W92: -47 | X92: 59.5 | Y92: 65.1 | Z92: 85.3 | AA92: -52.4 | AB92: 51.1 | AC92: 38.2 | AD92: 12.6 | AE92: 88.6 | AF92: 86.2 | AG92: -57.7 | AH92: 28 | AI92: 50 | AJ92: 34 | AK92: 42.4 | AL92: 75.7 | AM92: 46.7 | AN92: 82.9 | AO92: 53.3 | AP92: 14.7 | AQ92: 99.4 | AR92: 36.9 | AS92: 76.4 | AT92: -65.2 | AU92: -86.1 | AV92: 88.9 | AW92: 68.9 | AX92: 88.3 | AY92: 29.2 | AZ92: -39.5 | BA92: -43 | BB92: 1.5 | BC92: 51 | BD92: 19.1 | BE92: 3.9 | BF92: -76.6 | BG92: 46.7 | BH92: 64.5 | BI92: 49.3 | BJ92: 19.5 | BK92: 95 | BL92: 8.3 | BM92: 33.4 | BN92: -34.1 | BO92: 86.8 | BP92: 32.2 | BQ92: 90.4 | BR92: -31.2 | BS92: 66.4 | BT92: -57.7 | BU92: 21.4 | BV92: -64.3 | BW92: -31.5 | BX92: -68.3 | BY92: 25.5 | BZ92: 44.6 | CA92: -4.8 | CB92: 75.7 | CC92: 45.4 | CD92: 23.2 | CE92: 58.1 | CF92: -95.8 | CG92: 84.3 | CH92: -31.2 | CI92: 90.3 | CJ92: 57.2 | CK92: -74.6 | CL92: 12.2 | CM92: 72.1 | CN92: -62.6 | CO92: -5.4 | CP92: -59.4 | CQ92: -51.4 | CR92: 58.2 | CS92: -9.1 | CT92: -62.2 | CU92: -50.4 | CV92: -95.7
A93: 32.2 | B93: 99.1 | C93: 94.5 | D93: -74.6 | E93: 43.8 | F93: 2.9 | G93: 62.5 | H93: 28.8 | I93: 37.2 | J93: 37.6 | K93: -19.3 | L93: 55.2 | M93: 31 | N93: 44.3 | O93: -49.9 | P93: 65.1 | Q93: 27.8 | R93: -13.3 | S93: 40.8 | T93: 60 | U93: 91 | V93: 90 | W93: -15.3 | X93: 15.7 | Y93: 26.1 | Z93: 32.7 | AA93: 65.9 | AB93: -34.5 | AC93: 77 | AD93: -26.6 | AE93: 79.1 | AF93: -73.9 | AG93: 95.2 | AH93: 15.7 | AI93: 77.7 | AJ93: 42.2 | AK93: 14.8 | AL93: 27 | AM93: 93.4 | AN93: 78.8 | AO93: -7.8 | AP93: 42.6 | AQ93: 99.5 | AR93: 55 | AS93: 37.8 | AT93: 99 | AU93: 65.8 | AV93: 59.1 | AW93: 29.1 | AX93: 44.7 | AY93: 48.6 | AZ93: 33.2 | BA93: 25.1 | BB93: 76 | BC93: 54.6 | BD93: 92.4 | BE93: 99 | BF93: -13.3 | BG93: 80.9 | BH93: -34.5 | BI93: 57.2 | BJ93: -23.7 | BK93: -40 | BL93: 17.9 | BM93: 92 | BN93: 19.1 | BO93: 54.9 | BP93: 29 | BQ93: 19.1 | BR93: -24.7 | BS93: 72.7 | BT93: 66 | BU93: 30 | BV93: -24.6 | BW93: -50.4 | BX93: -52.7 | BY93: 62.4 | BZ93: -96.8 | CA93: 30.8 | CB93: 34.9 | CC93: 20.3 | CD93: -36.5 | CE93: 37.9 | CF93: 86.9 | CG93: 5.3 | CH93: 89.3 | CI93: 64.1 | CJ93: -74.9 | CK93: 22 | CL93: -8.4 | CM93: 96 | CN93: 72.4 | CO93: 70.4 | CP93: 30.9 | CQ93: 60.1 | CR93: -89.4 | CS93: 28.2 | CT93: 64.9 | CU93: -3 | CV93: -77.5
A94: 0.7 | B94: -92.7 | C94: 16.1 | D94: 64.9 | E94: -46 | F94: 92.1 | G94: 58.3 | H94: 87.9 | I94: 50.1 | J94: -36.1 | K94: -55.8 | L94: 92.6 | M94: 60.8 | N94: 62.1 | O94: 93.9 | P94: 56.3 | Q94: -81.1 | R94: 12 | S94: -54.8 | T94: 26.8 | U94: 13 | V94: 35.3 | W94: 64.1 | X94: 80.9 | Y94: -28.6 | Z94: 6.3 | AA94: -71.9 | AB94: 44.2 | AC94: -61.2 | AD94: 25.4 | AE94: 35.8 | AF94: 32 | AG94: 13.5 | AH94: 49.3 | AI94: 5.7 | AJ94: -86.4 | AK94: 89.5 | AL94: -44.9 | AM94: -66.2 | AN94: 34.8 | AO94: 12.1 | AP94: -12.3 | AQ94: 35 | AR94: 0.7 | AS94: -79.6 | AT94: -9 | AU94: 75.3 | AV94: -56.4 | AW94: 62.5 | AX94: -23.7 | AY94: 84.8 | AZ94: 84.7 | BA94: 78.8 | BB94: -27.6 | BC94: -60.3 | BD94: 43.8 | BE94: 97.6 | BF94: 16.2 | BG94: -78.9 | BH94: 10.6 | BI94: 12.7 | BJ94: 71.3 | BK94: 38.8 | BL94: 27.8 | BM94: 55.1 | BN94: -59.7 | BO94: -84.4 | BP94: 83.8 | BQ94: 68.8 | BR94: 37.6 | BS94: 27 | BT94: 94.9 | BU94: 90.9 | BV94: 73 | BW94: 54.5 | BX94: -62.2 | BY94: 53.1 | BZ94: 11.5 | CA94: 77.8 | CB94: 2.1 | CC94: 29.5 | CD94: 25.4 | CE94: -72.9 | CF94: 92.3 | CG94: 59 | CH94: 16.1 | CI94: 9.2 | CJ94: 7.2 | CK94: 97.3 | CL94: -8.4 | CM94: 62.8 | CN94: 23.5 | CO94: -3 | CP94: 41.6 | CQ94: -4.1 | CR94: 85.3 | CS94: 0.3 | CT94: 92.3 | CU94: 63.9 | CV94: 36.2
A95: 5.5 | B95: 63 | C95: 48.3 | D95: -57.7 | E95: -76.6 | F95: 89.9 | G95: 87.3 | H95: 6.7 | I95: 4.7 | J95: 52.5 | K95: 91.4 | L95: -69.3 | M95: 59.9 | N95: 65.1 | O95: 18.2 | P95: 15.7 | Q95: 75.4 | R95: 37.7 | S95: 48.6 | T95: -86 | U95: -79.5 | V95: 3.7 | W95: 39.6 | X95: 15.5 | Y95: 34.3 | Z95: 51.6 | AA95: -67.2 | AB95: -72.9 | AC95: 59.2 | AD95: 6.5 | AE95: 72.2 | AF95: 47.1 | AG95: 92.9 | AH95: -45.9 | AI95: 17.6 | AJ95: 5.7 | AK95: -8.1 | AL95: -62.3 | AM95: 84.2 | AN95: 10.7 | AO95: 66.4 | AP95: 46.1 | AQ95: -42.9 | AR95: 11.1 | AS95: 83.7 | AT95: 40.8 | AU95: 10.9 | AV95: 9.5 | AW95: -11.3 | AX95: -30.1 | AY95: 15.5 | AZ95: 28.5 | BA95: -40.9 | BB95: 55 | BC95: 73.2 | BD95: 55.6 | BE95: 69.6 | BF95: -71.9 | BG95: 20.5 | BH95: -15.3 | BI95: 88.6 | BJ95: 61.1 | BK95: -73.5 | BL95: 34.8 | BM95: 75.3 | BN95: 66.9 | BO95: 9.9 | BP95: -2 | BQ95: -35.1 | BR95: -75.6 | BS95: 7.9 | BT95: 75.2 | BU95: 51.2 | BV95: 93.6 | BW95: -51.8 | BX95: -51.7 | BY95: 18.9 | BZ95: 21.1 | CA95: 85.3 | CB95: 56.2 | CC95: -84.4 | CD95: 52.1 | CE95: 38.9 | CF95: 2.7 | CG95: 17.9 | CH95: -58.8 | CI95: 33.3 | CJ95: 49.5 | CK95: -90.7 | CL95: -45.9 | CM95: 87.9 | CN95: -71.9 | CO95: 1.3 | CP95: -60.6 | CQ95: 44.4 | CR95: 7.7 | CS95: 11.4 | CT95: 60.8 | CU95: -20.7 | CV95: -4
A96: 75.4 | B96: 82.7 | C96: 47.2 | D96: 48.2 | E96: 80.3 | F96: 21.2 | G96: -59.7 | H96: 23.8 | I96: -15.3 | J96: 68.8 | K96: 97.5 | L96: 36.8 | M96: 6.7 | N96: -66.2 | O96: 4.5 | P96: 99.2 | Q96: 78.7 | R96: 28.9 | S96: 91.1 | T96: 99.9 | U96: -95.8 | V96: 89.5 | W96: -79.6 | X96: 62.7 | Y96: 75.2 | Z96: 45.4 | AA96: 18.7 | AB96: 80.6 | AC96: 2.2 | AD96: 44.4 | AE96: 58.5 | AF96: 89.6 | AG96: 41.7 | AH96: 4.9 | AI96: 55.6 | AJ96: 98 | AK96: 52.3 | AL96: 87.8 | AM96: 22 | AN96: -9.8 | AO96: 55.5 | AP96: 40.8 | AQ96: 55.5 | AR96: 12.2 | AS96: -74.6 | AT96: 3.7 | AU96: 71.4 | AV96: 18.8 | AW96: 80.3 | AX96: 16.6 | AY96: 51.2 | AZ96: -42 | BA96: 33.4 | BB96: 37.7 | BC96: 0.1 | BD96: -43.9 | BE96: 53.2 | BF96: -96.8 | BG96: 99.1 | BH96: 35.4 | BI96: 3.2 | BJ96: 44.1 | BK96: 2.7 | BL96: 62.9 | BM96: -98.7 | BN96: 57 | BO96: -93.8 | BP96: -18.4 | BQ96: 26 | BR96: 11.6 | BS96: 3.2 | BT96: 45.1 | BU96: 41.8 | BV96: 85.2 | BW96: 87.5 | BX96: 99.4 | BY96: 64.1 | BZ96: 100 | CA96: -62.2 | CB96: 18.2 | CC96: 45.3 | CD96: 45.6 | CE96: -50.8 | CF96: -87.1 | CG96: 17.1 | CH96: 70.3 | CI96: 28.3 | CJ96: 10.7 | CK96: -15.3 | CL96: 58.1 | CM96: 59.9 | CN96: 42.2 | CO96: 95.4 | CP96: 51.9 | CQ96: 35.8 | CR96: 46.4 | CS96: 99.5 | CT96: 30.8 | CU96: 82.9 | CV96: 70.2
A97: 24 | B97: 44.6 | C97: 28.1 | D97: -7.8 | E97: -87 | F97: 63.7 | G97: 7.6 | H97: 41.4 | I97: 69 | J97: 22.2 | K97: 35.4 | L97: 85.3 | M97: 19.7 | N97: 0.9 | O97: 23.1 | P97: -49 | Q97: -38.1 | R97: 72.2 | S97: -74.5 | T97: 66.9 | U97: 33.8 | V97: 27.2 | W97: -31.2 | X97: 23.5 | Y97: -98.8 | Z97: 78.1 | AA97: 46.1 | AB97: 28.5 | AC97: -97.7 | AD97: 58 | AE97: 89.3 | AF97: 63.9 | AG97: -4.1 | AH97: 3.9 | AI97: -6.8 | AJ97: 10.2 | AK97: -82.4 | AL97: 20.4 | AM97: -97.7 | AN97: -86 | AO97: -64.3 | AP97: 38.2 | AQ97: 51.5 | AR97: -24.6 | AS97: 92.4 | AT97: 61.5 | AU97: 37.6 | AV97: -41.9 | AW97: 41.6 | AX97: 13 | AY97: 30.8 | AZ97: 59.1 | BA97: 78.4 | BB97: 29.8 | BC97: -61.6 | BD97: 97.4 | BE97: 35.6 | BF97: 17.2 | BG97: 99.9 | BH97: 45.6 | BI97: -84.4 | BJ97: 76.8 | BK97: 33.2 | BL97: 17.2 | BM97: 27.1 | BN97: 44.7 | BO97: 67.8 | BP97: 0.7 | BQ97: 29.1 | BR97: 62.7 | BS97: -58.4 | BT97: -53.8 | BU97: 33.8 | BV97: -7.1 | BW97: -54.8 | BX97: 85.2 | BY97: 23.2 | BZ97: 71 | CA97: 27.5 | CB97: 77.7 | CC97: -91.7 | CD97: 10.6 | CE97: 18.7 | CF97: 64.1 | CG97: 29 | CH97: 92.2 | CI97: 24.2 | CJ97: 42.7 | CK97: 65 | CL97: -71.5 | CM97: 21.4 | CN97: 9.9 | CO97: -4.8 | CP97: -60.2 | CQ97: -21.6 | CR97: 43.5 | CS97: 36.4 | CT97: 85.3 | CU97: 15.9 | CV97: 67.9
A98: 19.9 | B98: 0.1 | C98: -78.6 | D98: 23.1 | E98: 68.1 | F98: 46.3 | G98: -90.8 | H98: 66.1 | I98: -38.1 | J98: 17.6 | K98: 61.5 | L98: 62.5 | M98: 92.2 | N98: 7.3 | O98: 3.7 | P98: 79.7 | Q98: 66.7 | R98: 90.4 | S98: 70.1 | T98: 19 | U98: 62.9 | V98: 27.3 | W98: 96.1 | X98: 45.1 | Y98: 33.9 | Z98: 69.9 | AA98: 12.8 | AB98: 27.4 | AC98: 61.9 | AD98: 71.1 | AE98: 75.2 | AF98: 36.9 | AG98: 91 | AH98: 61.7 | AI98: -58.7 | AJ98: 2.5 | AK98: 16.9 | AL98: 22.3 | AM98: 48.6 | AN98: -79.5 | AO98: -96.7 | AP98: 24.4 | AQ98: 24.1 | AR98: 14.7 | AS98: 29.2 | AT98: 4.6 | AU98: 8.5 | AV98: 31.6 | AW98: 32.9 | AX98: 45.6 | AY98: 75.3 | AZ98: 90.6 | BA98: -4.8 | BB98: 33.8 | BC98: 53.2 | BD98: 38.8 | BE98: 38.9 | BF98: 47.1 | BG98: 78 | BH98: 71.3 | BI98: 12.6 | BJ98: 91.3 | BK98: 20.5 | BL98: 40.5 | BM98: 40.3 | BN98: 26.9 | BO98: 38.2 | BP98: 26.3 | BQ98: 8.2 | BR98: 70.8 | BS98: -39.5 | BT98: -35.5 | BU98: 3.6 | BV98: 6.3 | BW98: -47.9 | BX98: 17.6 | BY98: -18.4 | BZ98: -74.6 | CA98: 25.9 | CB98: 66 | CC98: -5.1 | CD98: 75.7 | CE98: -8.1 | CF98: 88.5 | CG98: 93.5 | CH98: 33.3 | CI98: -71.6 | CJ98: 91.6 | CK98: 44.2 | CL98: -2 | CM98: 26.1 | CN98: 87.3 | CO98: -71.9 | CP98: 72.7 | CQ98: -86.4 | CR98: 51.1 | CS98: 28.2 | CT98: 13 | CU98: 34 | CV98: 78.4
A99: 14.1 | B99: 24 | C99: 0.6 | D99: 24.4 | E99: 4.9 | F99: 49.1 | G99: 29.4 | H99: 6.6 | I99: 99 | J99: -19.3 | K99: 30.4 | L99: -7.8 | M99: 76.8 | N99: 2.9 | O99: -37.5 | P99: 95.3 | Q99: -91.8 | R99: -83 | S99: 68.5 | T99: -24.6 | U99: 29.4 | V99: 5.6 | W99: 83.8 | X99: 48.6 | Y99: 81.6 | Z99: 37.6 | AA99: -28.6 | AB99: 97.2 | AC99: -6 | AD99: 69.7 | AE99: -63.2 | AF99: 26 | AG99: 14.6 | AH99: 96.5 | AI99: 69.4 | AJ99: 90.1 | AK99: 49.6 | AL99: 49.5 | AM99: 78.2 | AN99: 78.3 | AO99: 15.7 | AP99: 43.8 | AQ99: 17.8 | AR99: 52.6 | AS99: 85.7 | AT99: 4.9 | AU99: 88.3 | AV99: 80.5 | AW99: -40 | AX99: 0.6 | AY99: 91 | AZ99: 53.3 | BA99: 79 | BB99: -2.8 | BC99: 86.3 | BD99: 32.3 | BE99: 72.3 | BF99: 71.3 | BG99: 96.6 | BH99: 60.1 | BI99: 36 | BJ99: 86.9 | BK99: 93 | BL99: 42.8 | BM99: -1.8 | BN99: 99.1 | BO99: 29.8 | BP99: 28.2 | BQ99: 97.6 | BR99: 69 | BS99: 58.9 | BT99: 79.4 | BU99: 89.2 | BV99: 77.4 | BW99: -33.5 | BX99: 23.5 | BY99: 5.5 | BZ99: 60.7 | CA99: 92.2 | CB99: -6.8 | CC99: -59.8 | CD99: -61.6 | CE99: 53 | CF99: 24.9 | CG99: 55.5 | CH99: 9.6 | CI99: 96 | CJ99: 33.4 | CK99: -91.8 | CL99: -47.9 | CM99: 34.8 | CN99: -0.8 | CO99: -70.9 | CP99: 100 | CQ99: 21.9 | CR99: 66.7 | CS99: 39.4 | CT99: 37.7 | CU99: -80 | CV99: 83.8
A100: 19 | B100: 55.3 | C100: -54.8 | D100: 85.9 | E100: 16.8 | F100: 90.2 | G100: 80.5 | H100: -92.7 | I100: 65.1 | J100: 40.5 | K100: -59.8 | L100: -58.4 | M100: 53.1 | N100: 39.4 | O100: 41.3 | P100: 9.3 | Q100: 48.5 | R100: -29.6 | S100: 80.8 | T100: 52 | U100: 60.5 | V100: 5.5 | W100: 66.8 | X100: 37.4 | Y100: -89 | Z100: -47.9 | AA100: 57.1 | AB100: 27.5 | AC100: 15.8 | AD100: -49.9 | AE100: -32.5 | AF100: 20.1 | AG100: 13.4 | AH100: 24.2 | AI100: 57.9 | AJ100: -61.2 | AK100: -81.4 | AL100: 87.7 | AM100: 35 | AN100: 31.3 | AO100: 28 | AP100: -40 | AQ100: 77.4 | AR100: 91.1 | AS100: -78.9 | AT100: 80.2 | AU100: 46.8 | AV100: 34.6 | AW100: 79.3 | AX100: 37.2 | AY100: -82 | AZ100: 61.5 | BA100: 30.6 | BB100: -75.6 | BC100: -84.1 | BD100: 9.7 | BE100: 74.3 | BF100: 3.6 | BG100: 61.4 | BH100: 40.8 | BI100: 45.3 | BJ100: 96.1 | BK100: 94.2 | BL100: 1.5 | BM100: 69 | BN100: 16.9 | BO100: 12.1 | BP100: 10 | BQ100: 88.5 | BR100: 15.7 | BS100: 3.5 | BT100: 95 | BU100: -40.9 | BV100: -21.7 | BW100: 34.9 | BX100: -5.8 | BY100: -11.3 | BZ100: 34.9 | CA100: -77.9 | CB100: 29 | CC100: -13.3 | CD100: -10.3 | CE100: 37.3 | CF100: 82.9 | CG100: 59.5 | CH100: 40.5 | CI100: 79.8 | CJ100: 29.4 | CK100: 66.1 | CL100: 72.8 | CM100: 68 | CN100: -38.5 | CO100: -53.8 | CP100: 30.4 | CQ100: 44.1 | CR100: 28.8 | CS100: 12.5 | CT100: 74.3 | CU100: -62.6 | CV100: 46.4

Sheet b
A1: 144523.29 | B1: 135032.29 | C1: 93755.8 | D1: 142261.15 | E1: 105619.99 | F1: 134060.29 | G1: 133544.93 | H1: 126960.55 | I1: 128495.28 | J1: 161216.12 | K1: 151306.59 | L1: 151565.55
A2: 144787.86 | B2: 119163.07 | C2: 121941.86 | D2: 144306.83 | E2: 92296.82 | F2: 131063.61 | G2: 131393.98 | H2: 151249.82 | I2: 142180.78 | J2: 145391.07 | K2: 157067.87 | L2: 135665.64
A3: 150380.63 | B3: 132918.18 | C3: 158470.64 | D3: 173238.39 | E3: 121928.75 | F3: 168119.79 | G3: 128176.44 | H3: 124489.75 | I3: 168856.1 | J3: 189867.8 | K3: 151572.03 | L3: 168841.05
A4: 129305.59 | B4: 111376.96 | C4: 127918.06 | D4: 113907.52 | E4: 96930.37 | F4: 109162.01 | G4: 99103.54 | H4: 91872.32 | I4: 132799.77 | J4: 148508.11 | K4: 114736.52 | L4: 187303.43
A5: 90768.38 | B5: 78886.55 | C5: 97013.96 | D5: 70304.6 | E5: 60793.7 | F5: 54582 | G5: 104266.25 | H5: 96256.44 | I5: 100182.36 | J5: 65303.21 | K5: 90676.42 | L5: 93000.62
A6: 117830.61 | B6: 103061.86 | C6: 114595.78 | D6: 155761.97 | E6: 66154.46 | F6: 120892.55 | G6: 104800.97 | H6: 96967.08 | I6: 115327.13 | J6: 131651.12 | K6: 117848.51 | L6: 134446.29
A7: 139164.7 | B7: 73734.68 | C7: 117500.02 | D7: 124553.44 | E7: 141978.11 | F7: 135568.01 | G7: 89277.48 | H7: 144355.72 | I7: 128889.39 | J7: 158291.92 | K7: 120975.98 | L7: 122225.12
A8: 125378.91 | B8: 107904.59 | C8: 80445.06 | D8: 111533.65 | E8: 79753.62 | F8: 140857.94 | G8: 98791.32 | H8: 95748.16 | I8: 117907.97 | J8: 121175.7 | K8: 111273.01 | L8: 128747.27
A9: 136891.85 | B9: 101344.96 | C9: 125297.69 | D9: 146040.97 | E9: 124107.58 | F9: 150882.78 | G9: 129894.9 | H9: 165278.4 | I9: 160857.97 | J9: 169056.48 | K9: 161094.4 | L9: 134245.91
A10: 117446.04 | B10: 99281.04 | C10: 132347.65 | D10: 136248.99 | E10: 120932.88 | F10: 127276.6 | G10: 87427.87 | H10: 115705.75 | I10: 136732.23 | J10: 161298.41 | K10: 114277.99 | L10: 119921.07
A11: 152397.54 | B11: 140821.36 | C11: 115247.01 | D11: 150829.74 | E11: 135602.85 | F11: 145677.05 | G11: 133333.84 | H11: 151065.89 | I11: 149592.98 | J11: 156556.85 | K11: 128130.58 | L11: 156020.83
A12: 147160.57 | B12: 132183 | C12: 129308.22 | D12: 133270.22 | E12: 157450.45 | F12: 158623.69 | G12: 136455.37 | H12: 108758.7 | I12: 148662.35 | J12: 170011.41 | K12: 159110.56 | L12: 200262.06
A13: 143229.05 | B13: 101774.01 | C13: 101588.31 | D13: 105121.96 | E13: 151172.84 | F13: 95171.23 | G13: 104738.18 | H13: 140811.04 | I13: 117765.66 | J13: 121684.29 | K13: 143388.98 | L13: 126242.3
A14: 163151.1 | B14: 140374.78 | C14: 99518.13 | D14: 137766.9 | E14: 136116.28 | F14: 143674.17 | G14: 125506.21 | H14: 124829.49 | I14: 142936.57 | J14: 145676.23 | K14: 144733.53 | L14: 174806.77
A15: 174700.88 | B15: 121709.81 | C15: 153837.67 | D15: 165492.35 | E15: 128210.39 | F15: 158700.09 | G15: 170960.34 | H15: 137863.57 | I15: 183498.72 | J15: 174107.18 | K15: 179780.75 | L15: 162793.67
A16: 137006.64 | B16: 131996.5 | C16: 113864.19 | D16: 138760.07 | E16: 92054.4 | F16: 143587.42 | G16: 120333.57 | H16: 145813.33 | I16: 125926.62 | J16: 164405 | K16: 153625.39 | L16: 147192.58
A17: 131309.81 | B17: 86330.4 | C17: 148424.99 | D17: 103973.27 | E17: 115443.84 | F17: 143562.15 | G17: 110266.22 | H17: 148172.43 | I17: 128004.13 | J17: 133130.5 | K17: 143709.52 | L17: 131874.88
A18: 147271.42 | B18: 130433.04 | C18: 167563 | D18: 173221.89 | E18: 96317.67 | F18: 164045.64 | G18: 151069.52 | H18: 139273.51 | I18: 161831.97 | J18: 176228.64 | K18: 132037.78 | L18: 173591.16
A19: 152120.12 | B19: 129684.55 | C19: 184750.57 | D19: 191903.05 | E19: 141365.34 | F19: 202838.04 | G19: 113616.17 | H19: 157226.72 | I19: 181963.4 | J19: 179562.06 | K19: 139218.88 | L19: 168440.7
A20: 120928.2 | B20: 87397.55 | C20: 99102.35 | D20: 86256.01 | E20: 117761.42 | F20: 94264.68 | G20: 75932.67 | H20: 105390.55 | I20: 98228.33 | J20: 117822.11 | K20: 95801.9 | L20: 79151.54
A21: 144546.85 | B21: 97682.59 | C21: 138514.83 | D21: 160242.6 | E21: 129721.74 | F21: 120953.97 | G21: 98309.81 | H21: 114813.2 | I21: 102699.31 | J21: 141656.88 | K21: 134393.78 | L21: 167246.67
A22: 116519.65 | B22: 100326.9 | C22: 103855.58 | D22: 121881.54 | E22: 77638.79 | F22: 113526.23 | G22: 101767.31 | H22: 74211.8 | I22: 112260.34 | J22: 140534.05 | K22: 91497.76 | L22: 119882.38
A23: 107658.58 | B23: 72487.16 | C23: 100395.43 | D23: 111076.4 | E23: 94790.79 | F23: 64329.05 | G23: 108476.79 | H23: 79922.64 | I23: 111749.05 | J23: 118469.75 | K23: 108968.12 | L23: 128280.31
A24: 143659.33 | B24: 132429.65 | C24: 146753.91 | D24: 179737.04 | E24: 154148.97 | F24: 151647.14 | G24: 164585.98 | H24: 150731.02 | I24: 167193.15 | J24: 163680.82 | K24: 149231.55 | L24: 165343.69
A25: 109209.37 | B25: 102556.81 | C25: 91324.88 | D25: 134819.85 | E25: 82168.5 | F25: 93557.88 | G25: 98070.39 | H25: 118068.86 | I25: 94929.63 | J25: 88751.42 | K25: 108353.78 | L25: 149871.72
A26: 157877.37 | B26: 132940.51 | C26: 159353.24 | D26: 148581.18 | E26: 133799.14 | F26: 162271.69 | G26: 127464.14 | H26: 141782.93 | I26: 182097.29 | J26: 188239.65 | K26: 161399.01 | L26: 177117.66
A27: 132436.1 | B27: 152008.36 | C27: 169793.94 | D27: 182288.78 | E27: 155172.67 | F27: 154491 | G27: 137490.26 | H27: 144057.5 | I27: 162719.23 | J27: 174684.06 | K27: 135068.32 | L27: 184156.88
A28: 89445.53 | B28: 83394.9 | C28: 109555.52 | D28: 112659.54 | E28: 42801.94 | F28: 117819.24 | G28: 83421.34 | H28: 125771.59 | I28: 112570.74 | J28: 118518.65 | K28: 111996.58 | L28: 90521.6
A29: 140046.11 | B29: 92136.53 | C29: 77558.78 | D29: 84658.69 | E29: 81151.52 | F29: 93936.92 | G29: 101552.63 | H29: 100700.96 | I29: 94210.42 | J29: 95252.34 | K29: 147966.96 | L29: 108630.68
A30: 96919.6 | B30: 102746.88 | C30: 98239.22 | D30: 142743.32 | E30: 137954.6 | F30: 101537.52 | G30: 86928.87 | H30: 97302.75 | I30: 90942.02 | J30: 119186.62 | K30: 125641.53 | L30: 147261.59
A31: 126985.21 | B31: 104003.54 | C31: 106789.92 | D31: 126793.26 | E31: 127077.1 | F31: 152246.31 | G31: 120269.7 | H31: 140036.19 | I31: 129209.88 | J31: 147308.52 | K31: 136295.98 | L31: 142459.77
A32: 144311.2 | B32: 115370.92 | C32: 135729.16 | D32: 151200.21 | E32: 141653.27 | F32: 125680.43 | G32: 127605.02 | H32: 152788 | I32: 162395.45 | J32: 164143.54 | K32: 161081.83 | L32: 175531.4
A33: 95916.54 | B33: 59858.56 | C33: 85025.61 | D33: 97928.11 | E33: 84264.58 | F33: 84678.44 | G33: 96656.75 | H33: 68593.11 | I33: 110427.65 | J33: 111792.88 | K33: 91709.87 | L33: 113272.15
A34: 98275 | B34: 86905.35 | C34: 98115.24 | D34: 130976.63 | E34: 112826.43 | F34: 130216.73 | G34: 81465.54 | H34: 122429.38 | I34: 123450.21 | J34: 138464.54 | K34: 146349.85 | L34: 108686.2
A35: 151949.63 | B35: 98620.37 | C35: 110625.84 | D35: 186762.04 | E35: 152336.86 | F35: 166624.34 | G35: 137407.48 | H35: 141488.31 | I35: 134151.29 | J35: 164748.07 | K35: 188991.44 | L35: 163851.53
A36: 157140.1 | B36: 103224.38 | C36: 127501.87 | D36: 130416.29 | E36: 85975.23 | F36: 128366.61 | G36: 120352.14 | H36: 89406.14 | I36: 128020.92 | J36: 138707.14 | K36: 152283.21 | L36: 142307.56
A37: 82183 | B37: 116960.58 | C37: 110060.68 | D37: 71285.83 | E37: 62096.11 | F37: 125947.79 | G37: 81615.3 | H37: 100062.19 | I37: 116112.19 | J37: 117013.29 | K37: 96035.31 | L37: 105789.18
A38: 89180.11 | B38: 86017.32 | C38: 84502.55 | D38: 86656.49 | E38: 70670.25 | F38: 78861.63 | G38: 65684.48 | H38: 76491.04 | I38: 83289.63 | J38: 125260.46 | K38: 70405.18 | L38: 88370.87
A39: 127458.88 | B39: 91502.91 | C39: 122999.5 | D39: 92542.94 | E39: 84100.47 | F39: 103597.84 | G39: 95060.81 | H39: 109668.81 | I39: 92998.86 | J39: 145491.1 | K39: 94733.38 | L39: 113137.03
A40: 145969.84 | B40: 134108.42 | C40: 98287.83 | D40: 142975.56 | E40: 149946.5 | F40: 148099.32 | G40: 117073.52 | H40: 122009.62 | I40: 147547.37 | J40: 146665.35 | K40: 175447.18 | L40: 130387.81
A41: 105385.57 | B41: 116339.7 | C41: 84656.4 | D41: 126860.89 | E41: 65560.98 | F41: 89097.67 | G41: 101519.51 | H41: 92591.23 | I41: 110581.19 | J41: 117547.2 | K41: 110039.97 | L41: 112795.22
A42: 146403.75 | B42: 158941.64 | C42: 141585.89 | D42: 147392.9 | E42: 155931.56 | F42: 172613.96 | G42: 127184.91 | H42: 136824.4 | I42: 152006.95 | J42: 174478.91 | K42: 119677.47 | L42: 153393.25
A43: 122441.79 | B43: 121733.48 | C43: 146141.27 | D43: 133088.57 | E43: 97331.68 | F43: 127990.42 | G43: 128975.57 | H43: 137193.77 | I43: 141684.16 | J43: 136484.78 | K43: 121889.41 | L43: 170098.99
A44: 127185.44 | B44: 142211.73 | C44: 156072.78 | D44: 142526.28 | E44: 107438.25 | F44: 139458.32 | G44: 153705.63 | H44: 159406.19 | I44: 166573.87 | J44: 160976.6 | K44: 149214.11 | L44: 174442.66
A45: 158667.46 | B45: 120278.29 | C45: 114954.71 | D45: 156410.83 | E45: 120203.46 | F45: 155524.78 | G45: 146042.09 | H45: 119695.73 | I45: 141722.07 | J45: 168786.29 | K45: 161309.44 | L45: 167123.06
A46: 84898.68 | B46: 100378.02 | C46: 69292.27 | D46: 91981.53 | E46: 107617.15 | F46: 134691.47 | G46: 119718.82 | H46: 108016.28 | I46: 121918.11 | J46: 105397.92 | K46: 104312.14 | L46: 93082.14
A47: 123643.16 | B47: 82115.82 | C47: 96866.58 | D47: 123595.09 | E47: 67267.82 | F47: 104697.53 | G47: 92195.77 | H47: 84163.02 | I47: 125167.84 | J47: 127663.24 | K47: 96636.14 | L47: 110782.62
A48: 46355.6 | B48: 103064.16 | C48: 116552.87 | D48: 76902.83 | E48: 98374.49 | F48: 116820.93 | G48: 88922.2 | H48: 106376.02 | I48: 89046.43 | J48: 112371.15 | K48: 83244.6 | L48: 78998.78
A49: 172952.64 | B49: 117520.07 | C49: 78547.38 | D49: 123960.26 | E49: 109601.81 | F49: 112145.8 | G49: 121023.06 | H49: 122848.63 | I49: 106611.67 | J49: 109352.3 | K49: 130583.2 | L49: 140398.29
A50: 157775.01 | B50: 121333.83 | C50: 145545.04 | D50: 141426.44 | E50: 94624.89 | F50: 142839.36 | G50: 136417.87 | H50: 166963.91 | I50: 123848.93 | J50: 157507.28 | K50: 151523.67 | L50: 176267.01
A51: 115941.57 | B51: 94704.93 | C51: 129368.97 | D51: 131491.6 | E51: 108199.04 | F51: 132168.8 | G51: 123537.21 | H51: 104625.47 | I51: 135716.18 | J51: 152029.93 | K51: 150961.72 | L51: 161635.74
A52: 98796.52 | B52: 61453.92 | C52: 95618.26 | D52: 93119.5 | E52: 65383.55 | F52: 116899.59 | G52: 73676.24 | H52: 97262.46 | I52: 111952.41 | J52: 122210.48 | K52: 107803.52 | L52: 109274.57
A53: 158310.95 | B53: 101769.61 | C53: 140925.81 | D53: 166313.28 | E53: 147945.31 | F53: 144016.04 | G53: 135639.23 | H53: 116896.72 | I53: 167659.79 | J53: 182139.89 | K53: 154484.95 | L53: 168640.26
A54: 95901.32 | B54: 66074.04 | C54: 100030.92 | D54: 88956.09 | E54: 81298.59 | F54: 101739.45 | G54: 102305.35 | H54: 98231.77 | I54: 109171.74 | J54: 102915.89 | K54: 88113.06 | L54: 121457.36
A55: 90998.91 | B55: 147981.17 | C55: 139697.44 | D55: 124466.37 | E55: 158282.86 | F55: 123626.54 | G55: 98792.46 | H55: 122455.91 | I55: 121384.62 | J55: 153515.68 | K55: 102887.89 | L55: 133113.02
A56: 124507.34 | B56: 149045.44 | C56: 133634.52 | D56: 152597.38 | E56: 150744.67 | F56: 161168.72 | G56: 127782.31 | H56: 131450.97 | I56: 118420.21 | J56: 143563.41 | K56: 127669.1 | L56: 161872.48
A57: 121952.74 | B57: 120315.57 | C57: 91169.7 | D57: 107816.13 | E57: 70297.37 | F57: 101080.67 | G57: 120101.68 | H57: 118327.08 | I57: 105475.93 | J57: 125072.46 | K57: 128157.52 | L57: 121597.54
A58: 174684.14 | B58: 148849.89 | C58: 163817.58 | D58: 169721.27 | E58: 151984.05 | F58: 169974.95 | G58: 168008.4 | H58: 153698.67 | I58: 166257.09 | J58: 177578.61 | K58: 196965.07 | L58: 188015.2
A59: 124808.38 | B59: 73983.97 | C59: 103984.67 | D59: 116780.76 | E59: 134846.04 | F59: 103307.13 | G59: 93417.79 | H59: 105524.13 | I59: 130485.41 | J59: 110459.48 | K59: 118967.58 | L59: 129872.94
A60: 108494.7 | B60: 118195.19 | C60: 113015.08 | D60: 95061.69 | E60: 64828.11 | F60: 113225.76 | G60: 75283.16 | H60: 86651.07 | I60: 81660.86 | J60: 111630.16 | K60: 89040.09 | L60: 95418.72
A61: 121607.21 | B61: 62149.3 | C61: 85177.85 | D61: 114655.07 | E61: 117313.3 | F61: 105090.76 | G61: 81327.31 | H61: 139485.2 | I61: 73552.87 | J61: 121245.11 | K61: 116956.09 | L61: 110666.94
A62: 118413.26 | B62: 106914.45 | C62: 108586.25 | D62: 105697.55 | E62: 86148.24 | F62: 115555.12 | G62: 84934.08 | H62: 99728.69 | I62: 83010.74 | J62: 93255.66 | K62: 96448.21 | L62: 112365.07
A63: 106841.87 | B63: 83179.05 | C63: 90268.58 | D63: 92949.27 | E63: 129269.04 | F63: 118082.45 | G63: 99982.36 | H63: 108008.99 | I63: 93829.42 | J63: 140933.87 | K63: 136307.94 | L63: 125061.67
A64: 150431.37 | B64: 98748.97 | C64: 111812.12 | D64: 111429.35 | E64: 106169.02 | F64: 171398.97 | G64: 112410.65 | H64: 103799.04 | I64: 100638.36 | J64: 130730.56 | K64: 114738.42 | L64: 129871.26
A65: 143862.58 | B65: 130222.81 | C65: 131452.61 | D65: 129172.96 | E65: 109494.52 | F65: 143542.54 | G65: 139906.59 | H65: 172865.24 | I65: 143536.01 | J65: 174466.01 | K65: 161785.72 | L65: 131935.23
A66: 118375.54 | B66: 94462.53 | C66: 89467.24 | D66: 110084.46 | E66: 67596.74 | F66: 97625.05 | G66: 83026.29 | H66: 101172.12 | I66: 97530.25 | J66: 120806.03 | K66: 87136.48 | L66: 120805.49
A67: 129165.12 | B67: 73394.76 | C67: 117832.47 | D67: 139227.44 | E67: 121582.82 | F67: 116228.26 | G67: 85152.73 | H67: 91761.57 | I67: 143169.18 | J67: 143367.17 | K67: 106794.75 | L67: 121091.43
A68: 70387.12 | B68: 93641.93 | C68: 68917.03 | D68: 61824.63 | E68: 103508.74 | F68: 77990.58 | G68: 71796.85 | H68: 68147.35 | I68: 81381.22 | J68: 117241.93 | K68: 91639.85 | L68: 125955.92
A69: 145881.72 | B69: 117750.23 | C69: 122504.02 | D69: 140335.29 | E69: 81681.42 | F69: 134742.2 | G69: 96532.51 | H69: 153573.67 | I69: 129885.34 | J69: 147693.17 | K69: 139985.28 | L69: 135537.39
A70: 102737.04 | B70: 122550.22 | C70: 133939.64 | D70: 161710.39 | E70: 87403.77 | F70: 110133.55 | G70: 137426.99 | H70: 98082.83 | I70: 100482.95 | J70: 126416.2 | K70: 102414.04 | L70: 155016.11
A71: 108912.06 | B71: 89978.16 | C71: 98838.42 | D71: 116205.04 | E71: 129640.58 | F71: 111705.24 | G71: 134932.3 | H71: 98770.96 | I71: 110998.59 | J71: 135305.42 | K71: 130502.69 | L71: 136318.47
A72: 125532.42 | B72: 75263.01 | C72: 113439.62 | D72: 107213.03 | E72: 83146.27 | F72: 129385.79 | G72: 70535.72 | H72: 101442.04 | I72: 89244.04 | J72: 88406.33 | K72: 89668.98 | L72: 88018.23
A73: 130616.61 | B73: 109597.04 | C73: 93373.96 | D73: 105330.64 | E73: 111706.37 | F73: 126390.31 | G73: 108101.84 | H73: 134196.49 | I73: 136224.47 | J73: 130513.02 | K73: 118529.48 | L73: 130038.64
A74: 120202.12 | B74: 107396.14 | C74: 107091.2 | D74: 105316.14 | E74: 91961.4 | F74: 109773.46 | G74: 103025.57 | H74: 99883.07 | I74: 94922.65 | J74: 123541.82 | K74: 117420.88 | L74: 130610.86
A75: 130512.78 | B75: 95883.29 | C75: 98564.36 | D75: 126625.25 | E75: 83550.89 | F75: 93839.93 | G75: 110879.59 | H75: 141751.24 | I75: 126094.43 | J75: 109499.56 | K75: 120644.09 | L75: 158198.89
A76: 135761.36 | B76: 136236.99 | C76: 145963.79 | D76: 161920.23 | E76: 115600.39 | F76: 136605.53 | G76: 146643.37 | H76: 136233.99 | I76: 138934.15 | J76: 170306 | K76: 150510.78 | L76: 180748.84
A77: 148088.79 | B77: 144262.98 | C77: 142579.12 | D77: 191039.03 | E77: 135996.98 | F77: 162227.48 | G77: 128749.95 | H77: 156019.17 | I77: 163271.88 | J77: 190577.65 | K77: 166205.35 | L77: 155027.14
A78: 151391.69 | B78: 133843.55 | C78: 109205.46 | D78: 151834.57 | E78: 121547.59 | F78: 133460.64 | G78: 122693.11 | H78: 107940.97 | I78: 138677.2 | J78: 152217.62 | K78: 155758.63 | L78: 145766.75
A79: 162074.21 | B79: 162811.71 | C79: 158622.22 | D79: 191568.24 | E79: 154189.19 | F79: 186385.97 | G79: 181320.07 | H79: 164362.67 | I79: 163916.6 | J79: 168499.75 | K79: 177511.52 | L79: 213761.07
A80: 118541.15 | B80: 79610.34 | C80: 119709.85 | D80: 100006.66 | E80: 83090.76 | F80: 71502.8 | G80: 82271.68 | H80: 115554.1 | I80: 116909.1 | J80: 131245.58 | K80: 102868.18 | L80: 96734.68
A81: 94021.07 | B81: 80781.02 | C81: 64098.13 | D81: 127363.73 | E81: 96683.52 | F81: 124655.34 | G81: 77379.15 | H81: 86127.75 | I81: 101992.82 | J81: 124058.08 | K81: 104797.05 | L81: 108865.31
A82: 158545.03 | B82: 126860.87 | C82: 137353.47 | D82: 137525.29 | E82: 128187.52 | F82: 125409.27 | G82: 150507.48 | H82: 142521.62 | I82: 162641.4 | J82: 167323.93 | K82: 176434.52 | L82: 196239.22
A83: 168724.25 | B83: 154774.25 | C83: 112716.26 | D83: 142103.39 | E83: 131645.65 | F83: 188140.62 | G83: 158984.88 | H83: 122173.36 | I83: 182440.39 | J83: 161746.7 | K83: 179788.62 | L83: 173115.28
A84: 154461.22 | B84: 132341.42 | C84: 158801.34 | D84: 125219.23 | E84: 127572.42 | F84: 116182.25 | G84: 108020.1 | H84: 125329.5 | I84: 134646.92 | J84: 153833.39 | K84: 118588.6 | L84: 161753.72
A85: 129280.07 | B85: 113720.47 | C85: 126756.31 | D85: 140911.18 | E85: 118998.77 | F85: 161615.55 | G85: 98010.09 | H85: 144041.39 | I85: 128174.32 | J85: 114352.29 | K85: 143957.36 | L85: 136070.23
A86: 135344.12 | B86: 142709.42 | C86: 112346.8 | D86: 133672.48 | E86: 100732.11 | F86: 160073.75 | G86: 106089.74 | H86: 156293.44 | I86: 127107.98 | J86: 173021.58 | K86: 131665.52 | L86: 136955.56
A87: 82742.97 | B87: 111012.6 | C87: 110659.99 | D87: 95962.37 | E87: 117365.9 | F87: 90471.27 | G87: 104235.84 | H87: 100878.19 | I87: 128024.52 | J87: 145326.66 | K87: 82489.61 | L87: 106639.08
A88: 147021.71 | B88: 112868.98 | C88: 150329.63 | D88: 155928.75 | E88: 99016.96 | F88: 139760.38 | G88: 104954.98 | H88: 108828.48 | I88: 160083.91 | J88: 140935.49 | K88: 120394.54 | L88: 158296.28
A89: 141627.38 | B89: 114453.09 | C89: 109926.64 | D89: 134023.33 | E89: 117326.78 | F89: 135961.8 | G89: 97728.96 | H89: 111229.05 | I89: 118322.88 | J89: 151953.78 | K89: 120633.28 | L89: 144419.75
A90: 120502.25 | B90: 119793.34 | C90: 106675.33 | D90: 80423.69 | E90: 104245.62 | F90: 133799.01 | G90: 105080.87 | H90: 106274.06 | I90: 83582.4 | J90: 144278.48 | K90: 120835.51 | L90: 106383.4
A91: 111959.17 | B91: 117944.79 | C91: 123666.25 | D91: 140295.25 | E91: 105461.77 | F91: 108465.27 | G91: 101069.38 | H91: 127029.45 | I91: 129940.26 | J91: 131581 | K91: 130474.29 | L91: 115819.74
A92: 137694.39 | B92: 106132.19 | C92: 108546.57 | D92: 97237.05 | E92: 128531.02 | F92: 137421.92 | G92: 119721.38 | H92: 98442.22 | I92: 115053.3 | J92: 124459.64 | K92: 141264.48 | L92: 113698.38
A93: 149051.48 | B93: 128760.93 | C93: 129462.67 | D93: 191031.45 | E93: 121092.52 | F93: 180402.99 | G93: 118526.44 | H93: 122459.7 | I93: 179854.41 | J93: 170625.41 | K93: 156030.16 | L93: 156833.11
A94: 127735.03 | B94: 76960.12 | C94: 60864.99 | D94: 117554.14 | E94: 82198.68 | F94: 94397.81 | G94: 97961.38 | H94: 112969 | I94: 117916.13 | J94: 110443.3 | K94: 109054.1 | L94: 136418.08
A95: 59850.43 | B95: 76867.85 | C95: 63592.67 | D95: 51961.81 | E95: 70830.01 | F95: 107620.42 | G95: 81667.98 | H95: 87227.49 | I95: 106729.52 | J95: 94861.73 | K95: 92605.74 | L95: 73828.88
A96: 155719.25 | B96: 120030.92 | C96: 155426.83 | D96: 151349.33 | E96: 120318.93 | F96: 158869.55 | G96: 122766.93 | H96: 159966.8 | I96: 162936.03 | J96: 186481.64 | K96: 158185.76 | L96: 142063.04
A97: 92611.41 | B97: 69300.36 | C97: 88799.39 | D97: 105933.75 | E97: 61747.27 | F97: 58231.14 | G97: 54286.94 | H97: 79896.79 | I97: 91696.95 | J97: 83844.45 | K97: 81030.96 | L97: 92625.45
A98: 165308.65 | B98: 120105.46 | C98: 108809.22 | D98: 131967.22 | E98: 133345.6 | F98: 124033.57 | G98: 133215.29 | H98: 141637.16 | I98: 118834.45 | J98: 129077.31 | K98: 165102.73 | L98: 147768.54
A99: 190487.53 | B99: 164460.68 | C99: 162656.14 | D99: 189743.13 | E99: 151628.04 | F99: 188917.02 | G99: 163031.23 | H99: 191127.82 | I99: 188027.71 | J99: 203029.2 | K99: 196930.79 | L99: 195886.19
A100: 121916.67 | B100: 74266.82 | C100: 113036.02 | D100: 118107.53 | E100: 113823.66 | F100: 104046.25 | G100: 74025.23 | H100: 83757.63 | I100: 115923.42 | J100: 133535.16 | K100: 104098.13 | L100: 112159.01

Sheet x
A1: 32.4 | B1: 80.1 | C1: 63.2 | D1: 84.1 | E1: 92.4 | F1: 63.7 | G1: 14.7 | H1: 39.9 | I1: 48.9 | J1: 26.4 | K1: 80 | L1: 65.2
A2: 5.1 | B2: 16 | C2: 58.5 | D2: 77.8 | E2: 34.6 | F2: 52 | G2: 84.5 | H2: 56.9 | I2: 50.7 | J2: 58.9 | K2: 96.4 | L2: 75.4
A3: 64.8 | B3: 92.2 | C3: 85.5 | D3: 73.3 | E3: 85.5 | F3: 34.8 | G3: -18.9 | H3: 14.4 | I3: 53.3 | J3: 76.8 | K3: 68.1 | L3: 34.2
A4: 4 | B4: 25.6 | C4: 74.2 | D4: 63.7 | E4: 87.7 | F4: 86.5 | G4: 84 | H4: 25 | I4: 68.7 | J4: 74.6 | K4: 50 | L4: 95
A5: 39.9 | B5: 83.2 | C5: 9.9 | D5: 23.7 | E5: 58.4 | F5: 95.9 | G5: 23.2 | H5: 64.4 | I5: 80.9 | J5: 26.6 | K5: -10.1 | L5: -16.8
A6: 60.1 | B6: 34.2 | C6: 44.2 | D6: 39.1 | E6: 71 | F6: 3.2 | G6: 13.7 | H6: 88.2 | I6: 71.2 | J6: 78.7 | K6: 21.8 | L6: 99.1
A7: -46.1 | B7: 96.9 | C7: 1.9 | D7: 88 | E7: 85.1 | F7: 43.4 | G7: 86.5 | H7: 28.4 | I7: 64.5 | J7: 36.8 | K7: 42.9 | L7: 76.4
A8: 67.1 | B8: 79.2 | C8: 3.4 | D8: 43.9 | E8: 3.6 | F8: 15.9 | G8: 30.4 | H8: 68.1 | I8: 9.9 | J8: 6.5 | K8: 89.2 | L8: 57
A9: 61.3 | B9: 72.1 | C9: 67.3 | D9: 39.8 | E9: 96.1 | F9: 98.8 | G9: 19.7 | H9: 90.6 | I9: 74.4 | J9: 27.4 | K9: 51.8 | L9: 62.9
A10: 9.6 | B10: 18.5 | C10: 8.8 | D10: 85.8 | E10: 70.3 | F10: 21.4 | G10: 24.5 | H10: 63.1 | I10: 8.8 | J10: 80.3 | K10: 32.4 | L10: 67.1
A11: 61.3 | B11: 81.1 | C11: 85.3 | D11: 9.1 | E11: 63.9 | F11: 69.1 | G11: 11.7 | H11: 73.5 | I11: 67.6 | J11: 70.3 | K11: 19.9 | L11: 30.7
A12: 94 | B12: 46.9 | C12: 19.4 | D12: 58.2 | E12: -71.4 | F12: 80.5 | G12: 77.8 | H12: 70.2 | I12: 82 | J12: 59.6 | K12: 67.6 | L12: 74.3
A13: 66.9 | B13: 51.3 | C13: 9.6 | D13: 20.8 | E13: 15.6 | F13: 37.4 | G13: 0.4 | H13: 78.5 | I13: 11 | J13: 63.9 | K13: 79.9 | L13: 81.6
A14: 31.8 | B14: 97.4 | C14: 57.7 | D14: 5 | E14: 11.2 | F14: 87.9 | G14: 6.2 | H14: 47.6 | I14: 53.8 | J14: 95.6 | K14: 88.1 | L14: 70.4
A15: 94.9 | B15: 54.1 | C15: 95.7 | D15: 7.3 | E15: 8.5 | F15: 69.1 | G15: 72.7 | H15: 53.8 | I15: 61 | J15: 42.5 | K15: 40.4 | L15: 86.7
A16: 66.3 | B16: 75.3 | C16: -86.2 | D16: 56.5 | E16: 97.5 | F16: 85.7 | G16: 22.5 | H16: 22.8 | I16: 34.8 | J16: 36.5 | K16: 99.9 | L16: 21.4
A17: 53.3 | B17: 74.9 | C17: 30.6 | D17: 31 | E17: 13 | F17: 46.6 | G17: 98.3 | H17: 50.8 | I17: 61 | J17: 7.9 | K17: 70 | L17: 16.2
A18: 16.9 | B18: 19 | C18: 8.8 | D18: 22.8 | E18: 64.5 | F18: 67.9 | G18: 75.4 | H18: 29.6 | I18: 33.7 | J18: 42.4 | K18: 21.7 | L18: 72.2
A19: 76 | B19: 0.4 | C19: 85.4 | D19: 33.3 | E19: 59.2 | F19: 99.6 | G19: 36.3 | H19: 37.4 | I19: 39.3 | J19: 83 | K19: 83.4 | L19: 86.5
A20: 98.6 | B20: -94.6 | C20: 74.9 | D20: 91.2 | E20: 0.7 | F20: 8.9 | G20: 34.1 | H20: 25.3 | I20: 77.8 | J20: 24.2 | K20: 18.2 | L20: 88.2
A21: 33.8 | B21: 85.2 | C21: 11.6 | D21: 73.8 | E21: 91.4 | F21: 60.5 | G21: 41.8 | H21: 15.4 | I21: 3.7 | J21: 52.4 | K21: 30.4 | L21: 87.4
A22: 66.4 | B22: 5.1 | C22: 51.3 | D22: 33.8 | E22: 92.9 | F22: 13.1 | G22: 1.1 | H22: 4.8 | I22: 12.7 | J22: 56 | K22: 7.5 | L22: 68.5
A23: 88.6 | B23: 60.6 | C23: 9.7 | D23: 50.2 | E23: 69.5 | F23: 12.7 | G23: 80.9 | H23: 85.2 | I23: 15.3 | J23: 47.7 | K23: 75.2 | L23: 82.6
A24: 90.6 | B24: 23.6 | C24: 30.5 | D24: 80.1 | E24: 84.3 | F24: 47.4 | G24: 82.9 | H24: 31.9 | I24: 98.6 | J24: 54.9 | K24: 68.7 | L24: 34
A25: 23.2 | B25: 64.7 | C25: 26.7 | D25: 28.1 | E25: 17.9 | F25: 67.9 | G25: 75.6 | H25: 23.9 | I25: 40.9 | J25: 70.2 | K25: 96.1 | L25: 77.4
A26: 88.4 | B26: 57.2 | C26: 14.3 | D26: 4.6 | E26: 13 | F26: 48.8 | G26: 67.8 | H26: 20.4 | I26: 21.5 | J26: 78.9 | K26: 57 | L26: 33.3
A27: 99.2 | B27: 73.8 | C27: 53.3 | D27: 61.3 | E27: 69.1 | F27: -32.2 | G27: 8.2 | H27: 38.1 | I27: 15.3 | J27: 31.6 | K27: 18.8 | L27: 32.1
A28: 17.9 | B28: 59.2 | C28: 20.5 | D28: 60.8 | E28: -42.1 | F28: -90.1 | G28: 95.2 | H28: 89.9 | I28: 37.4 | J28: 63.3 | K28: 51.5 | L28: 99.7
A29: 98.4 | B29: 98 | C29: 36.7 | D29: 14 | E29: 91.2 | F29: 94.7 | G29: 80.6 | H29: 64.9 | I29: 54.4 | J29: 24.4 | K29: 94.8 | L29: 99.5
A30: 87.2 | B30: 78.5 | C30: 65.9 | D30: 14.2 | E30: 80.8 | F30: 40.7 | G30: 46.6 | H30: 82.4 | I30: 86 | J30: 61.6 | K30: 87.9 | L30: 1.1
A31: 33.6 | B31: 21 | C31: 58.9 | D31: 0.1 | E31: 62.3 | F31: 65 | G31: 29.3 | H31: 78.9 | I31: 70.1 | J31: 51.4 | K31: 59.1 | L31: 65.7
A32: 80.6 | B32: 40.6 | C32: 87.4 | D32: 3.8 | E32: 48.9 | F32: -76.7 | G32: 79.6 | H32: 7.3 | I32: 61.1 | J32: 82.3 | K32: 59.1 | L32: 32.2
A33: 12.4 | B33: 9.6 | C33: 72.4 | D33: 34.3 | E33: 31 | F33: 69.7 | G33: 6.3 | H33: 70.9 | I33: 8 | J33: 52.1 | K33: 1.1 | L33: -82.6
A34: 76.9 | B34: 22.9 | C34: 77.1 | D34: 47.4 | E34: 30.6 | F34: 7.1 | G34: 17.8 | H34: 61.4 | I34: 66.2 | J34: 32 | K34: 81.5 | L34: 69.9
A35: 89.9 | B35: 55.7 | C35: 38.8 | D35: 65.5 | E35: -57.5 | F35: 88.6 | G35: 35 | H35: 3.2 | I35: 85.5 | J35: 38.2 | K35: 70.6 | L35: -20.3
A36: 10.3 | B36: 20.3 | C36: 96.8 | D36: 62.5 | E36: 3.2 | F36: 67 | G36: 86.4 | H36: 29.3 | I36: 88.4 | J36: 41.4 | K36: 92.4 | L36: 70.2
A37: 16 | B37: 12.8 | C37: 27 | D37: 1 | E37: 93.5 | F37: 14.6 | G37: 46.2 | H37: 93.2 | I37: 39.4 | J37: 38.2 | K37: 4.9 | L37: 94.2
A38: 40.5 | B38: 65 | C38: 93.3 | D38: 58.2 | E38: 94 | F38: 22.7 | G38: -97.5 | H38: 30 | I38: 33.8 | J38: 98.9 | K38: 38 | L38: 4.5
A39: 16.6 | B39: 79.4 | C39: 55.2 | D39: 65.1 | E39: 9.1 | F39: 33.3 | G39: 68 | H39: 4 | I39: 98 | J39: 46.6 | K39: 93.8 | L39: 75.4
A40: 16 | B40: 11.4 | C40: 48.4 | D40: 91.4 | E40: 12.3 | F40: 35.2 | G40: 94.4 | H40: 98.5 | I40: 84.5 | J40: 32 | K40: 29.8 | L40: 49.4
A41: 53.9 | B41: 12.7 | C41: 18.1 | D41: 45.9 | E41: 99.5 | F41: 62.9 | G41: 34.5 | H41: 81.7 | I41: 59 | J41: 71 | K41: 21.5 | L41: 31.3
A42: 51.2 | B42: 94.6 | C42: 45.7 | D42: 93.4 | E42: 34.9 | F42: 87.5 | G42: 64.4 | H42: 19.3 | I42: 56.3 | J42: 99.6 | K42: 57.1 | L42: 35.5
A43: 54.6 | B43: 86 | C43: 29.5 | D43: 76.2 | E43: 47.7 | F43: 59.8 | G43: 30.9 | H43: 72.5 | I43: 56.4 | J43: 26.5 | K43: 98.1 | L43: 19.9
A44: 74.4 | B44: 37.4 | C44: 15 | D44: 63.1 | E44: 24.5 | F44: 49.5 | G44: 31.3 | H44: 55.5 | I44: 50.3 | J44: 87.4 | K44: 77.6 | L44: 21.1
A45: 51 | B45: 70.7 | C45: 60.3 | D45: 45.8 | E45: 86.7 | F45: 18.8 | G45: 66.7 | H45: 66.7 | I45: 39.1 | J45: 50.8 | K45: 41.2 | L45: 39.2
A46: 31.5 | B46: 14.2 | C46: 89.3 | D46: -50.8 | E46: 40.6 | F46: 70 | G46: -15.3 | H46: 74.1 | I46: 93.9 | J46: 53.6 | K46: 2.1 | L46: 22.3
A47: 46.2 | B47: 82.8 | C47: 70.4 | D47: 76.2 | E47: 48.4 | F47: 93.6 | G47: 93.5 | H47: 76.4 | I47: 82.6 | J47: 91.8 | K47: 81.8 | L47: 91.4
A48: 98.3 | B48: 70.3 | C48: 42.7 | D48: 59.6 | E48: 87.8 | F48: 93.5 | G48: 71.9 | H48: 48.4 | I48: 56.1 | J48: 47.7 | K48: 34.8 | L48: 93.7
A49: 8.5 | B49: 90.7 | C49: -23.9 | D49: 70 | E49: 2.8 | F49: 90.5 | G49: 8.5 | H49: 21.8 | I49: 25.4 | J49: 77.6 | K49: 14.7 | L49: 7.6
A50: 99.5 | B50: 66.6 | C50: 84.2 | D50: 79.8 | E50: 72.9 | F50: 88.2 | G50: 92.7 | H50: 15.9 | I50: 8.6 | J50: 26.3 | K50: 82.2 | L50: 63.5
A51: 95.8 | B51: 20.5 | C51: 23.2 | D51: 99.1 | E51: 18.9 | F51: 87 | G51: 15.2 | H51: 94.9 | I51: 11.6 | J51: 1.8 | K51: 98.9 | L51: 92.9
A52: 74.2 | B52: 17.5 | C52: 35.1 | D52: 91.7 | E52: 10.5 | F52: 35.1 | G52: 98.7 | H52: 86 | I52: 90 | J52: 35.8 | K52: 91.2 | L52: 34.4
A53: 11.1 | B53: 18.5 | C53: 54.5 | D53: 70.6 | E53: 17.1 | F53: 70.7 | G53: 25.1 | H53: 18 | I53: 26.6 | J53: 98.9 | K53: 14.2 | L53: 73.8
A54: 28.3 | B54: 41.1 | C54: 22.7 | D54: 58.6 | E54: 33.4 | F54: 10.2 | G54: 34.3 | H54: 43.6 | I54: 97.5 | J54: 93.6 | K54: 84.3 | L54: 0.5
A55: 12.1 | B55: 16.3 | C55: 49.6 | D55: 62.2 | E55: 57.9 | F55: 98 | G55: 60.5 | H55: 57 | I55: 57.8 | J55: 45.9 | K55: 20.4 | L55: 33.3
A56: 68 | B56: 15.4 | C56: 85.1 | D56: 90.3 | E56: 47.5 | F56: 14.9 | G56: 19.3 | H56: 28.6 | I56: 80 | J56: 53.7 | K56: 51.2 | L56: 92.9
A57: 61.7 | B57: 30.9 | C57: 33.1 | D57: 69.6 | E57: 38.8 | F57: 66.5 | G57: 86 | H57: 1.7 | I57: 73 | J57: 99.9 | K57: 60.5 | L57: 20.6
A58: 68.8 | B58: 49.1 | C58: 33 | D58: 32.9 | E58: 19.2 | F58: 67.2 | G58: 25.1 | H58: -4.7 | I58: 4.6 | J58: 37 | K58: 47.2 | L58: 58.2
A59: 31.7 | B59: 23.4 | C59: 64.8 | D59: 23.2 | E59: 14.4 | F59: 83.5 | G59: 18.3 | H59: 5.6 | I59: 43.9 | J59: 60.8 | K59: 47.6 | L59: 77.1
A60: 4.4 | B60: 54.3 | C60: 64.8 | D60: 33.4 | E60: 35.7 | F60: 58.5 | G60: 62.6 | H60: 67.1 | I60: 20.7 | J60: 56.4 | K60: 88.7 | L60: 83.8
A61: 82.2 | B61: 6.6 | C61: 82.3 | D61: 27.2 | E61: 21.8 | F61: 57.7 | G61: 74.6 | H61: 72.7 | I61: 99.7 | J61: 99.1 | K61: 6.3 | L61: 63.3
A62: 79.4 | B62: 9.2 | C62: 4.6 | D62: 88.9 | E62: 30.9 | F62: 86.6 | G62: 0.3 | H62: 38.3 | I62: 77.1 | J62: 19.1 | K62: 91.6 | L62: 41.5
A63: 99.2 | B63: -5.6 | C63: 92.3 | D63: 47.1 | E63: 39.1 | F63: 37.6 | G63: 16.5 | H63: 40.4 | I63: 70.5 | J63: 70.9 | K63: 61.6 | L63: 29.3
A64: 29.1 | B64: 27.1 | C64: 29.7 | D64: 24.5 | E64: 58.3 | F64: 7.6 | G64: 33 | H64: 44 | I64: 42.5 | J64: 56.4 | K64: 28.1 | L64: 78.6
A65: 99.1 | B65: 44.2 | C65: 67.8 | D65: 35.6 | E65: 80.7 | F65: 99.2 | G65: 79.8 | H65: 18.8 | I65: 17.6 | J65: -2.3 | K65: 41.4 | L65: 60.1
A66: 77.7 | B66: 19.6 | C66: 11.8 | D66: 58.1 | E66: 39.9 | F66: 34.8 | G66: 42.6 | H66: 34.1 | I66: 98.5 | J66: 10 | K66: 83.8 | L66: 9.7
A67: 17.5 | B67: 68.9 | C67: 78.8 | D67: 66.6 | E67: 75.5 | F67: 84.8 | G67: 81.9 | H67: 27.6 | I67: 62.7 | J67: 93.9 | K67: 11.4 | L67: 93.3
A68: 88.4 | B68: 3.5 | C68: 73.3 | D68: 89 | E68: 38.4 | F68: 52.8 | G68: 6.4 | H68: 6.9 | I68: 80.7 | J68: 5.7 | K68: 83.9 | L68: 40.2
A69: 75.3 | B69: 80.9 | C69: 14.6 | D69: 11.4 | E69: 96.1 | F69: 69.3 | G69: 92.6 | H69: 15.2 | I69: 74.5 | J69: 30.4 | K69: 79 | L69: 60.3
A70: 90.3 | B70: 71.2 | C70: 43.9 | D70: 18.3 | E70: 50.7 | F70: 23.5 | G70: 60.3 | H70: 99.4 | I70: 66.5 | J70: 66.8 | K70: 16.9 | L70: 71.7
A71: 61.1 | B71: 60.8 | C71: 78.1 | D71: 82.7 | E71: 45.6 | F71: 17.4 | G71: 16.5 | H71: 89 | I71: 10.5 | J71: 91.7 | K71: 10.4 | L71: 62.6
A72: 14.7 | B72: 56.8 | C72: 71.1 | D72: 32.5 | E72: 59.2 | F72: 90.4 | G72: 30.2 | H72: 47.9 | I72: 68.8 | J72: 88.7 | K72: 52.4 | L72: 92.9
A73: 83 | B73: 51.6 | C73: 11.9 | D73: 87.4 | E73: 54 | F73: 95 | G73: 87.9 | H73: 61.7 | I73: 55.4 | J73: 67.1 | K73: 51.8 | L73: 31.7
A74: 37.3 | B74: 64.8 | C74: 65.7 | D74: 28.6 | E74: 6.1 | F74: 89.9 | G74: 22.1 | H74: 70.4 | I74: 82.1 | J74: 56.2 | K74: 8 | L74: 80.5
A75: 69.3 | B75: -30.1 | C75: 26.7 | D75: 6.5 | E75: 78.8 | F75: 9.5 | G75: 58 | H75: 3 | I75: 54.9 | J75: 78.4 | K75: 95.9 | L75: 10
A76: 14.5 | B76: 90.8 | C76: 43 | D76: 90.8 | E76: 18.7 | F76: 12.9 | G76: 30.9 | H76: 99.3 | I76: 10.3 | J76: 46.3 | K76: 19.4 | L76: 35.8
A77: 2 | B77: 36.6 | C77: 5.9 | D77: 53 | E77: 59.3 | F77: 98.4 | G77: 33.4 | H77: 58.5 | I77: 21.5 | J77: 56.9 | K77: 22.6 | L77: 78.9
A78: 80.6 | B78: 60.8 | C78: 73.1 | D78: 10.4 | E78: 16.9 | F78: 77.8 | G78: 50 | H78: 59.4 | I78: 9.1 | J78: 42.5 | K78: 40.3 | L78: 48
A79: 12.6 | B79: 92 | C79: 4.5 | D79: 95.5 | E79: 18.4 | F79: 60.2 | G79: 73 | H79: 24.1 | I79: 71.9 | J79: 48.9 | K79: 32 | L79: 88.5
A80: 52.9 | B80: 40.7 | C80: 51.5 | D80: 64.4 | E80: 27.3 | F80: 34 | G80: 16.4 | H80: 68.5 | I80: 39.3 | J80: 63.7 | K80: 60.1 | L80: 54.3
A81: 50.9 | B81: 69.1 | C81: 68 | D81: 60.1 | E81: 27.5 | F81: 80.3 | G81: 52.5 | H81: 40.9 | I81: 10.5 | J81: 95.8 | K81: 15.6 | L81: 40.6
A82: 6.6 | B82: 37.6 | C82: 62.6 | D82: 62.8 | E82: 11.9 | F82: 23 | G82: 77.1 | H82: 51.2 | I82: 19.4 | J82: 40.4 | K82: 76.9 | L82: 37.1
A83: 9.7 | B83: 39.6 | C83: 95.6 | D83: 93.9 | E83: 50.3 | F83: 83.8 | G83: 0.2 | H83: 56 | I83: 7.5 | J83: 82.2 | K83: 92.2 | L83: 31.3
A84: 58.8 | B84: 2.7 | C84: 8.9 | D84: 61.4 | E84: -6.9 | F84: -26.3 | G84: 5.2 | H84: -6.2 | I84: 89.8 | J84: 68 | K84: 14.1 | L84: 55.7
A85: 58.9 | B85: 50.2 | C85: 87.7 | D85: 58 | E85: 8.9 | F85: 13.2 | G85: 67.3 | H85: 70.1 | I85: 6.6 | J85: 49.8 | K85: 15.7 | L85: 7
A86: 51.5 | B86: 9.6 | C86: 37.4 | D86: 98.9 | E86: 70.6 | F86: 46.5 | G86: 39.2 | H86: 35.4 | I86: 80.8 | J86: 30.7 | K86: 40.2 | L86: 21.4
A87: 62.4 | B87: 15.6 | C87: 44.5 | D87: 7.3 | E87: 4.1 | F87: 75.2 | G87: 62.7 | H87: 94.7 | I87: 32.9 | J87: 88.7 | K87: 23 | L87: 43.7
A88: 34.5 | B88: 48.8 | C88: 10 | D88: 19.4 | E88: 81.9 | F88: 21.6 | G88: 94.7 | H88: 61.7 | I88: 34.5 | J88: 44 | K88: 74.9 | L88: 99.8
A89: -20.2 | B89: 32 | C89: 28.3 | D89: 96.6 | E89: 57.8 | F89: 13.6 | G89: 15.2 | H89: -13.7 | I89: 54 | J89: 40.4 | K89: 49.7 | L89: 79.7
A90: 88.9 | B90: 37.9 | C90: 83.9 | D90: 59.5 | E90: 73.6 | F90: 38.1 | G90: 12.1 | H90: 17 | I90: 4.3 | J90: 76.9 | K90: 19.7 | L90: 63.3
A91: 98.7 | B91: 2.3 | C91: 24.5 | D91: 1.4 | E91: 84.8 | F91: 39.2 | G91: 9.3 | H91: 30.6 | I91: 82.1 | J91: 93.9 | K91: 71.7 | L91: 37.2
A92: 59.2 | B92: 13.1 | C92: 40.8 | D92: 55.9 | E92: 39.3 | F92: 21 | G92: 50.9 | H92: 18.2 | I92: 0.1 | J92: 17.4 | K92: 61.6 | L92: 66.8
A93: -17.8 | B93: 52.2 | C93: 90 | D93: 36.6 | E93: -79.4 | F93: 40.5 | G93: 28 | H93: 28.1 | I93: 92.2 | J93: 44.5 | K93: -68.6 | L93: 85.4
A94: 20.3 | B94: 49.3 | C94: 74.9 | D94: 62.5 | E94: 39.4 | F94: 11.6 | G94: 90.8 | H94: 93.9 | I94: 11 | J94: 75.2 | K94: 42.9 | L94: 48.9
A95: 63.4 | B95: 68.8 | C95: 18.1 | D95: 94.5 | E95: -35.7 | F95: 52.9 | G95: 9.6 | H95: 1 | I95: 39.1 | J95: 79.5 | K95: 83.3 | L95: 90.3
A96: 18.6 | B96: 60.3 | C96: 82.7 | D96: 51.8 | E96: 90.2 | F96: 80 | G96: 9.5 | H96: 49.8 | I96: 43.4 | J96: 32.9 | K96: 89.6 | L96: 15.4
A97: 15.2 | B97: 17.5 | C97: 96.6 | D97: 96.9 | E97: 39.6 | F97: 43.1 | G97: 44.8 | H97: 30 | I97: 48.9 | J97: 70.8 | K97: 41.1 | L97: 43.5
A98: 7.5 | B98: 49.9 | C98: 37 | D98: 85.6 | E98: 28 | F98: 7.2 | G98: 81.9 | H98: 71.2 | I98: 59 | J98: 4.2 | K98: 8.6 | L98: 37.1
A99: 79.6 | B99: 39 | C99: 2.5 | D99: 27.2 | E99: 57 | F99: 59.5 | G99: 54.1 | H99: 76.6 | I99: 20.7 | J99: 14.7 | K99: 94.2 | L99: 40.6
A100: 65.2 | B100: 69.9 | C100: 84.4 | D100: 49.1 | E100: 51.6 | F100: 71.5 | G100: 11 | H100: 75.5 | I100: 9.9 | J100: 66.7 | K100: -78.8 | L100: 78.9

Sheet Excel b
A1: Solution Vectors, x, for Each Input b Vector Using Excel Minverse | N1: Square of the Error for Each Solution Value in Each x Solution Using Excel Minverse
A2: x1 | B2: x2 | C2: x3 | D2: x4 | E2: x5 | F2: x6 | G2: x7 | H2: x8 | I2: x9 | J2: x10 | K2: x11 | L2: x12 | N2: Esqd1 | O2: Esqd2 | P2: Esqd3 | Q2: Esqd4 | R2: Esqd5 | S2: Esqd6 | T2: Esqd7 | U2: Esqd8 | V2: Esqd9 | W2: Esqd10 | X2: Esqd11 | Y2: Esqd12
A3: =MMULT(MINVERSE(A),b) -> 32.4 | B3: 80.1 | C3: 63.2 | D3: 84.1 | E3: 92.4 | F3: 63.7 | G3: 14.7 | H3: 39.9 | I3: 48.9 | J3: 26.4 | K3: 80 | L3: 65.2 | N3: =(A3-x!A1)^2 -> 7.175680742e-24 | O3: =(B3-x!B1)^2 -> 2.355526041e-24 | P3: =(C3-x!C1)^2 -> 2.764673483e-25 | Q3: =(D3-x!D1)^2 -> 2.624521299e-24 | R3: =(E3-x!E1)^2 -> 5.234704262e-24 | S3: =(F3-x!F1)^2 -> 6.009226832e-24 | T3: =(G3-x!G1)^2 -> 4.532510771e-25 | U3: =(H3-x!H1)^2 -> 7.149477938e-25 | V3: =(I3-x!I1)^2 -> 1.262177448e-27 | W3: =(J3-x!J1)^2 -> 5.35617622e-25 | X3: =(K3-x!K1)^2 -> 5.048709793e-27 | Y3: =(L3-x!L1)^2 -> 4.543838814e-26
A4: 5.1 | B4: 16 | C4: 58.5 | D4: 77.8 | E4: 34.6 | F4: 52 | G4: 84.5 | H4: 56.9 | I4: 50.7 | J4: 58.9 | K4: 96.4 | L4: 75.4 | N4: =(A4-x!A2)^2 -> 5.21925805e-23 | O4: =(B4-x!B2)^2 -> 5.856144902e-23 | P4: =(C4-x!C2)^2 -> 3.087407208e-23 | Q4: =(D4-x!D2)^2 -> 2.172641578e-23 | R4: =(E4-x!E2)^2 -> 3.45295904e-23 | S4: =(F4-x!F2)^2 -> 4.740541596e-23 | T4: =(G4-x!G2)^2 -> 2.199217986e-23 | U4: =(H4-x!H2)^2 -> 7.367400448e-23 | V4: =(I4-x!I2)^2 -> 3.345254914e-23 | W4: =(J4-x!J2)^2 -> 7.800504018e-23 | X4: =(K4-x!K2)^2 -> 5.089180251e-23 | Y4: =(L4-x!L2)^2 -> 3.647692826e-23
A5: 64.8 | B5: 92.2 | C5: 85.5 | D5: 73.3 | E5: 85.5 | F5: 34.8 | G5: -18.9 | H5: 14.4 | I5: 53.3 | J5: 76.8 | K5: 68.1 | L5: 34.2 | N5: =(A5-x!A3)^2 -> 6.044113416e-24 | O5: =(B5-x!B3)^2 -> 1.940724045e-25 | P5: =(C5-x!C3)^2 -> 4.543838814e-24 | Q5: =(D5-x!D3)^2 -> 2.545054607e-23 | R5: =(E5-x!E3)^2 -> 0 | S5: =(F5-x!F3)^2 -> 6.543127892e-26 | T5: =(G5-x!G3)^2 -> 5.548140788e-24 | U5: =(H5-x!H3)^2 -> 4.873551118e-25 | V5: =(I5-x!I3)^2 -> 5.048709793e-25 | W5: =(J5-x!J3)^2 -> 1.135959704e-24 | X5: =(K5-x!K3)^2 -> 3.231174268e-25 | Y5: =(L5-x!L3)^2 -> 6.255553382e-24
A6: 4 | B6: 25.6 | C6: 74.2 | D6: 63.7 | E6: 87.7 | F6: 86.5 | G6: 84 | H6: 25 | I6: 68.7 | J6: 74.6 | K6: 50 | L6: 95 | N6: =(A6-x!A4)^2 -> 1.052724654e-22 | O6: =(B6-x!B4)^2 -> 1.002310763e-22 | P6: =(C6-x!C4)^2 -> 9.980471273e-23 | Q6: =(D6-x!D4)^2 -> 1.338101966e-22 | R6: =(E6-x!E4)^2 -> 9.092544584e-23 | S6: =(F6-x!F4)^2 -> 1.472841933e-22 | T6: =(G6-x!G4)^2 -> 7.838202734e-23 | U6: =(H6-x!H4)^2 -> 9.119666253e-23 | V6: =(I6-x!I4)^2 -> 1.361214959e-22 | W6: =(J6-x!J4)^2 -> 1.308676066e-22 | X6: =(K6-x!K4)^2 -> 1.15115632e-22 | Y6: =(L6-x!L4)^2 -> 1.465951454e-22
A7: 39.9 | B7: 83.2 | C7: 9.9 | D7: 23.7 | E7: 58.4 | F7: 95.9 | G7: 23.2 | H7: 64.4 | I7: 80.9 | J7: 26.6 | K7: -10.1 | L7: -16.8 | N7: =(A7-x!A5)^2 -> 5.998372106e-25 | O7: =(B7-x!B5)^2 -> 4.363902797e-24 | P7: =(C7-x!C5)^2 -> 1.127156016e-25 | Q7: =(D7-x!D5)^2 -> 2.438653048e-25 | R7: =(E7-x!E5)^2 -> 1.45907713e-26 | S7: =(F7-x!F5)^2 -> 2.26909213e-24 | T7: =(G7-x!G5)^2 -> 9.119232064e-26 | U7: =(H7-x!H5)^2 -> 2.617251157e-25 | V7: =(I7-x!I5)^2 -> 2.101071068e-24 | W7: =(J7-x!J5)^2 -> 4.543838814e-28 | X7: =(K7-x!K5)^2 -> 4.203839764e-25 | Y7: =(L7-x!L5)^2 -> 6.503874174e-25
A8: 60.1 | B8: 34.2 | C8: 44.2 | D8: 39.1 | E8: 71 | F8: 3.2 | G8: 13.7 | H8: 88.2 | I8: 71.2 | J8: 78.7 | K8: 21.8 | L8: 99.1 | N8: =(A8-x!A6)^2 -> 7.137467058e-23 | O8: =(B8-x!B6)^2 -> 8.598078996e-23 | P8: =(C8-x!C6)^2 -> 1.039642942e-22 | Q8: =(D8-x!D6)^2 -> 7.01791361e-23 | R8: =(E8-x!E6)^2 -> 3.427952781e-23 | S8: =(F8-x!F6)^2 -> 6.989668051e-23 | T8: =(G8-x!G6)^2 -> 4.682016952e-23 | U8: =(H8-x!H6)^2 -> 6.423897562e-23 | V8: =(I8-x!I6)^2 -> 9.980471273e-23 | W8: =(J8-x!J6)^2 -> 5.910645724e-23 | X8: =(K8-x!K6)^2 -> 7.011962443e-23 | Y8: =(L8-x!L6)^2 -> 9.393104376e-23
A9: -46.1 | B9: 96.9 | C9: 1.9 | D9: 88 | E9: 85.1 | F9: 43.4 | G9: 86.5 | H9: 28.4 | I9: 64.5 | J9: 36.8 | K9: 42.9 | L9: 76.4 | N9: =(A9-x!A7)^2 -> 2.622219592e-22 | O9: =(B9-x!B7)^2 -> 2.260537596e-22 | P9: =(C9-x!C7)^2 -> 1.792611862e-22 | Q9: =(D9-x!D7)^2 -> 1.79963482e-22 | R9: =(E9-x!E7)^2 -> 1.11785705e-22 | S9: =(F9-x!F7)^2 -> 1.975299629e-22 | T9: =(G9-x!G7)^2 -> 1.853409638e-22 | U9: =(H9-x!H7)^2 -> 2.033645043e-22 | V9: =(I9-x!I7)^2 -> 2.0356721e-22 | W9: =(J9-x!J7)^2 -> 2.416991054e-22 | X9: =(K9-x!K7)^2 -> 2.481485797e-22 | Y9: =(L9-x!L7)^2 -> 2.565005088e-22
A10: 67.1 | B10: 79.2 | C10: 3.4 | D10: 43.9 | E10: 3.6 | F10: 15.9 | G10: 30.4 | H10: 68.1 | I10: 9.9 | J10: 6.5 | K10: 89.2 | L10: 57 | N10: =(A10-x!A8)^2 -> 6.398532844e-24 | O10: =(B10-x!B8)^2 -> 1.059037561e-23 | P10: =(C10-x!C8)^2 -> 5.458546897e-24 | Q10: =(D10-x!D8)^2 -> 2.205887332e-23 | R10: =(E10-x!E8)^2 -> 7.66149797e-25 | S10: =(F10-x!F8)^2 -> 1.225839675e-23 | T10: =(G10-x!G8)^2 -> 1.511028354e-24 | U10: =(H10-x!H8)^2 -> 3.735237454e-24 | V10: =(I10-x!I8)^2 -> 5.539728375e-25 | W10: =(J10-x!J8)^2 -> 4.187601851e-24 | X10: =(K10-x!K8)^2 -> 7.367279279e-24 | Y10: =(L10-x!L8)^2 -> 2.624521299e-24
A11: 61.3 | B11: 72.1 | C11: 67.3 | D11: 39.8 | E11: 96.1 | F11: 98.8 | G11: 19.7 | H11: 90.6 | I11: 74.4 | J11: 27.4 | K11: 51.8 | L11: 62.9 | N11: =(A11-x!A9)^2 -> 1.896216639e-22 | O11: =(B11-x!B9)^2 -> 1.292469707e-22 | P11: =(C11-x!C9)^2 -> 1.628519909e-22 | Q11: =(D11-x!D9)^2 -> 1.759823219e-22 | R11: =(E11-x!E9)^2 -> 8.584906912e-23 | S11: =(F11-x!F9)^2 -> 9.614762931e-23 | T11: =(G11-x!G9)^2 -> 1.173370769e-22 | U11: =(H11-x!H9)^2 -> 1.421557139e-22 | V11: =(I11-x!I9)^2 -> 1.528547377e-22 | W11: =(J11-x!J9)^2 -> 1.3861985e-22 | X11: =(K11-x!K9)^2 -> 1.484939146e-22 | Y11: =(L11-x!L9)^2 -> 1.765483328e-22
A12: 9.6 | B12: 18.5 | C12: 8.8 | D12: 85.8 | E12: 70.3 | F12: 21.4 | G12: 24.5 | H12: 63.1 | I12: 8.8 | J12: 80.3 | K12: 32.4 | L12: 67.1 | N12: =(A12-x!A10)^2 -> 3.775167826e-22 | O12: =(B12-x!B10)^2 -> 2.886287309e-22 | P12: =(C12-x!C10)^2 -> 2.067731439e-22 | Q12: =(D12-x!D10)^2 -> 3.626185322e-22 | R12: =(E12-x!E10)^2 -> 2.439134695e-22 | S12: =(F12-x!F10)^2 -> 3.677783641e-22 | T12: =(G12-x!G10)^2 -> 2.868208511e-22 | U12: =(H12-x!H10)^2 -> 3.329434277e-22 | V12: =(I12-x!I10)^2 -> 3.632276622e-22 | W12: =(J12-x!J10)^2 -> 4.032038985e-22 | X12: =(K12-x!K10)^2 -> 3.436596677e-22 | Y12: =(L12-x!L10)^2 -> 4.543838814e-22
A13: 61.3 | B13: 81.1 | C13: 85.3 | D13: 9.1 | E13: 63.9 | F13: 69.1 | G13: 11.7 | H13: 73.5 | I13: 67.6 | J13: 70.3 | K13: 19.9 | L13: 30.7 | N13: =(A13-x!A11)^2 -> 2.080896423e-23 | O13: =(B13-x!B11)^2 -> 2.146226728e-23 | P13: =(C13-x!C11)^2 -> 1.686693163e-23 | Q13: =(D13-x!D11)^2 -> 1.564951415e-23 | R13: =(E13-x!E11)^2 -> 1.64608639e-23 | S13: =(F13-x!F11)^2 -> 8.240302176e-24 | T13: =(G13-x!G11)^2 -> 2.657389662e-23 | U13: =(H13-x!H11)^2 -> 2.252855479e-23 | V13: =(I13-x!I11)^2 -> 2.855065583e-23 | W13: =(J13-x!J11)^2 -> 3.444613523e-23 | X13: =(K13-x!K11)^2 -> 2.466804654e-23 | Y13: =(L13-x!L11)^2 -> 3.308370303e-23
A14: 94 | B14: 46.9 | C14: 19.4 | D14: 58.2 | E14: -71.4 | F14: 80.5 | G14: 77.8 | H14: 70.2 | I14: 82 | J14: 59.6 | K14: 67.6 | L14: 74.3 | N14: =(A14-x!A12)^2 -> 1.829672624e-23 | O14: =(B14-x!B12)^2 -> 2.199217986e-23 | P14: =(C14-x!C12)^2 -> 4.635169974e-24 | Q14: =(D14-x!D12)^2 -> 5.564889883e-24 | R14: =(E14-x!E12)^2 -> 7.290336942e-24 | S14: =(F14-x!F12)^2 -> 1.182690561e-23 | T14: =(G14-x!G12)^2 -> 6.763049691e-24 | U14: =(H14-x!H12)^2 -> 1.769391029e-23 | V14: =(I14-x!I12)^2 -> 1.182690561e-23 | W14: =(J14-x!J12)^2 -> 1.247076757e-23 | X14: =(K14-x!K12)^2 -> 3.087407208e-23 | Y14: =(L14-x!L12)^2 -> 9.248428548e-24
A15: 66.9 | B15: 51.3 | C15: 9.6 | D15: 20.8 | E15: 15.6 | F15: 37.4 | G15: 0.4 | H15: 78.5 | I15: 11 | J15: 63.9 | K15: 79.9 | L15: 81.6 | N15: =(A15-x!A13)^2 -> 8.240302176e-24 | O15: =(B15-x!B13)^2 -> 9.863361401e-24 | P15: =(C15-x!C13)^2 -> 2.479171784e-23 | Q15: =(D15-x!D13)^2 -> 3.028469832e-23 | R15: =(E15-x!E13)^2 -> 8.270925757e-24 | S15: =(F15-x!F13)^2 -> 2.410663001e-23 | T15: =(G15-x!G13)^2 -> 1.45699301e-23 | U15: =(H15-x!H13)^2 -> 1.745561119e-23 | V15: =(I15-x!I13)^2 -> 1.560737951e-23 | W15: =(J15-x!J13)^2 -> 2.609986064e-23 | X15: =(K15-x!K13)^2 -> 9.248428548e-24 | Y15: =(L15-x!L13)^2 -> 1.182690561e-23
A16: 31.8 | B16: 97.4 | C16: 57.7 | D16: 5 | E16: 11.2 | F16: 87.9 | G16: 6.2 | H16: 47.6 | I16: 53.8 | J16: 95.6 | K16: 88.1 | L16: 70.4 | N16: =(A16-x!A14)^2 -> 5.350977311e-23 | O16: =(B16-x!B14)^2 -> 7.077564116e-23 | P16: =(C16-x!C14)^2 -> 6.042477634e-23 | Q16: =(D16-x!D14)^2 -> 9.952097524e-23 | R16: =(E16-x!E14)^2 -> 6.964443987e-23 | S16: =(F16-x!F14)^2 -> 9.72656156e-23 | T16: =(G16-x!G14)^2 -> 5.527835587e-23 | U16: =(H16-x!H14)^2 -> 2.495117818e-23 | V16: =(I16-x!I14)^2 -> 6.630551351e-23 | W16: =(J16-x!J14)^2 -> 7.029823516e-23 | X16: =(K16-x!K14)^2 -> 3.981129815e-23 | Y16: =(L16-x!L14)^2 -> 8.903823812e-23
A17: 94.9 | B17: 54.1 | C17: 95.7 | D17: 7.3 | E17: 8.5 | F17: 69.1 | G17: 72.7 | H17: 53.8 | I17: 61 | J17: 42.5 | K17: 40.4 | L17: 86.7 | N17: =(A17-x!A15)^2 -> 7.221755268e-23 | O17: =(B17-x!B15)^2 -> 2.061494232e-23 | P17: =(C17-x!C15)^2 -> 8.077935669e-24 | Q17: =(D17-x!D15)^2 -> 2.073609952e-23 | R17: =(E17-x!E15)^2 -> 4.153316063e-23 | S17: =(F17-x!F15)^2 -> 5.35617622e-23 | T17: =(G17-x!G15)^2 -> 2.093881705e-23 | U17: =(H17-x!H15)^2 -> 3.927512517e-23 | V17: =(I17-x!I15)^2 -> 1.302890244e-23 | W17: =(J17-x!J15)^2 -> 2.29350769e-23 | X17: =(K17-x!K15)^2 -> 2.954631189e-23 | Y17: =(L17-x!L15)^2 -> 3.182888407e-23
A18: 66.3 | B18: 75.3 | C18: -86.2 | D18: 56.5 | E18: 97.5 | F18: 85.7 | G18: 22.5 | H18: 22.8 | I18: 34.8 | J18: 36.5 | K18: 99.9 | L18: 21.4 | N18: =(A18-x!A16)^2 -> 5.041439651e-24 | O18: =(B18-x!B16)^2 -> 7.514499657e-25 | P18: =(C18-x!C16)^2 -> 2.399348842e-24 | Q18: =(D18-x!D16)^2 -> 1.105788614e-23 | R18: =(E18-x!E16)^2 -> 1.74665164e-24 | S18: =(F18-x!F16)^2 -> 7.997358261e-24 | T18: =(G18-x!G16)^2 -> 1.046900463e-24 | U18: =(H18-x!H16)^2 -> 7.043063758e-24 | V18: =(I18-x!I16)^2 -> 3.790369365e-24 | W18: =(J18-x!J16)^2 -> 3.30872245e-24 | X18: =(K18-x!K16)^2 -> 6.543127892e-26 | Y18: =(L18-x!L16)^2 -> 9.754612192e-25
A19: 53.3 | B19: 74.9 | C19: 30.6 | D19: 31 | E19: 13 | F19: 46.6 | G19: 98.3 | H19: 50.8 | I19: 61 | J19: 7.9 | K19: 70 | L19: 16.2 | N19: =(A19-x!A17)^2 -> 5.694157048e-23 | O19: =(B19-x!B17)^2 -> 3.427952781e-23 | P19: =(C19-x!C17)^2 -> 2.712616236e-23 | Q19: =(D19-x!D17)^2 -> 6.10893885e-23 | R19: =(E19-x!E17)^2 -> 5.048709793e-23 | S19: =(F19-x!F17)^2 -> 8.079071629e-23 | T19: =(G19-x!G17)^2 -> 3.57935349e-23 | U19: =(H19-x!H17)^2 -> 6.758450316e-23 | V19: =(I19-x!I17)^2 -> 3.247350334e-23 | W19: =(J19-x!J17)^2 -> 7.628881017e-23 | X19: =(K19-x!K17)^2 -> 6.042477634e-23 | Y19: =(L19-x!L17)^2 -> 4.456295448e-23
A20: 16.9 | B20: 19 | C20: 8.8 | D20: 22.8 | E20: 64.5 | F20: 67.9 | G20: 75.4 | H20: 29.6 | I20: 33.7 | J20: 42.4 | K20: 21.7 | L20: 72.2 | N20: =(A20-x!A18)^2 -> 1.389546804e-22 | O20: =(B20-x!B18)^2 -> 8.168731666e-23 | P20: =(C20-x!C18)^2 -> 1.15802774e-22 | Q20: =(D20-x!D18)^2 -> 1.226292355e-22 | R20: =(E20-x!E18)^2 -> 7.563855843e-23 | S20: =(F20-x!F18)^2 -> 1.09394636e-22 | T20: =(G20-x!G18)^2 -> 7.391816009e-23 | U20: =(H20-x!H18)^2 -> 1.26195581e-22 | V20: =(I20-x!I18)^2 -> 1.055642809e-22 | W20: =(J20-x!J18)^2 -> 1.937533765e-22 | X20: =(K20-x!K18)^2 -> 1.427493538e-22 | Y20: =(L20-x!L18)^2 -> 1.780621379e-22
A21: 76 | B21: 0.4 | C21: 85.4 | D21: 33.3 | E21: 59.2 | F21: 99.6 | G21: 36.3 | H21: 37.4 | I21: 39.3 | J21: 83 | K21: 83.4 | L21: 86.5 | N21: =(A21-x!A19)^2 -> 1.450474129e-23 | O21: =(B21-x!B19)^2 -> 5.427099283e-23 | P21: =(C21-x!C19)^2 -> 4.461039973e-23 | Q21: =(D21-x!D19)^2 -> 2.133079888e-23 | R21: =(E21-x!E19)^2 -> 5.109476064e-23 | S21: =(F21-x!F19)^2 -> 2.334523408e-23 | T21: =(G21-x!G19)^2 -> 1.663428708e-23 | U21: =(H21-x!H19)^2 -> 3.954275728e-23 | V21: =(I21-x!I19)^2 -> 5.397858368e-23 | W21: =(J21-x!J19)^2 -> 2.916134777e-23 | X21: =(K21-x!K19)^2 -> 1.915763223e-23 | Y21: =(L21-x!L19)^2 -> 7.762896178e-23
A22: 98.6 | B22: -94.6 | C22: 74.9 | D22: 91.2 | E22: 0.7 | F22: 8.9 | G22: 34.1 | H22: 25.3 | I22: 77.8 | J22: 24.2 | K22: 18.2 | L22: 88.2 | N22: =(A22-x!A20)^2 -> 3.494838088e-23 | O22: =(B22-x!B20)^2 -> 1.333848933e-23 | P22: =(C22-x!C20)^2 -> 4.162479471e-23 | Q22: =(D22-x!D20)^2 -> 3.768841666e-23 | R22: =(E22-x!E20)^2 -> 5.445067088e-24 | S22: =(F22-x!F20)^2 -> 3.322690021e-23 | T22: =(G22-x!G20)^2 -> 1.026912621e-23 | U22: =(H22-x!H20)^2 -> 4.18083658e-23 | V22: =(I22-x!I20)^2 -> 4.217671967e-23 | W22: =(J22-x!J20)^2 -> 5.539728375e-23 | X22: =(K22-x!K20)^2 -> 2.463276868e-23 | Y22: =(L22-x!L20)^2 -> 2.146226728e-23
A23: 33.8 | B23: 85.2 | C23: 11.6 | D23: 73.8 | E23: 91.4 | F23: 60.5 | G23: 41.8 | H23: 15.4 | I23: 3.7 | J23: 52.4 | K23: 30.4 | L23: 87.4 | N23: =(A23-x!A21)^2 -> 9.77430216e-24 | O23: =(B23-x!B21)^2 -> 1.32348898e-23 | P23: =(C23-x!C21)^2 -> 1.837001457e-24 | Q23: =(D23-x!D21)^2 -> 8.322091275e-24 | R23: =(E23-x!E21)^2 -> 1.978468199e-23 | S23: =(F23-x!F21)^2 -> 2.811929407e-24 | T23: =(G23-x!G21)^2 -> 3.439231598e-24 | U23: =(H23-x!H21)^2 -> 7.071377553e-24 | V23: =(I23-x!I21)^2 -> 3.045969449e-24 | W23: =(J23-x!J21)^2 -> 1.588934995e-23 | X23: =(K23-x!K21)^2 -> 1.617384475e-23 | Y23: =(L23-x!L21)^2 -> 1.745561119e-23
A24: 66.4 | B24: 5.1 | C24: 51.3 | D24: 33.8 | E24: 92.9 | F24: 13.1 | G24: 1.1 | H24: 4.8 | I24: 12.7 | J24: 56 | K24: 7.5 | L24: 68.5 | N24: =(A24-x!A22)^2 -> 1.105788614e-23 | O24: =(B24-x!B22)^2 -> 1.445066961e-25 | P24: =(C24-x!C22)^2 -> 2.624521299e-24 | Q24: =(D24-x!D22)^2 -> 8.821307699e-24 | R24: =(E24-x!E22)^2 -> 3.465636351e-24 | S24: =(F24-x!F22)^2 -> 1.129542793e-23 | T24: =(G24-x!G22)^2 -> 6.385059888e-26 | U24: =(H24-x!H22)^2 -> 3.744888378e-25 | V24: =(I24-x!I22)^2 -> 4.750611879e-24 | W24: =(J24-x!J22)^2 -> 3.553892846e-23 | X24: =(K24-x!K22)^2 -> 2.920186366e-24 | Y24: =(L24-x!L22)^2 -> 1.493610305e-24
A25: 88.6 | B25: 60.6 | C25: 9.7 | D25: 50.2 | E25: 69.5 | F25: 12.7 | G25: 80.9 | H25: 85.2 | I25: 15.3 | J25: 47.7 | K25: 75.2 | L25: 82.6 | N25: =(A25-x!A23)^2 -> 1.560737951e-23 | O25: =(B25-x!B23)^2 -> 1.52168618e-23 | P25: =(C25-x!C23)^2 -> 2.672061213e-23 | Q25: =(D25-x!D23)^2 -> 3.656280681e-23 | R25: =(E25-x!E23)^2 -> 2.588251368e-23 | S25: =(F25-x!F23)^2 -> 2.175954793e-23 | T25: =(G25-x!G23)^2 -> 9.77430216e-24 | U25: =(H25-x!H23)^2 -> 2.029359194e-23 | V25: =(I25-x!I23)^2 -> 2.077656414e-23 | W25: =(J25-x!J23)^2 -> 4.254668912e-23 | X25: =(K25-x!K23)^2 -> 7.213798501e-24 | Y25: =(L25-x!L23)^2 -> 2.916134777e-23
A26: 90.6 | B26: 23.6 | C26: 30.5 | D26: 80.1 | E26: 84.3 | F26: 47.4 | G26: 82.9 | H26: 31.9 | I26: 98.6 | J26: 54.9 | K26: 68.7 | L26: 34 | N26: =(A26-x!A24)^2 -> 1.253986422e-22 | O26: =(B26-x!B24)^2 -> 1.060027613e-22 | P26: =(C26-x!C24)^2 -> 9.146828312e-23 | Q26: =(D26-x!D24)^2 -> 1.142026233e-22 | R26: =(E26-x!E24)^2 -> 8.823549327e-23 | S26: =(F26-x!F24)^2 -> 1.28762749e-22 | T26: =(G26-x!G24)^2 -> 1.216084747e-22 | U26: =(H26-x!H24)^2 -> 8.317104412e-23 | V26: =(I26-x!I24)^2 -> 1.397935235e-22 | W26: =(J26-x!J24)^2 -> 1.326619685e-22 | X26: =(K26-x!K24)^2 -> 1.341391705e-22 | Y26: =(L26-x!L24)^2 -> 2.414782243e-22
A27: 23.2 | B27: 64.7 | C27: 26.7 | D27: 28.1 | E27: 17.9 | F27: 67.9 | G27: 75.6 | H27: 23.9 | I27: 40.9 | J27: 70.2 | K27: 96.1 | L27: 77.4 | N27: =(A27-x!A25)^2 -> 1.214670351e-23 | O27: =(B27-x!B25)^2 -> 6.763049691e-24 | P27: =(C27-x!C25)^2 -> 5.784925277e-24 | Q27: =(D27-x!D25)^2 -> 4.696562285e-24 | R27: =(E27-x!E25)^2 -> 9.818781293e-24 | S27: =(F27-x!F25)^2 -> 2.142470488e-24 | T27: =(G27-x!G25)^2 -> 4.014935976e-24 | U27: =(H27-x!H25)^2 -> 4.453416422e-24 | V27: =(I27-x!I25)^2 -> 2.981212646e-24 | W27: =(J27-x!J25)^2 -> 1.375692639e-23 | X27: =(K27-x!K25)^2 -> 4.014935976e-24 | Y27: =(L27-x!L25)^2 -> 1.192485058e-23
A28: 88.4 | B28: 57.2 | C28: 14.3 | D28: 4.6 | E28: 13 | F28: 48.8 | G28: 67.8 | H28: 20.4 | I28: 21.5 | J28: 78.9 | K28: 57 | L28: 33.3 | N28: =(A28-x!A26)^2 -> 7.173529992e-23 | O28: =(B28-x!B26)^2 -> 6.175763573e-23 | P28: =(C28-x!C26)^2 -> 1.102136503e-22 | Q28: =(D28-x!D26)^2 -> 1.297725698e-22 | R28: =(E28-x!E26)^2 -> 9.839006425e-23 | S28: =(F28-x!F26)^2 -> 8.245976926e-23 | T28: =(G28-x!G26)^2 -> 1.238123375e-22 | U28: =(H28-x!H26)^2 -> 1.119360051e-22 | V28: =(I28-x!I26)^2 -> 9.670581466e-23 | W28: =(J28-x!J26)^2 -> 1.318448348e-22 | X28: =(K28-x!K26)^2 -> 8.168731666e-23 | Y28: =(L28-x!L26)^2 -> 1.567444657e-22
A29: 99.2 | B29: 73.8 | C29: 53.3 | D29: 61.3 | E29: 69.1 | F29: -32.2 | G29: 8.2 | H29: 38.1 | I29: 15.3 | J29: 31.6 | K29: 18.8 | L29: 32.1 | N29: =(A29-x!A27)^2 -> 6.044113416e-24 | O29: =(B29-x!B27)^2 -> 1.991130363e-23 | P29: =(C29-x!C27)^2 -> 9.641470605e-24 | Q29: =(D29-x!D27)^2 -> 1.407499511e-23 | R29: =(E29-x!E27)^2 -> 4.363902797e-24 | S29: =(F29-x!F27)^2 -> 1.757455879e-23 | T29: =(G29-x!G27)^2 -> 1.239560491e-23 | U29: =(H29-x!H27)^2 -> 6.333101565e-25 | V29: =(I29-x!I27)^2 -> 8.674200918e-24 | W29: =(J29-x!J27)^2 -> 4.10081453e-24 | X29: =(K29-x!K27)^2 -> 7.348005829e-24 | Y29: =(L29-x!L27)^2 -> 8.118375835e-24
A30: 17.9 | B30: 59.2 | C30: 20.5 | D30: 60.8 | E30: -42.1 | F30: -90.1 | G30: 95.2 | H30: 89.9 | I30: 37.4 | J30: 63.3 | K30: 51.5 | L30: 99.7 | N30: =(A30-x!A28)^2 -> 5.169878828e-26 | O30: =(B30-x!B28)^2 -> 4.543838814e-28 | P30: =(C30-x!C28)^2 -> 6.676918702e-25 | Q30: =(D30-x!D28)^2 -> 1.979296187e-24 | R30: =(E30-x!E28)^2 -> 5.672730324e-25 | S30: =(F30-x!F28)^2 -> 2.019483917e-24 | T30: =(G30-x!G28)^2 -> 6.543127892e-26 | U30: =(H30-x!H28)^2 -> 1.135959704e-24 | V30: =(I30-x!I28)^2 -> 7.679087596e-26 | W30: =(J30-x!J28)^2 -> 8.905924076e-24 | X30: =(K30-x!K28)^2 -> 4.513597042e-24 | Y30: =(L30-x!L28)^2 -> 7.514499657e-25
A31: 98.4 | B31: 98 | C31: 36.7 | D31: 14 | E31: 91.2 | F31: 94.7 | G31: 80.6 | H31: 64.9 | I31: 54.4 | J31: 24.4 | K31: 94.8 | L31: 99.5 | N31: =(A31-x!A29)^2 -> 5.048709793e-25 | O31: =(B31-x!B29)^2 -> 2.101071068e-24 | P31: =(C31-x!C29)^2 -> 2.312107137e-24 | Q31: =(D31-x!D29)^2 -> 1.292469707e-26 | R31: =(E31-x!E29)^2 -> 1.068306992e-25 | S31: =(F31-x!F29)^2 -> 9.895471195e-27 | T31: =(G31-x!G29)^2 -> 2.019483917e-26 | U31: =(H31-x!H29)^2 -> 1.105869393e-24 | V31: =(I31-x!I29)^2 -> 1.262177448e-27 | W31: =(J31-x!J29)^2 -> 4.696562285e-24 | X31: =(K31-x!K29)^2 -> 2.764471534e-24 | Y31: =(L31-x!L29)^2 -> 9.77430216e-26
A32: 87.2 | B32: 78.5 | C32: 65.9 | D32: 14.2 | E32: 80.8 | F32: 40.7 | G32: 46.6 | H32: 82.4 | I32: 86 | J32: 61.6 | K32: 87.9 | L32: 1.1 | N32: =(A32-x!A30)^2 -> 3.120201607e-22 | O32: =(B32-x!B30)^2 -> 1.868919274e-22 | P32: =(C32-x!C30)^2 -> 2.0356721e-22 | Q32: =(D32-x!D30)^2 -> 1.719525049e-22 | R32: =(E32-x!E30)^2 -> 2.023524905e-22 | S32: =(F32-x!F30)^2 -> 3.150396931e-22 | T32: =(G32-x!G30)^2 -> 2.074378034e-22 | U32: =(H32-x!H30)^2 -> 2.874228466e-22 | V32: =(I32-x!I30)^2 -> 2.942083126e-22 | W32: =(J32-x!J30)^2 -> 3.052793758e-22 | X32: =(K32-x!K30)^2 -> 2.515178362e-22 | Y32: =(L32-x!L30)^2 -> 3.62297253e-22
A33: 33.6 | B33: 21 | C33: 58.9 | D33: 0.1 | E33: 62.3 | F33: 65 | G33: 29.3 | H33: 78.9 | I33: 70.1 | J33: 51.4 | K33: 59.1 | L33: 65.7 | N33: =(A33-x!A31)^2 -> 1.727920927e-24 | O33: =(B33-x!B31)^2 -> 1.010865297e-24 | P33: =(C33-x!C31)^2 -> 1.068306992e-25 | Q33: =(D33-x!D31)^2 -> 4.730838608e-25 | R33: =(E33-x!E31)^2 -> 2.956726403e-24 | S33: =(F33-x!F31)^2 -> 1.124771763e-23 | T33: =(G33-x!G31)^2 -> 1.756054862e-24 | U33: =(H33-x!H31)^2 -> 6.543127892e-26 | V33: =(I33-x!I31)^2 -> 1.583275391e-25 | W33: =(J33-x!J31)^2 -> 8.779150973e-24 | X33: =(K33-x!K31)^2 -> 2.993380037e-25 | Y33: =(L33-x!L31)^2 -> 1.698385975e-25
A34: 80.6 | B34: 40.6 | C34: 87.4 | D34: 3.8 | E34: 48.9 | F34: -76.7 | G34: 79.6 | H34: 7.3 | I34: 61.1 | J34: 82.3 | K34: 59.1 | L34: 32.2 | N34: =(A34-x!A32)^2 -> 6.19811926e-23 | O34: =(B34-x!B32)^2 -> 4.938249072e-23 | P34: =(C34-x!C32)^2 -> 4.461039973e-23 | Q34: =(D34-x!D32)^2 -> 4.637152303e-23 | R34: =(E34-x!E32)^2 -> 2.139648259e-23 | S34: =(F34-x!F32)^2 -> 7.440768299e-23 | T34: =(G34-x!G32)^2 -> 3.768841666e-23 | U34: =(H34-x!H32)^2 -> 3.12204964e-23 | V34: =(I34-x!I32)^2 -> 5.099323109e-23 | W34: =(J34-x!J32)^2 -> 7.638193046e-23 | X34: =(K34-x!K32)^2 -> 5.058812262e-23 | Y34: =(L34-x!L32)^2 -> 9.038422415e-23
A35: 12.4 | B35: 9.6 | C35: 72.4 | D35: 34.3 | E35: 31 | F35: 69.7 | G35: 6.3 | H35: 70.9 | I35: 8 | J35: 52.1 | K35: 1.1 | L35: -82.6 | N35: =(A35-x!A33)^2 -> 1.725586687e-22 | O35: =(B35-x!B33)^2 -> 9.028292495e-23 | P35: =(C35-x!C33)^2 -> 8.796871944e-23 | Q35: =(D35-x!D33)^2 -> 1.465951454e-22 | R35: =(E35-x!E33)^2 -> 8.245976926e-23 | S35: =(F35-x!F33)^2 -> 1.269950442e-22 | T35: =(G35-x!G33)^2 -> 1.266149844e-22 | U35: =(H35-x!H33)^2 -> 8.664090876e-23 | V35: =(I35-x!I33)^2 -> 1.012294586e-22 | W35: =(J35-x!J33)^2 -> 1.36287346e-22 | X35: =(K35-x!K33)^2 -> 1.847972385e-22 | Y35: =(L35-x!L33)^2 -> 1.849542326e-22
A36: 76.9 | B36: 22.9 | C36: 77.1 | D36: 47.4 | E36: 30.6 | F36: 7.1 | G36: 17.8 | H36: 61.4 | I36: 66.2 | J36: 32 | K36: 81.5 | L36: 69.9 | N36: =(A36-x!A34)^2 -> 7.137663958e-24 | O36: =(B36-x!B34)^2 -> 1.733706748e-23 | P36: =(C36-x!C34)^2 -> 4.129642663e-24 | Q36: =(D36-x!D34)^2 -> 3.231628652e-24 | R36: =(E36-x!E34)^2 -> 5.099323109e-25 | S36: =(F36-x!F34)^2 -> 1.037184536e-23 | T36: =(G36-x!G34)^2 -> 2.21589135e-24 | U36: =(H36-x!H34)^2 -> 1.476293231e-24 | V36: =(I36-x!I34)^2 -> 8.240302176e-24 | W36: =(J36-x!J34)^2 -> 8.363137286e-24 | X36: =(K36-x!K34)^2 -> 5.041439651e-24 | Y36: =(L36-x!L34)^2 -> 9.248428548e-24
A37: 89.9 | B37: 55.7 | C37: 38.8 | D37: 65.5 | E37: -57.5 | F37: 88.6 | G37: 35 | H37: 3.2 | I37: 85.5 | J37: 38.2 | K37: 70.6 | L37: -20.3 | N37: =(A37-x!A35)^2 -> 1.965846425e-23 | O37: =(B37-x!B35)^2 -> 2.516458715e-23 | P37: =(C37-x!C35)^2 -> 3.647692826e-23 | Q37: =(D37-x!D35)^2 -> 3.231174268e-23 | R37: =(E37-x!E35)^2 -> 4.329147479e-23 | S37: =(F37-x!F35)^2 -> 2.307139207e-23 | T37: =(G37-x!G35)^2 -> 2.473867799e-23 | U37: =(H37-x!H35)^2 -> 4.407809612e-23 | V37: =(I37-x!I35)^2 -> 3.427952781e-23 | W37: =(J37-x!J35)^2 -> 4.750331045e-23 | X37: =(K37-x!K35)^2 -> 3.52852308e-23 | Y37: =(L37-x!L35)^2 -> 3.75576677e-23
A38: 10.3 | B38: 20.3 | C38: 96.8 | D38: 62.5 | E38: 3.2 | F38: 67 | G38: 86.4 | H38: 29.3 | I38: 88.4 | J38: 41.4 | K38: 92.4 | L38: 70.2 | N38: =(A38-x!A36)^2 -> 4.071299772e-23 | O38: =(B38-x!B36)^2 -> 3.57935349e-23 | P38: =(C38-x!C36)^2 -> 5.737131666e-23 | Q38: =(D38-x!D36)^2 -> 7.161498916e-23 | R38: =(E38-x!E36)^2 -> 4.318634882e-23 | S38: =(F38-x!F36)^2 -> 4.750331045e-23 | T38: =(G38-x!G36)^2 -> 4.385430496e-23 | U38: =(H38-x!H36)^2 -> 7.312613111e-23 | V38: =(I38-x!I36)^2 -> 7.006013801e-23 | W38: =(J38-x!J36)^2 -> 4.76013059e-23 | X38: =(K38-x!K36)^2 -> 6.35573998e-23 | Y38: =(L38-x!L36)^2 -> 4.80927978e-23
A39: 16 | B39: 12.8 | C39: 27 | D39: 1 | E39: 93.5 | F39: 14.6 | G39: 46.2 | H39: 93.2 | I39: 39.4 | J39: 38.2 | K39: 4.9 | L39: 94.2 | N39: =(A39-x!A37)^2 -> 1.282453067e-23 | O39: =(B39-x!B37)^2 -> 9.752100459e-24 | P39: =(C39-x!C37)^2 -> 1.242063389e-23 | Q39: =(D39-x!D37)^2 -> 9.952824538e-24 | R39: =(E39-x!E37)^2 -> 1.262177448e-23 | S39: =(F39-x!F37)^2 -> 4.521148019e-24 | T39: =(G39-x!G37)^2 -> 6.837164751e-24 | U39: =(H39-x!H37)^2 -> 1.068306992e-23 | V39: =(I39-x!I37)^2 -> 2.954631189e-23 | W39: =(J39-x!J37)^2 -> 3.901844877e-24 | X39: =(K39-x!K37)^2 -> 1.235810877e-23 | Y39: =(L39-x!L37)^2 -> 4.245964936e-24
A40: 40.5 | B40: 65 | C40: 93.3 | D40: 58.2 | E40: 94 | F40: 22.7 | G40: -97.5 | H40: 30 | I40: 33.8 | J40: 98.9 | K40: 38 | L40: 4.5 | N40: =(A40-x!A38)^2 -> 1.163222736e-25 | O40: =(B40-x!B38)^2 -> 1.365171128e-25 | P40: =(C40-x!C38)^2 -> 3.055277219e-24 | Q40: =(D40-x!D38)^2 -> 3.394752465e-25 | R40: =(E40-x!E38)^2 -> 5.169878828e-26 | S40: =(F40-x!F38)^2 -> 1.890350543e-24 | T40: =(G40-x!G38)^2 -> 8.271806126e-25 | U40: =(H40-x!H38)^2 -> 5.974441221e-24 | V40: =(I40-x!I38)^2 -> 3.055277219e-24 | W40: =(J40-x!J38)^2 -> 5.564889883e-24 | X40: =(K40-x!K38)^2 -> 8.905924076e-24 | Y40: =(L40-x!L38)^2 -> 2.916134777e-25
A41: 16.6 | B41: 79.4 | C41: 55.2 | D41: 65.1 | E41: 9.1 | F41: 33.3 | G41: 68 | H41: 4 | I41: 98 | J41: 46.6 | K41: 93.8 | L41: 75.4 | N41: =(A41-x!A39)^2 -> 9.133242234e-23 | O41: =(B41-x!B39)^2 -> 7.838202734e-23 | P41: =(C41-x!C39)^2 -> 1.142026233e-22 | Q41: =(D41-x!D39)^2 -> 9.503610536e-23 | R41: =(E41-x!E39)^2 -> 8.255658143e-23 | S41: =(F41-x!F39)^2 -> 9.839006425e-23 | T41: =(G41-x!G39)^2 -> 5.758679559e-23 | U41: =(H41-x!H39)^2 -> 7.539157555e-23 | V41: =(I41-x!I39)^2 -> 8.637655832e-23 | W41: =(J41-x!J39)^2 -> 1.326619685e-22 | X41: =(K41-x!K39)^2 -> 7.416271959e-23 | Y41: =(L41-x!L39)^2 -> 1.578137824e-22
A42: 16 | B42: 11.4 | C42: 48.4 | D42: 91.4 | E42: 12.3 | F42: 35.2 | G42: 94.4 | H42: 98.5 | I42: 84.5 | J42: 32 | K42: 29.8 | L42: 49.4 | N42: =(A42-x!A40)^2 -> 1.822584235e-22 | O42: =(B42-x!B40)^2 -> 1.313964873e-22 | P42: =(C42-x!C40)^2 -> 1.562111705e-22 | Q42: =(D42-x!D40)^2 -> 1.853409638e-22 | R42: =(E42-x!E40)^2 -> 9.817873788e-23 | S42: =(F42-x!F40)^2 -> 1.497085837e-22 | T42: =(G42-x!G40)^2 -> 1.120864061e-22 | U42: =(H42-x!H40)^2 -> 1.435144226e-22 | V42: =(I42-x!I40)^2 -> 1.769261782e-22 | W42: =(J42-x!J40)^2 -> 1.507536666e-22 | X42: =(K42-x!K40)^2 -> 1.736337252e-22 | Y42: =(L42-x!L40)^2 -> 1.533822774e-22
A43: 53.9 | B43: 12.7 | C43: 18.1 | D43: 45.9 | E43: 99.5 | F43: 62.9 | G43: 34.5 | H43: 81.7 | I43: 59 | J43: 71 | K43: 21.5 | L43: 31.3 | N43: =(A43-x!A41)^2 -> 1.227083867e-23 | O43: =(B43-x!B41)^2 -> 1.388901326e-23 | P43: =(C43-x!C41)^2 -> 5.939756585e-24 | Q43: =(D43-x!D41)^2 -> 1.168074547e-23 | R43: =(E43-x!E41)^2 -> 6.398532844e-24 | S43: =(F43-x!F41)^2 -> 6.291146786e-24 | T43: =(G43-x!G41)^2 -> 4.129642663e-24 | U43: =(H43-x!H41)^2 -> 2.908056841e-26 | V43: =(I43-x!I41)^2 -> 1.202319945e-23 | W43: =(J43-x!J41)^2 -> 2.916134777e-25 | X43: =(K43-x!K41)^2 -> 1.282453067e-23 | Y43: =(L43-x!L41)^2 -> 2.209225791e-23
A44: 51.2 | B44: 94.6 | C44: 45.7 | D44: 93.4 | E44: 34.9 | F44: 87.5 | G44: 64.4 | H44: 19.3 | I44: 56.3 | J44: 99.6 | K44: 57.1 | L44: 35.5 | N44: =(A44-x!A42)^2 -> 1.500565408e-22 | O44: =(B44-x!B42)^2 -> 1.347983301e-22 | P44: =(C44-x!C42)^2 -> 1.157263239e-22 | Q44: =(D44-x!D42)^2 -> 1.511028354e-22 | R44: =(E44-x!E42)^2 -> 1.158792494e-22 | S44: =(F44-x!F42)^2 -> 1.661326425e-22 | T44: =(G44-x!G42)^2 -> 1.279577322e-22 | U44: =(H44-x!H42)^2 -> 1.023046445e-22 | V44: =(I44-x!I42)^2 -> 1.377845409e-22 | W44: =(J44-x!J42)^2 -> 1.621274001e-22 | X44: =(K44-x!K42)^2 -> 1.512775713e-22 | Y44: =(L44-x!L42)^2 -> 2.138312371e-22
A45: 54.6 | B45: 86 | C45: 29.5 | D45: 76.2 | E45: 47.7 | F45: 59.8 | G45: 30.9 | H45: 72.5 | I45: 56.4 | J45: 26.5 | K45: 98.1 | L45: 19.9 | N45: =(A45-x!A43)^2 -> 8.650868306e-23 | O45: =(B45-x!B43)^2 -> 6.153448276e-23 | P45: =(C45-x!C43)^2 -> 5.801896515e-23 | Q45: =(D45-x!D43)^2 -> 6.676918702e-23 | R45: =(E45-x!E43)^2 -> 8.053545352e-23 | S45: =(F45-x!F43)^2 -> 6.231728521e-23 | T45: =(G45-x!G43)^2 -> 3.954275728e-23 | U45: =(H45-x!H43)^2 -> 6.446697535e-23 | V45: =(I45-x!I43)^2 -> 6.653714832e-23 | W45: =(J45-x!J43)^2 -> 6.74677265e-23 | X45: =(K45-x!K43)^2 -> 6.584345559e-23 | Y45: =(L45-x!L43)^2 -> 8.466812541e-23
A46: 74.4 | B46: 37.4 | C46: 15 | D46: 63.1 | E46: 24.5 | F46: 49.5 | G46: 31.3 | H46: 55.5 | I46: 50.3 | J46: 87.4 | K46: 77.6 | L46: 21.1 | N46: =(A46-x!A44)^2 -> 8.743638348e-23 | O46: =(B46-x!B44)^2 -> 5.780267842e-23 | P46: =(C46-x!C44)^2 -> 5.33539573e-23 | Q46: =(D46-x!D44)^2 -> 5.201307047e-23 | R46: =(E46-x!E44)^2 -> 7.888609052e-23 | S46: =(F46-x!F44)^2 -> 6.875782332e-23 | T46: =(G46-x!G44)^2 -> 6.418203879e-23 | U46: =(H46-x!H44)^2 -> 5.545018161e-23 | V46: =(I46-x!I44)^2 -> 6.31050354e-23 | W46: =(J46-x!J44)^2 -> 1.018021843e-22 | X46: =(K46-x!K44)^2 -> 6.020404675e-23 | Y46: =(L46-x!L44)^2 -> 8.756931601e-23
A47: 51 | B47: 70.7 | C47: 60.3 | D47: 45.8 | E47: 86.7 | F47: 18.8 | G47: 66.7 | H47: 66.7 | I47: 39.1 | J47: 50.8 | K47: 41.2 | L47: 39.2 | N47: =(A47-x!A45)^2 -> 9.698551318e-23 | O47: =(B47-x!B45)^2 -> 5.715624162e-23 | P47: =(C47-x!C45)^2 -> 6.265428659e-23 | Q47: =(D47-x!D45)^2 -> 8.168731666e-23 | R47: =(E47-x!E45)^2 -> 7.318690496e-23 | S47: =(F47-x!F45)^2 -> 8.538884136e-23 | T47: =(G47-x!G45)^2 -> 5.715624162e-23 | U47: =(H47-x!H45)^2 -> 8.877025261e-23 | V47: =(I47-x!I45)^2 -> 7.502185853e-23 | W47: =(J47-x!J45)^2 -> 1.052724654e-22 | X47: =(K47-x!K45)^2 -> 7.197622435e-23 | Y47: =(L47-x!L45)^2 -> 8.850267099e-23
A48: 31.5 | B48: 14.2 | C48: 89.3 | D48: -50.8 | E48: 40.6 | F48: 70 | G48: -15.3 | H48: 74.1 | I48: 93.9 | J48: 53.6 | K48: 2.1 | L48: 22.3 | N48: =(A48-x!A46)^2 -> 3.874258726e-23 | O48: =(B48-x!B46)^2 -> 4.570860771e-23 | P48: =(C48-x!C46)^2 -> 6.74677265e-23 | Q48: =(D48-x!D46)^2 -> 8.957542085e-23 | R48: =(E48-x!E46)^2 -> 6.723447611e-23 | S48: =(F48-x!F46)^2 -> 7.964521453e-23 | T48: =(G48-x!G46)^2 -> 4.38072636e-23 | U48: =(H48-x!H46)^2 -> 5.252677669e-23 | V48: =(I48-x!I46)^2 -> 6.934826993e-23 | W48: =(J48-x!J46)^2 -> 9.768652654e-23 | X48: =(K48-x!K46)^2 -> 6.233832117e-23 | Y48: =(L48-x!L46)^2 -> 6.509605721e-23
A49: 46.2 | B49: 82.8 | C49: 70.4 | D49: 76.2 | E49: 48.4 | F49: 93.6 | G49: 93.5 | H49: 76.4 | I49: 82.6 | J49: 91.8 | K49: 81.8 | L49: 91.4 | N49: =(A49-x!A47)^2 -> 1.748530265e-22 | O49: =(B49-x!B47)^2 -> 1.302181405e-22 | P49: =(C49-x!C47)^2 -> 1.435144226e-22 | Q49: =(D49-x!D47)^2 -> 1.596040549e-22 | R49: =(E49-x!E47)^2 -> 1.227079323e-22 | S49: =(F49-x!F47)^2 -> 1.507536666e-22 | T49: =(G49-x!G47)^2 -> 1.331534604e-22 | U49: =(H49-x!H47)^2 -> 1.384525862e-22 | V49: =(I49-x!I47)^2 -> 1.500565408e-22 | W49: =(J49-x!J47)^2 -> 1.632148921e-22 | X49: =(K49-x!K47)^2 -> 1.535583259e-22 | Y49: =(L49-x!L47)^2 -> 1.995322812e-22
A50: 98.3 | B50: 70.3 | C50: 42.7 | D50: 59.6 | E50: 87.8 | F50: 93.5 | G50: 71.9 | H50: 48.4 | I50: 56.1 | J50: 47.7 | K50: 34.8 | L50: 93.7 | N50: =(A50-x!A48)^2 -> 4.291827416e-23 | O50: =(B50-x!B48)^2 -> 1.549529815e-23 | P50: =(C50-x!C48)^2 -> 3.821368443e-23 | Q50: =(D50-x!D48)^2 -> 5.24238335e-23 | R50: =(E50-x!E48)^2 -> 2.661053763e-23 | S50: =(F50-x!F48)^2 -> 5.008400894e-23 | T50: =(G50-x!G48)^2 -> 1.793382498e-23 | U50: =(H50-x!H48)^2 -> 5.471190878e-23 | V50: =(I50-x!I48)^2 -> 2.817225503e-23 | W50: =(J50-x!J48)^2 -> 4.789589812e-23 | X50: =(K50-x!K48)^2 -> 4.217671967e-23 | Y50: =(L50-x!L48)^2 -> 2.993380037e-23
A51: 8.5 | B51: 90.7 | C51: -23.9 | D51: 70 | E51: 2.8 | F51: 90.5 | G51: 8.5 | H51: 21.8 | I51: 25.4 | J51: 77.6 | K51: 14.7 | L51: 7.6 | N51: =(A51-x!A49)^2 -> 2.588251368e-23 | O51: =(B51-x!B49)^2 -> 1.594604696e-23 | P51: =(C51-x!C49)^2 -> 1.763418405e-23 | Q51: =(D51-x!D49)^2 -> 2.705219876e-23 | R51: =(E51-x!E49)^2 -> 5.892230082e-24 | S51: =(F51-x!F49)^2 -> 1.182690561e-23 | T51: =(G51-x!G49)^2 -> 1.640325812e-23 | U51: =(H51-x!H49)^2 -> 1.209722616e-23 | V51: =(I51-x!I49)^2 -> 2.509334985e-23 | W51: =(J51-x!J49)^2 -> 2.334523408e-23 | X51: =(K51-x!K49)^2 -> 2.379367311e-23 | Y51: =(L51-x!L49)^2 -> 2.037369287e-23
A52: 99.5 | B52: 66.6 | C52: 84.2 | D52: 79.8 | E52: 72.9 | F52: 88.2 | G52: 92.7 | H52: 15.9 | I52: 8.6 | J52: 26.3 | K52: 82.2 | L52: 63.5 | N52: =(A52-x!A50)^2 -> 1.861156378e-22 | O52: =(B52-x!B50)^2 -> 1.228654015e-22 | P52: =(C52-x!C50)^2 -> 2.130008253e-22 | Q52: =(D52-x!D50)^2 -> 2.351165975e-22 | R52: =(E52-x!E50)^2 -> 1.939512354e-22 | S52: =(F52-x!F50)^2 -> 1.896216639e-22 | T52: =(G52-x!G50)^2 -> 1.500565408e-22 | U52: =(H52-x!H50)^2 -> 2.00990276e-22 | V52: =(I52-x!I50)^2 -> 2.270697903e-22 | W52: =(J52-x!J50)^2 -> 2.894743519e-22 | X52: =(K52-x!K50)^2 -> 2.448020424e-22 | Y52: =(L52-x!L50)^2 -> 2.966508784e-22
A53: 95.8 | B53: 20.5 | C53: 23.2 | D53: 99.1 | E53: 18.9 | F53: 87 | G53: 15.2 | H53: 94.9 | I53: 11.6 | J53: 1.8 | K53: 98.9 | L53: 92.9 | N53: =(A53-x!A51)^2 -> 1.928223439e-23 | O53: =(B53-x!B51)^2 -> 5.632138697e-24 | P53: =(C53-x!C51)^2 -> 7.580953299e-24 | Q53: =(D53-x!D51)^2 -> 6.47062842e-24 | R53: =(E53-x!E51)^2 -> 9.997707568e-24 | S53: =(F53-x!F51)^2 -> 8.077935669e-24 | T53: =(G53-x!G51)^2 -> 6.362636517e-24 | U53: =(H53-x!H51)^2 -> 1.077616813e-23 | V53: =(I53-x!I51)^2 -> 1.030330913e-23 | W53: =(J53-x!J51)^2 -> 1.431089179e-23 | X53: =(K53-x!K51)^2 -> 1.769391029e-23 | Y53: =(L53-x!L51)^2 -> 1.302890244e-23
A54: 74.2 | B54: 17.5 | C54: 35.1 | D54: 91.7 | E54: 10.5 | F54: 35.1 | G54: 98.7 | H54: 86 | I54: 90 | J54: 35.8 | K54: 91.2 | L54: 34.4 | N54: =(A54-x!A52)^2 -> 1.067355815e-22 | O54: =(B54-x!B52)^2 -> 4.107650483e-23 | P54: =(C54-x!C52)^2 -> 6.220515336e-23 | Q54: =(D54-x!D52)^2 -> 8.143064026e-23 | R54: =(E54-x!E52)^2 -> 6.175763573e-23 | S54: =(F54-x!F52)^2 -> 6.209312249e-23 | T54: =(G54-x!G52)^2 -> 8.506086455e-23 | U54: =(H54-x!H52)^2 -> 1.009437017e-22 | V54: =(I54-x!I52)^2 -> 8.479893748e-23 | W54: =(J54-x!J52)^2 -> 1.146586733e-22 | X54: =(K54-x!K52)^2 -> 9.36557881e-23 | Y54: =(L54-x!L52)^2 -> 1.157263239e-22
A55: 11.1 | B55: 18.5 | C55: 54.5 | D55: 70.6 | E55: 17.1 | F55: 70.7 | G55: 25.1 | H55: 18 | I55: 26.6 | J55: 98.9 | K55: 14.2 | L55: 73.8 | N55: =(A55-x!A53)^2 -> 5.804602939e-23 | O55: =(B55-x!B53)^2 -> 4.863635452e-23 | P55: =(C55-x!C53)^2 -> 6.793543898e-23 | Q55: =(D55-x!D53)^2 -> 8.558593037e-23 | R55: =(E55-x!E53)^2 -> 4.053185002e-23 | S55: =(F55-x!F53)^2 -> 7.391816009e-23 | T55: =(G55-x!G53)^2 -> 4.465787023e-23 | U55: =(H55-x!H53)^2 -> 5.683438637e-23 | V55: =(I55-x!I53)^2 -> 6.700162962e-23 | W55: =(J55-x!J53)^2 -> 9.782703213e-23 | X55: =(K55-x!K53)^2 -> 6.54404802e-23 | Y55: =(L55-x!L53)^2 -> 8.143064026e-23
A56: 28.3 | B56: 41.1 | C56: 22.7 | D56: 58.6 | E56: 33.4 | F56: 10.2 | G56: 34.3 | H56: 43.6 | I56: 97.5 | J56: 93.6 | K56: 84.3 | L56: 0.5 | N56: =(A56-x!A54)^2 -> 1.091657275e-25 | O56: =(B56-x!B54)^2 -> 8.948383725e-24 | P56: =(C56-x!C54)^2 -> 3.776548521e-24 | Q56: =(D56-x!D54)^2 -> 4.245964936e-26 | R56: =(E56-x!E54)^2 -> 1.022363733e-25 | S56: =(F56-x!F54)^2 -> 2.077656414e-23 | T56: =(G56-x!G54)^2 -> 2.764471534e-24 | U56: =(H56-x!H54)^2 -> 1.757455879e-25 | V56: =(I56-x!I54)^2 -> 7.444625513e-24 | W56: =(J56-x!J54)^2 -> 1.38625454e-23 | X56: =(K56-x!K54)^2 -> 2.473867799e-25 | Y56: =(L56-x!L54)^2 -> 2.533240626e-24
A57: 12.1 | B57: 16.3 | C57: 49.6 | D57: 62.2 | E57: 57.9 | F57: 98 | G57: 60.5 | H57: 57 | I57: 57.8 | J57: 45.9 | K57: 20.4 | L57: 33.3 | N57: =(A57-x!A55)^2 -> 2.422888767e-23 | O57: =(B57-x!B55)^2 -> 2.139648259e-23 | P57: =(C57-x!C55)^2 -> 1.396856831e-23 | Q57: =(D57-x!D55)^2 -> 1.566357165e-23 | R57: =(E57-x!E55)^2 -> 1.14391647e-23 | S57: =(F57-x!F55)^2 -> 1.560737951e-23 | T57: =(G57-x!G55)^2 -> 2.8778908e-23 | U57: =(H57-x!H55)^2 -> 1.75150345e-23 | V57: =(I57-x!I55)^2 -> 3.119072716e-23 | W57: =(J57-x!J55)^2 -> 3.255453513e-23 | X57: =(K57-x!K55)^2 -> 2.650069033e-23 | Y57: =(L57-x!L55)^2 -> 3.461314655e-23
A58: 68 | B58: 15.4 | C58: 85.1 | D58: 90.3 | E58: 47.5 | F58: 14.9 | G58: 19.3 | H58: 28.6 | I58: 80 | J58: 53.7 | K58: 51.2 | L58: 92.9 | N58: =(A58-x!A56)^2 -> 3.664878634e-23 | O58: =(B58-x!B56)^2 -> 8.373414566e-24 | P58: =(C58-x!C56)^2 -> 1.538362069e-23 | Q58: =(D58-x!D56)^2 -> 3.024560868e-23 | R58: =(E58-x!E56)^2 -> 1.472203776e-23 | S58: =(F58-x!F56)^2 -> 8.159101568e-23 | T58: =(G58-x!G56)^2 -> 2.694144269e-23 | U58: =(H58-x!H56)^2 -> 2.893158098e-23 | V58: =(I58-x!I56)^2 -> 2.908056841e-24 | W58: =(J58-x!J56)^2 -> 2.602731068e-23 | X58: =(K58-x!K56)^2 -> 3.511660389e-23 | Y58: =(L58-x!L56)^2 -> 6.982244475e-23
A59: 61.7 | B59: 30.9 | C59: 33.1 | D59: 69.6 | E59: 38.8 | F59: 66.5 | G59: 86 | H59: 1.7 | I59: 73 | J59: 99.9 | K59: 60.5 | L59: 20.6 | N59: =(A59-x!A57)^2 -> 1.004269157e-23 | O59: =(B59-x!B57)^2 -> 5.073397984e-24 | P59: =(C59-x!C57)^2 -> 5.009582293e-24 | Q59: =(D59-x!D57)^2 -> 1.628834948e-23 | R59: =(E59-x!E57)^2 -> 5.105457291e-24 | S59: =(F59-x!F57)^2 -> 1.793382498e-23 | T59: =(G59-x!G57)^2 -> 7.758049417e-24 | U59: =(H59-x!H57)^2 -> 1.377834757e-23 | V59: =(I59-x!I57)^2 -> 8.73709522e-24 | W59: =(J59-x!J57)^2 -> 7.837415135e-24 | X59: =(K59-x!K57)^2 -> 1.105788614e-23 | Y59: =(L59-x!L57)^2 -> 8.199559088e-24
A60: 68.8 | B60: 49.1 | C60: 33 | D60: 32.9 | E60: 19.2 | F60: 67.2 | G60: 25.1 | H60: -4.7 | I60: 4.6 | J60: 37 | K60: 47.2 | L60: 58.2 | N60: =(A60-x!A58)^2 -> 4.245964936e-24 | O60: =(B60-x!B58)^2 -> 5.15018886e-25 | P60: =(C60-x!C58)^2 -> 3.005799863e-24 | Q60: =(D60-x!D58)^2 -> 3.735237454e-24 | R60: =(E60-x!E58)^2 -> 2.916134777e-25 | S60: =(F60-x!F58)^2 -> 5.836308521e-26 | T60: =(G60-x!G58)^2 -> 4.18083658e-25 | U60: =(H60-x!H58)^2 -> 3.363773897e-25 | V60: =(I60-x!I58)^2 -> 1.471979739e-24 | W60: =(J60-x!J58)^2 -> 2.932341135e-24 | X60: =(K60-x!K58)^2 -> 2.101071068e-24 | Y60: =(L60-x!L58)^2 -> 1.672334632e-24
A61: 31.7 | B61: 23.4 | C61: 64.8 | D61: 23.2 | E61: 14.4 | F61: 83.5 | G61: 18.3 | H61: 5.6 | I61: 43.9 | J61: 60.8 | K61: 47.6 | L61: 77.1 | N61: =(A61-x!A59)^2 -> 1.790374729e-23 | O61: =(B61-x!B59)^2 -> 1.672334632e-24 | P61: =(C61-x!C59)^2 -> 6.911683707e-24 | Q61: =(D61-x!D59)^2 -> 8.549093889e-24 | R61: =(E61-x!E59)^2 -> 1.00089441e-23 | S61: =(F61-x!F59)^2 -> 3.845905172e-24 | T61: =(G61-x!G59)^2 -> 8.674200918e-24 | U61: =(H61-x!H59)^2 -> 1.702781192e-23 | V61: =(I61-x!I59)^2 -> 1.477661431e-23 | W61: =(J61-x!J59)^2 -> 1.375692639e-23 | X61: =(K61-x!K59)^2 -> 1.488607034e-23 | Y61: =(L61-x!L59)^2 -> 8.240302176e-24
A62: 4.4 | B62: 54.3 | C62: 64.8 | D62: 33.4 | E62: 35.7 | F62: 58.5 | G62: 62.6 | H62: 67.1 | I62: 20.7 | J62: 56.4 | K62: 88.7 | L62: 83.8 | N62: =(A62-x!A60)^2 -> 1.369111962e-23 | O62: =(B62-x!B60)^2 -> 8.240302176e-24 | P62: =(C62-x!C60)^2 -> 8.569881952e-24 | Q62: =(D62-x!D60)^2 -> 9.033605946e-24 | R62: =(E62-x!E60)^2 -> 6.114189508e-24 | S62: =(F62-x!F60)^2 -> 8.486881163e-24 | T62: =(G62-x!G60)^2 -> 8.199559088e-24 | U62: =(H62-x!H60)^2 -> 1.354690007e-23 | V62: =(I62-x!I60)^2 -> 1.474931341e-23 | W62: =(J62-x!J60)^2 -> 1.634575331e-23 | X62: =(K62-x!K60)^2 -> 1.472203776e-23 | Y62: =(L62-x!L60)^2 -> 2.7348659e-23
A63: 82.2 | B63: 6.6 | C63: 82.3 | D63: 27.2 | E63: 21.8 | F63: 57.7 | G63: 74.6 | H63: 72.7 | I63: 99.7 | J63: 99.1 | K63: 6.3 | L63: 63.3 | N63: =(A63-x!A61)^2 -> 1.396856831e-23 | O63: =(B63-x!B61)^2 -> 8.435210773e-24 | P63: =(C63-x!C61)^2 -> 1.04980852e-23 | Q63: =(D63-x!D61)^2 -> 1.011035691e-23 | R63: =(E63-x!E61)^2 -> 7.541876285e-24 | S63: =(F63-x!F61)^2 -> 1.418182581e-23 | T63: =(G63-x!G61)^2 -> 7.91718475e-24 | U63: =(H63-x!H61)^2 -> 4.014935976e-24 | V63: =(I63-x!I61)^2 -> 4.914616061e-24 | W63: =(J63-x!J61)^2 -> 5.767848016e-24 | X63: =(K63-x!K61)^2 -> 5.780653595e-24 | Y63: =(L63-x!L61)^2 -> 9.422104165e-24
A64: 79.4 | B64: 9.2 | C64: 4.6 | D64: 88.9 | E64: 30.9 | F64: 86.6 | G64: 0.3 | H64: 38.3 | I64: 77.1 | J64: 19.1 | K64: 91.6 | L64: 41.5 | N64: =(A64-x!A62)^2 -> 9.065463305e-25 | O64: =(B64-x!B62)^2 -> 4.135019539e-25 | P64: =(C64-x!C62)^2 -> 2.149519749e-25 | Q64: =(D64-x!D62)^2 -> 5.36556682e-24 | R64: =(E64-x!E62)^2 -> 2.290549146e-24 | S64: =(F64-x!F62)^2 -> 1.709291188e-24 | T64: =(G64-x!G62)^2 -> 3.786446834e-25 | U64: =(H64-x!H62)^2 -> 5.048709793e-27 | V64: =(I64-x!I62)^2 -> 2.908056841e-24 | W64: =(J64-x!J62)^2 -> 1.15115632e-24 | X64: =(K64-x!K62)^2 -> 9.77430216e-26 | Y64: =(L64-x!L62)^2 -> 3.465636351e-24
A65: 99.2 | B65: -5.6 | C65: 92.3 | D65: 47.1 | E65: 39.1 | F65: 37.6 | G65: 16.5 | H65: 40.4 | I65: 70.5 | J65: 70.9 | K65: 61.6 | L65: 29.3 | N65: =(A65-x!A63)^2 -> 5.35617622e-23 | O65: =(B65-x!B63)^2 -> 9.520506674e-24 | P65: =(C65-x!C63)^2 -> 4.329147479e-23 | Q65: =(D65-x!D63)^2 -> 3.963216993e-23 | R65: =(E65-x!E63)^2 -> 2.870272297e-23 | S65: =(F65-x!F63)^2 -> 4.319802317e-23 | T65: =(G65-x!G63)^2 -> 3.764480843e-23 | U65: =(H65-x!H63)^2 -> 4.026088576e-23 | V65: =(I65-x!I63)^2 -> 4.347868095e-23 | W65: =(J65-x!J63)^2 -> 5.758679559e-23 | X65: =(K65-x!K63)^2 -> 4.585283673e-23 | Y65: =(L65-x!L63)^2 -> 5.624667869e-23
A66: 29.1 | B66: 27.1 | C66: 29.7 | D66: 24.5 | E66: 58.3 | F66: 7.6 | G66: 33 | H66: 44 | I66: 42.5 | J66: 56.4 | K66: 28.1 | L66: 78.6 | N66: =(A66-x!A64)^2 -> 3.082661925e-22 | O66: =(B66-x!B64)^2 -> 1.303803556e-22 | P66: =(C66-x!C64)^2 -> 2.438025115e-22 | Q66: =(D66-x!D64)^2 -> 2.394948387e-22 | R66: =(E66-x!E64)^2 -> 1.367855022e-22 | S66: =(F66-x!F64)^2 -> 2.194261447e-22 | T66: =(G66-x!G64)^2 -> 1.606830652e-22 | U66: =(H66-x!H64)^2 -> 1.857280989e-22 | V66: =(I66-x!I64)^2 -> 2.307787461e-22 | W66: =(J66-x!J64)^2 -> 2.459150305e-22 | X66: =(K66-x!K64)^2 -> 2.013430009e-22 | Y66: =(L66-x!L64)^2 -> 3.075181252e-22
A67: 99.1 | B67: 44.2 | C67: 67.8 | D67: 35.6 | E67: 80.7 | F67: 99.2 | G67: 79.8 | H67: 18.8 | I67: 17.6 | J67: -2.3 | K67: 41.4 | L67: 60.1 | N67: =(A67-x!A65)^2 -> 4.273227969e-25 | O67: =(B67-x!B65)^2 -> 3.41292782e-26 | P67: =(C67-x!C65)^2 -> 5.169878828e-26 | Q67: =(D67-x!D65)^2 -> 5.780267842e-25 | R67: =(E67-x!E65)^2 -> 1.391222471e-24 | S67: =(F67-x!F65)^2 -> 8.905924076e-26 | T67: =(G67-x!G65)^2 -> 1.135959704e-24 | U67: =(H67-x!H65)^2 -> 4.508624063e-25 | V67: =(I67-x!I65)^2 -> 9.201273598e-25 | W67: =(J67-x!J65)^2 -> 1.070661742e-24 | X67: =(K67-x!K65)^2 -> 4.3666291e-25 | Y67: =(L67-x!L65)^2 -> 9.201273598e-25
A68: 77.7 | B68: 19.6 | C68: 11.8 | D68: 58.1 | E68: 39.9 | F68: 34.8 | G68: 42.6 | H68: 34.1 | I68: 98.5 | J68: 10 | K68: 83.8 | L68: 9.7 | N68: =(A68-x!A66)^2 -> 1.617384475e-23 | O68: =(B68-x!B66)^2 -> 5.853486756e-24 | P68: =(C68-x!C66)^2 -> 1.151137387e-23 | Q68: =(D68-x!D66)^2 -> 1.267231207e-23 | R68: =(E68-x!E66)^2 -> 1.934468693e-23 | S68: =(F68-x!F66)^2 -> 1.75150345e-23 | T68: =(G68-x!G66)^2 -> 1.391550637e-23 | U68: =(H68-x!H66)^2 -> 1.921988283e-23 | V68: =(I68-x!I66)^2 -> 2.003832917e-23 | W68: =(J68-x!J66)^2 -> 2.690457449e-23 | X68: =(K68-x!K66)^2 -> 2.516458715e-23 | Y68: =(L68-x!L66)^2 -> 1.591768583e-23
A69: 17.5 | B69: 68.9 | C69: 78.8 | D69: 66.6 | E69: 75.5 | F69: 84.8 | G69: 81.9 | H69: 27.6 | I69: 62.7 | J69: 93.9 | K69: 11.4 | L69: 93.3 | N69: =(A69-x!A67)^2 -> 1.74665164e-22 | O69: =(B69-x!B67)^2 -> 9.119666253e-23 | P69: =(C69-x!C67)^2 -> 1.169525546e-22 | Q69: =(D69-x!D67)^2 -> 1.74665164e-22 | R69: =(E69-x!E67)^2 -> 1.006583486e-22 | S69: =(F69-x!F67)^2 -> 1.661326425e-22 | T69: =(G69-x!G67)^2 -> 1.222361303e-22 | U69: =(H69-x!H67)^2 -> 1.22550564e-22 | V69: =(I69-x!I67)^2 -> 1.525035495e-22 | W69: =(J69-x!J67)^2 -> 1.639419064e-22 | X69: =(K69-x!K67)^2 -> 1.204749668e-22 | Y69: =(L69-x!L67)^2 -> 1.632148921e-22
A70: 88.4 | B70: 3.5 | C70: 73.3 | D70: 89 | E70: 38.4 | F70: 52.8 | G70: 6.4 | H70: 6.9 | I70: 80.7 | J70: 5.7 | K70: 83.9 | L70: 40.2 | N70: =(A70-x!A68)^2 -> 3.41292782e-24 | O70: =(B70-x!B68)^2 -> 8.336555829e-25 | P70: =(C70-x!C68)^2 -> 4.273227969e-25 | Q70: =(D70-x!D68)^2 -> 6.793543898e-25 | R70: =(E70-x!E68)^2 -> 1.709291188e-24 | S70: =(F70-x!F68)^2 -> 4.750331045e-25 | T70: =(G70-x!G68)^2 -> 2.460264681e-24 | U70: =(H70-x!H68)^2 -> 3.700985113e-24 | V70: =(I70-x!I68)^2 -> 1.018021843e-24 | W70: =(J70-x!J68)^2 -> 1.33255173e-25 | X70: =(K70-x!K68)^2 -> 3.958188478e-26 | Y70: =(L70-x!L68)^2 -> 1.900132418e-24
A71: 75.3 | B71: 80.9 | C71: 14.6 | D71: 11.4 | E71: 96.1 | F71: 69.3 | G71: 92.6 | H71: 15.2 | I71: 74.5 | J71: 30.4 | K71: 79 | L71: 60.3 | N71: =(A71-x!A69)^2 -> 1.635781973e-24 | O71: =(B71-x!B69)^2 -> 8.077935669e-28 | P71: =(C71-x!C69)^2 -> 2.085650415e-24 | Q71: =(D71-x!D69)^2 -> 2.688213928e-24 | R71: =(E71-x!E69)^2 -> 5.234704262e-24 | S71: =(F71-x!F69)^2 -> 1.135959704e-24 | T71: =(G71-x!G69)^2 -> 1.391222471e-24 | U71: =(H71-x!H69)^2 -> 6.026657502e-24 | V71: =(I71-x!I69)^2 -> 2.312107137e-24 | W71: =(J71-x!J69)^2 -> 5.009582293e-24 | X71: =(K71-x!K69)^2 -> 3.845905172e-24 | Y71: =(L71-x!L69)^2 -> 1.940724045e-25
A72: 90.3 | B72: 71.2 | C72: 43.9 | D72: 18.3 | E72: 50.7 | F72: 23.5 | G72: 60.3 | H72: 99.4 | I72: 66.5 | J72: 66.8 | K72: 16.9 | L72: 71.7 | N72: =(A72-x!A70)^2 -> 4.129642663e-24 | O72: =(B72-x!B70)^2 -> 1.163222736e-25 | P72: =(C72-x!C70)^2 -> 4.696562285e-24 | Q72: =(D72-x!D70)^2 -> 1.180248248e-23 | R72: =(E72-x!E70)^2 -> 2.670767481e-24 | S72: =(F72-x!F70)^2 -> 5.632138697e-24 | T72: =(G72-x!G70)^2 -> 4.483456245e-24 | U72: =(H72-x!H70)^2 -> 2.7348659e-23 | V72: =(I72-x!I70)^2 -> 4.977825908e-24 | W72: =(J72-x!J70)^2 -> 9.509547818e-24 | X72: =(K72-x!K70)^2 -> 4.883162599e-24 | Y72: =(L72-x!L70)^2 -> 4.072087371e-24
A73: 61.1 | B73: 60.8 | C73: 78.1 | D73: 82.7 | E73: 45.6 | F73: 17.4 | G73: 16.5 | H73: 89 | I73: 10.5 | J73: 91.7 | K73: 10.4 | L73: 62.6 | N73: =(A73-x!A71)^2 -> 1.339044055e-23 | O73: =(B73-x!B71)^2 -> 8.948383725e-24 | P73: =(C73-x!C71)^2 -> 1.022363733e-23 | Q73: =(D73-x!D71)^2 -> 9.863361401e-24 | R73: =(E73-x!E71)^2 -> 6.079100975e-24 | S73: =(F73-x!F71)^2 -> 1.921988283e-23 | T73: =(G73-x!G71)^2 -> 1.212195221e-23 | U73: =(H73-x!H71)^2 -> 6.837164751e-24 | V73: =(I73-x!I71)^2 -> 6.114189508e-24 | W73: =(J73-x!J71)^2 -> 1.866326257e-23 | X73: =(K73-x!K71)^2 -> 1.432937751e-23 | Y73: =(L73-x!L71)^2 -> 8.363137286e-24
A74: 14.7 | B74: 56.8 | C74: 71.1 | D74: 32.5 | E74: 59.2 | F74: 90.4 | G74: 30.2 | H74: 47.9 | I74: 68.8 | J74: 88.7 | K74: 52.4 | L74: 92.9 | N74: =(A74-x!A72)^2 -> 4.148738145e-23 | O74: =(B74-x!B72)^2 -> 1.483129184e-23 | P74: =(C74-x!C72)^2 -> 2.334523408e-23 | Q74: =(D74-x!D72)^2 -> 4.978275243e-23 | R74: =(E74-x!E72)^2 -> 2.375902634e-23 | S74: =(F74-x!F72)^2 -> 4.49908705e-23 | T74: =(G74-x!G72)^2 -> 3.211010983e-23 | U74: =(H74-x!H72)^2 -> 3.040211869e-23 | V74: =(I74-x!I72)^2 -> 3.087407208e-23 | W74: =(J74-x!J72)^2 -> 4.254668912e-23 | X74: =(K74-x!K72)^2 -> 3.134966054e-23 | Y74: =(L74-x!L72)^2 -> 4.3666291e-23
A75: 83 | B75: 51.6 | C75: 11.9 | D75: 87.4 | E75: 54 | F75: 95 | G75: 87.9 | H75: 61.7 | I75: 55.4 | J75: 67.1 | K75: 51.8 | L75: 31.7 | N75: =(A75-x!A73)^2 -> 1.115259993e-23 | O75: =(B75-x!B73)^2 -> 3.98651174e-24 | P75: =(C75-x!C73)^2 -> 2.975081619e-24 | Q75: =(D75-x!D73)^2 -> 3.790369365e-24 | R75: =(E75-x!E73)^2 -> 1.292651461e-23 | S75: =(F75-x!F73)^2 -> 5.564889883e-24 | T75: =(G75-x!G73)^2 -> 1.38625454e-23 | U75: =(H75-x!H73)^2 -> 4.914616061e-24 | V75: =(I75-x!I73)^2 -> 8.52833107e-24 | W75: =(J75-x!J73)^2 -> 1.252100224e-23 | X75: =(K75-x!K73)^2 -> 8.821307699e-24 | Y75: =(L75-x!L73)^2 -> 1.464036225e-23
A76: 37.3 | B76: 64.8 | C76: 65.7 | D76: 28.6 | E76: 6.1 | F76: 89.9 | G76: 22.1 | H76: 70.4 | I76: 82.1 | J76: 56.2 | K76: 8 | L76: 80.5 | N76: =(A76-x!A74)^2 -> 2.764673483e-25 | O76: =(B76-x!B74)^2 -> 5.836308521e-26 | P76: =(C76-x!C74)^2 -> 8.569881952e-24 | Q76: =(D76-x!D74)^2 -> 1.45907713e-26 | R76: =(E76-x!E74)^2 -> 6.070344619e-24 | S76: =(F76-x!F74)^2 -> 1.262177448e-25 | T76: =(G76-x!G74)^2 -> 5.888815103e-25 | U76: =(H76-x!H74)^2 -> 9.338093634e-25 | V76: =(I76-x!I74)^2 -> 1.599633211e-24 | W76: =(J76-x!J74)^2 -> 1.105788614e-23 | X76: =(K76-x!K74)^2 -> 5.888815103e-25 | Y76: =(L76-x!L74)^2 -> 4.652890946e-25
A77: 69.3 | B77: -30.1 | C77: 26.7 | D77: 6.5 | E77: 78.8 | F77: 9.5 | G77: 58 | H77: 3 | I77: 54.9 | J77: 78.4 | K77: 95.9 | L77: 10 | N77: =(A77-x!A75)^2 -> 5.84527503e-23 | O77: =(B77-x!B75)^2 -> 3.353479263e-23 | P77: =(C77-x!C75)^2 -> 2.090631598e-23 | Q77: =(D77-x!D75)^2 -> 3.231174268e-23 | R77: =(E77-x!E75)^2 -> 3.786310202e-23 | S77: =(F77-x!F75)^2 -> 4.069033217e-23 | T77: =(G77-x!G75)^2 -> 2.495117818e-23 | U77: =(H77-x!H75)^2 -> 1.86786138e-23 | V77: =(I77-x!I75)^2 -> 3.271690164e-23 | W77: =(J77-x!J75)^2 -> 3.378212892e-23 | X77: =(K77-x!K75)^2 -> 4.125886423e-23 | Y77: =(L77-x!L75)^2 -> 5.595397027e-23
A78: 14.5 | B78: 90.8 | C78: 43 | D78: 90.8 | E78: 18.7 | F78: 12.9 | G78: 30.9 | H78: 99.3 | I78: 10.3 | J78: 46.3 | K78: 19.4 | L78: 35.8 | N78: =(A78-x!A76)^2 -> 1.493610305e-24 | O78: =(B78-x!B76)^2 -> 5.498044965e-24 | P78: =(C78-x!C76)^2 -> 8.240302176e-24 | Q78: =(D78-x!D76)^2 -> 9.863361401e-24 | R78: =(E78-x!E76)^2 -> 5.615288628e-24 | S78: =(F78-x!F76)^2 -> 5.8105885e-24 | T78: =(G78-x!G76)^2 -> 6.676918702e-25 | U78: =(H78-x!H76)^2 -> 8.158916975e-24 | V78: =(I78-x!I76)^2 -> 4.144094594e-24 | W78: =(J78-x!J76)^2 -> 7.837415135e-24 | X78: =(K78-x!K76)^2 -> 6.220515336e-25 | Y78: =(L78-x!L76)^2 -> 4.851810111e-24
A79: 2 | B79: 36.6 | C79: 5.9 | D79: 53 | E79: 59.3 | F79: 98.4 | G79: 33.4 | H79: 58.5 | I79: 21.5 | J79: 56.9 | K79: 22.6 | L79: 78.9 | N79: =(A79-x!A77)^2 -> 1.424947852e-24 | O79: =(B79-x!B77)^2 -> 1.822584235e-26 | P79: =(C79-x!C77)^2 -> 4.203839764e-25 | Q79: =(D79-x!D77)^2 -> 6.543127892e-26 | R79: =(E79-x!E77)^2 -> 2.764673483e-25 | S79: =(F79-x!F77)^2 -> 2.334523408e-25 | T79: =(G79-x!G77)^2 -> 8.486881163e-26 | U79: =(H79-x!H77)^2 -> 1.583275391e-25 | V79: =(I79-x!I77)^2 -> 5.460684513e-25 | W79: =(J79-x!J77)^2 -> 1.313169417e-25 | X79: =(K79-x!K77)^2 -> 2.932341135e-24 | Y79: =(L79-x!L77)^2 -> 9.338093634e-25
A80: 80.6 | B80: 60.8 | C80: 73.1 | D80: 10.4 | E80: 16.9 | F80: 77.8 | G80: 50 | H80: 59.4 | I80: 9.1 | J80: 42.5 | K80: 40.3 | L80: 48 | N80: =(A80-x!A78)^2 -> 6.723447611e-23 | O80: =(B80-x!B78)^2 -> 2.530736466e-23 | P80: =(C80-x!C78)^2 -> 4.329147479e-23 | Q80: =(D80-x!D78)^2 -> 5.680760612e-23 | R80: =(E80-x!E78)^2 -> 4.662589517e-23 | S80: =(F80-x!F78)^2 -> 6.911178836e-23 | T80: =(G80-x!G78)^2 -> 3.856588242e-23 | U80: =(H80-x!H78)^2 -> 4.968253554e-23 | V80: =(I80-x!I78)^2 -> 5.306888506e-23 | W80: =(J80-x!J78)^2 -> 8.611261177e-23 | X80: =(K80-x!K78)^2 -> 4.968253554e-23 | Y80: =(L80-x!L78)^2 -> 5.566202547e-23
A81: 12.6 | B81: 92 | C81: 4.5 | D81: 95.5 | E81: 18.4 | F81: 60.2 | G81: 73 | H81: 24.1 | I81: 71.9 | J81: 48.9 | K81: 32 | L81: 88.5 | N81: =(A81-x!A79)^2 -> 1.071793442e-23 | O81: =(B81-x!B79)^2 -> 2.811929407e-24 | P81: =(C81-x!C79)^2 -> 1.04980852e-23 | Q81: =(D81-x!D79)^2 -> 1.516147746e-23 | R81: =(E81-x!E79)^2 -> 9.033605946e-24 | S81: =(F81-x!F79)^2 -> 1.483129184e-23 | T81: =(G81-x!G79)^2 -> 7.758049417e-24 | U81: =(H81-x!H79)^2 -> 1.110519255e-23 | V81: =(I81-x!I79)^2 -> 2.225955953e-23 | W81: =(J81-x!J79)^2 -> 1.835756319e-23 | X81: =(K81-x!K79)^2 -> 1.407499511e-23 | Y81: =(L81-x!L79)^2 -> 1.494094981e-23
A82: 52.9 | B82: 40.7 | C82: 51.5 | D82: 64.4 | E82: 27.3 | F82: 34 | G82: 16.4 | H82: 68.5 | I82: 39.3 | J82: 63.7 | K82: 60.1 | L82: 54.3 | N82: =(A82-x!A80)^2 -> 9.248428548e-24 | O82: =(B82-x!B80)^2 -> 6.220060953e-24 | P82: =(C82-x!C80)^2 -> 1.978468199e-23 | Q82: =(D82-x!D80)^2 -> 2.389776488e-23 | R82: =(E82-x!E80)^2 -> 1.190032648e-23 | S82: =(F82-x!F80)^2 -> 1.617384475e-23 | T82: =(G82-x!G80)^2 -> 9.863361401e-24 | U82: =(H82-x!H80)^2 -> 2.779637859e-23 | V82: =(I82-x!I80)^2 -> 1.583275391e-23 | W82: =(J82-x!J80)^2 -> 3.337040663e-23 | X82: =(K82-x!K80)^2 -> 1.148727891e-23 | Y82: =(L82-x!L80)^2 -> 1.811482123e-23
A83: 50.9 | B83: 69.1 | C83: 68 | D83: 60.1 | E83: 27.5 | F83: 80.3 | G83: 52.5 | H83: 40.9 | I83: 10.5 | J83: 95.8 | K83: 15.6 | L83: 40.6 | N83: =(A83-x!A81)^2 -> 2.839899259e-25 | O83: =(B83-x!B81)^2 -> 6.10893885e-25 | P83: =(C83-x!C81)^2 -> 1.817535526e-25 | Q83: =(D83-x!D81)^2 -> 8.930662754e-25 | R83: =(E83-x!E81)^2 -> 1.493610305e-24 | S83: =(F83-x!F81)^2 -> 1.324983398e-24 | T83: =(G83-x!G81)^2 -> 1.861156378e-24 | U83: =(H83-x!H81)^2 -> 1.262177448e-27 | V83: =(I83-x!I81)^2 -> 7.514499657e-25 | W83: =(J83-x!J81)^2 -> 1.817535526e-25 | X83: =(K83-x!K81)^2 -> 1.550588151e-24 | Y83: =(L83-x!L81)^2 -> 1.408034674e-24
A84: 6.6 | B84: 37.6 | C84: 62.6 | D84: 62.8 | E84: 11.9 | F84: 23 | G84: 77.1 | H84: 51.2 | I84: 19.4 | J84: 40.4 | K84: 76.9 | L84: 37.1 | N84: =(A84-x!A82)^2 -> 2.264674824e-23 | O84: =(B84-x!B82)^2 -> 2.389776488e-23 | P84: =(C84-x!C82)^2 -> 8.322091275e-24 | Q84: =(D84-x!D82)^2 -> 7.797681789e-24 | R84: =(E84-x!E82)^2 -> 8.414586794e-24 | S84: =(F84-x!F82)^2 -> 1.560737951e-23 | T84: =(G84-x!G82)^2 -> 2.279916563e-23 | U84: =(H84-x!H82)^2 -> 1.505101169e-23 | V84: =(I84-x!I82)^2 -> 1.472203776e-23 | W84: =(J84-x!J82)^2 -> 2.166022719e-23 | X84: =(K84-x!K82)^2 -> 1.686693163e-23 | Y84: =(L84-x!L82)^2 -> 3.271690164e-23
A85: 9.7 | B85: 39.6 | C85: 95.6 | D85: 93.9 | E85: 50.3 | F85: 83.8 | G85: 0.2 | H85: 56 | I85: 7.5 | J85: 82.2 | K85: 92.2 | L85: 31.3 | N85: =(A85-x!A83)^2 -> 1.287547215e-25 | O85: =(B85-x!B83)^2 -> 1.919771899e-24 | P85: =(C85-x!C83)^2 -> 1.166453911e-24 | Q85: =(D85-x!D83)^2 -> 1.163222736e-25 | R85: =(E85-x!E83)^2 -> 1.45907713e-24 | S85: =(F85-x!F83)^2 -> 1.817535526e-27 | T85: =(G85-x!G83)^2 -> 4.310321472e-25 | U85: =(H85-x!H83)^2 -> 9.614762931e-25 | V85: =(I85-x!I83)^2 -> 8.077935669e-26 | W85: =(J85-x!J83)^2 -> 4.543838814e-26 | X85: =(K85-x!K83)^2 -> 8.015331668e-25 | Y85: =(L85-x!L83)^2 -> 5.566202547e-27
A86: 58.8 | B86: 2.7 | C86: 8.9 | D86: 61.4 | E86: -6.9 | F86: -26.3 | G86: 5.2 | H86: -6.2 | I86: 89.8 | J86: 68 | K86: 14.1 | L86: 55.7 | N86: =(A86-x!A84)^2 -> 7.061933311e-24 | O86: =(B86-x!B84)^2 -> 1.75370169e-24 | P86: =(C86-x!C84)^2 -> 4.843987767e-24 | Q86: =(D86-x!D84)^2 -> 4.513597042e-24 | R86: =(E86-x!E84)^2 -> 4.875315011e-24 | S86: =(F86-x!F84)^2 -> 8.800216714e-24 | T86: =(G86-x!G84)^2 -> 3.73180512e-24 | U86: =(H86-x!H84)^2 -> 4.777752639e-24 | V86: =(I86-x!I84)^2 -> 3.680509439e-24 | W86: =(J86-x!J84)^2 -> 7.91718475e-24 | X86: =(K86-x!K84)^2 -> 6.865062028e-24 | Y86: =(L86-x!L84)^2 -> 8.240302176e-24
A87: 58.9 | B87: 50.2 | C87: 87.7 | D87: 58 | E87: 8.9 | F87: 13.2 | G87: 67.3 | H87: 70.1 | I87: 6.6 | J87: 49.8 | K87: 15.7 | L87: 7 | N87: =(A87-x!A85)^2 -> 5.018462973e-23 | O87: =(B87-x!B85)^2 -> 2.870272297e-23 | P87: =(C87-x!C85)^2 -> 3.999083027e-23 | Q87: =(D87-x!D85)^2 -> 4.089454933e-23 | R87: =(E87-x!E85)^2 -> 4.468161494e-23 | S87: =(F87-x!F85)^2 -> 5.465936433e-23 | T87: =(G87-x!G85)^2 -> 2.093881705e-23 | U87: =(H87-x!H85)^2 -> 5.33539573e-23 | V87: =(I87-x!I85)^2 -> 4.900871264e-23 | W87: =(J87-x!J85)^2 -> 7.68795313e-23 | X87: =(K87-x!K85)^2 -> 3.30020149e-23 | Y87: =(L87-x!L85)^2 -> 5.888815103e-23
A88: 51.5 | B88: 9.6 | C88: 37.4 | D88: 98.9 | E88: 70.6 | F88: 46.5 | G88: 39.2 | H88: 35.4 | I88: 80.8 | J88: 30.7 | K88: 40.2 | L88: 21.4 | N88: =(A88-x!A86)^2 -> 3.378212892e-23 | O88: =(B88-x!B86)^2 -> 1.579037315e-23 | P88: =(C88-x!C86)^2 -> 2.631811636e-23 | Q88: =(D88-x!D86)^2 -> 3.461314655e-23 | R88: =(E88-x!E86)^2 -> 1.494094981e-23 | S88: =(F88-x!F86)^2 -> 4.017076629e-23 | T88: =(G88-x!G86)^2 -> 1.669229675e-23 | U88: =(H88-x!H86)^2 -> 2.839899259e-23 | V88: =(I88-x!I86)^2 -> 1.978468199e-23 | W88: =(J88-x!J86)^2 -> 5.104398325e-23 | X88: =(K88-x!K86)^2 -> 2.403690733e-23 | Y88: =(L88-x!L86)^2 -> 3.423793906e-23
A89: 62.4 | B89: 15.6 | C89: 44.5 | D89: 7.3 | E89: 4.1 | F89: 75.2 | G89: 62.7 | H89: 94.7 | I89: 32.9 | J89: 88.7 | K89: 23 | L89: 43.7 | N89: =(A89-x!A87)^2 -> 3.334622331e-24 | O89: =(B89-x!B87)^2 -> 7.649581042e-24 | P89: =(C89-x!C87)^2 -> 2.101071068e-24 | Q89: =(D89-x!D87)^2 -> 7.507766729e-24 | R89: =(E89-x!E87)^2 -> 3.136539358e-24 | S89: =(F89-x!F87)^2 -> 6.986606561e-24 | T89: =(G89-x!G87)^2 -> 1.068306992e-23 | U89: =(H89-x!H87)^2 -> 3.845905172e-24 | V89: =(I89-x!I87)^2 -> 3.130250559e-24 | W89: =(J89-x!J87)^2 -> 7.997358261e-24 | X89: =(K89-x!K87)^2 -> 6.184669497e-24 | Y89: =(L89-x!L87)^2 -> 1.192485058e-23
A90: 34.5 | B90: 48.8 | C90: 10 | D90: 19.4 | E90: 81.9 | F90: 21.6 | G90: 94.7 | H90: 61.7 | I90: 34.5 | J90: 44 | K90: 74.9 | L90: 99.8 | N90: =(A90-x!A88)^2 -> 4.914616061e-24 | O90: =(B90-x!B88)^2 -> 3.734025763e-25 | P90: =(C90-x!C88)^2 -> 1.324983398e-24 | Q90: =(D90-x!D88)^2 -> 2.835809804e-24 | R90: =(E90-x!E88)^2 -> 5.431603944e-24 | S90: =(F90-x!F88)^2 -> 1.003733994e-24 | T90: =(G90-x!G88)^2 -> 1.900132418e-24 | U90: =(H90-x!H88)^2 -> 3.30872245e-24 | V90: =(I90-x!I88)^2 -> 2.764673483e-25 | W90: =(J90-x!J88)^2 -> 6.561303248e-25 | X90: =(K90-x!K88)^2 -> 2.717417559e-24 | Y90: =(L90-x!L88)^2 -> 6.543127892e-24
A91: -20.2 | B91: 32 | C91: 28.3 | D91: 96.6 | E91: 57.8 | F91: 13.6 | G91: 15.2 | H91: -13.7 | I91: 54 | J91: 40.4 | K91: 49.7 | L91: 79.7 | N91: =(A91-x!A89)^2 -> 1.433442306e-24 | O91: =(B91-x!B89)^2 -> 1.391222471e-24 | P91: =(C91-x!C89)^2 -> 4.742871576e-24 | Q91: =(D91-x!D89)^2 -> 4.129642663e-24 | R91: =(E91-x!E89)^2 -> 6.616031262e-24 | S91: =(F91-x!F89)^2 -> 2.782220905e-24 | T91: =(G91-x!G89)^2 -> 1.499593026e-25 | U91: =(H91-x!H89)^2 -> 4.619885005e-24 | V91: =(I91-x!I89)^2 -> 3.005799863e-24 | W91: =(J91-x!J89)^2 -> 4.18083658e-25 | X91: =(K91-x!K89)^2 -> 1.262177448e-25 | Y91: =(L91-x!L89)^2 -> 1.163222736e-25
A92: 88.9 | B92: 37.9 | C92: 83.9 | D92: 59.5 | E92: 73.6 | F92: 38.1 | G92: 12.1 | H92: 17 | I92: 4.3 | J92: 76.9 | K92: 19.7 | L92: 63.3 | N92: =(A92-x!A90)^2 -> 3.735237454e-24 | O92: =(B92-x!B90)^2 -> 7.391816009e-25 | P92: =(C92-x!C90)^2 -> 2.44357554e-24 | Q92: =(D92-x!D90)^2 -> 1.528547377e-24 | R92: =(E92-x!E90)^2 -> 1.262177448e-25 | S92: =(F92-x!F90)^2 -> 6.57952909e-24 | T92: =(G92-x!G90)^2 -> 5.807309994e-25 | U92: =(H92-x!H90)^2 -> 5.460684513e-25 | V92: =(I92-x!I90)^2 -> 2.656272162e-24 | W92: =(J92-x!J90)^2 -> 1.709291188e-24 | X92: =(K92-x!K90)^2 -> 4.946170498e-24 | Y92: =(L92-x!L90)^2 -> 7.679087596e-24
A93: 98.7 | B93: 2.3 | C93: 24.5 | D93: 1.4 | E93: 84.8 | F93: 39.2 | G93: 9.3 | H93: 30.6 | I93: 82.1 | J93: 93.9 | K93: 71.7 | L93: 37.2 | N93: =(A93-x!A91)^2 -> 3.41292782e-24 | O93: =(B93-x!B91)^2 -> 6.242231888e-24 | P93: =(C93-x!C91)^2 -> 3.585707291e-24 | Q93: =(D93-x!D91)^2 -> 3.252418489e-24 | R93: =(E93-x!E91)^2 -> 3.071635038e-25 | S93: =(F93-x!F91)^2 -> 3.155443621e-24 | T93: =(G93-x!G91)^2 -> 4.15857177e-24 | U93: =(H93-x!H91)^2 -> 2.694042033e-24 | V93: =(I93-x!I91)^2 -> 1.939512354e-24 | W93: =(J93-x!J91)^2 -> 4.072087371e-24 | X93: =(K93-x!K91)^2 -> 3.626185322e-24 | Y93: =(L93-x!L91)^2 -> 4.453416422e-24
A94: 59.2 | B94: 13.1 | C94: 40.8 | D94: 55.9 | E94: 39.3 | F94: 21 | G94: 50.9 | H94: 18.2 | I94: 0.1 | J94: 17.4 | K94: 61.6 | L94: 66.8 | N94: =(A94-x!A92)^2 -> 8.695140442e-24 | O94: =(B94-x!B92)^2 -> 7.01480676e-24 | P94: =(C94-x!C92)^2 -> 1.407499511e-23 | Q94: =(D94-x!D92)^2 -> 9.685646816e-24 | R94: =(E94-x!E92)^2 -> 2.694042033e-24 | S94: =(F94-x!F92)^2 -> 1.588934995e-23 | T94: =(G94-x!G92)^2 -> 1.407499511e-23 | U94: =(H94-x!H92)^2 -> 8.549093889e-24 | V94: =(I94-x!I92)^2 -> 3.740710997e-24 | W94: =(J94-x!J92)^2 -> 2.29350769e-23 | X94: =(K94-x!K92)^2 -> 9.77430216e-24 | Y94: =(L94-x!L92)^2 -> 1.018021843e-24
A95: -17.8 | B95: 52.2 | C95: 90 | D95: 36.6 | E95: -79.4 | F95: 40.5 | G95: 28 | H95: 28.1 | I95: 92.2 | J95: 44.5 | K95: -68.6 | L95: 85.4 | N95: =(A95-x!A93)^2 -> 3.083460379e-23 | O95: =(B95-x!B93)^2 -> 3.572265101e-24 | P95: =(C95-x!C93)^2 -> 8.821307699e-24 | Q95: =(D95-x!D93)^2 -> 2.609986064e-23 | R95: =(E95-x!E93)^2 -> 4.727409902e-24 | S95: =(F95-x!F93)^2 -> 9.863361401e-24 | T95: =(G95-x!G93)^2 -> 3.742714593e-23 | U95: =(H95-x!H93)^2 -> 6.009226832e-24 | V95: =(I95-x!I93)^2 -> 4.848780886e-25 | W95: =(J95-x!J93)^2 -> 8.569881952e-24 | X95: =(K95-x!K93)^2 -> 1.640325812e-23 | Y95: =(L95-x!L93)^2 -> 1.516147746e-23
A96: 20.3 | B96: 49.3 | C96: 74.9 | D96: 62.5 | E96: 39.4 | F96: 11.6 | G96: 90.8 | H96: 93.9 | I96: 11 | J96: 75.2 | K96: 42.9 | L96: 48.9 | N96: =(A96-x!A94)^2 -> 7.024219448e-24 | O96: =(B96-x!B94)^2 -> 2.334523408e-25 | P96: =(C96-x!C94)^2 -> 9.248428548e-24 | Q96: =(D96-x!D94)^2 -> 3.735237454e-24 | R96: =(E96-x!E94)^2 -> 5.009582293e-24 | S96: =(F96-x!F94)^2 -> 2.595822539e-24 | T96: =(G96-x!G94)^2 -> 1.031471606e-23 | U96: =(H96-x!H94)^2 -> 1.172936454e-23 | V96: =(I96-x!I94)^2 -> 4.144094594e-24 | W96: =(J96-x!J94)^2 -> 1.686693163e-23 | X96: =(K96-x!K94)^2 -> 2.46584035e-24 | Y96: =(L96-x!L94)^2 -> 1.091657275e-23
A97: 63.4 | B97: 68.8 | C97: 18.1 | D97: 94.5 | E97: -35.7 | F97: 52.9 | G97: 9.6 | H97: 1 | I97: 39.1 | J97: 79.5 | K97: 83.3 | L97: 90.3 | N97: =(A97-x!A95)^2 -> 2.757206441e-23 | O97: =(B97-x!B95)^2 -> 2.003832917e-23 | P97: =(C97-x!C95)^2 -> 8.611533808e-24 | Q97: =(D97-x!D95)^2 -> 1.494094981e-23 | R97: =(E97-x!E95)^2 -> 9.685646816e-24 | S97: =(F97-x!F95)^2 -> 2.139648259e-23 | T97: =(G97-x!G95)^2 -> 3.568733844e-23 | U97: =(H97-x!H95)^2 -> 1.163222736e-23 | V97: =(I97-x!I95)^2 -> 1.391550637e-23 | W97: =(J97-x!J95)^2 -> 1.866326257e-23 | X97: =(K97-x!K95)^2 -> 1.903343397e-23 | Y97: =(L97-x!L95)^2 -> 3.54542616e-23
A98: 18.6 | B98: 60.3 | C98: 82.7 | D98: 51.8 | E98: 90.2 | F98: 80 | G98: 9.5 | H98: 49.8 | I98: 43.4 | J98: 32.9 | K98: 89.6 | L98: 15.4 | N98: =(A98-x!A96)^2 -> 2.133079888e-25 | O98: =(B98-x!B96)^2 -> 1.115259993e-25 | P98: =(C98-x!C96)^2 -> 2.488206135e-24 | Q98: =(D98-x!D96)^2 -> 8.796871944e-25 | R98: =(E98-x!E96)^2 -> 4.543838814e-26 | S98: =(F98-x!F96)^2 -> 1.018021843e-24 | T98: =(G98-x!G96)^2 -> 1.45907713e-26 | U98: =(H98-x!H96)^2 -> 1.228654015e-24 | V98: =(I98-x!I96)^2 -> 4.18083658e-25 | W98: =(J98-x!J96)^2 -> 2.333766102e-24 | X98: =(K98-x!K96)^2 -> 6.543127892e-26 | Y98: =(L98-x!L96)^2 -> 4.296483589e-25
A99: 15.2 | B99: 17.5 | C99: 96.6 | D99: 96.9 | E99: 39.6 | F99: 43.1 | G99: 44.8 | H99: 30 | I99: 48.9 | J99: 70.8 | K99: 41.1 | L99: 43.5 | N99: =(A99-x!A97)^2 -> 1.727794709e-25 | O99: =(B99-x!B97)^2 -> 3.545456452e-26 | P99: =(C99-x!C97)^2 -> 7.270142103e-25 | Q99: =(D99-x!D97)^2 -> 6.543127892e-26 | R99: =(E99-x!E97)^2 -> 4.848780886e-25 | S99: =(F99-x!F97)^2 -> 1.476293231e-24 | T99: =(G99-x!G97)^2 -> 2.617251157e-25 | U99: =(H99-x!H97)^2 -> 7.099748147e-26 | V99: =(I99-x!I97)^2 -> 3.734025763e-25 | W99: =(J99-x!J97)^2 -> 0 | X99: =(K99-x!K97)^2 -> 1.032410666e-24 | Y99: =(L99-x!L97)^2 -> 8.077935669e-28
A100: 7.5 | B100: 49.9 | C100: 37 | D100: 85.6 | E100: 28 | F100: 7.2 | G100: 81.9 | H100: 71.2 | I100: 59 | J100: 4.2 | K100: 8.6 | L100: 37.1 | N100: =(A100-x!A98)^2 -> 1.721892767e-23 | O100: =(B100-x!B98)^2 -> 8.611533808e-24 | P100: =(C100-x!C98)^2 -> 1.60597439e-23 | Q100: =(D100-x!D98)^2 -> 1.793382498e-23 | R100: =(E100-x!E98)^2 -> 1.583275391e-23 | S100: =(F100-x!F98)^2 -> 1.441692608e-23 | T100: =(G100-x!G98)^2 -> 3.845905172e-24 | U100: =(H100-x!H98)^2 -> 1.115259993e-23 | V100: =(I100-x!I98)^2 -> 9.422104165e-24 | W100: =(J100-x!J98)^2 -> 2.434268953e-23 | X100: =(K100-x!K98)^2 -> 1.21838778e-23 | Y100: =(L100-x!L98)^2 -> 1.787369485e-23
A101: 79.6 | B101: 39 | C101: 2.5 | D101: 27.2 | E101: 57 | F101: 59.5 | G101: 54.1 | H101: 76.6 | I101: 20.7 | J101: 14.7 | K101: 94.2 | L101: 40.6 | N101: =(A101-x!A99)^2 -> 3.41292782e-24 | O101: =(B101-x!B99)^2 -> 1.528547377e-24 | P101: =(C101-x!C99)^2 -> 4.187601851e-24 | Q101: =(D101-x!D99)^2 -> 6.78154059e-24 | R101: =(E101-x!E99)^2 -> 4.665815643e-24 | S101: =(F101-x!F99)^2 -> 2.717417559e-24 | T101: =(G101-x!G99)^2 -> 2.333766102e-24 | U101: =(H101-x!H99)^2 -> 5.632138697e-24 | V101: =(I101-x!I99)^2 -> 3.478876592e-24 | W101: =(J101-x!J99)^2 -> 6.202352603e-24 | X101: =(K101-x!K99)^2 -> 4.727409902e-24 | Y101: =(L101-x!L99)^2 -> 3.818086781e-24
A102: 65.2 | B102: 69.9 | C102: 84.4 | D102: 49.1 | E102: 51.6 | F102: 71.5 | G102: 11 | H102: 75.5 | I102: 9.9 | J102: 66.7 | K102: -78.8 | L102: 78.9 | N102: =(A102-x!A100)^2 -> 5.048709793e-25 | O102: =(B102-x!B100)^2 -> 2.916134777e-25 | P102: =(C102-x!C100)^2 -> 8.015331668e-25 | Q102: =(D102-x!D100)^2 -> 3.818086781e-24 | R102: =(E102-x!E100)^2 -> 4.043461186e-24 | S102: =(F102-x!F100)^2 -> 2.399348842e-24 | T102: =(G102-x!G100)^2 -> 2.488206135e-24 | U102: =(H102-x!H100)^2 -> 1.292469707e-24 | V102: =(I102-x!I100)^2 -> 1.124628505e-24 | W102: =(J102-x!J100)^2 -> 1.01329625e-23 | X102: =(K102-x!K100)^2 -> 5.431603944e-24 | Y102: =(L102-x!L100)^2 -> 2.670767481e-24
N104: =SQRT(SUM(N3:N102)/100) -> 6.976984271e-12 | O104: =SQRT(SUM(O3:O102)/100) -> 5.804646798e-12 | P104: =SQRT(SUM(P3:P102)/100) -> 6.183342487e-12 | Q104: 6.765511881e-12 | R104: 5.75464323e-12 | S104: 6.775459295e-12 | T104: 5.882223832e-12 | U104: 6.386795789e-12 | V104: 6.611081241e-12 | W104: 7.31931109e-12 | X104: 6.642115684e-12 | Y104: 7.544720246e-12

Sheet DP
A1: Solution Vectors, x, for Each Input b Vector Using Excel Minverse | N1: Square of the Error for Each Solution Value in Each x Solution Using Excel Minverse
A2: x1 | B2: x2 | C2: x3 | D2: x4 | E2: x5 | F2: x6 | G2: x7 | H2: x8 | I2: x9 | J2: x10 | K2: x11 | L2: x12 | N2: Esqd1 | O2: Esqd2 | P2: Esqd3 | Q2: Esqd4 | R2: Esqd5 | S2: Esqd6 | T2: Esqd7 | U2: Esqd8 | V2: Esqd9 | W2: Esqd10 | X2: Esqd11 | Y2: Esqd12
A3: =gaussian(A,b) -> 32.4 | B3: 80.1 | C3: 63.2 | D3: 84.1 | E3: 92.4 | F3: 63.7 | G3: 14.7 | H3: 39.9 | I3: 48.9 | J3: 26.4 | K3: 80 | L3: 65.2 | N3: =(A3-x!A1)^2 -> 1.260359913e-24 | O3: =(B3-x!B1)^2 -> 7.270142103e-27 | P3: =(C3-x!C1)^2 -> 7.391816009e-25 | Q3: =(D3-x!D1)^2 -> 2.977850205e-23 | R3: =(E3-x!E1)^2 -> 2.355526041e-24 | S3: =(F3-x!F1)^2 -> 1.067355815e-22 | T3: =(G3-x!G1)^2 -> 1.519775244e-24 | U3: =(H3-x!H1)^2 -> 3.075181252e-22 | V3: =(I3-x!I1)^2 -> 5.18082948e-23 | W3: =(J3-x!J1)^2 -> 1.396856831e-23 | X3: =(K3-x!K1)^2 -> 6.265428659e-23 | Y3: =(L3-x!L1)^2 -> 1.197352015e-24
A4: 5.1 | B4: 16 | C4: 58.5 | D4: 77.8 | E4: 34.6 | F4: 52 | G4: 84.5 | H4: 56.9 | I4: 50.7 | J4: 58.9 | K4: 96.4 | L4: 75.4 | N4: =(A4-x!A2)^2 -> 2.968164571e-23 | O4: =(B4-x!B2)^2 -> 1.370349211e-24 | P4: =(C4-x!C2)^2 -> 1.120010829e-23 | Q4: =(D4-x!D2)^2 -> 9.162196585e-24 | R4: =(E4-x!E2)^2 -> 2.039729244e-24 | S4: =(F4-x!F2)^2 -> 4.604549549e-23 | T4: =(G4-x!G2)^2 -> 3.845905172e-24 | U4: =(H4-x!H2)^2 -> 1.09394636e-22 | V4: =(I4-x!I2)^2 -> 7.367279279e-24 | W4: =(J4-x!J2)^2 -> 6.276682233e-23 | X4: =(K4-x!K2)^2 -> 2.764673483e-25 | Y4: =(L4-x!L2)^2 -> 7.997358261e-24
A5: 64.8 | B5: 92.2 | C5: 85.5 | D5: 73.3 | E5: 85.5 | F5: 34.8 | G5: -18.9 | H5: 14.4 | I5: 53.3 | J5: 76.8 | K5: 68.1 | L5: 34.2 | N5: =(A5-x!A3)^2 -> 1.528547377e-24 | O5: =(B5-x!B3)^2 -> 1.172936454e-23 | P5: =(C5-x!C3)^2 -> 2.908056841e-26 | Q5: =(D5-x!D3)^2 -> 4.072087371e-24 | R5: =(E5-x!E3)^2 -> 5.545018161e-23 | S5: =(F5-x!F3)^2 -> 1.505101169e-23 | T5: =(G5-x!G3)^2 -> 2.602731068e-23 | U5: =(H5-x!H3)^2 -> 1.391550637e-27 | V5: =(I5-x!I3)^2 -> 3.821368443e-25 | W5: =(J5-x!J3)^2 -> 2.573812058e-23 | X5: =(K5-x!K3)^2 -> 7.514499657e-25 | Y5: =(L5-x!L3)^2 -> 2.835809804e-24
A6: 4 | B6: 25.6 | C6: 74.2 | D6: 63.7 | E6: 87.7 | F6: 86.5 | G6: 84 | H6: 25 | I6: 68.7 | J6: 74.6 | K6: 50 | L6: 95 | N6: =(A6-x!A4)^2 -> 1.166453911e-24 | O6: =(B6-x!B4)^2 -> 1.597443333e-23 | P6: =(C6-x!C4)^2 -> 1.599633211e-24 | Q6: =(D6-x!D4)^2 -> 4.208447974e-23 | R6: =(E6-x!E4)^2 -> 2.225955953e-23 | S6: =(F6-x!F4)^2 -> 4.187601851e-24 | T6: =(G6-x!G4)^2 -> 1.769391029e-23 | U6: =(H6-x!H4)^2 -> 5.508042673e-23 | V6: =(I6-x!I4)^2 -> 2.7348659e-23 | W6: =(J6-x!J4)^2 -> 5.566202547e-23 | X6: =(K6-x!K4)^2 -> 5.073397984e-24 | Y6: =(L6-x!L4)^2 -> 1.059037561e-23
A7: 39.9 | B7: 83.2 | C7: 9.9 | D7: 23.7 | E7: 58.4 | F7: 95.9 | G7: 23.2 | H7: 64.4 | I7: 80.9 | J7: 26.6 | K7: -10.1 | L7: -16.8 | N7: =(A7-x!A5)^2 -> 3.0637641e-23 | O7: =(B7-x!B5)^2 -> 3.105158471e-24 | P7: =(C7-x!C5)^2 -> 2.008606788e-23 | Q7: =(D7-x!D5)^2 -> 9.628702418e-23 | R7: =(E7-x!E5)^2 -> 3.1668739e-23 | S7: =(F7-x!F5)^2 -> 4.665815643e-24 | T7: =(G7-x!G5)^2 -> 6.618984757e-23 | U7: =(H7-x!H5)^2 -> 9.810834624e-23 | V7: =(I7-x!I5)^2 -> 8.930662754e-23 | W7: =(J7-x!J5)^2 -> 5.581664221e-24 | X7: =(K7-x!K5)^2 -> 2.473867799e-25 | Y7: =(L7-x!L5)^2 -> 9.378533799e-24
A8: 60.1 | B8: 34.2 | C8: 44.2 | D8: 39.1 | E8: 71 | F8: 3.2 | G8: 13.7 | H8: 88.2 | I8: 71.2 | J8: 78.7 | K8: 21.8 | L8: 99.1 | N8: =(A8-x!A6)^2 -> 3.830158246e-23 | O8: =(B8-x!B6)^2 -> 1.817535526e-23 | P8: =(C8-x!C6)^2 -> 8.653286638e-24 | Q8: =(D8-x!D6)^2 -> 3.279823635e-23 | R8: =(E8-x!E6)^2 -> 1.14391647e-23 | S8: =(F8-x!F6)^2 -> 4.255120653e-24 | T8: =(G8-x!G6)^2 -> 4.831479273e-23 | U8: =(H8-x!H6)^2 -> 7.318690496e-23 | V8: =(I8-x!I6)^2 -> 1.635781973e-22 | W8: =(J8-x!J6)^2 -> 2.573812058e-23 | X8: =(K8-x!K6)^2 -> 3.764480843e-23 | Y8: =(L8-x!L6)^2 -> 5.632138697e-24
A9: -46.1 | B9: 96.9 | C9: 1.9 | D9: 88 | E9: 85.1 | F9: 43.4 | G9: 86.5 | H9: 28.4 | I9: 64.5 | J9: 36.8 | K9: 42.9 | L9: 76.4 | N9: =(A9-x!A7)^2 -> 7.762896178e-25 | O9: =(B9-x!B7)^2 -> 1.357900986e-24 | P9: =(C9-x!C7)^2 -> 9.105826359e-26 | Q9: =(D9-x!D7)^2 -> 5.234704262e-24 | R9: =(E9-x!E7)^2 -> 8.532319551e-25 | S9: =(F9-x!F7)^2 -> 1.341391705e-24 | T9: =(G9-x!G7)^2 -> 3.071635038e-25 | U9: =(H9-x!H7)^2 -> 1.04980852e-23 | V9: =(I9-x!I7)^2 -> 1.365171128e-25 | W9: =(J9-x!J7)^2 -> 3.231174268e-25 | X9: =(K9-x!K7)^2 -> 2.44357554e-26 | Y9: =(L9-x!L7)^2 -> 1.45907713e-24
A10: 67.1 | B10: 79.2 | C10: 3.4 | D10: 43.9 | E10: 3.6 | F10: 15.9 | G10: 30.4 | H10: 68.1 | I10: 9.9 | J10: 6.5 | K10: 89.2 | L10: 57 | N10: =(A10-x!A8)^2 -> 6.114189508e-24 | O10: =(B10-x!B8)^2 -> 1.45907713e-24 | P10: =(C10-x!C8)^2 -> 3.766660939e-25 | Q10: =(D10-x!D8)^2 -> 3.26356679e-23 | R10: =(E10-x!E8)^2 -> 6.132564366e-23 | S10: =(F10-x!F8)^2 -> 2.421140336e-23 | T10: =(G10-x!G8)^2 -> 4.000711236e-24 | U10: =(H10-x!H8)^2 -> 4.014935976e-24 | V10: =(I10-x!I8)^2 -> 7.11869343e-24 | W10: =(J10-x!J8)^2 -> 2.307139207e-23 | X10: =(K10-x!K8)^2 -> 2.916134777e-25 | Y10: =(L10-x!L8)^2 -> 2.488206135e-24
A11: 61.3 | B11: 72.1 | C11: 67.3 | D11: 39.8 | E11: 96.1 | F11: 98.8 | G11: 19.7 | H11: 90.6 | I11: 74.4 | J11: 27.4 | K11: 51.8 | L11: 62.9 | N11: =(A11-x!A9)^2 -> 5.398534895e-24 | O11: =(B11-x!B9)^2 -> 2.44357554e-24 | P11: =(C11-x!C9)^2 -> 2.067951531e-25 | Q11: =(D11-x!D9)^2 -> 2.523592542e-23 | R11: =(E11-x!E9)^2 -> 3.444613523e-23 | S11: =(F11-x!F9)^2 -> 4.652890946e-25 | T11: =(G11-x!G9)^2 -> 7.977277018e-24 | U11: =(H11-x!H9)^2 -> 1.238123375e-22 | V11: =(I11-x!I9)^2 -> 1.344249275e-23 | W11: =(J11-x!J9)^2 -> 7.149477938e-25 | X11: =(K11-x!K9)^2 -> 8.118375835e-24 | Y11: =(L11-x!L9)^2 -> 5.105457291e-24
A12: 9.6 | B12: 18.5 | C12: 8.8 | D12: 85.8 | E12: 70.3 | F12: 21.4 | G12: 24.5 | H12: 63.1 | I12: 8.8 | J12: 80.3 | K12: 32.4 | L12: 67.1 | N12: =(A12-x!A10)^2 -> 2.024535783e-24 | O12: =(B12-x!B10)^2 -> 2.184273805e-24 | P12: =(C12-x!C10)^2 -> 3.111141192e-25 | Q12: =(D12-x!D10)^2 -> 9.422104165e-24 | R12: =(E12-x!E10)^2 -> 2.019483917e-26 | S12: =(F12-x!F10)^2 -> 1.426221389e-23 | T12: =(G12-x!G10)^2 -> 1.663158602e-24 | U12: =(H12-x!H10)^2 -> 3.231628652e-24 | V12: =(I12-x!I10)^2 -> 6.661800971e-24 | W12: =(J12-x!J10)^2 -> 5.232099128e-23 | X12: =(K12-x!K10)^2 -> 1.370426835e-23 | Y12: =(L12-x!L10)^2 -> 4.727409902e-24
A13: 61.3 | B13: 81.1 | C13: 85.3 | D13: 9.1 | E13: 63.9 | F13: 69.1 | G13: 11.7 | H13: 73.5 | I13: 67.6 | J13: 70.3 | K13: 19.9 | L13: 30.7 | N13: =(A13-x!A11)^2 -> 4.014935976e-24 | O13: =(B13-x!B11)^2 -> 2.578679014e-24 | P13: =(C13-x!C11)^2 -> 6.044113416e-24 | Q13: =(D13-x!D11)^2 -> 1.172936454e-23 | R13: =(E13-x!E11)^2 -> 2.074418929e-23 | S13: =(F13-x!F11)^2 -> 9.77430216e-26 | T13: =(G13-x!G11)^2 -> 1.761926827e-23 | U13: =(H13-x!H11)^2 -> 1.004269157e-23 | V13: =(I13-x!I11)^2 -> 1.344249275e-23 | W13: =(J13-x!J11)^2 -> 1.022363733e-23 | X13: =(K13-x!K11)^2 -> 2.708916794e-23 | Y13: =(L13-x!L11)^2 -> 2.035766006e-25
A14: 94 | B14: 46.9 | C14: 19.4 | D14: 58.2 | E14: -71.4 | F14: 80.5 | G14: 77.8 | H14: 70.2 | I14: 82 | J14: 59.6 | K14: 67.6 | L14: 74.3 | N14: =(A14-x!A12)^2 -> 3.41292782e-24 | O14: =(B14-x!B12)^2 -> 4.556460589e-25 | P14: =(C14-x!C12)^2 -> 2.262984453e-23 | Q14: =(D14-x!D12)^2 -> 2.809687779e-23 | R14: =(E14-x!E12)^2 -> 2.199217986e-25 | S14: =(F14-x!F12)^2 -> 3.845905172e-24 | T14: =(G14-x!G12)^2 -> 2.559413138e-23 | U14: =(H14-x!H12)^2 -> 2.334523408e-23 | V14: =(I14-x!I12)^2 -> 1.163222736e-25 | W14: =(J14-x!J12)^2 -> 7.91718475e-24 | X14: =(K14-x!K12)^2 -> 1.202319945e-23 | Y14: =(L14-x!L12)^2 -> 2.016575861e-23
A15: 66.9 | B15: 51.3 | C15: 9.6 | D15: 20.8 | E15: 15.6 | F15: 37.4 | G15: 0.4 | H15: 78.5 | I15: 11 | J15: 63.9 | K15: 79.9 | L15: 81.6 | N15: =(A15-x!A13)^2 -> 5.699791408e-24 | O15: =(B15-x!B13)^2 -> 3.25722561e-24 | P15: =(C15-x!C13)^2 -> 5.252677669e-25 | Q15: =(D15-x!D13)^2 -> 7.576220134e-25 | R15: =(E15-x!E13)^2 -> 4.738095812e-23 | S15: =(F15-x!F13)^2 -> 7.029823516e-25 | T15: =(G15-x!G13)^2 -> 8.522171968e-24 | U15: =(H15-x!H13)^2 -> 3.56236963e-25 | V15: =(I15-x!I13)^2 -> 2.07028656e-24 | W15: =(J15-x!J13)^2 -> 5.26726844e-24 | X15: =(K15-x!K13)^2 -> 1.252100224e-23 | Y15: =(L15-x!L13)^2 -> 1.222110887e-23
A16: 31.8 | B16: 97.4 | C16: 57.7 | D16: 5 | E16: 11.2 | F16: 87.9 | G16: 6.2 | H16: 47.6 | I16: 53.8 | J16: 95.6 | K16: 88.1 | L16: 70.4 | N16: =(A16-x!A14)^2 -> 3.734025763e-25 | O16: =(B16-x!B14)^2 -> 2.502221353e-23 | P16: =(C16-x!C14)^2 -> 5.632138697e-24 | Q16: =(D16-x!D14)^2 -> 1.156567985e-23 | R16: =(E16-x!E14)^2 -> 2.076037356e-23 | S16: =(F16-x!F14)^2 -> 1.538362069e-23 | T16: =(G16-x!G14)^2 -> 4.086438329e-24 | U16: =(H16-x!H14)^2 -> 5.998372106e-25 | V16: =(I16-x!I14)^2 -> 7.888609052e-25 | W16: =(J16-x!J14)^2 -> 1.461318757e-23 | X16: =(K16-x!K14)^2 -> 2.403690733e-23 | Y16: =(L16-x!L14)^2 -> 2.042182917e-23
A17: 94.9 | B17: 54.1 | C17: 95.7 | D17: 7.3 | E17: 8.5 | F17: 69.1 | G17: 72.7 | H17: 53.8 | I17: 61 | J17: 42.5 | K17: 40.4 | L17: 86.7 | N17: =(A17-x!A15)^2 -> 3.734025763e-25 | O17: =(B17-x!B15)^2 -> 1.228654015e-24 | P17: =(C17-x!C15)^2 -> 8.796871944e-25 | Q17: =(D17-x!D15)^2 -> 7.841348395e-23 | R17: =(E17-x!E15)^2 -> 2.757206441e-23 | S17: =(F17-x!F15)^2 -> 1.583275391e-23 | T17: =(G17-x!G15)^2 -> 3.790369365e-24 | U17: =(H17-x!H15)^2 -> 2.117582368e-22 | V17: =(I17-x!I15)^2 -> 7.173529992e-23 | W17: =(J17-x!J15)^2 -> 2.617251157e-23 | X17: =(K17-x!K15)^2 -> 5.325020632e-23 | Y17: =(L17-x!L15)^2 -> 9.863361401e-24
A18: 66.3 | B18: 75.3 | C18: -86.2 | D18: 56.5 | E18: 97.5 | F18: 85.7 | G18: 22.5 | H18: 22.8 | I18: 34.8 | J18: 36.5 | K18: 99.9 | L18: 21.4 | N18: =(A18-x!A16)^2 -> 5.498044965e-24 | O18: =(B18-x!B16)^2 -> 6.543127892e-24 | P18: =(C18-x!C16)^2 -> 6.986606561e-24 | Q18: =(D18-x!D16)^2 -> 1.177808459e-23 | R18: =(E18-x!E16)^2 -> 2.962360764e-23 | S18: =(F18-x!F16)^2 -> 2.334523408e-25 | T18: =(G18-x!G16)^2 -> 4.343184154e-23 | U18: =(H18-x!H16)^2 -> 1.113354105e-24 | V18: =(I18-x!I16)^2 -> 2.399348842e-24 | W18: =(J18-x!J16)^2 -> 4.461039973e-25 | X18: =(K18-x!K16)^2 -> 2.403690733e-23 | Y18: =(L18-x!L16)^2 -> 2.788149983e-24
A19: 53.3 | B19: 74.9 | C19: 30.6 | D19: 31 | E19: 13 | F19: 46.6 | G19: 98.3 | H19: 50.8 | I19: 61 | J19: 7.9 | K19: 70 | L19: 16.2 | N19: =(A19-x!A17)^2 -> 6.10893885e-27 | O19: =(B19-x!B17)^2 -> 1.396856831e-23 | P19: =(C19-x!C17)^2 -> 1.172936454e-23 | Q19: =(D19-x!D17)^2 -> 8.4341537e-23 | R19: =(E19-x!E17)^2 -> 6.031436106e-23 | S19: =(F19-x!F17)^2 -> 6.726143622e-24 | T19: =(G19-x!G17)^2 -> 2.617251157e-25 | U19: =(H19-x!H17)^2 -> 1.039642942e-22 | V19: =(I19-x!I17)^2 -> 7.08952451e-23 | W19: =(J19-x!J17)^2 -> 2.242412854e-24 | X19: =(K19-x!K17)^2 -> 7.270142103e-27 | Y19: =(L19-x!L17)^2 -> 2.653728085e-23
A20: 16.9 | B20: 19 | C20: 8.8 | D20: 22.8 | E20: 64.5 | F20: 67.9 | G20: 75.4 | H20: 29.6 | I20: 33.7 | J20: 42.4 | K20: 21.7 | L20: 72.2 | N20: =(A20-x!A18)^2 -> 6.793543898e-25 | O20: =(B20-x!B18)^2 -> 8.401557967e-25 | P20: =(C20-x!C18)^2 -> 2.454695323e-24 | Q20: =(D20-x!D18)^2 -> 2.653728085e-25 | R20: =(E20-x!E18)^2 -> 5.867024872e-23 | S20: =(F20-x!F18)^2 -> 1.709291188e-24 | T20: =(G20-x!G18)^2 -> 3.005799863e-24 | U20: =(H20-x!H18)^2 -> 1.599633211e-24 | V20: =(I20-x!I18)^2 -> 1.396856831e-23 | W20: =(J20-x!J18)^2 -> 2.312107137e-24 | X20: =(K20-x!K18)^2 -> 2.184273805e-24 | Y20: =(L20-x!L18)^2 -> 7.997358261e-24
A21: 76 | B21: 0.4 | C21: 85.4 | D21: 33.3 | E21: 59.2 | F21: 99.6 | G21: 36.3 | H21: 37.4 | I21: 39.3 | J21: 83 | K21: 83.4 | L21: 86.5 | N21: =(A21-x!A19)^2 -> 3.427952781e-23 | O21: =(B21-x!B19)^2 -> 1.00043785e-23 | P21: =(C21-x!C19)^2 -> 1.192485058e-23 | Q21: =(D21-x!D19)^2 -> 1.300560265e-22 | R21: =(E21-x!E19)^2 -> 3.030488053e-24 | S21: =(F21-x!F19)^2 -> 5.699791408e-24 | T21: =(G21-x!G19)^2 -> 2.403690733e-23 | U21: =(H21-x!H19)^2 -> 1.866977036e-22 | V21: =(I21-x!I19)^2 -> 5.304300727e-23 | W21: =(J21-x!J19)^2 -> 1.166453911e-24 | X21: =(K21-x!K19)^2 -> 2.159143347e-22 | Y21: =(L21-x!L19)^2 -> 2.060075544e-24
A22: 98.6 | B22: -94.6 | C22: 74.9 | D22: 91.2 | E22: 0.7 | F22: 8.9 | G22: 34.1 | H22: 25.3 | I22: 77.8 | J22: 24.2 | K22: 18.2 | L22: 88.2 | N22: =(A22-x!A20)^2 -> 4.245964936e-24 | O22: =(B22-x!B20)^2 -> 3.071635038e-25 | P22: =(C22-x!C20)^2 -> 6.543127892e-26 | Q22: =(D22-x!D20)^2 -> 9.065463305e-25 | R22: =(E22-x!E20)^2 -> 8.04318684e-25 | S22: =(F22-x!F20)^2 -> 1.336445232e-23 | T22: =(G22-x!G20)^2 -> 1.10106807e-23 | U22: =(H22-x!H20)^2 -> 3.20296334e-23 | V22: =(I22-x!I20)^2 -> 8.240302176e-24 | W22: =(J22-x!J20)^2 -> 2.544562358e-24 | X22: =(K22-x!K20)^2 -> 8.664090876e-25 | Y22: =(L22-x!L20)^2 -> 4.461039973e-25
A23: 33.8 | B23: 85.2 | C23: 11.6 | D23: 73.8 | E23: 91.4 | F23: 60.5 | G23: 41.8 | H23: 15.4 | I23: 3.7 | J23: 52.4 | K23: 30.4 | L23: 87.4 | N23: =(A23-x!A21)^2 -> 1.091657275e-23 | O23: =(B23-x!B21)^2 -> 1.333848933e-23 | P23: =(C23-x!C21)^2 -> 6.515893258e-24 | Q23: =(D23-x!D21)^2 -> 1.518023846e-22 | R23: =(E23-x!E21)^2 -> 1.354690007e-23 | S23: =(F23-x!F21)^2 -> 2.060075544e-24 | T23: =(G23-x!G21)^2 -> 8.271806126e-25 | U23: =(H23-x!H21)^2 -> 2.688796455e-22 | V23: =(I23-x!I21)^2 -> 7.758201588e-23 | W23: =(J23-x!J21)^2 -> 1.690762423e-24 | X23: =(K23-x!K21)^2 -> 1.345509559e-22 | Y23: =(L23-x!L21)^2 -> 3.901844877e-24
A24: 66.4 | B24: 5.1 | C24: 51.3 | D24: 33.8 | E24: 92.9 | F24: 13.1 | G24: 1.1 | H24: 4.8 | I24: 12.7 | J24: 56 | K24: 7.5 | L24: 68.5 | N24: =(A24-x!A22)^2 -> 4.363902797e-24 | O24: =(B24-x!B22)^2 -> 1.07618298e-24 | P24: =(C24-x!C22)^2 -> 3.545456452e-24 | Q24: =(D24-x!D22)^2 -> 2.205887332e-23 | R24: =(E24-x!E22)^2 -> 3.963216993e-23 | S24: =(F24-x!F22)^2 -> 6.716932882e-24 | T24: =(G24-x!G22)^2 -> 2.188213574e-24 | U24: =(H24-x!H22)^2 -> 4.540886029e-23 | V24: =(I24-x!I22)^2 -> 3.388545392e-23 | W24: =(J24-x!J22)^2 -> 3.818086781e-24 | X24: =(K24-x!K22)^2 -> 9.033356745e-23 | Y24: =(L24-x!L22)^2 -> 4.727409902e-24
A25: 88.6 | B25: 60.6 | C25: 9.7 | D25: 50.2 | E25: 69.5 | F25: 12.7 | G25: 80.9 | H25: 85.2 | I25: 15.3 | J25: 47.7 | K25: 75.2 | L25: 82.6 | N25: =(A25-x!A23)^2 -> 7.290336942e-26 | O25: =(B25-x!B23)^2 -> 1.308024782e-23 | P25: =(C25-x!C23)^2 -> 2.932341135e-24 | Q25: =(D25-x!D23)^2 -> 1.232066943e-23 | R25: =(E25-x!E23)^2 -> 5.498044965e-24 | S25: =(F25-x!F23)^2 -> 3.03238132e-25 | T25: =(G25-x!G23)^2 -> 8.015331668e-25 | U25: =(H25-x!H23)^2 -> 2.239385521e-23 | V25: =(I25-x!I23)^2 -> 1.10342708e-23 | W25: =(J25-x!J23)^2 -> 9.335064408e-26 | X25: =(K25-x!K23)^2 -> 3.680509439e-24 | Y25: =(L25-x!L23)^2 -> 8.821307699e-24
A26: 90.6 | B26: 23.6 | C26: 30.5 | D26: 80.1 | E26: 84.3 | F26: 47.4 | G26: 82.9 | H26: 31.9 | I26: 98.6 | J26: 54.9 | K26: 68.7 | L26: 34 | N26: =(A26-x!A24)^2 -> 4.125886423e-23 | O26: =(B26-x!B24)^2 -> 3.694153578e-24 | P26: =(C26-x!C24)^2 -> 8.653286638e-24 | Q26: =(D26-x!D24)^2 -> 2.355526041e-24 | R26: =(E26-x!E24)^2 -> 3.25722561e-24 | S26: =(F26-x!F24)^2 -> 2.764673483e-23 | T26: =(G26-x!G24)^2 -> 1.583275391e-25 | U26: =(H26-x!H24)^2 -> 1.181852476e-24 | V26: =(I26-x!I24)^2 -> 1.43966989e-23 | W26: =(J26-x!J24)^2 -> 1.354690007e-23 | X26: =(K26-x!K24)^2 -> 7.125466275e-23 | Y26: =(L26-x!L24)^2 -> 1.262177448e-27
A27: 23.2 | B27: 64.7 | C27: 26.7 | D27: 28.1 | E27: 17.9 | F27: 67.9 | G27: 75.6 | H27: 23.9 | I27: 40.9 | J27: 70.2 | K27: 96.1 | L27: 77.4 | N27: =(A27-x!A25)^2 -> 2.016575861e-23 | O27: =(B27-x!B25)^2 -> 7.91718475e-24 | P27: =(C27-x!C25)^2 -> 2.729143188e-24 | Q27: =(D27-x!D25)^2 -> 3.231628652e-24 | R27: =(E27-x!E25)^2 -> 2.232665688e-23 | S27: =(F27-x!F25)^2 -> 1.979296187e-24 | T27: =(G27-x!G25)^2 -> 3.394752465e-23 | U27: =(H27-x!H25)^2 -> 1.276364323e-24 | V27: =(I27-x!I25)^2 -> 2.956726403e-24 | W27: =(J27-x!J25)^2 -> 1.978468199e-23 | X27: =(K27-x!K25)^2 -> 3.32883651e-23 | Y27: =(L27-x!L25)^2 -> 2.142470488e-24
A28: 88.4 | B28: 57.2 | C28: 14.3 | D28: 4.6 | E28: 13 | F28: 48.8 | G28: 67.8 | H28: 20.4 | I28: 21.5 | J28: 78.9 | K28: 57 | L28: 33.3 | N28: =(A28-x!A26)^2 -> 9.509547818e-24 | O28: =(B28-x!B26)^2 -> 5.048709793e-29 | P28: =(C28-x!C26)^2 -> 5.26726844e-24 | Q28: =(D28-x!D26)^2 -> 5.635330744e-23 | R28: =(E28-x!E26)^2 -> 3.626267364e-25 | S28: =(F28-x!F26)^2 -> 5.332699719e-24 | T28: =(G28-x!G26)^2 -> 2.908056841e-26 | U28: =(H28-x!H26)^2 -> 1.009437017e-22 | V28: =(I28-x!I26)^2 -> 2.344834136e-23 | W28: =(J28-x!J26)^2 -> 9.248428548e-24 | X28: =(K28-x!K26)^2 -> 6.549797238e-23 | Y28: =(L28-x!L26)^2 -> 5.699791408e-24
A29: 99.2 | B29: 73.8 | C29: 53.3 | D29: 61.3 | E29: 69.1 | F29: -32.2 | G29: 8.2 | H29: 38.1 | I29: 15.3 | J29: 31.6 | K29: 18.8 | L29: 32.1 | N29: =(A29-x!A27)^2 -> 2.067951531e-25 | O29: =(B29-x!B27)^2 -> 1.344249275e-23 | P29: =(C29-x!C27)^2 -> 2.355526041e-24 | Q29: =(D29-x!D27)^2 -> 6.852235149e-23 | R29: =(E29-x!E27)^2 -> 5.397858368e-23 | S29: =(F29-x!F27)^2 -> 5.137617573e-24 | T29: =(G29-x!G27)^2 -> 2.101071068e-24 | U29: =(H29-x!H27)^2 -> 3.760122544e-23 | V29: =(I29-x!I27)^2 -> 9.356786482e-24 | W29: =(J29-x!J27)^2 -> 3.915892912e-24 | X29: =(K29-x!K27)^2 -> 4.03511062e-23 | Y29: =(L29-x!L27)^2 -> 1.072956854e-23
A30: 17.9 | B30: 59.2 | C30: 20.5 | D30: 60.8 | E30: -42.1 | F30: -90.1 | G30: 95.2 | H30: 89.9 | I30: 37.4 | J30: 63.3 | K30: 51.5 | L30: 99.7 | N30: =(A30-x!A28)^2 -> 1.423539262e-23 | O30: =(B30-x!B28)^2 -> 2.312107137e-24 | P30: =(C30-x!C28)^2 -> 2.919973058e-23 | Q30: =(D30-x!D28)^2 -> 4.347868095e-23 | R30: =(E30-x!E28)^2 -> 1.115259993e-25 | S30: =(F30-x!F28)^2 -> 2.811929407e-24 | T30: =(G30-x!G28)^2 -> 2.133079888e-23 | U30: =(H30-x!H28)^2 -> 8.717082134e-23 | V30: =(I30-x!I28)^2 -> 3.304284634e-23 | W30: =(J30-x!J28)^2 -> 3.41292782e-26 | X30: =(K30-x!K28)^2 -> 7.099748147e-24 | Y30: =(L30-x!L28)^2 -> 1.135959704e-24
A31: 98.4 | B31: 98 | C31: 36.7 | D31: 14 | E31: 91.2 | F31: 94.7 | G31: 80.6 | H31: 64.9 | I31: 54.4 | J31: 24.4 | K31: 94.8 | L31: 99.5 | N31: =(A31-x!A29)^2 -> 1.781366569e-23 | O31: =(B31-x!B29)^2 -> 1.450474129e-23 | P31: =(C31-x!C29)^2 -> 7.56140217e-24 | Q31: =(D31-x!D29)^2 -> 1.112229789e-22 | R31: =(E31-x!E29)^2 -> 1.878624914e-23 | S31: =(F31-x!F29)^2 -> 8.796871944e-25 | T31: =(G31-x!G29)^2 -> 4.914616061e-24 | U31: =(H31-x!H29)^2 -> 8.220188117e-23 | V31: =(I31-x!I29)^2 -> 3.436278103e-23 | W31: =(J31-x!J29)^2 -> 1.374511241e-24 | X31: =(K31-x!K29)^2 -> 1.32348898e-23 | Y31: =(L31-x!L29)^2 -> 3.41292782e-24
A32: 87.2 | B32: 78.5 | C32: 65.9 | D32: 14.2 | E32: 80.8 | F32: 40.7 | G32: 46.6 | H32: 82.4 | I32: 86 | J32: 61.6 | K32: 87.9 | L32: 1.1 | N32: =(A32-x!A30)^2 -> 4.072087371e-24 | O32: =(B32-x!B30)^2 -> 5.169878828e-26 | P32: =(C32-x!C30)^2 -> 6.793543898e-25 | Q32: =(D32-x!D30)^2 -> 1.463371689e-24 | R32: =(E32-x!E30)^2 -> 8.821307699e-24 | S32: =(F32-x!F30)^2 -> 2.055047029e-23 | T32: =(G32-x!G30)^2 -> 8.653286638e-24 | U32: =(H32-x!H30)^2 -> 2.578679014e-24 | V32: =(I32-x!I30)^2 -> 1.172936454e-23 | W32: =(J32-x!J30)^2 -> 1.418182581e-25 | X32: =(K32-x!K30)^2 -> 4.80927978e-23 | Y32: =(L32-x!L30)^2 -> 8.325935049e-24
A33: 33.6 | B33: 21 | C33: 58.9 | D33: 0.09999999999 | E33: 62.3 | F33: 65 | G33: 29.3 | H33: 78.9 | I33: 70.1 | J33: 51.4 | K33: 59.1 | L33: 65.7 | N33: =(A33-x!A31)^2 -> 1.292651461e-23 | O33: =(B33-x!B31)^2 -> 1.370426835e-23 | P33: =(C33-x!C31)^2 -> 8.245976926e-23 | Q33: =(D33-x!D31)^2 -> 1.058901999e-22 | R33: =(E33-x!E31)^2 -> 3.079516074e-23 | S33: =(F33-x!F31)^2 -> 8.821307699e-24 | T33: =(G33-x!G31)^2 -> 5.970888192e-23 | U33: =(H33-x!H31)^2 -> 2.247736087e-22 | V33: =(I33-x!I31)^2 -> 9.17403076e-23 | W33: =(J33-x!J31)^2 -> 6.57952909e-24 | X33: =(K33-x!K31)^2 -> 1.472203776e-23 | Y33: =(L33-x!L31)^2 -> 1.710119176e-23
A34: 80.6 | B34: 40.6 | C34: 87.4 | D34: 3.8 | E34: 48.9 | F34: -76.7 | G34: 79.6 | H34: 7.3 | I34: 61.1 | J34: 82.3 | K34: 59.1 | L34: 32.2 | N34: =(A34-x!A32)^2 -> 1.651857065e-23 | O34: =(B34-x!B32)^2 -> 5.498044965e-24 | P34: =(C34-x!C32)^2 -> 4.273227969e-25 | Q34: =(D34-x!D32)^2 -> 3.823295038e-24 | R34: =(E34-x!E32)^2 -> 3.682104832e-23 | S34: =(F34-x!F32)^2 -> 7.679087596e-24 | T34: =(G34-x!G32)^2 -> 6.10893885e-25 | U34: =(H34-x!H32)^2 -> 4.15857177e-24 | V34: =(I34-x!I32)^2 -> 1.466756218e-23 | W34: =(J34-x!J32)^2 -> 2.916134777e-25 | X34: =(K34-x!K32)^2 -> 1.880593911e-24 | Y34: =(L34-x!L32)^2 -> 1.635781973e-24
A35: 12.4 | B35: 9.6 | C35: 72.4 | D35: 34.3 | E35: 31 | F35: 69.7 | G35: 6.3 | H35: 70.9 | I35: 8 | J35: 52.1 | K35: 1.1 | L35: -82.6 | N35: =(A35-x!A33)^2 -> 3.218868038e-26 | O35: =(B35-x!B33)^2 -> 6.418203879e-25 | P35: =(C35-x!C33)^2 -> 4.363902797e-24 | Q35: =(D35-x!D33)^2 -> 2.368980853e-23 | R35: =(E35-x!E33)^2 -> 2.904635078e-23 | S35: =(F35-x!F33)^2 -> 1.903343397e-23 | T35: =(G35-x!G33)^2 -> 3.954275728e-25 | U35: =(H35-x!H33)^2 -> 6.265428659e-23 | V35: =(I35-x!I33)^2 -> 4.76013059e-23 | W35: =(J35-x!J33)^2 -> 9.863361401e-24 | X35: =(K35-x!K33)^2 -> 7.69963902e-23 | Y35: =(L35-x!L33)^2 -> 9.895471195e-27
A36: 76.9 | B36: 22.9 | C36: 77.1 | D36: 47.4 | E36: 30.6 | F36: 7.1 | G36: 17.8 | H36: 61.4 | I36: 66.2 | J36: 32 | K36: 81.5 | L36: 69.9 | N36: =(A36-x!A34)^2 -> 4.49908705e-23 | O36: =(B36-x!B34)^2 -> 2.499426892e-24 | P36: =(C36-x!C34)^2 -> 1.663428708e-23 | Q36: =(D36-x!D34)^2 -> 8.584906912e-23 | R36: =(E36-x!E34)^2 -> 5.460684513e-25 | S36: =(F36-x!F34)^2 -> 1.683840168e-24 | T36: =(G36-x!G34)^2 -> 2.129799489e-23 | U36: =(H36-x!H34)^2 -> 1.711149618e-22 | V36: =(I36-x!I34)^2 -> 3.461314655e-23 | W36: =(J36-x!J34)^2 -> 2.133079888e-27 | X36: =(K36-x!K34)^2 -> 3.572265101e-24 | Y36: =(L36-x!L34)^2 -> 3.155443621e-24
A37: 89.9 | B37: 55.7 | C37: 38.8 | D37: 65.5 | E37: -57.5 | F37: 88.6 | G37: 35 | H37: 3.2 | I37: 85.5 | J37: 38.2 | K37: 70.6 | L37: -20.3 | N37: =(A37-x!A35)^2 -> 6.333101565e-25 | O37: =(B37-x!B35)^2 -> 3.818086781e-24 | P37: =(C37-x!C35)^2 -> 3.360623187e-24 | Q37: =(D37-x!D35)^2 -> 2.355526041e-24 | R37: =(E37-x!E35)^2 -> 3.103219767e-23 | S37: =(F37-x!F35)^2 -> 2.101071068e-24 | T37: =(G37-x!G35)^2 -> 3.360623187e-24 | U37: =(H37-x!H35)^2 -> 3.190910807e-25 | V37: =(I37-x!I35)^2 -> 2.916134777e-25 | W37: =(J37-x!J35)^2 -> 2.670767481e-26 | X37: =(K37-x!K35)^2 -> 7.522375644e-24 | Y37: =(L37-x!L35)^2 -> 1.004269157e-23
A38: 10.3 | B38: 20.3 | C38: 96.8 | D38: 62.5 | E38: 3.2 | F38: 67 | G38: 86.4 | H38: 29.3 | I38: 88.4 | J38: 41.4 | K38: 92.4 | L38: 70.2 | N38: =(A38-x!A36)^2 -> 9.335064408e-26 | O38: =(B38-x!B36)^2 -> 1.331255158e-23 | P38: =(C38-x!C36)^2 -> 1.583275391e-25 | Q38: =(D38-x!D36)^2 -> 3.071635038e-25 | R38: =(E38-x!E36)^2 -> 3.012849124e-25 | S38: =(F38-x!F36)^2 -> 1.978468199e-23 | T38: =(G38-x!G36)^2 -> 3.394752465e-25 | U38: =(H38-x!H36)^2 -> 1.472203776e-23 | V38: =(I38-x!I36)^2 -> 1.628834948e-23 | W38: =(J38-x!J36)^2 -> 4.556460589e-25 | X38: =(K38-x!K36)^2 -> 5.84527503e-23 | Y38: =(L38-x!L36)^2 -> 7.290336942e-26
A39: 16 | B39: 12.8 | C39: 27 | D39: 1 | E39: 93.5 | F39: 14.6 | G39: 46.2 | H39: 93.2 | I39: 39.4 | J39: 38.2 | K39: 4.9 | L39: 94.2 | N39: =(A39-x!A37)^2 -> 3.680509439e-24 | O39: =(B39-x!B37)^2 -> 2.499426892e-26 | P39: =(C39-x!C37)^2 -> 2.279808016e-24 | Q39: =(D39-x!D37)^2 -> 8.767312586e-24 | R39: =(E39-x!E37)^2 -> 6.840476704e-23 | S39: =(F39-x!F37)^2 -> 3.690733077e-25 | T39: =(G39-x!G37)^2 -> 2.377386955e-24 | U39: =(H39-x!H37)^2 -> 1.059037561e-23 | V39: =(I39-x!I37)^2 -> 1.583275391e-23 | W39: =(J39-x!J37)^2 -> 2.510672893e-24 | X39: =(K39-x!K37)^2 -> 3.505347293e-23 | Y39: =(L39-x!L37)^2 -> 1.505101169e-23
A40: 40.5 | B40: 65 | C40: 93.3 | D40: 58.2 | E40: 94 | F40: 22.7 | G40: -97.5 | H40: 30 | I40: 33.8 | J40: 98.9 | K40: 38 | L40: 4.5 | N40: =(A40-x!A38)^2 -> 4.758358493e-24 | O40: =(B40-x!B38)^2 -> 6.184669497e-24 | P40: =(C40-x!C38)^2 -> 7.522375644e-24 | Q40: =(D40-x!D38)^2 -> 4.652890946e-25 | R40: =(E40-x!E38)^2 -> 5.564889883e-24 | S40: =(F40-x!F38)^2 -> 1.262177448e-23 | T40: =(G40-x!G38)^2 -> 3.087407208e-23 | U40: =(H40-x!H38)^2 -> 1.580449376e-23 | V40: =(I40-x!I38)^2 -> 7.061933311e-24 | W40: =(J40-x!J38)^2 -> 1.698385975e-25 | X40: =(K40-x!K38)^2 -> 9.839006425e-23 | Y40: =(L40-x!L38)^2 -> 1.702331068e-24
A41: 16.6 | B41: 79.4 | C41: 55.2 | D41: 65.1 | E41: 9.1 | F41: 33.3 | G41: 68 | H41: 4 | I41: 98 | J41: 46.6 | K41: 93.8 | L41: 75.4 | N41: =(A41-x!A39)^2 -> 1.546167374e-24 | O41: =(B41-x!B39)^2 -> 2.44357554e-24 | P41: =(C41-x!C39)^2 -> 1.999339565e-24 | Q41: =(D41-x!D39)^2 -> 1.04980852e-23 | R41: =(E41-x!E39)^2 -> 4.597320112e-23 | S41: =(F41-x!F39)^2 -> 1.919771899e-24 | T41: =(G41-x!G39)^2 -> 7.444625513e-24 | U41: =(H41-x!H39)^2 -> 2.182961338e-24 | V41: =(I41-x!I39)^2 -> 3.626185322e-24 | W41: =(J41-x!J39)^2 -> 4.089454933e-27 | X41: =(K41-x!K39)^2 -> 1.461318757e-23 | Y41: =(L41-x!L39)^2 -> 8.990944349e-24
A42: 16 | B42: 11.4 | C42: 48.4 | D42: 91.4 | E42: 12.3 | F42: 35.2 | G42: 94.4 | H42: 98.5 | I42: 84.5 | J42: 32 | K42: 29.8 | L42: 49.4 | N42: =(A42-x!A40)^2 -> 9.619420365e-24 | O42: =(B42-x!B40)^2 -> 1.215908863e-23 | P42: =(C42-x!C40)^2 -> 6.800056734e-24 | Q42: =(D42-x!D40)^2 -> 8.479893748e-23 | R42: =(E42-x!E40)^2 -> 2.56840773e-23 | S42: =(F42-x!F40)^2 -> 8.930662754e-25 | T42: =(G42-x!G40)^2 -> 2.811929407e-24 | U42: =(H42-x!H40)^2 -> 9.698551318e-23 | V42: =(I42-x!I40)^2 -> 2.488024381e-23 | W42: =(J42-x!J40)^2 -> 2.226481019e-24 | X42: =(K42-x!K40)^2 -> 3.04413093e-23 | Y42: =(L42-x!L40)^2 -> 5.202241058e-24
A43: 53.9 | B43: 12.7 | C43: 18.1 | D43: 45.9 | E43: 99.5 | F43: 62.9 | G43: 34.5 | H43: 81.7 | I43: 59 | J43: 71 | K43: 21.5 | L43: 31.3 | N43: =(A43-x!A41)^2 -> 4.820558598e-24 | O43: =(B43-x!B41)^2 -> 1.262177448e-27 | P43: =(C43-x!C41)^2 -> 1.396856831e-23 | Q43: =(D43-x!D41)^2 -> 1.651857065e-23 | R43: =(E43-x!E41)^2 -> 8.73709522e-24 | S43: =(F43-x!F41)^2 -> 1.434282917e-23 | T43: =(G43-x!G41)^2 -> 2.159413958e-23 | U43: =(H43-x!H41)^2 -> 1.212195221e-23 | V43: =(I43-x!I41)^2 -> 1.008777655e-23 | W43: =(J43-x!J41)^2 -> 3.30872245e-24 | X43: =(K43-x!K41)^2 -> 1.077616813e-23 | Y43: =(L43-x!L41)^2 -> 1.45907713e-26
A44: 51.2 | B44: 94.6 | C44: 45.7 | D44: 93.4 | E44: 34.9 | F44: 87.5 | G44: 64.4 | H44: 19.3 | I44: 56.3 | J44: 99.6 | K44: 57.1 | L44: 35.5 | N44: =(A44-x!A42)^2 -> 5.905172923e-24 | O44: =(B44-x!B42)^2 -> 2.44357554e-26 | P44: =(C44-x!C42)^2 -> 1.424947852e-24 | Q44: =(D44-x!D42)^2 -> 1.262177448e-25 | R44: =(E44-x!E42)^2 -> 2.690457449e-23 | S44: =(F44-x!F42)^2 -> 7.290336942e-26 | T44: =(G44-x!G42)^2 -> 5.460684513e-25 | U44: =(H44-x!H42)^2 -> 6.255553382e-24 | V44: =(I44-x!I42)^2 -> 9.863361401e-24 | W44: =(J44-x!J42)^2 -> 1.163222736e-25 | X44: =(K44-x!K42)^2 -> 5.464773967e-24 | Y44: =(L44-x!L42)^2 -> 9.685646816e-24
A45: 54.6 | B45: 86 | C45: 29.5 | D45: 76.2 | E45: 47.7 | F45: 59.8 | G45: 30.9 | H45: 72.5 | I45: 56.4 | J45: 26.5 | K45: 98.1 | L45: 19.9 | N45: =(A45-x!A43)^2 -> 1.461318757e-23 | O45: =(B45-x!B43)^2 -> 9.065463305e-25 | P45: =(C45-x!C43)^2 -> 1.063667228e-23 | Q45: =(D45-x!D43)^2 -> 1.046900463e-24 | R45: =(E45-x!E43)^2 -> 1.096357624e-23 | S45: =(F45-x!F43)^2 -> 1.177808459e-23 | T45: =(G45-x!G43)^2 -> 1.491349745e-23 | U45: =(H45-x!H43)^2 -> 3.54542616e-23 | V45: =(I45-x!I43)^2 -> 6.543127892e-24 | W45: =(J45-x!J43)^2 -> 3.042870014e-24 | X45: =(K45-x!K43)^2 -> 2.908056841e-24 | Y45: =(L45-x!L43)^2 -> 3.03238132e-25
A46: 74.4 | B46: 37.4 | C46: 15 | D46: 63.1 | E46: 24.5 | F46: 49.5 | G46: 31.3 | H46: 55.5 | I46: 50.3 | J46: 87.4 | K46: 77.6 | L46: 21.1 | N46: =(A46-x!A44)^2 -> 5.048709793e-27 | O46: =(B46-x!B44)^2 -> 3.599174725e-24 | P46: =(C46-x!C44)^2 -> 5.201307047e-23 | Q46: =(D46-x!D44)^2 -> 1.160322757e-22 | R46: =(E46-x!E44)^2 -> 3.036675878e-22 | S46: =(F46-x!F44)^2 -> 5.888815103e-25 | T46: =(G46-x!G44)^2 -> 2.182588798e-23 | U46: =(H46-x!H44)^2 -> 1.813004309e-22 | V46: =(I46-x!I44)^2 -> 1.973302864e-22 | W46: =(J46-x!J44)^2 -> 6.184669497e-24 | X46: =(K46-x!K44)^2 -> 1.900132418e-24 | Y46: =(L46-x!L44)^2 -> 4.537295686e-23
A47: 51 | B47: 70.7 | C47: 60.3 | D47: 45.8 | E47: 86.7 | F47: 18.8 | G47: 66.7 | H47: 66.7 | I47: 39.1 | J47: 50.8 | K47: 41.2 | L47: 39.2 | N47: =(A47-x!A45)^2 -> 8.077935669e-28 | O47: =(B47-x!B45)^2 -> 1.096357624e-23 | P47: =(C47-x!C45)^2 -> 1.527234713e-25 | Q47: =(D47-x!D45)^2 -> 6.446697535e-23 | R47: =(E47-x!E45)^2 -> 7.679087596e-24 | S47: =(F47-x!F45)^2 -> 8.037596478e-24 | T47: =(G47-x!G45)^2 -> 1.096357624e-23 | U47: =(H47-x!H45)^2 -> 9.782703213e-23 | V47: =(I47-x!I45)^2 -> 2.266365826e-23 | W47: =(J47-x!J45)^2 -> 7.679087596e-24 | X47: =(K47-x!K45)^2 -> 4.604549549e-23 | Y47: =(L47-x!L45)^2 -> 1.222110887e-23
A48: 31.5 | B48: 14.2 | C48: 89.3 | D48: -50.8 | E48: 40.6 | F48: 70 | G48: -15.3 | H48: 74.1 | I48: 93.9 | J48: 53.6 | K48: 2.1 | L48: 22.3 | N48: =(A48-x!A46)^2 -> 1.166453911e-24 | O48: =(B48-x!B46)^2 -> 3.37366148e-24 | P48: =(C48-x!C46)^2 -> 2.670767481e-24 | Q48: =(D48-x!D46)^2 -> 1.135959704e-24 | R48: =(E48-x!E46)^2 -> 8.73709522e-24 | S48: =(F48-x!F46)^2 -> 6.184669497e-24 | T48: =(G48-x!G46)^2 -> 7.551636072e-24 | U48: =(H48-x!H46)^2 -> 9.863361401e-24 | V48: =(I48-x!I46)^2 -> 4.652890946e-25 | W48: =(J48-x!J46)^2 -> 1.784415989e-24 | X48: =(K48-x!K46)^2 -> 9.913634717e-24 | Y48: =(L48-x!L46)^2 -> 1.008777655e-23
A49: 46.2 | B49: 82.8 | C49: 70.4 | D49: 76.2 | E49: 48.4 | F49: 93.6 | G49: 93.5 | H49: 76.4 | I49: 82.6 | J49: 91.8 | K49: 81.8 | L49: 91.4 | N49: =(A49-x!A47)^2 -> 9.162196585e-24 | O49: =(B49-x!B47)^2 -> 1.135959704e-24 | P49: =(C49-x!C47)^2 -> 7.061933311e-24 | Q49: =(D49-x!D47)^2 -> 3.25722561e-24 | R49: =(E49-x!E47)^2 -> 3.536969571e-23 | S49: =(F49-x!F47)^2 -> 7.91718475e-24 | T49: =(G49-x!G47)^2 -> 4.129642663e-24 | U49: =(H49-x!H47)^2 -> 5.105457291e-24 | V49: =(I49-x!I47)^2 -> 1.900132418e-24 | W49: =(J49-x!J47)^2 -> 1.784415989e-24 | X49: =(K49-x!K47)^2 -> 1.357900986e-24 | Y49: =(L49-x!L47)^2 -> 7.514499657e-25
A50: 98.3 | B50: 70.3 | C50: 42.7 | D50: 59.6 | E50: 87.8 | F50: 93.5 | G50: 71.9 | H50: 48.4 | I50: 56.1 | J50: 47.7 | K50: 34.8 | L50: 93.7 | N50: =(A50-x!A48)^2 -> 1.32348898e-23 | O50: =(B50-x!B48)^2 -> 2.749749497e-23 | P50: =(C50-x!C48)^2 -> 1.441962004e-24 | Q50: =(D50-x!D48)^2 -> 3.795059616e-23 | R50: =(E50-x!E48)^2 -> 3.626185322e-24 | S50: =(F50-x!F48)^2 -> 2.624521299e-24 | T50: =(G50-x!G48)^2 -> 7.444625513e-24 | U50: =(H50-x!H48)^2 -> 8.158916975e-24 | V50: =(I50-x!I48)^2 -> 1.031471606e-23 | W50: =(J50-x!J48)^2 -> 1.690762423e-24 | X50: =(K50-x!K48)^2 -> 1.546167374e-24 | Y50: =(L50-x!L48)^2 -> 6.326841165e-24
A51: 8.5 | B51: 90.7 | C51: -23.9 | D51: 70 | E51: 2.8 | F51: 90.5 | G51: 8.5 | H51: 21.8 | I51: 25.4 | J51: 77.6 | K51: 14.7 | L51: 7.6 | N51: =(A51-x!A49)^2 -> 6.317908104e-24 | O51: =(B51-x!B49)^2 -> 2.956726403e-24 | P51: =(C51-x!C49)^2 -> 3.98651174e-24 | Q51: =(D51-x!D49)^2 -> 1.483129184e-23 | R51: =(E51-x!E49)^2 -> 1.929783806e-23 | S51: =(F51-x!F49)^2 -> 1.324983398e-24 | T51: =(G51-x!G49)^2 -> 1.480613033e-24 | U51: =(H51-x!H49)^2 -> 2.084138957e-23 | V51: =(I51-x!I49)^2 -> 3.25722561e-24 | W51: =(J51-x!J49)^2 -> 2.488206135e-24 | X51: =(K51-x!K49)^2 -> 1.067146105e-23 | Y51: =(L51-x!L49)^2 -> 3.241215678e-24
A52: 99.5 | B52: 66.6 | C52: 84.2 | D52: 79.8 | E52: 72.9 | F52: 88.2 | G52: 92.7 | H52: 15.9 | I52: 8.6 | J52: 26.3 | K52: 82.2 | L52: 63.5 | N52: =(A52-x!A50)^2 -> 1.698385975e-25 | O52: =(B52-x!B50)^2 -> 1.153549408e-23 | P52: =(C52-x!C50)^2 -> 2.588251368e-23 | Q52: =(D52-x!D50)^2 -> 1.009437017e-22 | R52: =(E52-x!E50)^2 -> 3.394752465e-23 | S52: =(F52-x!F50)^2 -> 2.44357554e-26 | T52: =(G52-x!G50)^2 -> 8.486881163e-24 | U52: =(H52-x!H50)^2 -> 1.405927627e-22 | V52: =(I52-x!I50)^2 -> 4.432610689e-23 | W52: =(J52-x!J50)^2 -> 4.334266871e-24 | X52: =(K52-x!K50)^2 -> 1.262177448e-23 | Y52: =(L52-x!L50)^2 -> 4.27529794e-24
A53: 95.8 | B53: 20.5 | C53: 23.2 | D53: 99.1 | E53: 18.9 | F53: 87 | G53: 15.2 | H53: 94.9 | I53: 11.6 | J53: 1.8 | K53: 98.9 | L53: 92.9 | N53: =(A53-x!A51)^2 -> 2.199217986e-25 | O53: =(B53-x!B51)^2 -> 3.734025763e-25 | P53: =(C53-x!C51)^2 -> 5.431603944e-24 | Q53: =(D53-x!D51)^2 -> 2.225955953e-23 | R53: =(E53-x!E51)^2 -> 5.581664221e-24 | S53: =(F53-x!F51)^2 -> 4.129642663e-24 | T53: =(G53-x!G51)^2 -> 1.391550637e-27 | U53: =(H53-x!H51)^2 -> 3.999083027e-23 | V53: =(I53-x!I51)^2 -> 1.948557433e-23 | W53: =(J53-x!J51)^2 -> 2.736484525e-26 | X53: =(K53-x!K51)^2 -> 1.313169417e-23 | Y53: =(L53-x!L51)^2 -> 2.199217986e-25
A54: 74.2 | B54: 17.5 | C54: 35.1 | D54: 91.7 | E54: 10.5 | F54: 35.1 | G54: 98.7 | H54: 86 | I54: 90 | J54: 35.8 | K54: 91.2 | L54: 34.4 | N54: =(A54-x!A52)^2 -> 8.905924076e-26 | O54: =(B54-x!B52)^2 -> 2.290549146e-24 | P54: =(C54-x!C52)^2 -> 6.009226832e-24 | Q54: =(D54-x!D52)^2 -> 5.954428136e-23 | R54: =(E54-x!E52)^2 -> 5.201307047e-23 | S54: =(F54-x!F52)^2 -> 4.60462528e-24 | T54: =(G54-x!G52)^2 -> 8.077935669e-24 | U54: =(H54-x!H52)^2 -> 7.149477938e-23 | V54: =(I54-x!I52)^2 -> 1.95326504e-23 | W54: =(J54-x!J52)^2 -> 3.647692826e-25 | X54: =(K54-x!K52)^2 -> 1.365171128e-25 | Y54: =(L54-x!L52)^2 -> 3.707822959e-24
A55: 11.1 | B55: 18.5 | C55: 54.5 | D55: 70.6 | E55: 17.1 | F55: 70.7 | G55: 25.1 | H55: 18 | I55: 26.6 | J55: 98.9 | K55: 14.2 | L55: 73.8 | N55: =(A55-x!A53)^2 -> 3.117691893e-24 | O55: =(B55-x!B53)^2 -> 1.919771899e-26 | P55: =(C55-x!C53)^2 -> 4.245964936e-26 | Q55: =(D55-x!D53)^2 -> 5.048709793e-25 | R55: =(E55-x!E53)^2 -> 9.997707568e-26 | S55: =(F55-x!F53)^2 -> 2.199217986e-25 | T55: =(G55-x!G53)^2 -> 1.690762423e-24 | U55: =(H55-x!H53)^2 -> 1.15115632e-24 | V55: =(I55-x!I53)^2 -> 5.009582293e-26 | W55: =(J55-x!J53)^2 -> 3.41292782e-26 | X55: =(K55-x!K53)^2 -> 2.3003184e-27 | Y55: =(L55-x!L53)^2 -> 2.334523408e-25
A56: 28.3 | B56: 41.1 | C56: 22.7 | D56: 58.6 | E56: 33.4 | F56: 10.2 | G56: 34.3 | H56: 43.6 | I56: 97.5 | J56: 93.6 | K56: 84.3 | L56: 0.5 | N56: =(A56-x!A54)^2 -> 1.272295063e-23 | O56: =(B56-x!B54)^2 -> 1.091657275e-23 | P56: =(C56-x!C54)^2 -> 8.930662754e-25 | Q56: =(D56-x!D54)^2 -> 4.338502738e-23 | R56: =(E56-x!E54)^2 -> 6.35573998e-23 | S56: =(F56-x!F54)^2 -> 3.680509439e-24 | T56: =(G56-x!G54)^2 -> 2.290549146e-24 | U56: =(H56-x!H54)^2 -> 9.895471195e-25 | V56: =(I56-x!I54)^2 -> 3.231174268e-27 | W56: =(J56-x!J54)^2 -> 3.231174268e-27 | X56: =(K56-x!K54)^2 -> 2.764471534e-24 | Y56: =(L56-x!L54)^2 -> 1.461223621e-24
A57: 12.1 | B57: 16.3 | C57: 49.6 | D57: 62.2 | E57: 57.9 | F57: 98 | G57: 60.5 | H57: 57 | I57: 57.8 | J57: 45.9 | K57: 20.4 | L57: 33.3 | N57: =(A57-x!A55)^2 -> 5.615288628e-24 | O57: =(B57-x!B55)^2 -> 5.767848016e-24 | P57: =(C57-x!C55)^2 -> 1.640325812e-25 | Q57: =(D57-x!D55)^2 -> 8.611533808e-24 | R57: =(E57-x!E55)^2 -> 6.899369904e-23 | S57: =(F57-x!F55)^2 -> 1.040619868e-23 | T57: =(G57-x!G55)^2 -> 4.556460589e-25 | U57: =(H57-x!H55)^2 -> 2.061494232e-23 | V57: =(I57-x!I55)^2 -> 1.698385975e-23 | W57: =(J57-x!J55)^2 -> 3.680509439e-26 | X57: =(K57-x!K55)^2 -> 1.672133946e-23 | Y57: =(L57-x!L55)^2 -> 1.640325812e-25
A58: 68 | B58: 15.4 | C58: 85.1 | D58: 90.3 | E58: 47.5 | F58: 14.9 | G58: 19.3 | H58: 28.6 | I58: 80 | J58: 53.7 | K58: 51.2 | L58: 92.9 | N58: =(A58-x!A56)^2 -> 7.270142103e-27 | O58: =(B58-x!B56)^2 -> 5.186047322e-24 | P58: =(C58-x!C56)^2 -> 1.077616813e-23 | Q58: =(D58-x!D56)^2 -> 1.15115632e-22 | R58: =(E58-x!E56)^2 -> 6.19811926e-23 | S58: =(F58-x!F56)^2 -> 4.371327556e-24 | T58: =(G58-x!G56)^2 -> 1.972152263e-25 | U58: =(H58-x!H56)^2 -> 1.703721956e-22 | V58: =(I58-x!I56)^2 -> 6.423897562e-23 | W58: =(J58-x!J56)^2 -> 2.459751606e-23 | X58: =(K58-x!K56)^2 -> 7.08952451e-23 | Y58: =(L58-x!L56)^2 -> 1.635781973e-24
A59: 61.7 | B59: 30.9 | C59: 33.1 | D59: 69.6 | E59: 38.8 | F59: 66.5 | G59: 86 | H59: 1.7 | I59: 73 | J59: 99.9 | K59: 60.5 | L59: 20.6 | N59: =(A59-x!A57)^2 -> 3.680509439e-24 | O59: =(B59-x!B57)^2 -> 2.00939912e-24 | P59: =(C59-x!C57)^2 -> 1.709291188e-24 | Q59: =(D59-x!D57)^2 -> 1.483129184e-23 | R59: =(E59-x!E57)^2 -> 2.205326925e-24 | S59: =(F59-x!F57)^2 -> 7.290336942e-26 | T59: =(G59-x!G57)^2 -> 7.270142103e-25 | U59: =(H59-x!H57)^2 -> 5.009582293e-24 | V59: =(I59-x!I57)^2 -> 1.528547377e-24 | W59: =(J59-x!J57)^2 -> 4.423477573e-24 | X59: =(K59-x!K57)^2 -> 9.997707568e-24 | Y59: =(L59-x!L57)^2 -> 3.647692826e-27
A60: 68.8 | B60: 49.1 | C60: 33 | D60: 32.9 | E60: 19.2 | F60: 67.2 | G60: 25.1 | H60: -4.7 | I60: 4.6 | J60: 37 | K60: 47.2 | L60: 58.2 | N60: =(A60-x!A58)^2 -> 2.226481019e-24 | O60: =(B60-x!B58)^2 -> 5.009582293e-24 | P60: =(C60-x!C58)^2 -> 9.553421107e-24 | Q60: =(D60-x!D58)^2 -> 5.608692489e-23 | R60: =(E60-x!E58)^2 -> 5.431603944e-24 | S60: =(F60-x!F58)^2 -> 1.698385975e-25 | T60: =(G60-x!G58)^2 -> 5.153735579e-24 | U60: =(H60-x!H58)^2 -> 7.831913303e-23 | V60: =(I60-x!I58)^2 -> 2.129799489e-23 | W60: =(J60-x!J58)^2 -> 1.74665164e-24 | X60: =(K60-x!K58)^2 -> 6.446697535e-25 | Y60: =(L60-x!L58)^2 -> 1.919771899e-24
A61: 31.7 | B61: 23.4 | C61: 64.8 | D61: 23.2 | E61: 14.4 | F61: 83.5 | G61: 18.3 | H61: 5.6 | I61: 43.9 | J61: 60.8 | K61: 47.6 | L61: 77.1 | N61: =(A61-x!A59)^2 -> 2.019483917e-26 | O61: =(B61-x!B59)^2 -> 9.475923411e-25 | P61: =(C61-x!C59)^2 -> 1.940724045e-25 | Q61: =(D61-x!D59)^2 -> 2.473867799e-27 | R61: =(E61-x!E59)^2 -> 1.199857437e-25 | S61: =(F61-x!F59)^2 -> 1.493610305e-24 | T61: =(G61-x!G59)^2 -> 1.774937037e-24 | U61: =(H61-x!H59)^2 -> 3.042870014e-24 | V61: =(I61-x!I59)^2 -> 7.270142103e-27 | W61: =(J61-x!J59)^2 -> 1.046900463e-24 | X61: =(K61-x!K59)^2 -> 1.244456477e-24 | Y61: =(L61-x!L59)^2 -> 1.599633211e-24
A62: 4.4 | B62: 54.3 | C62: 64.8 | D62: 33.4 | E62: 35.7 | F62: 58.5 | G62: 62.6 | H62: 67.1 | I62: 20.7 | J62: 56.4 | K62: 88.7 | L62: 83.8 | N62: =(A62-x!A60)^2 -> 6.49776839e-26 | O62: =(B62-x!B60)^2 -> 2.839899259e-25 | P62: =(C62-x!C60)^2 -> 1.292469707e-26 | Q62: =(D62-x!D60)^2 -> 7.290336942e-26 | R62: =(E62-x!E60)^2 -> 8.240302176e-24 | S62: =(F62-x!F60)^2 -> 1.822584235e-24 | T62: =(G62-x!G60)^2 -> 1.07618298e-24 | U62: =(H62-x!H60)^2 -> 2.320811113e-23 | V62: =(I62-x!I60)^2 -> 1.569170558e-23 | W62: =(J62-x!J60)^2 -> 2.067951531e-25 | X62: =(K62-x!K60)^2 -> 4.851810111e-24 | Y62: =(L62-x!L60)^2 -> 3.394752465e-25
A63: 82.2 | B63: 6.6 | C63: 82.3 | D63: 27.2 | E63: 21.8 | F63: 57.7 | G63: 74.6 | H63: 72.7 | I63: 99.7 | J63: 99.1 | K63: 6.3 | L63: 63.3 | N63: =(A63-x!A61)^2 -> 1.472203776e-25 | O63: =(B63-x!B61)^2 -> 7.000067683e-25 | P63: =(C63-x!C61)^2 -> 8.532319551e-25 | Q63: =(D63-x!D61)^2 -> 1.212195221e-25 | R63: =(E63-x!E61)^2 -> 3.231174268e-27 | S63: =(F63-x!F61)^2 -> 5.398534895e-24 | T63: =(G63-x!G61)^2 -> 9.614762931e-25 | U63: =(H63-x!H61)^2 -> 6.10893885e-25 | V63: =(I63-x!I61)^2 -> 4.543838814e-26 | W63: =(J63-x!J61)^2 -> 3.360623187e-24 | X63: =(K63-x!K61)^2 -> 4.793296354e-24 | Y63: =(L63-x!L61)^2 -> 1.166453911e-24
A64: 79.4 | B64: 9.2 | C64: 4.6 | D64: 88.9 | E64: 30.9 | F64: 86.6 | G64: 0.3 | H64: 38.3 | I64: 77.1 | J64: 19.1 | K64: 91.6 | L64: 41.5 | N64: =(A64-x!A62)^2 -> 1.424947852e-24 | O64: =(B64-x!B62)^2 -> 3.231174268e-27 | P64: =(C64-x!C62)^2 -> 6.389773332e-25 | Q64: =(D64-x!D62)^2 -> 1.333848933e-23 | R64: =(E64-x!E62)^2 -> 1.817535526e-23 | S64: =(F64-x!F62)^2 -> 1.135959704e-24 | T64: =(G64-x!G62)^2 -> 1.195894643e-26 | U64: =(H64-x!H62)^2 -> 2.817225503e-23 | V64: =(I64-x!I62)^2 -> 1.60597439e-23 | W64: =(J64-x!J62)^2 -> 5.099323109e-25 | X64: =(K64-x!K62)^2 -> 9.863361401e-24 | Y64: =(L64-x!L62)^2 -> 5.35617622e-25
A65: 99.2 | B65: -5.6 | C65: 92.3 | D65: 47.1 | E65: 39.1 | F65: 37.6 | G65: 16.5 | H65: 40.4 | I65: 70.5 | J65: 70.9 | K65: 61.6 | L65: 29.3 | N65: =(A65-x!A63)^2 -> 1.822584235e-24 | O65: =(B65-x!B63)^2 -> 4.371327556e-24 | P65: =(C65-x!C63)^2 -> 7.290336942e-24 | Q65: =(D65-x!D63)^2 -> 3.990101373e-23 | R65: =(E65-x!E63)^2 -> 2.862663891e-23 | S65: =(F65-x!F63)^2 -> 2.473867799e-27 | T65: =(G65-x!G63)^2 -> 4.758358493e-24 | U65: =(H65-x!H63)^2 -> 5.769468652e-23 | V65: =(I65-x!I63)^2 -> 2.705219876e-23 | W65: =(J65-x!J63)^2 -> 3.206132667e-24 | X65: =(K65-x!K63)^2 -> 2.126521614e-23 | Y65: =(L65-x!L63)^2 -> 5.784925277e-24
A66: 29.1 | B66: 27.1 | C66: 29.7 | D66: 24.5 | E66: 58.3 | F66: 7.6 | G66: 33 | H66: 44 | I66: 42.5 | J66: 56.4 | K66: 28.1 | L66: 78.6 | N66: =(A66-x!A64)^2 -> 1.84181982e-24 | O66: =(B66-x!B64)^2 -> 3.040211869e-23 | P66: =(C66-x!C64)^2 -> 3.055277219e-24 | Q66: =(D66-x!D64)^2 -> 8.278269736e-23 | R66: =(E66-x!E64)^2 -> 4.480043317e-23 | S66: =(F66-x!F64)^2 -> 3.530633756e-25 | T66: =(G66-x!G64)^2 -> 2.199217986e-25 | U66: =(H66-x!H64)^2 -> 7.638193046e-23 | V66: =(I66-x!I64)^2 -> 4.310467253e-23 | W66: =(J66-x!J64)^2 -> 2.205887332e-23 | X66: =(K66-x!K64)^2 -> 5.448176334e-24 | Y66: =(L66-x!L64)^2 -> 1.424947852e-24
A67: 99.1 | B67: 44.2 | C67: 67.8 | D67: 35.6 | E67: 80.7 | F67: 99.2 | G67: 79.8 | H67: 18.8 | I67: 17.6 | J67: -2.3 | K67: 41.4 | L67: 60.1 | N67: =(A67-x!A65)^2 -> 4.461039973e-25 | O67: =(B67-x!B65)^2 -> 2.473867799e-25 | P67: =(C67-x!C65)^2 -> 7.837415135e-24 | Q67: =(D67-x!D65)^2 -> 1.339044055e-23 | R67: =(E67-x!E65)^2 -> 1.560737951e-23 | S67: =(F67-x!F65)^2 -> 2.142470488e-24 | T67: =(G67-x!G65)^2 -> 3.105158471e-24 | U67: =(H67-x!H65)^2 -> 8.258886477e-23 | V67: =(I67-x!I65)^2 -> 5.624667869e-23 | W67: =(J67-x!J65)^2 -> 1.308676066e-24 | X67: =(K67-x!K65)^2 -> 4.914616061e-24 | Y67: =(L67-x!L65)^2 -> 3.130250559e-24
A68: 77.7 | B68: 19.6 | C68: 11.8 | D68: 58.1 | E68: 39.9 | F68: 34.8 | G68: 42.6 | H68: 34.1 | I68: 98.5 | J68: 10 | K68: 83.8 | L68: 9.7 | N68: =(A68-x!A66)^2 -> 2.44357554e-26 | O68: =(B68-x!B66)^2 -> 4.15857177e-24 | P68: =(C68-x!C66)^2 -> 3.080167358e-24 | Q68: =(D68-x!D66)^2 -> 9.895471195e-25 | R68: =(E68-x!E66)^2 -> 2.334523408e-25 | S68: =(F68-x!F66)^2 -> 1.003733994e-24 | T68: =(G68-x!G66)^2 -> 9.641470605e-24 | U68: =(H68-x!H66)^2 -> 1.663428708e-23 | V68: =(I68-x!I66)^2 -> 1.134323922e-23 | W68: =(J68-x!J66)^2 -> 6.81859812e-26 | X68: =(K68-x!K66)^2 -> 1.068306992e-23 | Y68: =(L68-x!L66)^2 -> 6.362636517e-24
A69: 17.5 | B69: 68.9 | C69: 78.8 | D69: 66.6 | E69: 75.5 | F69: 84.8 | G69: 81.9 | H69: 27.6 | I69: 62.7 | J69: 93.9 | K69: 11.4 | L69: 93.3 | N69: =(A69-x!A67)^2 -> 4.57418156e-24 | O69: =(B69-x!B67)^2 -> 1.672334632e-24 | P69: =(C69-x!C67)^2 -> 6.986606561e-24 | Q69: =(D69-x!D67)^2 -> 7.006013801e-23 | R69: =(E69-x!E67)^2 -> 4.789589812e-23 | S69: =(F69-x!F67)^2 -> 1.45907713e-24 | T69: =(G69-x!G67)^2 -> 4.273227969e-25 | U69: =(H69-x!H67)^2 -> 8.611261177e-23 | V69: =(I69-x!I67)^2 -> 6.653714832e-23 | W69: =(J69-x!J67)^2 -> 4.014935976e-24 | X69: =(K69-x!K67)^2 -> 3.568733844e-23 | Y69: =(L69-x!L67)^2 -> 7.997358261e-24
A70: 88.4 | B70: 3.5 | C70: 73.3 | D70: 89 | E70: 38.4 | F70: 52.8 | G70: 6.4 | H70: 6.9 | I70: 80.7 | J70: 5.7 | K70: 83.9 | L70: 40.2 | N70: =(A70-x!A68)^2 -> 1.528547377e-24 | O70: =(B70-x!B68)^2 -> 3.391630351e-24 | P70: =(C70-x!C68)^2 -> 1.391222471e-24 | Q70: =(D70-x!D68)^2 -> 6.255553382e-24 | R70: =(E70-x!E68)^2 -> 2.113435358e-23 | S70: =(F70-x!F68)^2 -> 7.252017234e-24 | T70: =(G70-x!G68)^2 -> 2.065177896e-24 | U70: =(H70-x!H68)^2 -> 4.623855816e-23 | V70: =(I70-x!I68)^2 -> 3.134966054e-23 | W70: =(J70-x!J68)^2 -> 5.699791408e-24 | X70: =(K70-x!K68)^2 -> 6.184669497e-24 | Y70: =(L70-x!L68)^2 -> 1.757455879e-25
A71: 75.3 | B71: 80.9 | C71: 14.6 | D71: 11.4 | E71: 96.1 | F71: 69.3 | G71: 92.6 | H71: 15.2 | I71: 74.5 | J71: 30.4 | K71: 79 | L71: 60.3 | N71: =(A71-x!A69)^2 -> 5.672730324e-25 | O71: =(B71-x!B69)^2 -> 2.26909213e-24 | P71: =(C71-x!C69)^2 -> 2.729143188e-26 | Q71: =(D71-x!D69)^2 -> 4.627524334e-24 | R71: =(E71-x!E69)^2 -> 2.019483917e-26 | S71: =(F71-x!F69)^2 -> 4.273227969e-25 | T71: =(G71-x!G69)^2 -> 1.822584235e-24 | U71: =(H71-x!H69)^2 -> 3.111141192e-25 | V71: =(I71-x!I69)^2 -> 1.068306992e-25 | W71: =(J71-x!J69)^2 -> 5.252677669e-25 | X71: =(K71-x!K69)^2 -> 1.822584235e-24 | Y71: =(L71-x!L69)^2 -> 2.184273805e-24
A72: 90.3 | B72: 71.2 | C72: 43.9 | D72: 18.3 | E72: 50.7 | F72: 23.5 | G72: 60.3 | H72: 99.4 | I72: 66.5 | J72: 66.8 | K72: 16.9 | L72: 71.7 | N72: =(A72-x!A70)^2 -> 1.903343397e-23 | O72: =(B72-x!B70)^2 -> 1.450474129e-23 | P72: =(C72-x!C70)^2 -> 1.423539262e-23 | Q72: =(D72-x!D70)^2 -> 3.680509439e-24 | R72: =(E72-x!E70)^2 -> 1.040619868e-23 | S72: =(F72-x!F70)^2 -> 1.660532011e-23 | T72: =(G72-x!G70)^2 -> 1.505101169e-23 | U72: =(H72-x!H70)^2 -> 1.086967024e-23 | V72: =(I72-x!I70)^2 -> 1.493610305e-24 | W72: =(J72-x!J70)^2 -> 1.817535526e-27 | X72: =(K72-x!K70)^2 -> 3.634829975e-23 | Y72: =(L72-x!L70)^2 -> 4.072087371e-24
A73: 61.1 | B73: 60.8 | C73: 78.1 | D73: 82.7 | E73: 45.6 | F73: 17.4 | G73: 16.5 | H73: 89 | I73: 10.5 | J73: 91.7 | K73: 10.4 | L73: 62.6 | N73: =(A73-x!A71)^2 -> 8.532319551e-27 | O73: =(B73-x!B71)^2 -> 1.120864061e-24 | P73: =(C73-x!C71)^2 -> 7.522375644e-24 | Q73: =(D73-x!D71)^2 -> 2.824773324e-23 | R73: =(E73-x!E71)^2 -> 3.838958148e-23 | S73: =(F73-x!F71)^2 -> 5.009582293e-24 | T73: =(G73-x!G71)^2 -> 3.111141192e-25 | U73: =(H73-x!H71)^2 -> 1.504049018e-22 | V73: =(I73-x!I71)^2 -> 6.558425798e-23 | W73: =(J73-x!J71)^2 -> 5.460684513e-25 | X73: =(K73-x!K71)^2 -> 4.655314642e-23 | Y73: =(L73-x!L71)^2 -> 1.022363733e-25
A74: 14.7 | B74: 56.8 | C74: 71.1 | D74: 32.5 | E74: 59.2 | F74: 90.4 | G74: 30.2 | H74: 47.9 | I74: 68.8 | J74: 88.7 | K74: 52.4 | L74: 92.9 | N74: =(A74-x!A72)^2 -> 1.189589623e-24 | O74: =(B74-x!B72)^2 -> 5.332699719e-24 | P74: =(C74-x!C72)^2 -> 2.199217986e-25 | Q74: =(D74-x!D72)^2 -> 2.459751606e-23 | R74: =(E74-x!E72)^2 -> 5.665914566e-24 | S74: =(F74-x!F72)^2 -> 1.979296187e-24 | T74: =(G74-x!G72)^2 -> 6.793543898e-25 | U74: =(H74-x!H72)^2 -> 4.107650483e-23 | V74: =(I74-x!I72)^2 -> 7.837415135e-24 | W74: =(J74-x!J72)^2 -> 9.065463305e-25 | X74: =(K74-x!K72)^2 -> 4.245964936e-24 | Y74: =(L74-x!L72)^2 -> 1.292469707e-24
A75: 83 | B75: 51.6 | C75: 11.9 | D75: 87.4 | E75: 54 | F75: 95 | G75: 87.9 | H75: 61.7 | I75: 55.4 | J75: 67.1 | K75: 51.8 | L75: 31.7 | N75: =(A75-x!A73)^2 -> 1.939512354e-24 | O75: =(B75-x!B73)^2 -> 8.532319551e-25 | P75: =(C75-x!C73)^2 -> 1.123580583e-23 | Q75: =(D75-x!D73)^2 -> 1.068306992e-23 | R75: =(E75-x!E73)^2 -> 6.800056734e-24 | S75: =(F75-x!F73)^2 -> 9.065463305e-25 | T75: =(G75-x!G73)^2 -> 5.041439651e-24 | U75: =(H75-x!H73)^2 -> 5.545018161e-23 | V75: =(I75-x!I73)^2 -> 2.847477372e-23 | W75: =(J75-x!J73)^2 -> 2.473867799e-25 | X75: =(K75-x!K73)^2 -> 3.231174268e-27 | Y75: =(L75-x!L73)^2 -> 3.092650293e-24
A76: 37.3 | B76: 64.8 | C76: 65.7 | D76: 28.6 | E76: 6.1 | F76: 89.9 | G76: 22.1 | H76: 70.4 | I76: 82.1 | J76: 56.2 | K76: 8 | L76: 80.5 | N76: =(A76-x!A74)^2 -> 4.423477573e-24 | O76: =(B76-x!B74)^2 -> 1.197352015e-24 | P76: =(C76-x!C74)^2 -> 1.046900463e-24 | Q76: =(D76-x!D74)^2 -> 8.653286638e-24 | R76: =(E76-x!E74)^2 -> 1.485866847e-23 | S76: =(F76-x!F74)^2 -> 1.124771763e-23 | T76: =(G76-x!G74)^2 -> 8.138633783e-24 | U76: =(H76-x!H74)^2 -> 4.187601851e-24 | V76: =(I76-x!I74)^2 -> 1.077616813e-23 | W76: =(J76-x!J74)^2 -> 2.334523408e-25 | X76: =(K76-x!K74)^2 -> 8.383657214e-23 | Y76: =(L76-x!L74)^2 -> 2.019483917e-26
A77: 69.3 | B77: -30.1 | C77: 26.7 | D77: 6.5 | E77: 78.8 | F77: 9.5 | G77: 58 | H77: 3 | I77: 54.9 | J77: 78.4 | K77: 95.9 | L77: 10 | N77: =(A77-x!A75)^2 -> 3.958188478e-24 | O77: =(B77-x!B75)^2 -> 1.010865297e-24 | P77: =(C77-x!C75)^2 -> 2.895952559e-24 | Q77: =(D77-x!D75)^2 -> 1.17841817e-23 | R77: =(E77-x!E75)^2 -> 4.977825908e-24 | S77: =(F77-x!F75)^2 -> 7.638193046e-25 | T77: =(G77-x!G75)^2 -> 9.685646816e-24 | U77: =(H77-x!H75)^2 -> 4.184857581e-23 | V77: =(I77-x!I75)^2 -> 2.166022719e-23 | W77: =(J77-x!J75)^2 -> 1.166453911e-24 | X77: =(K77-x!K75)^2 -> 2.956726403e-24 | Y77: =(L77-x!L75)^2 -> 5.113487896e-24
A78: 14.5 | B78: 90.8 | C78: 43 | D78: 90.8 | E78: 18.7 | F78: 12.9 | G78: 30.9 | H78: 99.3 | I78: 10.3 | J78: 46.3 | K78: 19.4 | L78: 35.8 | N78: =(A78-x!A76)^2 -> 6.809324272e-24 | O78: =(B78-x!B76)^2 -> 6.911683707e-24 | P78: =(C78-x!C76)^2 -> 8.486881163e-26 | Q78: =(D78-x!D76)^2 -> 2.067951531e-25 | R78: =(E78-x!E76)^2 -> 7.271164466e-24 | S78: =(F78-x!F76)^2 -> 3.680509439e-24 | T78: =(G78-x!G76)^2 -> 6.503874174e-25 | U78: =(H78-x!H76)^2 -> 5.299933593e-24 | V78: =(I78-x!I76)^2 -> 1.029190851e-23 | W78: =(J78-x!J76)^2 -> 4.543838814e-28 | X78: =(K78-x!K76)^2 -> 1.991130363e-23 | Y78: =(L78-x!L76)^2 -> 1.640325812e-25
A79: 2 | B79: 36.6 | C79: 5.9 | D79: 53 | E79: 59.3 | F79: 98.4 | G79: 33.4 | H79: 58.5 | I79: 21.5 | J79: 56.9 | K79: 22.6 | L79: 78.9 | N79: =(A79-x!A77)^2 -> 5.687075759e-24 | O79: =(B79-x!B77)^2 -> 6.10893885e-25 | P79: =(C79-x!C77)^2 -> 2.190895503e-25 | Q79: =(D79-x!D77)^2 -> 2.946911712e-23 | R79: =(E79-x!E77)^2 -> 6.009226832e-24 | S79: =(F79-x!F77)^2 -> 3.005799863e-24 | T79: =(G79-x!G77)^2 -> 2.334523408e-25 | U79: =(H79-x!H77)^2 -> 9.908042482e-24 | V79: =(I79-x!I77)^2 -> 2.65916807e-24 | W79: =(J79-x!J77)^2 -> 5.780267842e-25 | X79: =(K79-x!K77)^2 -> 1.956406599e-23 | Y79: =(L79-x!L77)^2 -> 2.764673483e-25
A80: 80.6 | B80: 60.8 | C80: 73.1 | D80: 10.4 | E80: 16.9 | F80: 77.8 | G80: 50 | H80: 59.4 | I80: 9.1 | J80: 42.5 | K80: 40.3 | L80: 48 | N80: =(A80-x!A78)^2 -> 2.26909213e-24 | O80: =(B80-x!B78)^2 -> 5.464773967e-24 | P80: =(C80-x!C78)^2 -> 1.396856831e-23 | Q80: =(D80-x!D78)^2 -> 5.523874164e-23 | R80: =(E80-x!E78)^2 -> 7.175680742e-24 | S80: =(F80-x!F78)^2 -> 8.532319551e-25 | T80: =(G80-x!G78)^2 -> 1.617384475e-23 | U80: =(H80-x!H78)^2 -> 7.185571165e-23 | V80: =(I80-x!I78)^2 -> 1.926663703e-23 | W80: =(J80-x!J78)^2 -> 3.231628652e-24 | X80: =(K80-x!K78)^2 -> 4.914616061e-24 | Y80: =(L80-x!L78)^2 -> 8.363137286e-24
A81: 12.6 | B81: 92 | C81: 4.5 | D81: 95.5 | E81: 18.4 | F81: 60.2 | G81: 73 | H81: 24.1 | I81: 71.9 | J81: 48.9 | K81: 32 | L81: 88.5 | N81: =(A81-x!A79)^2 -> 3.465636351e-24 | O81: =(B81-x!B79)^2 -> 7.997358261e-24 | P81: =(C81-x!C79)^2 -> 1.000332505e-23 | Q81: =(D81-x!D79)^2 -> 1.197352015e-24 | R81: =(E81-x!E79)^2 -> 1.608632536e-24 | S81: =(F81-x!F79)^2 -> 1.95326504e-23 | T81: =(G81-x!G79)^2 -> 8.569881952e-24 | U81: =(H81-x!H79)^2 -> 1.022363733e-27 | V81: =(I81-x!I79)^2 -> 1.817535526e-25 | W81: =(J81-x!J79)^2 -> 1.563888346e-24 | X81: =(K81-x!K79)^2 -> 2.510672893e-24 | Y81: =(L81-x!L79)^2 -> 2.184273805e-24
A82: 52.9 | B82: 40.7 | C82: 51.5 | D82: 64.4 | E82: 27.3 | F82: 34 | G82: 16.4 | H82: 68.5 | I82: 39.3 | J82: 63.7 | K82: 60.1 | L82: 54.3 | N82: =(A82-x!A80)^2 -> 2.939202332e-23 | O82: =(B82-x!B80)^2 -> 5.974441221e-24 | P82: =(C82-x!C80)^2 -> 1.817535526e-23 | Q82: =(D82-x!D80)^2 -> 5.836308521e-24 | R82: =(E82-x!E80)^2 -> 1.083566718e-24 | S82: =(F82-x!F80)^2 -> 1.237060117e-23 | T82: =(G82-x!G80)^2 -> 1.274830777e-23 | U82: =(H82-x!H80)^2 -> 2.916134777e-23 | V82: =(I82-x!I80)^2 -> 1.046900463e-24 | W82: =(J82-x!J80)^2 -> 6.398532844e-24 | X82: =(K82-x!K80)^2 -> 2.870272297e-23 | Y82: =(L82-x!L80)^2 -> 2.473867799e-27
A83: 50.9 | B83: 69.1 | C83: 68 | D83: 60.1 | E83: 27.5 | F83: 80.3 | G83: 52.5 | H83: 40.9 | I83: 10.5 | J83: 95.8 | K83: 15.6 | L83: 40.6 | N83: =(A83-x!A81)^2 -> 4.089454933e-25 | O83: =(B83-x!B81)^2 -> 4.543838814e-26 | P83: =(C83-x!C81)^2 -> 1.822584235e-24 | Q83: =(D83-x!D81)^2 -> 7.328757623e-24 | R83: =(E83-x!E81)^2 -> 1.617384475e-23 | S83: =(F83-x!F81)^2 -> 3.41292782e-24 | T83: =(G83-x!G81)^2 -> 1.45907713e-26 | U83: =(H83-x!H81)^2 -> 1.017824943e-23 | V83: =(I83-x!I81)^2 -> 3.552149148e-24 | W83: =(J83-x!J81)^2 -> 1.635781973e-24 | X83: =(K83-x!K81)^2 -> 5.252677669e-23 | Y83: =(L83-x!L81)^2 -> 2.956726403e-24
A84: 6.6 | B84: 37.6 | C84: 62.6 | D84: 62.8 | E84: 11.9 | F84: 23 | G84: 77.1 | H84: 51.2 | I84: 19.4 | J84: 40.4 | K84: 76.9 | L84: 37.1 | N84: =(A84-x!A82)^2 -> 3.690733077e-25 | O84: =(B84-x!B82)^2 -> 9.614762931e-25 | P84: =(C84-x!C82)^2 -> 5.460684513e-25 | Q84: =(D84-x!D82)^2 -> 6.726143622e-24 | R84: =(E84-x!E82)^2 -> 3.58573285e-23 | S84: =(F84-x!F82)^2 -> 6.874373742e-24 | T84: =(G84-x!G82)^2 -> 7.837415135e-24 | U84: =(H84-x!H82)^2 -> 5.299933593e-24 | V84: =(I84-x!I82)^2 -> 1.669229675e-23 | W84: =(J84-x!J82)^2 -> 1.45907713e-26 | X84: =(K84-x!K82)^2 -> 5.048709793e-23 | Y84: =(L84-x!L82)^2 -> 5.15018886e-25
A85: 9.7 | B85: 39.6 | C85: 95.6 | D85: 93.9 | E85: 50.3 | F85: 83.8 | G85: 0.2 | H85: 56 | I85: 7.5 | J85: 82.2 | K85: 92.2 | L85: 31.3 | N85: =(A85-x!A83)^2 -> 8.281146239e-24 | O85: =(B85-x!B83)^2 -> 1.192485058e-23 | P85: =(C85-x!C83)^2 -> 7.837415135e-24 | Q85: =(D85-x!D83)^2 -> 2.029359194e-23 | R85: =(E85-x!E83)^2 -> 1.727920927e-24 | S85: =(F85-x!F83)^2 -> 4.60462528e-24 | T85: =(G85-x!G83)^2 -> 2.935288665e-24 | U85: =(H85-x!H83)^2 -> 3.142927869e-23 | V85: =(I85-x!I83)^2 -> 1.658580053e-24 | W85: =(J85-x!J83)^2 -> 1.979296187e-24 | X85: =(K85-x!K83)^2 -> 2.101071068e-24 | Y85: =(L85-x!L83)^2 -> 1.083566718e-24
A86: 58.8 | B86: 2.7 | C86: 8.9 | D86: 61.4 | E86: -6.9 | F86: -26.3 | G86: 5.2 | H86: -6.2 | I86: 89.8 | J86: 68 | K86: 14.1 | L86: 55.7 | N86: =(A86-x!A84)^2 -> 6.911683707e-24 | O86: =(B86-x!B84)^2 -> 1.064238245e-24 | P86: =(C86-x!C84)^2 -> 7.857319673e-24 | Q86: =(D86-x!D84)^2 -> 1.60597439e-23 | R86: =(E86-x!E84)^2 -> 4.086438329e-24 | S86: =(F86-x!F84)^2 -> 1.765483328e-24 | T86: =(G86-x!G84)^2 -> 8.189389094e-24 | U86: =(H86-x!H84)^2 -> 5.965398982e-23 | V86: =(I86-x!I84)^2 -> 1.95326504e-23 | W86: =(J86-x!J84)^2 -> 3.30872245e-24 | X86: =(K86-x!K84)^2 -> 1.590659129e-26 | Y86: =(L86-x!L84)^2 -> 1.617657105e-24
A87: 58.9 | B87: 50.2 | C87: 87.7 | D87: 58 | E87: 8.9 | F87: 13.2 | G87: 67.3 | H87: 70.1 | I87: 6.6 | J87: 49.8 | K87: 15.7 | L87: 7 | N87: =(A87-x!A85)^2 -> 7.061933311e-24 | O87: =(B87-x!B85)^2 -> 1.222110887e-23 | P87: =(C87-x!C85)^2 -> 1.313169417e-23 | Q87: =(D87-x!D85)^2 -> 2.779637859e-23 | R87: =(E87-x!E85)^2 -> 2.30131552e-24 | S87: =(F87-x!F85)^2 -> 5.767848016e-24 | T87: =(G87-x!G85)^2 -> 1.43966989e-23 | U87: =(H87-x!H85)^2 -> 4.80927978e-23 | V87: =(I87-x!I85)^2 -> 2.959781662e-24 | W87: =(J87-x!J85)^2 -> 9.065463305e-25 | X87: =(K87-x!K85)^2 -> 1.509238902e-23 | Y87: =(L87-x!L85)^2 -> 1.077033766e-23
A88: 51.5 | B88: 9.6 | C88: 37.4 | D88: 98.9 | E88: 70.6 | F88: 46.5 | G88: 39.2 | H88: 35.4 | I88: 80.8 | J88: 30.7 | K88: 40.2 | L88: 21.4 | N88: =(A88-x!A86)^2 -> 3.282923543e-24 | O88: =(B88-x!B86)^2 -> 7.252017234e-24 | P88: =(C88-x!C86)^2 -> 1.577625885e-23 | Q88: =(D88-x!D86)^2 -> 1.055642809e-22 | R88: =(E88-x!E86)^2 -> 3.803819127e-23 | S88: =(F88-x!F86)^2 -> 4.543838814e-28 | T88: =(G88-x!G86)^2 -> 2.184273805e-24 | U88: =(H88-x!H86)^2 -> 1.481477751e-22 | V88: =(I88-x!I86)^2 -> 5.976379926e-23 | W88: =(J88-x!J86)^2 -> 1.374511241e-26 | X88: =(K88-x!K86)^2 -> 1.01329625e-23 | Y88: =(L88-x!L86)^2 -> 2.776298137e-24
A89: 62.4 | B89: 15.6 | C89: 44.5 | D89: 7.3 | E89: 4.1 | F89: 75.2 | G89: 62.7 | H89: 94.7 | I89: 32.9 | J89: 88.7 | K89: 23 | L89: 43.7 | N89: =(A89-x!A87)^2 -> 5.048709793e-27 | O89: =(B89-x!B87)^2 -> 1.262177448e-29 | P89: =(C89-x!C87)^2 -> 1.476293231e-24 | Q89: =(D89-x!D87)^2 -> 9.685646816e-24 | R89: =(E89-x!E87)^2 -> 1.504412099e-23 | S89: =(F89-x!F87)^2 -> 6.837164751e-24 | T89: =(G89-x!G87)^2 -> 2.039729244e-24 | U89: =(H89-x!H87)^2 -> 2.578679014e-24 | V89: =(I89-x!I87)^2 -> 1.187582761e-23 | W89: =(J89-x!J87)^2 -> 1.45907713e-24 | X89: =(K89-x!K87)^2 -> 2.668389538e-23 | Y89: =(L89-x!L87)^2 -> 6.561303248e-25
A90: 34.5 | B90: 48.8 | C90: 10 | D90: 19.4 | E90: 81.9 | F90: 21.6 | G90: 94.7 | H90: 61.7 | I90: 34.5 | J90: 44 | K90: 74.9 | L90: 99.8 | N90: =(A90-x!A88)^2 -> 6.10893885e-25 | O90: =(B90-x!B88)^2 -> 2.956726403e-24 | P90: =(C90-x!C88)^2 -> 1.262177448e-29 | Q90: =(D90-x!D88)^2 -> 2.727439248e-23 | R90: =(E90-x!E88)^2 -> 8.532319551e-25 | S90: =(F90-x!F88)^2 -> 4.508624063e-25 | T90: =(G90-x!G88)^2 -> 9.065463305e-25 | U90: =(H90-x!H88)^2 -> 5.398534895e-24 | V90: =(I90-x!I88)^2 -> 1.74665164e-24 | W90: =(J90-x!J88)^2 -> 8.143064026e-25 | X90: =(K90-x!K88)^2 -> 2.101071068e-24 | Y90: =(L90-x!L88)^2 -> 2.060075544e-24
A91: -20.2 | B91: 32 | C91: 28.3 | D91: 96.6 | E91: 57.8 | F91: 13.6 | G91: 15.2 | H91: -13.7 | I91: 54 | J91: 40.4 | K91: 49.7 | L91: 79.7 | N91: =(A91-x!A89)^2 -> 8.695140442e-26 | O91: =(B91-x!B89)^2 -> 2.266365826e-25 | P91: =(C91-x!C89)^2 -> 2.421411704e-24 | Q91: =(D91-x!D89)^2 -> 1.302890244e-23 | R91: =(E91-x!E89)^2 -> 1.477661431e-23 | S91: =(F91-x!F89)^2 -> 1.151137387e-23 | T91: =(G91-x!G89)^2 -> 5.590060856e-24 | U91: =(H91-x!H89)^2 -> 5.12472443e-25 | V91: =(I91-x!I89)^2 -> 5.598463803e-24 | W91: =(J91-x!J89)^2 -> 1.817535526e-27 | X91: =(K91-x!K89)^2 -> 3.954275728e-23 | Y91: =(L91-x!L89)^2 -> 2.142470488e-24
A92: 88.9 | B92: 37.9 | C92: 83.9 | D92: 59.5 | E92: 73.6 | F92: 38.1 | G92: 12.1 | H92: 17 | I92: 4.3 | J92: 76.9 | K92: 19.7 | L92: 63.3 | N92: =(A92-x!A90)^2 -> 9.614762931e-25 | O92: =(B92-x!B90)^2 -> 1.784415989e-24 | P92: =(C92-x!C90)^2 -> 9.065463305e-25 | Q92: =(D92-x!D90)^2 -> 4.125886423e-23 | R92: =(E92-x!E90)^2 -> 1.031471606e-23 | S92: =(F92-x!F90)^2 -> 2.601549669e-24 | T92: =(G92-x!G90)^2 -> 1.617657105e-24 | U92: =(H92-x!H90)^2 -> 2.985610072e-23 | V92: =(I92-x!I90)^2 -> 1.069468511e-23 | W92: =(J92-x!J90)^2 -> 3.055277219e-24 | X92: =(K92-x!K90)^2 -> 4.404272281e-23 | Y92: =(L92-x!L90)^2 -> 7.149477938e-25
A93: 98.7 | B93: 2.3 | C93: 24.5 | D93: 1.4 | E93: 84.8 | F93: 39.2 | G93: 9.3 | H93: 30.6 | I93: 82.1 | J93: 93.9 | K93: 71.7 | L93: 37.2 | N93: =(A93-x!A91)^2 -> 2.956726403e-24 | O93: =(B93-x!B91)^2 -> 1.057834075e-24 | P93: =(C93-x!C91)^2 -> 2.184273805e-24 | Q93: =(D93-x!D91)^2 -> 4.8859599e-25 | R93: =(E93-x!E91)^2 -> 5.632138697e-24 | S93: =(F93-x!F91)^2 -> 5.009582293e-24 | T93: =(G93-x!G91)^2 -> 7.493172013e-24 | U93: =(H93-x!H91)^2 -> 1.765483328e-24 | V93: =(I93-x!I91)^2 -> 2.916134777e-25 | W93: =(J93-x!J91)^2 -> 1.391222471e-24 | X93: =(K93-x!K91)^2 -> 3.572265101e-24 | Y93: =(L93-x!L91)^2 -> 3.545456452e-24
A94: 59.2 | B94: 13.1 | C94: 40.8 | D94: 55.9 | E94: 39.3 | F94: 21 | G94: 50.9 | H94: 18.2 | I94: 0.1 | J94: 17.4 | K94: 61.6 | L94: 66.8 | N94: =(A94-x!A92)^2 -> 1.262177448e-27 | O94: =(B94-x!B92)^2 -> 1.135959704e-24 | P94: =(C94-x!C92)^2 -> 1.031471606e-23 | Q94: =(D94-x!D92)^2 -> 5.35617622e-25 | R94: =(E94-x!E92)^2 -> 6.561303248e-25 | S94: =(F94-x!F92)^2 -> 6.061594574e-24 | T94: =(G94-x!G92)^2 -> 4.851810111e-24 | U94: =(H94-x!H92)^2 -> 1.282453067e-23 | V94: =(I94-x!I92)^2 -> 4.345831387e-24 | W94: =(J94-x!J92)^2 -> 4.423477573e-24 | X94: =(K94-x!K92)^2 -> 3.469680367e-23 | Y94: =(L94-x!L92)^2 -> 1.900132418e-24
A95: -17.8 | B95: 52.2 | C95: 90 | D95: 36.6 | E95: -79.4 | F95: 40.5 | G95: 28 | H95: 28.1 | I95: 92.2 | J95: 44.5 | K95: -68.6 | L95: 85.4 | N95: =(A95-x!A93)^2 -> 2.388355277e-24 | O95: =(B95-x!B93)^2 -> 2.545054607e-25 | P95: =(C95-x!C93)^2 -> 1.365171128e-25 | Q95: =(D95-x!D93)^2 -> 1.172936454e-23 | R95: =(E95-x!E93)^2 -> 3.821368443e-23 | S95: =(F95-x!F93)^2 -> 2.624521299e-24 | T95: =(G95-x!G93)^2 -> 1.300560265e-24 | U95: =(H95-x!H93)^2 -> 3.643402685e-23 | V95: =(I95-x!I93)^2 -> 2.588251368e-23 | W95: =(J95-x!J93)^2 -> 8.821307699e-24 | X95: =(K95-x!K93)^2 -> 4.144162752e-23 | Y95: =(L95-x!L93)^2 -> 7.270142103e-25
A96: 20.3 | B96: 49.3 | C96: 74.9 | D96: 62.5 | E96: 39.4 | F96: 11.6 | G96: 90.8 | H96: 93.9 | I96: 11 | J96: 75.2 | K96: 42.9 | L96: 48.9 | N96: =(A96-x!A94)^2 -> 2.067951531e-25 | O96: =(B96-x!B94)^2 -> 4.089454933e-25 | P96: =(C96-x!C94)^2 -> 1.282453067e-23 | Q96: =(D96-x!D94)^2 -> 4.394846339e-23 | R96: =(E96-x!E94)^2 -> 2.410663001e-23 | S96: =(F96-x!F94)^2 -> 3.909720864e-25 | T96: =(G96-x!G94)^2 -> 4.245964936e-24 | U96: =(H96-x!H94)^2 -> 1.099899799e-22 | V96: =(I96-x!I94)^2 -> 5.137448757e-23 | W96: =(J96-x!J94)^2 -> 4.014935976e-24 | X96: =(K96-x!K94)^2 -> 2.016575861e-23 | Y96: =(L96-x!L94)^2 -> 1.999339565e-24
A97: 63.4 | B97: 68.8 | C97: 18.1 | D97: 94.5 | E97: -35.7 | F97: 52.9 | G97: 9.6 | H97: 1 | I97: 39.1 | J97: 79.5 | K97: 83.3 | L97: 90.3 | N97: =(A97-x!A95)^2 -> 1.063667228e-23 | O97: =(B97-x!B95)^2 -> 4.273227969e-25 | P97: =(C97-x!C95)^2 -> 8.271806126e-25 | Q97: =(D97-x!D95)^2 -> 7.440768299e-23 | R97: =(E97-x!E95)^2 -> 8.207308858e-23 | S97: =(F97-x!F95)^2 -> 8.695140442e-24 | T97: =(G97-x!G95)^2 -> 2.274446917e-24 | U97: =(H97-x!H95)^2 -> 7.067853731e-23 | V97: =(I97-x!I95)^2 -> 5.502770557e-23 | W97: =(J97-x!J95)^2 -> 1.365171128e-25 | X97: =(K97-x!K95)^2 -> 1.029524823e-22 | Y97: =(L97-x!L95)^2 -> 3.25722561e-24
A98: 18.6 | B98: 60.3 | C98: 82.7 | D98: 51.8 | E98: 90.2 | F98: 80 | G98: 9.5 | H98: 49.8 | I98: 43.4 | J98: 32.9 | K98: 89.6 | L98: 15.4 | N98: =(A98-x!A96)^2 -> 2.039729244e-24 | O98: =(B98-x!B96)^2 -> 5.048709793e-27 | P98: =(C98-x!C96)^2 -> 2.908056841e-26 | Q98: =(D98-x!D96)^2 -> 9.908042482e-24 | R98: =(E98-x!E96)^2 -> 3.30872245e-24 | S98: =(F98-x!F96)^2 -> 3.25722561e-24 | T98: =(G98-x!G96)^2 -> 2.545054607e-25 | U98: =(H98-x!H96)^2 -> 1.172936454e-23 | V98: =(I98-x!I96)^2 -> 5.009582293e-24 | W98: =(J98-x!J96)^2 -> 5.566202547e-25 | X98: =(K98-x!K96)^2 -> 2.334523408e-23 | Y98: =(L98-x!L96)^2 -> 9.201273598e-27
A99: 15.2 | B99: 17.5 | C99: 96.6 | D99: 96.9 | E99: 39.6 | F99: 43.1 | G99: 44.8 | H99: 30 | I99: 48.9 | J99: 70.8 | K99: 41.1 | L99: 43.5 | N99: =(A99-x!A97)^2 -> 2.393848904e-24 | O99: =(B99-x!B97)^2 -> 2.544562358e-24 | P99: =(C99-x!C97)^2 -> 1.172936454e-23 | Q99: =(D99-x!D97)^2 -> 5.767848016e-24 | R99: =(E99-x!E97)^2 -> 4.089454933e-25 | S99: =(F99-x!F97)^2 -> 1.672334632e-24 | T99: =(G99-x!G97)^2 -> 1.434282917e-23 | U99: =(H99-x!H97)^2 -> 2.790887646e-23 | V99: =(I99-x!I97)^2 -> 3.231628652e-24 | W99: =(J99-x!J97)^2 -> 1.105869393e-24 | X99: =(K99-x!K97)^2 -> 5.665914566e-24 | Y99: =(L99-x!L97)^2 -> 1.090975699e-24
A100: 7.5 | B100: 49.9 | C100: 37 | D100: 85.6 | E100: 28 | F100: 7.2 | G100: 81.9 | H100: 71.2 | I100: 59 | J100: 4.2 | K100: 8.6 | L100: 37.1 | N100: =(A100-x!A98)^2 -> 4.261623825e-25 | O100: =(B100-x!B98)^2 -> 1.227083867e-23 | P100: =(C100-x!C98)^2 -> 2.355526041e-24 | Q100: =(D100-x!D98)^2 -> 4.49908705e-23 | R100: =(E100-x!E98)^2 -> 3.734025763e-23 | S100: =(F100-x!F98)^2 -> 1.640325812e-25 | T100: =(G100-x!G98)^2 -> 3.958188478e-24 | U100: =(H100-x!H98)^2 -> 3.119072716e-23 | V100: =(I100-x!I98)^2 -> 3.180737657e-24 | W100: =(J100-x!J98)^2 -> 1.906444567e-23 | X100: =(K100-x!K98)^2 -> 2.322522941e-23 | Y100: =(L100-x!L98)^2 -> 1.424947852e-24
A101: 79.6 | B101: 39 | C101: 2.5 | D101: 27.2 | E101: 57 | F101: 59.5 | G101: 54.1 | H101: 76.6 | I101: 20.7 | J101: 14.7 | K101: 94.2 | L101: 40.6 | N101: =(A101-x!A99)^2 -> 2.399348842e-24 | O101: =(B101-x!B99)^2 -> 4.483456245e-24 | P101: =(C101-x!C99)^2 -> 5.336693328e-25 | Q101: =(D101-x!D99)^2 -> 1.925104599e-23 | R101: =(E101-x!E99)^2 -> 1.511028354e-24 | S101: =(F101-x!F99)^2 -> 6.333101565e-25 | T101: =(G101-x!G99)^2 -> 2.266365826e-25 | U101: =(H101-x!H99)^2 -> 4.423477573e-24 | V101: =(I101-x!I99)^2 -> 2.636044979e-24 | W101: =(J101-x!J99)^2 -> 2.133079888e-25 | X101: =(K101-x!K99)^2 -> 4.665815643e-24 | Y101: =(L101-x!L99)^2 -> 2.019483917e-28
A102: 65.2 | B102: 69.9 | C102: 84.4 | D102: 49.1 | E102: 51.6 | F102: 71.5 | G102: 11 | H102: 75.5 | I102: 9.9 | J102: 66.7 | K102: -78.8 | L102: 78.9 | N102: =(A102-x!A100)^2 -> 1.124771763e-23 | O102: =(B102-x!B100)^2 -> 6.793543898e-25 | P102: =(C102-x!C100)^2 -> 1.829672624e-23 | Q102: =(D102-x!D100)^2 -> 1.979296187e-24 | R102: =(E102-x!E100)^2 -> 2.199217986e-25 | S102: =(F102-x!F100)^2 -> 6.326841165e-24 | T102: =(G102-x!G100)^2 -> 2.029359194e-23 | U102: =(H102-x!H100)^2 -> 6.064590983e-23 | V102: =(I102-x!I100)^2 -> 7.024219448e-24 | W102: =(J102-x!J100)^2 -> 3.005799863e-24 | X102: =(K102-x!K100)^2 -> 1.096357624e-23 | Y102: =(L102-x!L100)^2 -> 3.56236963e-25
N104: =SQRT(SUM(N3:N102)/100) -> 2.508541598e-12 | O104: =SQRT(SUM(O3:O102)/100) -> 2.250365112e-12 | P104: =SQRT(SUM(P3:P102)/100) -> 2.61421387e-12 | Q104: 5.495166022e-12 | R104: 4.766561844e-12 | S104: 2.628311338e-12 | T104: 2.913252353e-12 | U104: 7.116570907e-12 | V104: 4.786458385e-12 | W104: 2.431091431e-12 | X104: 4.936569635e-12 | Y104: 2.150799394e-12
M106: 2.508541598e-12
M107: 2.250365112e-12
M108: 2.61421387e-12
M109: 5.495166022e-12
M110: 4.766561844e-12
M111: 2.628311338e-12
M112: 2.913252353e-12
M113: 7.116570907e-12
M114: 4.786458385e-12
M115: 2.431091431e-12
M116: 4.936569635e-12
M117: 2.150799394e-12

Sheet DNP
A1: Solution Vectors, x, for Each Input b Vector Using Excel Minverse | N1: Square of the Error for Each Solution Value in Each x Solution Using Excel Minverse
A2: x1 | B2: x2 | C2: x3 | D2: x4 | E2: x5 | F2: x6 | G2: x7 | H2: x8 | I2: x9 | J2: x10 | K2: x11 | L2: x12 | N2: Esqd1 | O2: Esqd2 | P2: Esqd3 | Q2: Esqd4 | R2: Esqd5 | S2: Esqd6 | T2: Esqd7 | U2: Esqd8 | V2: Esqd9 | W2: Esqd10 | X2: Esqd11 | Y2: Esqd12
A3: =GaussianDNP(A,b) -> 32.4 | B3: 80.1 | C3: 63.2 | D3: 84.1 | E3: 92.4 | F3: 63.7 | G3: 14.7 | H3: 39.9 | I3: 48.9 | J3: 26.4 | K3: 80 | L3: 65.2 | N3: =(A3-x!A1)^2 -> 1.774775024e-21 | O3: =(B3-x!B1)^2 -> 2.155453548e-21 | P3: =(C3-x!C1)^2 -> 3.564211904e-22 | Q3: =(D3-x!D1)^2 -> 8.126475985e-22 | R3: =(E3-x!E1)^2 -> 5.35617622e-23 | S3: =(F3-x!F1)^2 -> 7.863385698e-23 | T3: =(G3-x!G1)^2 -> 1.746154898e-21 | U3: =(H3-x!H1)^2 -> 1.277970317e-22 | V3: =(I3-x!I1)^2 -> 2.051924907e-22 | W3: =(J3-x!J1)^2 -> 7.803635354e-22 | X3: =(K3-x!K1)^2 -> 1.374511241e-22 | Y3: =(L3-x!L1)^2 -> 9.980471273e-23
A4: 5.1 | B4: 16 | C4: 58.5 | D4: 77.8 | E4: 34.6 | F4: 52 | G4: 84.5 | H4: 56.9 | I4: 50.7 | J4: 58.9 | K4: 96.4 | L4: 75.4 | N4: =(A4-x!A2)^2 -> 4.031726171e-23 | O4: =(B4-x!B2)^2 -> 4.594429928e-21 | P4: =(C4-x!C2)^2 -> 1.667488325e-21 | Q4: =(D4-x!D2)^2 -> 1.635781973e-22 | R4: =(E4-x!E2)^2 -> 3.016750514e-23 | S4: =(F4-x!F2)^2 -> 5.877578695e-22 | T4: =(G4-x!G2)^2 -> 3.351833585e-21 | U4: =(H4-x!H2)^2 -> 7.290336942e-22 | V4: =(I4-x!I2)^2 -> 2.019483917e-28 | W4: =(J4-x!J2)^2 -> 7.286500427e-22 | X4: =(K4-x!K2)^2 -> 1.447228616e-21 | Y4: =(L4-x!L2)^2 -> 1.357900986e-22
A5: 64.8 | B5: 92.2 | C5: 85.5 | D5: 73.3 | E5: 85.5 | F5: 34.8 | G5: -18.9 | H5: 14.4 | I5: 53.3 | J5: 76.8 | K5: 68.1 | L5: 34.2 | N5: =(A5-x!A3)^2 -> 1.583275391e-25 | O5: =(B5-x!B3)^2 -> 3.085157503e-22 | P5: =(C5-x!C3)^2 -> 3.329434277e-22 | Q5: =(D5-x!D3)^2 -> 9.146828312e-23 | R5: =(E5-x!E3)^2 -> 4.254668912e-23 | S5: =(F5-x!F3)^2 -> 6.10893885e-23 | T5: =(G5-x!G3)^2 -> 7.80562038e-22 | U5: =(H5-x!H3)^2 -> 8.460275724e-23 | V5: =(I5-x!I3)^2 -> 1.594604696e-23 | W5: =(J5-x!J3)^2 -> 2.633738224e-22 | X5: =(K5-x!K3)^2 -> 7.367400448e-23 | Y5: =(L5-x!L3)^2 -> 8.584906912e-23
A6: 4 | B6: 25.6 | C6: 74.2 | D6: 63.7 | E6: 87.7 | F6: 86.5 | G6: 84 | H6: 25 | I6: 68.7 | J6: 74.6 | K6: 50 | L6: 95 | N6: =(A6-x!A4)^2 -> 1.302789593e-22 | O6: =(B6-x!B4)^2 -> 1.010809773e-21 | P6: =(C6-x!C4)^2 -> 7.679087596e-22 | Q6: =(D6-x!D4)^2 -> 1.252603126e-21 | R6: =(E6-x!E4)^2 -> 1.919771899e-22 | S6: =(F6-x!F4)^2 -> 5.144061746e-22 | T6: =(G6-x!G4)^2 -> 2.831025646e-22 | U6: =(H6-x!H4)^2 -> 1.313684436e-21 | V6: =(I6-x!I4)^2 -> 9.36557881e-23 | W6: =(J6-x!J4)^2 -> 6.269778627e-22 | X6: =(K6-x!K4)^2 -> 2.224615218e-21 | Y6: =(L6-x!L4)^2 -> 1.166453911e-24
A7: 39.9 | B7: 83.2 | C7: 9.9 | D7: 23.7 | E7: 58.4 | F7: 95.9 | G7: 23.2 | H7: 64.4 | I7: 80.9 | J7: 26.6 | K7: -10.1 | L7: -16.8 | N7: =(A7-x!A5)^2 -> 7.627979002e-22 | O7: =(B7-x!B5)^2 -> 5.953618322e-22 | P7: =(C7-x!C5)^2 -> 5.291112869e-21 | Q7: =(D7-x!D5)^2 -> 4.971759997e-21 | R7: =(E7-x!E5)^2 -> 9.36557881e-23 | S7: =(F7-x!F5)^2 -> 6.149379015e-22 | T7: =(G7-x!G5)^2 -> 4.083566118e-22 | U7: =(H7-x!H5)^2 -> 1.84181982e-22 | V7: =(I7-x!I5)^2 -> 4.461039973e-25 | W7: =(J7-x!J5)^2 -> 3.966796326e-21 | X7: =(K7-x!K5)^2 -> 7.841348395e-23 | Y7: =(L7-x!L5)^2 -> 3.901844877e-22
A8: 60.1 | B8: 34.2 | C8: 44.2 | D8: 39.1 | E8: 71 | F8: 3.2 | G8: 13.7 | H8: 88.2 | I8: 71.2 | J8: 78.7 | K8: 21.8 | L8: 99.1 | N8: =(A8-x!A6)^2 -> 1.270774846e-21 | O8: =(B8-x!B6)^2 -> 1.354690007e-23 | P8: =(C8-x!C6)^2 -> 2.555819718e-21 | Q8: =(D8-x!D6)^2 -> 1.160322757e-22 | R8: =(E8-x!E6)^2 -> 3.57935349e-23 | S8: =(F8-x!F6)^2 -> 3.88349655e-21 | T8: =(G8-x!G6)^2 -> 5.672997909e-21 | U8: =(H8-x!H6)^2 -> 2.749749497e-21 | V8: =(I8-x!I6)^2 -> 3.564066199e-21 | W8: =(J8-x!J6)^2 -> 1.268029428e-20 | X8: =(K8-x!K6)^2 -> 9.891230733e-21 | Y8: =(L8-x!L6)^2 -> 4.298837045e-22
A9: -46.1 | B9: 96.9 | C9: 1.9 | D9: 88 | E9: 85.1 | F9: 43.4 | G9: 86.5 | H9: 28.4 | I9: 64.5 | J9: 36.8 | K9: 42.9 | L9: 76.4 | N9: =(A9-x!A7)^2 -> 2.778666487e-22 | O9: =(B9-x!B7)^2 -> 1.578137824e-22 | P9: =(C9-x!C7)^2 -> 6.328861359e-23 | Q9: =(D9-x!D7)^2 -> 8.091849914e-23 | R9: =(E9-x!E7)^2 -> 4.691745816e-23 | S9: =(F9-x!F7)^2 -> 1.158381024e-23 | T9: =(G9-x!G7)^2 -> 9.895471195e-27 | U9: =(H9-x!H7)^2 -> 9.167226362e-23 | V9: =(I9-x!I7)^2 -> 1.709291188e-22 | W9: =(J9-x!J7)^2 -> 2.438653048e-23 | X9: =(K9-x!K7)^2 -> 3.537433548e-22 | Y9: =(L9-x!L7)^2 -> 7.197622435e-23
A10: 67.1 | B10: 79.2 | C10: 3.4 | D10: 43.9 | E10: 3.6 | F10: 15.9 | G10: 30.4 | H10: 68.1 | I10: 9.9 | J10: 6.5 | K10: 89.2 | L10: 57 | N10: =(A10-x!A8)^2 -> 1.23180643e-22 | O10: =(B10-x!B8)^2 -> 2.184273805e-22 | P10: =(C10-x!C8)^2 -> 3.310414084e-23 | Q10: =(D10-x!D8)^2 -> 9.201273598e-25 | R10: =(E10-x!E8)^2 -> 5.576146632e-23 | S10: =(F10-x!F8)^2 -> 2.534371663e-22 | T10: =(G10-x!G8)^2 -> 3.131386531e-21 | U10: =(H10-x!H8)^2 -> 5.504711281e-22 | V10: =(I10-x!I8)^2 -> 4.196241737e-21 | W10: =(J10-x!J8)^2 -> 1.031147613e-22 | X10: =(K10-x!K8)^2 -> 3.958188478e-24 | Y10: =(L10-x!L8)^2 -> 1.37617782e-22
A11: 61.3 | B11: 72.1 | C11: 67.3 | D11: 39.8 | E11: 96.1 | F11: 98.8 | G11: 19.7 | H11: 90.6 | I11: 74.4 | J11: 27.4 | K11: 51.8 | L11: 62.9 | N11: =(A11-x!A9)^2 -> 6.866923866e-22 | O11: =(B11-x!B9)^2 -> 1.679696863e-21 | P11: =(C11-x!C9)^2 -> 5.905172923e-24 | Q11: =(D11-x!D9)^2 -> 1.878009022e-21 | R11: =(E11-x!E9)^2 -> 2.646412505e-23 | S11: =(F11-x!F9)^2 -> 8.31389419e-22 | T11: =(G11-x!G9)^2 -> 2.071183968e-21 | U11: =(H11-x!H9)^2 -> 7.608367288e-22 | V11: =(I11-x!I9)^2 -> 1.636874312e-21 | W11: =(J11-x!J9)^2 -> 4.197786235e-22 | X11: =(K11-x!K9)^2 -> 3.848649701e-21 | Y11: =(L11-x!L9)^2 -> 5.237956136e-22
A12: 9.6 | B12: 18.5 | C12: 8.8 | D12: 85.8 | E12: 70.3 | F12: 21.4 | G12: 24.5 | H12: 63.1 | I12: 8.8 | J12: 80.3 | K12: 32.4 | L12: 67.1 | N12: =(A12-x!A10)^2 -> 2.360981803e-22 | O12: =(B12-x!B10)^2 -> 6.689338528e-22 | P12: =(C12-x!C10)^2 -> 6.583174763e-22 | Q12: =(D12-x!D10)^2 -> 3.182888407e-23 | R12: =(E12-x!E10)^2 -> 3.211223786e-22 | S12: =(F12-x!F10)^2 -> 1.403822157e-22 | T12: =(G12-x!G10)^2 -> 7.502185853e-23 | U12: =(H12-x!H10)^2 -> 2.717417559e-24 | V12: =(I12-x!I10)^2 -> 4.178882224e-22 | W12: =(J12-x!J10)^2 -> 1.471113456e-21 | X12: =(K12-x!K10)^2 -> 1.525014088e-21 | Y12: =(L12-x!L10)^2 -> 1.282453067e-23
A13: 61.3 | B13: 81.1 | C13: 85.3 | D13: 9.1 | E13: 63.9 | F13: 69.1 | G13: 11.7 | H13: 73.5 | I13: 67.6 | J13: 70.3 | K13: 19.9 | L13: 30.7 | N13: =(A13-x!A11)^2 -> 4.76013059e-23 | O13: =(B13-x!B11)^2 -> 1.792017327e-22 | P13: =(C13-x!C11)^2 -> 6.441741722e-22 | Q13: =(D13-x!D11)^2 -> 2.847477372e-23 | R13: =(E13-x!E11)^2 -> 1.232066943e-23 | S13: =(F13-x!F11)^2 -> 2.666124687e-22 | T13: =(G13-x!G11)^2 -> 1.188040174e-22 | U13: =(H13-x!H11)^2 -> 1.896216639e-22 | V13: =(I13-x!I11)^2 -> 1.289240552e-22 | W13: =(J13-x!J11)^2 -> 8.619876296e-22 | X13: =(K13-x!K11)^2 -> 8.690566311e-23 | Y13: =(L13-x!L11)^2 -> 4.072087371e-24
A14: 94 | B14: 46.9 | C14: 19.4 | D14: 58.2 | E14: -71.4 | F14: 80.5 | G14: 77.8 | H14: 70.2 | I14: 82 | J14: 59.6 | K14: 67.6 | L14: 74.3 | N14: =(A14-x!A12)^2 -> 3.407679182e-22 | O14: =(B14-x!B12)^2 -> 1.928223439e-23 | P14: =(C14-x!C12)^2 -> 6.407522703e-22 | Q14: =(D14-x!D12)^2 -> 1.25511915e-21 | R14: =(E14-x!E12)^2 -> 3.071635038e-23 | S14: =(F14-x!F12)^2 -> 9.475923411e-23 | T14: =(G14-x!G12)^2 -> 7.311397938e-21 | U14: =(H14-x!H12)^2 -> 2.617251157e-23 | V14: =(I14-x!I12)^2 -> 1.33281112e-21 | W14: =(J14-x!J12)^2 -> 4.009243051e-22 | X14: =(K14-x!K12)^2 -> 3.845905172e-24 | Y14: =(L14-x!L12)^2 -> 1.263552717e-22
A15: 66.9 | B15: 51.3 | C15: 9.6 | D15: 20.8 | E15: 15.6 | F15: 37.4 | G15: 0.4 | H15: 78.5 | I15: 11 | J15: 63.9 | K15: 79.9 | L15: 81.6 | N15: =(A15-x!A13)^2 -> 1.199365238e-21 | O15: =(B15-x!B13)^2 -> 3.494838088e-23 | P15: =(C15-x!C13)^2 -> 2.43968958e-22 | Q15: =(D15-x!D13)^2 -> 2.000344385e-22 | R15: =(E15-x!E13)^2 -> 2.080896423e-23 | S15: =(F15-x!F13)^2 -> 2.929908162e-22 | T15: =(G15-x!G13)^2 -> 1.522483161e-21 | U15: =(H15-x!H13)^2 -> 9.146828312e-23 | V15: =(I15-x!I13)^2 -> 1.983797144e-22 | W15: =(J15-x!J13)^2 -> 3.436596677e-22 | X15: =(K15-x!K13)^2 -> 1.668661191e-22 | Y15: =(L15-x!L13)^2 -> 7.758049417e-24
A16: 31.8 | B16: 97.4 | C16: 57.7 | D16: 5 | E16: 11.2 | F16: 87.9 | G16: 6.2 | H16: 47.6 | I16: 53.8 | J16: 95.6 | K16: 88.1 | L16: 70.4 | N16: =(A16-x!A14)^2 -> 6.02142565e-22 | O16: =(B16-x!B14)^2 -> 1.517254625e-21 | P16: =(C16-x!C14)^2 -> 2.789386362e-21 | Q16: =(D16-x!D14)^2 -> 2.307787461e-22 | R16: =(E16-x!E14)^2 -> 1.391550637e-23 | S16: =(F16-x!F14)^2 -> 4.411530306e-22 | T16: =(G16-x!G14)^2 -> 3.469366471e-21 | U16: =(H16-x!H14)^2 -> 2.717058899e-21 | V16: =(I16-x!I14)^2 -> 1.32348898e-21 | W16: =(J16-x!J14)^2 -> 3.035512328e-21 | X16: =(K16-x!K14)^2 -> 1.175680933e-22 | Y16: =(L16-x!L14)^2 -> 6.492418651e-23
A17: 94.9 | B17: 54.1 | C17: 95.7 | D17: 7.3 | E17: 8.5 | F17: 69.1 | G17: 72.7 | H17: 53.8 | I17: 61 | J17: 42.5 | K17: 40.4 | L17: 86.7 | N17: =(A17-x!A15)^2 -> 1.446147586e-21 | O17: =(B17-x!B15)^2 -> 5.739284638e-21 | P17: =(C17-x!C15)^2 -> 9.899098188e-22 | Q17: =(D17-x!D15)^2 -> 6.790615962e-23 | R17: =(E17-x!E15)^2 -> 4.472179478e-22 | S17: =(F17-x!F15)^2 -> 5.524734464e-22 | T17: =(G17-x!G15)^2 -> 3.494838088e-23 | U17: =(H17-x!H15)^2 -> 2.023524905e-22 | V17: =(I17-x!I15)^2 -> 1.592451926e-22 | W17: =(J17-x!J15)^2 -> 7.758049417e-22 | X17: =(K17-x!K15)^2 -> 2.898511195e-21 | Y17: =(L17-x!L15)^2 -> 1.617657105e-22
A18: 66.3 | B18: 75.3 | C18: -86.2 | D18: 56.5 | E18: 97.5 | F18: 85.7 | G18: 22.5 | H18: 22.8 | I18: 34.8 | J18: 36.5 | K18: 99.9 | L18: 21.4 | N18: =(A18-x!A16)^2 -> 8.251139535e-21 | O18: =(B18-x!B16)^2 -> 7.592696093e-22 | P18: =(C18-x!C16)^2 -> 2.46137931e-22 | Q18: =(D18-x!D16)^2 -> 1.182690561e-23 | R18: =(E18-x!E16)^2 -> 5.498044965e-24 | S18: =(F18-x!F16)^2 -> 1.09918268e-21 | T18: =(G18-x!G16)^2 -> 1.199452188e-20 | U18: =(H18-x!H16)^2 -> 7.292255578e-22 | V18: =(I18-x!I16)^2 -> 4.669384525e-21 | W18: =(J18-x!J16)^2 -> 3.255453513e-23 | X18: =(K18-x!K16)^2 -> 3.055277219e-22 | Y18: =(L18-x!L16)^2 -> 1.024636915e-21
A19: 53.3 | B19: 74.9 | C19: 30.6 | D19: 31 | E19: 13 | F19: 46.6 | G19: 98.3 | H19: 50.8 | I19: 61 | J19: 7.9 | K19: 70 | L19: 16.2 | N19: =(A19-x!A17)^2 -> 8.598078996e-23 | O19: =(B19-x!B17)^2 -> 1.417112456e-21 | P19: =(C19-x!C17)^2 -> 2.20216252e-22 | Q19: =(D19-x!D17)^2 -> 2.598112634e-22 | R19: =(E19-x!E17)^2 -> 2.432481e-22 | S19: =(F19-x!F17)^2 -> 9.729924001e-24 | T19: =(G19-x!G17)^2 -> 7.16871635e-21 | U19: =(H19-x!H17)^2 -> 1.827849484e-21 | V19: =(I19-x!I17)^2 -> 3.25979086e-22 | W19: =(J19-x!J17)^2 -> 1.629838787e-21 | X19: =(K19-x!K17)^2 -> 3.345254914e-23 | Y19: =(L19-x!L17)^2 -> 2.44357554e-22
